Workbook

Sheet Display (hidden)
A1: Key fiscal variable selected from drop-down list box ↓ | B1: 3 | C1: =OFFSET($A$1,$B$1,1) -> 78
A2: Total Crown OBEGAL | B2: 41
A3: Total Crown OBEGAL excluding ACC | B3: 45
A4: Net core Crown debt excl. NZSF & advances (excludes Crown entity debt) | B4: 78
A5: Net debt excluding New Zealand Superannuation Fund | B5: 81
A6: Net debt | B6: 82
A7: Core Crown residual cash | B7: 51
A8: Core Crown revenue | B8: 47
A9: Core Crown expenses | B9: 48
A10: Core Crown operating balance | B10: 49
A11: Core Crown primary balance | B11: 50
A12: Total Crown revenue | B12: 34
A13: Total Crown expenses | B13: 35
A14: Total Crown operating balance (excluding minority interests) | B14: 39
A15: Core Crown tax revenue | B15: 142
A16: Total Crown tax revenue | B16: 140
A17: Total Crown net worth | B17: 58
A18: Total Crown net worth attributable to the Crown | B18: 60
A19: Core Crown net worth | B19: 65
A20: Gross debt (core Crown) | B20: 85
A21: Total Crown borrowings | B21: 70

Sheet Guide
A1: Explanation of the worksheets in the Fiscal Strategy Model (FSM) and how they link to one another
A3: Name of worksheet | D3: Purpose | I3: Provides inputs to these worksheets | N3: Uses outputs from these worksheets
A5: Display | D5: This is a hidden worksheet. It provides | I5: Each of the main modelling worksheets. | N5: None.
D6: offsets to allow the chosen fiscal variable | I6: These are the latest forecast round main
D7: track to be displayed at the top of each | I7: modelling worksheets labelled with
D8: of the main modelling worksheets. | I8: Scenario numbers and Option worksheet.
I9: Other worksheets can be copied from these
I10: and run off a different set of parameters
I11: from the Assumptions worksheet.
A13: Guide | D13: This is this worksheet. It provides some | I13: None. Purely for information purposes | N13: None.
D14: information to help users know how the | I14: and to help users of the model.
D15: various worksheets in the model interact.
A17: Sources | D17: This is also an information worksheet. | I17: None. Purely for information purposes | N17: None.
D18: It provides lists of data and exogenous | I18: and to help users of the model.
D19: tracks used in the model. Information is
D20: provided about the data, distribution or
D21: track, including from where it is sourced
D22: and when it was produced.
A24: Statistics NZ | D24: These are the most recent New Zealand | I24: Used extensively throughout the | N24: None.
D25: (NZ) resident population projections and | I25: Population Treasury and Labour Force
D26: Labour Force projections, by gender and | I26: Treasury worksheets in calculations to
D27: single year of age. They are produced by | I27: produce the Population and Labour Force
D28: Statistics New Zealand and are updated | I28: age and gender distributions that match
D29: when a new version becomes available. | I29: the aggregate values in forecast years.
D30: As well as population and labour force
D31: numbers the worksheet has participation
D32: rates (numbers in labour force divided by
D33: numbers in demographic group).
A35: Population Treasury | D35: These are age and gender distributions | I35: Used in numerous places in the main | N35: Statistics NZ
D36: of the NZ population that match the | I36: modelling worksheets, wherever | N36: Economic Forecasts
D37: aggregate forecasts in forecast years and | I37: demographic growth is required. Used
D38: are projected out into post-forecast years. | I38: in projecting some economic variables.
D39: They also adjust population projections | I39: Used as a driver of recipient numbers for
D40: for alternative net migration totals to the | I40: some expense types, especially New
D41: values used in Statistics NZ projections. | I41: Zealand Superannuation (NZS) and other
I42: welfare expenses. Used in projecting age
I43: and gender group Labour Force numbers
I44: in the Labour Force Treasury worksheet.
A46: Labour Force Treasury | D46: These are age and gender distributions | I46: Used in the economic projections of the | N46: Statistics NZ
D47: of the NZ labour force that match the | I47: main modelling worksheets to project the | N47: Population Treasury
D48: aggregate forecasts in forecast years and | I48: aggregate labour force. This variable is | N48: Economic Forecasts
D49: are projected out into post-forecast years. | I49: a key driver in the projections of both
D50: This worksheet uses labour force | I50: real and nominal GDP.
D51: participation rates, by single year of age
D52: and gender, multiplied by the equivalent
D53: population group in Population Treasury,
D54: to produce labour force numbers by
D55: single year of age and gender.
A57: Exogenous | D57: This worksheet contains a number of | I57: Used in many places throughout the main | N57: None.
D58: projected tracks and demographic | I58: modelling worksheets, often in regard to
D59: distributions. Some are produced by | I59: a particular asset, liability or expense
D60: Treasury, while others are sourced from | I60: type. Demographic distributions are used
D61: outside agencies. They all share the | I61: as inputs to the projected growth of
D62: characteristic of being produced outside | I62: recipient numbers in various welfare
D63: the model i.e. are exogenous inputs. | I63: expenses and Student Allowances.
D64: At the bottom of this worksheet are | I64: Bottom-up modelling of health and
D65: parameters related to the NZ personal | I65: education expenditure uses demographic
D66: tax regime that are used in fiscal drag | I66: distributions particular to these areas.
D67: modelling for both tax and NZS.
A69: NZSF Adjuster | D69: This worksheet contains alternative | I69: The Option worksheet. In cell B3 there | N69: Makes use of forecast core Crown gross
D70: projections of the New Zealand | I70: is a label Adjust NZSF track. If the | N70: debt and debt financing costs from the
D71: Superannuation Fund (NZSF). | I71: word Yes is entered in cell C3 beside this | N71: Fiscal Forecasts worksheet to calculate
D72: These can be produced by altering | I72: label it activates the modelling in this | N72: the effective interest rate applied to debt
D73: inputs or parameter choices in the | I73: worksheet to replace the NZSF track | N73: in each forecast year. These are applied
D74: NZSF model | F74: on the Treasury | I74: in Exogenous with the alternative one | N74: to the calculated gross debt changes to
D75: website. From that model an alternative | I75: chosen in NZSF Adjuster. It also adjusts | N75: calculate debt financing costs changes.
D76: NZSF track can then be pasted | I76: any variables in the forecast base that | N76: More generally, and as described in the
D77: into this worksheet. | I77: would be affected by changes to the | N77: Purpose column, this worksheet uses
I78: NZSF track in forecast years. | N78: outputs from another Treasury model.
N79: Note that, if the selected track number
N80: in the NZSF Adjuster worksheet does
N81: not match one of the alternative NZSF
N82: tracks in the worksheet, the selection
N83: defaults to the parameters of the NZSF
N84: track in Exogenous.
A86: Fiscal Forecast Adjuster | D86: This worksheet allows changes to be | I86: The Option worksheet. In cell B2 there | N86: Makes use of forecast core Crown gross
D87: made to forecast year values of major tax | I87: is a label Adjust fiscal forecasts. If the | N87: debt and debt financing costs from the
D88: types, several welfare expense classes, | I88: word Yes is entered in cell C2 beside this | N88: Fiscal Forecasts worksheet to calculate
D89: and allowances for both new operating | I89: label it activates the modelling in this | N89: the effective interest rate applied to debt
D90: and new capital spending. It calculates | I90: worksheet to add the various adjustments | N90: in each forecast year. These are applied
D91: how these changes impact on gross | I91: written into Fiscal Forecast Adjuster to | N91: to the calculated gross debt changes to
D92: debt and debt financing costs in those | I92: the appropriate fiscal variables in forecast | N92: calculate debt financing costs changes.
D93: forecast years. This spreadsheet is the | I93: years. It also adjusts forecast debt and
D94: means of correctly altering the fiscal | I94: debt financing costs by the amounts
D95: forecast base for the forecast years. | I95: calculated in Fiscal Forecast Adjuster to
I96: reflect the combined impact of all
I97: the changes on these fiscal variables.
A99: Allocation | D99: This worksheet cakculates the division of | I99: Any main modelling worksheet if it is | N99: None.
D100: forecast year operating allowances and | I100: desired to allocate the operating allowances
D101: top-down expense adjustments into | I101: and the top-down expense adjustments to
D102: eleven different expense categories and | I102: individual expense categories that would be
D103: five sub-categories of education expense. | I103: expected to derive their forecast year and
D104: The percentages used in this worksheet | I104: projected year growth from these sources.
D105: should not be taken as definitive of | I105: They need to be used in any main
D106: future funding allocations. They are simply | I106: modelling worksheet that is desired to
D107: based on averages of growth in the past for | I107: produce bottom-up expenditure modelling.
D108: these expense types that are expected
D109: to have their future funding come from the
D110: operating allowances. This is necessary to
D111: set correct bases for bottom-up projections.
A113: Fiscal Outturns | D113: This worksheet contains historical data | I113: None. Purely for information purposes | N113: None.
D114: relating to the main fiscal indicators that | I114: and to help users of the model.
D115: can be selected in the pull-down box at
D116: the top of the main modelling worksheets.
D117: There is more explanation at the top of
D118: this worksheet about why data prior to
D119: 2018/19 is given here and not in the main
D120: modelling worksheets themselves.
A122: Economic Forecasts | D122: The latest set of economic forecast | I122: Used as the base of economic projections | N122: None.
D123: variables, as well as historical outturns | I123: in the main modelling worksheets.
D124: of these variables, are stored in this | I124: Also used as the base of various inputs
D125: worksheet. It also contains parameters, | I125: into the projection of NZS and other
D126: derived from the economic forecasts by | I126: categories of welfare expenditure in the
D127: another Treasury model, that are used to | I127: main modelling worksheets.
D128: project New Zealand Superannuation
D129: (NZS) expenses. Historical outturns and
D130: forecasts of recipient numbers for NZS
D131: and the Jobseeker Support benefit are
D132: also provided in this worksheet.
A134: Fiscal Forecasts | D134: The fiscal equivalent of the Economic | I134: Used as the base of projections of asset, | N134: None.
D135: Forecasts worksheet, this contains the | I135: liability, revenue and expense categories
D136: most recent set of fiscal forecast | I136: in the main modelling worksheets.
D137: variables. For reasons explained in the | I137: Covers core Crown and total Crown
D138: Fiscal Outturns worksheet, there are only | I138: variables, and in some cases extends to
D139: historical outturns dating from 2018/19 | I139: Crown entity and State-owned enterprise
D140: in this worksheet. Because there is so | I140: (SOE) variables.
D141: much input data, this worksheet uses
D142: numerous check calculations to ensure
D143: various sections tally with each other.
A145: Assumptions | D145: All of the assumptions and parameters | I145: Any modelling worksheet that is set up. | N145: None.
D146: needed to run a scenario are entered by | I146: The easiest way to produce a whole new
D147: the model user in this worksheet. | I147: modelled scenario is to copy one of the
D148: Most selections relate to projection | I148: main modelling worksheets by right
D149: assumptions or parameters, but there are | I149: clicking the worksheet tab, ensuring to
D150: some that affect the forecast base. | I150: tick the Create a Copy box (otherwise
D151: There are standard sets of assumptions | I151: the worksheet just gets moved). Change
D152: and parameters used in the main | I152: the name of the new worksheet tab.
D153: modelling worksheet scenarios. | I153: In cell B1 at the top of the new modelling
D154: As most options will not be altered in | I154: worksheet, enter the name used at the
D155: setting up a scenario, the easiest way to | I155: top of the column set up in Assumptions
D156: produce a new scenario is to copy one of | I156: with the chosen set of assumptions and
D157: these columns and paste it into a new | I157: parameters. In numerous places in this
D158: column in this worksheet, changing its | I158: new modelling worksheet these
D159: name at the top of the column in the row | I159: assumptions and parameters will be
D160: labelled SCENARIO NAME. | I160: used to produce the new scenario.
A162: The main modelling | D162: These worksheets provide the | I162: None. | N162: Display
A163: worksheets. | D163: fundamental outputs of the FSM, such as | N163: Population Treasury
A164: The standards are | D164: projections of net core Crown debt as a | N164: Labour Force Treasury
A165: the ones labelled with | D165: percentage of nominal GDP for a given | N165: Exogenous
A166: Scenario numbers | D166: set of assumptions and parameters. | N166: NZSF Adjuster (Option only)
A167: and Option worksheet | N167: Fiscal Forecast Adjuster (Option only)
A168: As explained in the | N168: Allocation (only if allocating operating allowances to various expense categories or producing bottom-up expenditure projections)
A169: Assumptions | N169: Economic Forecasts
A170: description a user | N170: Fiscal Forecasts
A171: can create a new | N171: Assumptions
A172: modelling worksheet

Sheet Sources
A1: FISCAL STRATEGY MODEL (FSM) - BUDGET ECONOMIC & FISCAL UPDATE (BEFU) 2026 VERSION
A2: Unless otherwise stated, forecasts and projections are produced by the New Zealand Treasury
A3: Unless otherwise stated, all post-forecast projections are produced by the FSM model
A4: The adjective "outturn", normally used before the word data, means it comes from a completed time period
A6: This version of the FSM uses: | E6: Budget Economic and Fiscal Update (BEFU) 2026 data and forecasts
A8: Economic Data | C8: History | E8: Outturn data from Treasury databases | J8: Mainly Statistics New Zealand (Stats NZ) measures
C9: Forecasts | J9: BEFU 2026 version
A11: Fiscal Data | C11: History | E11: Outturn data from Treasury publications | J11: Mainly from Financial Statements published in past Budget EFU reports
C12: Forecasts | J12: BEFU 2026 version
A14: Demographic Data | C14: History | E14: Outturn data from Stats NZ | J14: Accessible from Stats NZ website
A15: (by gender and | C15: Forecasts | E15: Treasury forecasts aggregate population | J15: BEFU 2026 version
A16: single year of age) | C16: Projections | E16: Based on those of Stats NZ | J16: Uses National Population Projections, produced in 2025
A18: Labour Force | C18: History | E18: Outturn data from Stats NZ | J18: Based on Household Labour Force Survey (HLFS)
A19: (by gender and | C19: Forecasts | E19: Treasury forecasts aggregate labour force | J19: BEFU 2026 version
A20: single year of age) | C20: Projections | E20: Based on those of Stats NZ | J20: Uses National Labour Force Projections, produced in 2025
A22: Social welfare | C22: History | E22: Outturn data from Treasury publications | J22: Mainly from Financial Statements published in past Budget EFU reports
A23: transfers | C23: Forecasts | E23: Forecasts from Ministry of Social | J23: BEFU 2026 version
E24: Development (MSD) and Inland Revenue
E25: Department (IRD) for Working for Families
A27: New Zealand | C27: History | E27: Outturn data from Treasury publications | J27: Mainly from Financial Statements published in past Budget EFU reports
A28: Superannuation | C28: Forecasts | E28: Forecasts from the NZSF | J28: BEFU 2025 version
A29: Fund (NZSF) | C29: Projections | E29: Projection produced by Treasury | J29: Source at | K29: NZS Fund model website | N29: BEFU 2026 version
A31: Accident Compen- | C31: History | E31: Outturn data from Treasury publications | J31: Mainly from Financial Statements published in past Budget EFU reports
A32: sation Corporation | C32: Forecasts | E32: Forecasts from ACC | J32: BEFU 2026 version
A33: (ACC) data | C33: Projections | E33: Projection produced by ACC | J33: Asset/liability track, 2026 update
A35: Student Loans | C35: History | E35: Outturn data from Treasury publications | J35: Mainly from Financial Statements published in past Budget EFU reports
A36: track | C36: Forecasts | E36: Forecasts from IRD and the | J36: BEFU 2026 version
E37: Ministry of Education (MoE)
C38: Projections | E38: Projection produced by the Treasury | J38: BEFU 2026 track based on Half Year EFU 2025 track by the MoE
A40: KiwiSaver expenses | C40: History | E40: Outturn data from Treasury publications | J40: Mainly from Financial Statements published in past Budget EFU reports
A41: Inland Revenue | C41: Forecasts | E41: Forecasts from IRD | J41: BEFU 2026 version
A42: Department (IRD) | C42: Projections | E42: Projection from IRD | J42: BEFU 2026 version
A44: Government | C44: History | E44: Outturn data from Treasury publications | J44: Mainly from Financial Statements published in past Budget EFU reports
A45: Superannuation | C45: Forecasts | E45: Forecasts based on actuarial valuations | J45: BEFU 2026 version
A46: Fund (GSF) | C46: Projections | E46: Projection produced by actuaries for GSF | J46: 2012 version
A48: Tax Receivable write- | C48: History | E48: Outturn data from Treasury publications | J48: Mainly from Financial Statements published in past Budget EFU reports
A49: downs & impairments | C49: Forecasts | E49: Forecasts from IRD | J49: BEFU 2026 version
A51: Main benefit age & | E51: Based on administrative data from MSD | J51: 2025 update
A52: gender distribution

Sheet Statistics NZ
A1: STATISTICS NEW ZEALAND OUTTURNS AND PROJECTIONS OF RESIDENT POPULATION OF NEW ZEALAND AND LABOUR FORCE, BY SINGLE YEAR OF AGE AND GENDER, AS AT 30 JUNE
A2: Population projections | B2: National population projections: 2024 (base) - 2078 50th percentile projection
A3: Labour Force projections | B3: National labour force projections: 2024 (base) - 2078 50th percentile projection
A4: Year ended 30 June | B4: 2005/06 | C4: 2006/07 | D4: 2007/08 | E4: 2008/09 | F4: 2009/10 | G4: 2010/11 | H4: 2011/12 | I4: 2012/13 | J4: 2013/14 | K4: 2014/15 | L4: 2015/16 | M4: 2016/17 | N4: 2017/18 | O4: 2018/19 | P4: 2019/20 | Q4: 2020/21 | R4: 2021/22 | S4: 2022/23 | T4: 2023/24 | U4: 2024/25 | V4: 2025/26 | W4: 2026/27 | X4: 2027/28 | Y4: 2028/29 | Z4: 2029/30 | AA4: 2030/31 | AB4: 2031/32 | AC4: 2032/33 | AD4: 2033/34 | AE4: 2034/35 | AF4: 2035/36 | AG4: 2036/37 | AH4: 2037/38 | AI4: 2038/39 | AJ4: 2039/40
B5: 2006 | C5: 2007 | D5: 2008 | E5: 2009 | F5: 2010 | G5: 2011 | H5: 2012 | I5: 2013 | J5: 2014 | K5: 2015 | L5: 2016 | M5: 2017 | N5: 2018 | O5: 2019 | P5: 2020 | Q5: 2021 | R5: 2022 | S5: 2023 | T5: 2024 | U5: 2025 | V5: 2026 | W5: 2027 | X5: 2028 | Y5: 2029 | Z5: 2030 | AA5: 2031 | AB5: 2032 | AC5: 2033 | AD5: 2034 | AE5: 2035 | AF5: 2036 | AG5: 2037 | AH5: 2038 | AI5: 2039 | AJ5: 2040
A6: Population (millions) | B6: =SUM(B$15:B$110,B$115:B$210)/1000000 -> 4.18463 | C6: =SUM(C$15:C$110,C$115:C$210)/1000000 -> 4.22386 | D6: =SUM(D$15:D$110,D$115:D$210)/1000000 -> 4.25975 | E6: 4.3026 | F6: 4.35065 | G6: 4.38397 | H6: 4.40798 | I6: 4.4421 | J6: 4.51645 | K6: 4.60937 | L6: 4.71413 | M6: 4.81356 | N6: 4.90061 | O6: 4.97036 | P6: 5.07246 | Q6: 5.08459 | R6: 5.08169 | S6: 5.20011 | T6: 5.29006 | U6: 5.33669 | V6: 5.38772 | W6: 5.44058 | X6: 5.49476 | Y6: 5.54963 | Z6: 5.60472 | AA6: 5.65945 | AB6: 5.71361 | AC6: 5.7673 | AD6: 5.82051 | AE6: 5.87314 | AF6: 5.9256 | AG6: 5.97763 | AH6: 6.02941 | AI6: 6.08088 | AJ6: 6.13216
A7: Annual growth (%) | C7: =C$6/B$6-1 -> 0.009374783434 | D7: =D$6/C$6-1 -> 0.008496967229 | E7: 0.01005927578 | F7: 0.01116766606 | G7: 0.007658625723 | H7: 0.005476771055 | I7: 0.00774050699 | J7: 0.01673757907 | K7: 0.02057368066 | L7: 0.02272761787 | M7: 0.02109190879 | N7: 0.01808432844 | O7: 0.01423292202 | P7: 0.02054177162 | Q7: 0.002391344634 | R7: -0.0005703508051 | S7: 0.02330327116 | T7: 0.01729771101 | U7: 0.008814644824 | V7: 0.009562106849 | W7: 0.009811200285 | X7: 0.009958497072 | Y7: 0.009985877454 | Z7: 0.009926787912 | AA7: 0.009764983799 | AB7: 0.009569834525 | AC7: 0.009396861179 | AD7: 0.009226154353 | AE7: 0.009042162972 | AF7: 0.008932189595 | AG7: 0.00878054543 | AH7: 0.008662295927 | AI7: 0.008536490303 | AJ7: 0.008432989962
A8: Working-age popn (15+, millions) | B8: =SUM(B$30:B$110,B$130:B$210)/1000000 -> 3.29632 | C8: =SUM(C$30:C$110,C$130:C$210)/1000000 -> 3.33256 | D8: =SUM(D$30:D$110,D$130:D$210)/1000000 -> 3.36424 | E8: 3.40144 | F8: 3.44251 | G8: 3.47326 | H8: 3.49817 | I8: 3.53331 | J8: 3.60474 | K8: 3.69322 | L8: 3.78951 | M8: 3.87673 | N8: 3.95414 | O8: 4.01371 | P8: 4.10523 | Q8: 4.11627 | R8: 4.11808 | S8: 4.23014 | T8: 4.31325 | U8: 4.36795 | V8: 4.4258 | W8: 4.48493 | X8: 4.54491 | Y8: 4.60417 | Z8: 4.66365 | AA8: 4.72201 | AB8: 4.77995 | AC8: 4.83645 | AD8: 4.89262 | AE8: 4.94687 | AF8: 5.00133 | AG8: 5.05464 | AH8: 5.10308 | AI8: 5.15072 | AJ8: 5.1989
A9: =$A$7 -> Annual growth (%) | C9: =C$8/B$8-1 -> 0.01099407824 | D9: =D$8/C$8-1 -> 0.00950620544 | E9: 0.01105747509 | F9: 0.01207429794 | G9: 0.008932435926 | H9: 0.007171936452 | I9: 0.01004525223 | J9: 0.02021617124 | K9: 0.02454545959 | L9: 0.02607209969 | M9: 0.02301616832 | N9: 0.01996785951 | O9: 0.01506522278 | P9: 0.02280184667 | Q9: 0.00268925249 | R9: 0.000439718483 | S9: 0.02721171031 | T9: 0.01964710388 | U9: 0.01268185243 | V9: 0.01324419922 | W9: 0.01336029644 | X9: 0.01337367584 | Y9: 0.01303876204 | Z9: 0.01291872368 | AA9: 0.01251380357 | AB9: 0.0122701985 | AC9: 0.01182020732 | AD9: 0.01161389035 | AE9: 0.01108812865 | AF9: 0.01100898144 | AG9: 0.01065916466 | AH9: 0.009583273982 | AI9: 0.009335538538 | AJ9: 0.009354032058
A10: Labour Force (LF, millions) | T10: =SUM(T$215:T$280,T$285:T$350)/1000000 -> 3.0711 | U10: 3.1062 | V10: 3.1441 | W10: 3.18293 | X10: 3.22259 | Y10: 3.2622 | Z10: 3.3017 | AA10: 3.34058 | AB10: 3.37899 | AC10: 3.41669 | AD10: 3.45368 | AE10: 3.48979 | AF10: 3.52545 | AG10: 3.56057 | AH10: 3.59435 | AI10: 3.62695 | AJ10: 3.65899
A11: =$A$7 -> Annual growth (%) | U11: =U$10/T$10-1 -> 0.01142912963 | V11: 0.01220140364 | W11: 0.01235011609 | X11: 0.01246021747 | Y11: 0.01229135571 | Z11: 0.01210839311 | AA11: 0.01177575189 | AB11: 0.01149800334 | AC11: 0.0111571801 | AD11: 0.01082626753 | AE11: 0.01045551412 | AF11: 0.0102183799 | AG11: 0.009961848842 | AH11: 0.00948724502 | AI11: 0.009069790087 | AJ11: 0.008833868678
A12: Total LF participation rate (%) | T12: =T$10/T$8 -> 0.7120153017 | U12: 0.7111345139 | V12: 0.7104026391 | W12: 0.7096944657 | X12: 0.7090547448 | Y12: 0.7085316137 | Z12: 0.7079647915 | AA12: 0.7074487348 | AB12: 0.7069090681 | AC12: 0.7064458435 | AD12: 0.7058958186 | AE12: 0.7054541559 | AF12: 0.7049024959 | AG12: 0.7044161404 | AH12: 0.7043491382 | AI12: 0.7041636897 | AJ12: 0.703800804
A13: Age in years ↓
A14: FEMALE POPULATION
A15: 0 | B15: 28910 | C15: 30230 | D15: 31360 | E15: 30830 | F15: 31510 | G15: 30670 | H15: 29880 | I15: 29370 | J15: 28390 | K15: 28520 | L15: 28790 | M15: 29450 | N15: 29000 | O15: 28900 | P15: 29060 | Q15: 29540 | R15: 29820 | S15: 27560 | T15: 27820 | U15: 28280 | V15: 28290 | W15: 28280 | X15: 28270 | Y15: 28250 | Z15: 28240 | AA15: 28250 | AB15: 28270 | AC15: 28320 | AD15: 28400 | AE15: 28520 | AF15: 28680 | AG15: 28860 | AH15: 29070 | AI15: 29290 | AJ15: 29510
A16: 1 | B16: 27990 | C16: 28850 | D16: 30110 | E16: 31260 | F16: 30820 | G16: 31460 | H16: 30640 | I16: 29950 | J16: 29510 | K16: 28670 | L16: 28900 | M16: 29040 | N16: 29620 | O16: 29110 | P16: 29080 | Q16: 29150 | R16: 29470 | S16: 30040 | T16: 27710 | U16: 27790 | V16: 28280 | W16: 28300 | X16: 28310 | Y16: 28300 | Z16: 28290 | AA16: 28290 | AB16: 28290 | AC16: 28320 | AD16: 28370 | AE16: 28450 | AF16: 28570 | AG16: 28730 | AH16: 28920 | AI16: 29130 | AJ16: 29350
A17: 2 | B17: 28180 | C17: 28100 | D17: 28870 | E17: 30220 | F17: 31340 | G17: 30770 | H17: 31310 | I17: 30580 | J17: 30150 | K17: 29890 | L17: 29060 | M17: 29470 | N17: 29470 | O17: 29980 | P17: 29540 | Q17: 29260 | R17: 29240 | S17: 29840 | T17: 30450 | U17: 27780 | V17: 27890 | W17: 28390 | X17: 28430 | Y17: 28440 | Z17: 28440 | AA17: 28440 | AB17: 28430 | AC17: 28440 | AD17: 28470 | AE17: 28520 | AF17: 28610 | AG17: 28730 | AH17: 28890 | AI17: 29070 | AJ17: 29280
A18: 3 | B18: 27310 | C18: 28260 | D18: 28090 | E18: 28910 | F18: 30280 | G18: 31290 | H18: 30670 | I18: 31320 | J18: 30730 | K18: 30430 | L18: 30460 | M18: 29610 | N18: 30030 | O18: 29920 | P18: 30490 | Q18: 29680 | R18: 29450 | S18: 29740 | T18: 30340 | U18: 30570 | V18: 27930 | W18: 28060 | X18: 28580 | Y18: 28620 | Z18: 28640 | AA18: 28650 | AB18: 28640 | AC18: 28640 | AD18: 28650 | AE18: 28680 | AF18: 28730 | AG18: 28820 | AH18: 28950 | AI18: 29110 | AJ18: 29300
A19: 4 | B19: 27400 | C19: 27460 | D19: 28310 | E19: 28190 | F19: 29030 | G19: 30250 | H19: 31140 | I19: 30550 | J19: 31460 | K19: 31040 | L19: 30880 | M19: 30980 | N19: 30100 | O19: 30500 | P19: 30420 | Q19: 30610 | R19: 29800 | S19: 30210 | T19: 30430 | U19: 30500 | V19: 30770 | W19: 28150 | X19: 28290 | Y19: 28820 | Z19: 28870 | AA19: 28900 | AB19: 28910 | AC19: 28900 | AD19: 28900 | AE19: 28910 | AF19: 28940 | AG19: 29000 | AH19: 29090 | AI19: 29220 | AJ19: 29380
A20: 5 | B20: 28370 | C20: 27650 | D20: 27610 | E20: 28410 | F20: 28320 | G20: 29050 | H20: 30120 | I20: 31090 | J20: 30700 | K20: 31720 | L20: 31400 | M20: 31390 | N20: 31470 | O20: 30590 | P20: 30990 | Q20: 30490 | R20: 30660 | S20: 30490 | T20: 31010 | U20: 30610 | V20: 30720 | W20: 31000 | X20: 28400 | Y20: 28560 | Z20: 29090 | AA20: 29150 | AB20: 29180 | AC20: 29180 | AD20: 29180 | AE20: 29180 | AF20: 29200 | AG20: 29230 | AH20: 29290 | AI20: 29380 | AJ20: 29510
A21: 6 | B21: 28910 | C21: 28620 | D21: 27860 | E21: 27770 | F21: 28550 | G21: 28290 | H21: 28900 | I21: 30050 | J21: 31180 | K21: 30870 | L21: 31990 | M21: 31750 | N21: 31830 | O21: 31890 | P21: 31080 | Q21: 31090 | R21: 30550 | S21: 31420 | T21: 31240 | U21: 31200 | V21: 30840 | W21: 30970 | X21: 31270 | Y21: 28680 | Z21: 28840 | AA21: 29380 | AB21: 29440 | AC21: 29470 | AD21: 29480 | AE21: 29480 | AF21: 29490 | AG21: 29500 | AH21: 29530 | AI21: 29600 | AJ21: 29690
A22: 7 | B22: 27980 | C22: 29160 | D22: 28760 | E22: 27990 | F22: 27850 | G22: 28600 | H22: 28200 | I22: 28790 | J22: 30150 | K22: 31310 | L22: 31080 | M22: 32270 | N22: 32050 | O22: 32190 | P22: 32370 | Q22: 31220 | R22: 31170 | S22: 31190 | T22: 32120 | U22: 31440 | V22: 31440 | W22: 31100 | X22: 31250 | Y22: 31560 | Z22: 28980 | AA22: 29140 | AB22: 29690 | AC22: 29750 | AD22: 29780 | AE22: 29790 | AF22: 29790 | AG22: 29800 | AH22: 29820 | AI22: 29850 | AJ22: 29920
A23: 8 | B23: 28620 | C23: 28230 | D23: 29340 | E23: 28950 | F23: 28120 | G23: 27910 | H23: 28490 | I23: 28140 | J23: 28910 | K23: 30320 | L23: 31560 | M23: 31380 | N23: 32500 | O23: 32460 | P23: 32650 | Q23: 32520 | R23: 31310 | S23: 31870 | T23: 31910 | U23: 32320 | V23: 31680 | W23: 31700 | X23: 31380 | Y23: 31540 | Z23: 31860 | AA23: 29280 | AB23: 29450 | AC23: 29990 | AD23: 30050 | AE23: 30090 | AF23: 30100 | AG23: 30110 | AH23: 30110 | AI23: 30130 | AJ23: 30170
A24: 9 | B24: 28770 | C24: 28910 | D24: 28390 | E24: 29550 | F24: 29150 | G24: 28210 | H24: 27850 | I24: 28430 | J24: 28290 | K24: 29120 | L24: 30590 | M24: 31900 | N24: 31640 | O24: 32820 | P24: 32920 | Q24: 32770 | R24: 32570 | S24: 32040 | T24: 32620 | U24: 32110 | V24: 32570 | W24: 31940 | X24: 31980 | Y24: 31660 | Z24: 31830 | AA24: 32160 | AB24: 29580 | AC24: 29750 | AD24: 30300 | AE24: 30360 | AF24: 30400 | AG24: 30410 | AH24: 30420 | AI24: 30430 | AJ24: 30450
A25: 10 | B25: 29250 | C25: 28990 | D25: 29090 | E25: 28550 | F25: 29770 | G25: 29310 | H25: 28210 | I25: 27900 | J25: 28540 | K25: 28530 | L25: 29430 | M25: 30950 | N25: 32130 | O25: 31950 | P25: 33220 | Q25: 33040 | R25: 32810 | S25: 33270 | T25: 32820 | U25: 32830 | V25: 32370 | W25: 32840 | X25: 32230 | Y25: 32280 | Z25: 31970 | AA25: 32140 | AB25: 32470 | AC25: 29900 | AD25: 30070 | AE25: 30620 | AF25: 30680 | AG25: 30720 | AH25: 30740 | AI25: 30750 | AJ25: 30760
A26: 11 | B26: 29970 | C26: 29430 | D26: 29180 | E26: 29270 | F26: 28700 | G26: 29880 | H26: 29380 | I26: 28280 | J26: 28040 | K26: 28740 | L26: 28830 | M26: 29750 | N26: 31280 | O26: 32550 | P26: 32410 | Q26: 33350 | R26: 33060 | S26: 33500 | T26: 33950 | U26: 33030 | V26: 33080 | W26: 32640 | X26: 33120 | Y26: 32530 | Z26: 32580 | AA26: 32280 | AB26: 32460 | AC26: 32780 | AD26: 30210 | AE26: 30390 | AF26: 30940 | AG26: 31000 | AH26: 31040 | AI26: 31060 | AJ26: 31080
A27: 12 | B27: 29990 | C27: 30090 | D27: 29510 | E27: 29370 | F27: 29520 | G27: 28870 | H27: 29910 | I27: 29480 | J27: 28500 | K27: 28330 | L27: 29080 | M27: 29200 | N27: 30080 | O27: 31710 | P27: 33040 | Q27: 32520 | R27: 33380 | S27: 33760 | T27: 34220 | U27: 34170 | V27: 33290 | W27: 33360 | X27: 32930 | Y27: 33430 | Z27: 32840 | AA27: 32890 | AB27: 32590 | AC27: 32770 | AD27: 33100 | AE27: 30530 | AF27: 30710 | AG27: 31260 | AH27: 31330 | AI27: 31370 | AJ27: 31390
A28: 13 | B28: 30750 | C28: 30090 | D28: 30120 | E28: 29630 | F28: 29590 | G28: 29630 | H28: 28910 | I28: 29930 | J28: 29630 | K28: 28800 | L28: 28640 | M28: 29400 | N28: 29590 | O28: 30530 | P28: 32240 | Q28: 33230 | R28: 32540 | S28: 34020 | T28: 34440 | U28: 34470 | V28: 34450 | W28: 33590 | X28: 33670 | Y28: 33250 | Z28: 33760 | AA28: 33170 | AB28: 33230 | AC28: 32940 | AD28: 33110 | AE28: 33440 | AF28: 30880 | AG28: 31060 | AH28: 31610 | AI28: 31680 | AJ28: 31720
A29: 14 | B29: 30960 | C29: 30780 | D29: 30110 | E29: 30170 | F29: 29830 | G29: 29790 | H29: 29700 | I29: 29000 | J29: 30030 | K29: 29920 | L29: 29200 | M29: 29100 | N29: 29750 | O29: 30050 | P29: 30990 | Q29: 32440 | R29: 33300 | S29: 33270 | T29: 34740 | U29: 34710 | V29: 34780 | W29: 34770 | X29: 33930 | Y29: 34030 | Z29: 33610 | AA29: 34120 | AB29: 33540 | AC29: 33600 | AD29: 33310 | AE29: 33490 | AF29: 33820 | AG29: 31260 | AH29: 31430 | AI29: 31990 | AJ29: 32060
A30: 15 | B30: 32030 | C30: 31100 | D30: 30870 | E30: 30230 | F30: 30410 | G30: 29940 | H30: 30020 | I30: 29930 | J30: 29310 | K30: 30390 | L30: 30490 | M30: 29850 | N30: 29620 | O30: 30320 | P30: 30680 | Q30: 31200 | R30: 32650 | S30: 34160 | T30: 34100 | U30: 35060 | V30: 35060 | W30: 35150 | X30: 35160 | Y30: 34330 | Z30: 34430 | AA30: 34020 | AB30: 34530 | AC30: 33950 | AD30: 34010 | AE30: 33720 | AF30: 33900 | AG30: 34240 | AH30: 31670 | AI30: 31860 | AJ30: 32410
A31: 16 | B31: 31990 | C31: 32170 | D31: 31150 | E31: 31080 | F31: 30550 | G31: 30730 | H31: 30160 | I31: 30350 | J31: 30230 | K31: 29800 | L31: 30940 | M31: 31110 | N31: 30440 | O31: 30130 | P31: 30960 | Q31: 30830 | R31: 31340 | S31: 33580 | T31: 35070 | U31: 34430 | V31: 35410 | W31: 35430 | X31: 35530 | Y31: 35550 | Z31: 34720 | AA31: 34830 | AB31: 34420 | AC31: 34930 | AD31: 34350 | AE31: 34420 | AF31: 34130 | AG31: 34310 | AH31: 34650 | AI31: 32090 | AJ31: 32270
A32: 17 | B32: 30880 | C32: 32080 | D32: 32330 | E32: 31430 | F32: 31420 | G32: 30830 | H32: 30890 | I32: 30440 | J32: 30680 | K32: 30680 | L32: 30340 | M32: 31460 | N32: 31530 | O32: 30820 | P32: 30510 | Q32: 31020 | R32: 31000 | S32: 32090 | T32: 34300 | U32: 35330 | V32: 34720 | W32: 35720 | X32: 35750 | Y32: 35860 | Z32: 35890 | AA32: 35070 | AB32: 35170 | AC32: 34770 | AD32: 35280 | AE32: 34700 | AF32: 34770 | AG32: 34480 | AH32: 34660 | AI32: 35000 | AJ32: 32440
A33: 18 | B33: 30180 | C33: 30570 | D33: 31740 | E33: 32180 | F33: 31390 | G33: 31250 | H33: 30590 | I33: 30770 | J33: 30640 | K33: 30950 | L33: 30960 | M33: 30710 | N33: 31660 | O33: 31700 | P33: 31070 | Q33: 30340 | R33: 30900 | S33: 31380 | T33: 32400 | U33: 34460 | V33: 35530 | W33: 34930 | X33: 35940 | Y33: 35980 | Z33: 36100 | AA33: 36130 | AB33: 35310 | AC33: 35420 | AD33: 35010 | AE33: 35530 | AF33: 34950 | AG33: 35020 | AH33: 34730 | AI33: 34920 | AJ33: 35260
A34: 19 | B34: 29070 | C34: 30050 | D34: 30440 | E34: 31800 | F34: 32490 | G34: 31470 | H34: 31340 | I34: 30840 | J34: 31180 | K34: 31190 | L34: 31530 | M34: 31390 | N34: 31000 | O34: 32000 | P34: 31970 | Q34: 30800 | R34: 30120 | S34: 31590 | T34: 31930 | U34: 32530 | V34: 34620 | W34: 35700 | X34: 35110 | Y34: 36130 | Z34: 36180 | AA34: 36300 | AB34: 36330 | AC34: 35510 | AD34: 35620 | AE34: 35220 | AF34: 35740 | AG34: 35160 | AH34: 35230 | AI34: 34940 | AJ34: 35130
A35: 20 | B35: 29720 | C35: 29030 | D35: 30070 | E35: 30550 | F35: 32200 | G35: 32780 | H35: 31580 | I35: 31590 | J35: 31230 | K35: 31650 | L35: 31800 | M35: 31820 | N35: 31850 | O35: 31150 | P35: 32380 | Q35: 31660 | R35: 30520 | S35: 30940 | T35: 32060 | U35: 32020 | V35: 32660 | W35: 34770 | X35: 35860 | Y35: 35290 | Z35: 36310 | AA35: 36370 | AB35: 36490 | AC35: 36520 | AD35: 35700 | AE35: 35810 | AF35: 35420 | AG35: 35930 | AH35: 35360 | AI35: 35430 | AJ35: 35150
A36: 21 | B36: 29650 | C36: 29360 | D36: 28760 | E36: 29990 | F36: 30640 | G36: 32110 | H36: 32450 | I36: 31430 | J36: 31840 | K36: 31570 | L36: 32260 | M36: 32190 | N36: 32100 | O36: 32000 | P36: 31530 | Q36: 32150 | R36: 31380 | S36: 31120 | T36: 31230 | U36: 31990 | V36: 32000 | W36: 32650 | X36: 34780 | Y36: 35890 | Z36: 35320 | AA36: 36350 | AB36: 36410 | AC36: 36530 | AD36: 36570 | AE36: 35750 | AF36: 35870 | AG36: 35470 | AH36: 35990 | AI36: 35420 | AJ36: 35500
A37: 22 | B37: 29240 | C37: 29060 | D37: 28760 | E37: 28500 | F37: 29830 | G37: 30220 | H37: 31400 | I37: 32070 | J37: 31610 | K37: 32160 | L37: 32150 | M37: 32700 | N37: 32420 | O37: 32330 | P37: 32570 | Q37: 31130 | R37: 31790 | S37: 31770 | T37: 31350 | U37: 31140 | V37: 31950 | W37: 31990 | X37: 32670 | Y37: 34810 | Z37: 35930 | AA37: 35370 | AB37: 36400 | AC37: 36460 | AD37: 36580 | AE37: 36620 | AF37: 35810 | AG37: 35930 | AH37: 35530 | AI37: 36060 | AJ37: 35490
A38: 23 | B38: 28880 | C38: 28650 | D38: 28520 | E38: 28380 | F38: 28400 | G38: 29440 | H38: 29730 | I38: 31030 | J38: 32380 | K38: 32550 | L38: 33150 | M38: 32990 | N38: 33250 | O38: 32860 | P38: 33150 | Q38: 32160 | R38: 30610 | S38: 32450 | T38: 32180 | U38: 31310 | V38: 31160 | W38: 32000 | X38: 32060 | Y38: 32760 | Z38: 34910 | AA38: 36040 | AB38: 35480 | AC38: 36520 | AD38: 36580 | AE38: 36710 | AF38: 36750 | AG38: 35940 | AH38: 36060 | AI38: 35670 | AJ38: 36200
A39: 24 | B39: 27860 | C39: 28440 | D39: 28250 | E39: 28310 | F39: 28250 | G39: 28180 | H39: 29140 | I39: 29620 | J39: 31650 | K39: 33350 | L39: 33860 | M39: 34130 | N39: 33660 | O39: 33650 | P39: 33920 | Q39: 32710 | R39: 31630 | S39: 31280 | T39: 32810 | U39: 32290 | V39: 31490 | W39: 31370 | X39: 32240 | Y39: 32330 | Z39: 33040 | AA39: 35200 | AB39: 36320 | AC39: 35770 | AD39: 36810 | AE39: 36870 | AF39: 37010 | AG39: 37050 | AH39: 36250 | AI39: 36370 | AJ39: 35990
A40: 25 | B40: 27140 | C40: 27660 | D40: 28050 | E40: 28170 | F40: 28260 | G40: 28120 | H40: 28030 | I40: 29240 | J40: 30410 | K40: 32720 | L40: 34770 | M40: 35010 | N40: 34980 | O40: 34260 | P40: 35010 | Q40: 33430 | R40: 32100 | S40: 32710 | T40: 31730 | U40: 33100 | V40: 32640 | W40: 31880 | X40: 31790 | Y40: 32680 | Z40: 32780 | AA40: 33500 | AB40: 35660 | AC40: 36790 | AD40: 36240 | AE40: 37290 | AF40: 37350 | AG40: 37490 | AH40: 37540 | AI40: 36740 | AJ40: 36870
A41: 26 | B41: 26810 | C41: 27200 | D41: 27510 | E41: 28030 | F41: 28290 | G41: 28060 | H41: 27980 | I41: 28240 | J41: 30290 | K41: 31610 | L41: 34330 | M41: 36180 | N41: 36260 | O41: 35810 | P41: 35760 | Q41: 34620 | R41: 32760 | S41: 33400 | T41: 33400 | U41: 32140 | V41: 33580 | W41: 33160 | X41: 32420 | Y41: 32360 | Z41: 33270 | AA41: 33370 | AB41: 34090 | AC41: 36260 | AD41: 37390 | AE41: 36850 | AF41: 37900 | AG41: 37970 | AH41: 38110 | AI41: 38160 | AJ41: 37360
A42: 27 | B42: 26790 | C42: 26970 | D42: 27250 | E42: 27710 | F42: 28270 | G42: 28130 | H42: 28050 | I42: 28080 | J42: 29200 | K42: 31710 | L42: 33250 | M42: 35750 | N42: 37440 | O42: 37060 | P42: 37520 | Q42: 35430 | R42: 34050 | S42: 34390 | T42: 34410 | U42: 33920 | V42: 32730 | W42: 34210 | X42: 33820 | Y42: 33100 | Z42: 33050 | AA42: 33960 | AB42: 34070 | AC42: 34800 | AD42: 36960 | AE42: 38100 | AF42: 37560 | AG42: 38610 | AH42: 38690 | AI42: 38830 | AJ42: 38890
A43: 28 | B43: 26050 | C43: 27100 | D43: 27180 | E43: 27540 | F43: 27920 | G43: 28350 | H43: 28130 | I43: 28290 | J43: 28990 | K43: 30500 | L43: 33430 | M43: 34890 | N43: 37090 | O43: 38040 | P43: 38660 | Q43: 37070 | R43: 34790 | S43: 36030 | T43: 35290 | U43: 34970 | V43: 34550 | W43: 33390 | X43: 34890 | Y43: 34520 | Z43: 33820 | AA43: 33780 | AB43: 34690 | AC43: 34800 | AD43: 35530 | AE43: 37700 | AF43: 38840 | AG43: 38310 | AH43: 39360 | AI43: 39440 | AJ43: 39580
A44: 29 | B44: 26810 | C44: 26550 | D44: 27440 | E44: 27550 | F44: 27810 | G44: 28140 | H44: 28370 | I44: 28300 | J44: 29250 | K44: 30240 | L44: 32000 | M44: 34950 | N44: 36090 | O44: 38090 | P44: 39640 | Q44: 38300 | R44: 36560 | S44: 36850 | T44: 37060 | U44: 35860 | V44: 35600 | W44: 35200 | X44: 34070 | Y44: 35590 | Z44: 35230 | AA44: 34530 | AB44: 34500 | AC44: 35410 | AD44: 35530 | AE44: 36260 | AF44: 38430 | AG44: 39580 | AH44: 39040 | AI44: 40100 | AJ44: 40180
A45: 30 | B45: 27080 | C45: 27260 | D45: 26940 | E45: 27910 | F45: 28010 | G45: 27920 | H45: 28260 | I45: 28630 | J45: 29160 | K45: 30360 | L45: 31640 | M45: 33300 | N45: 36170 | O45: 36980 | P45: 39390 | Q45: 39440 | R45: 37840 | S45: 38720 | T45: 38030 | U45: 37600 | V45: 36460 | W45: 36230 | X45: 35850 | Y45: 34740 | Z45: 36270 | AA45: 35920 | AB45: 35220 | AC45: 35190 | AD45: 36110 | AE45: 36230 | AF45: 36960 | AG45: 39130 | AH45: 40280 | AI45: 39750 | AJ45: 40810
A46: 31 | B46: 28670 | C46: 27610 | D46: 27590 | E46: 27380 | F46: 28230 | G46: 28200 | H46: 28030 | I46: 28510 | J46: 29310 | K46: 30210 | L46: 31760 | M46: 32830 | N46: 34380 | O46: 37000 | P46: 38150 | Q46: 39270 | R46: 39140 | S46: 39810 | T46: 39970 | U46: 38550 | V46: 38190 | W46: 37070 | X46: 36860 | Y46: 36500 | Z46: 35400 | AA46: 36930 | AB46: 36580 | AC46: 35890 | AD46: 35860 | AE46: 36780 | AF46: 36900 | AG46: 37640 | AH46: 39820 | AI46: 40970 | AJ46: 40440
A47: 32 | B47: 29960 | C47: 28990 | D47: 27810 | E47: 27780 | F47: 27520 | G47: 28300 | H47: 28140 | I47: 28010 | J47: 29000 | K47: 30000 | L47: 31270 | M47: 32790 | N47: 33890 | O47: 35100 | P47: 38010 | Q47: 38130 | R47: 39050 | S47: 40860 | T47: 41040 | U47: 40490 | V47: 39120 | W47: 38780 | X47: 37690 | Y47: 37490 | Z47: 37150 | AA47: 36050 | AB47: 37590 | AC47: 37240 | AD47: 36550 | AE47: 36520 | AF47: 37450 | AG47: 37570 | AH47: 38310 | AI47: 40490 | AJ47: 41640
A48: 33 | B48: 31240 | C48: 30280 | D48: 29200 | E48: 27960 | F48: 27980 | G48: 27550 | H48: 28290 | I48: 28140 | J48: 28580 | K48: 29740 | L48: 30900 | M48: 32230 | N48: 33520 | O48: 34440 | P48: 35930 | Q48: 37990 | R48: 37940 | S48: 40670 | T48: 42100 | U48: 41550 | V48: 41050 | W48: 39710 | X48: 39390 | Y48: 38320 | Z48: 38130 | AA48: 37790 | AB48: 36700 | AC48: 38230 | AD48: 37890 | AE48: 37210 | AF48: 37180 | AG48: 38110 | AH48: 38240 | AI48: 38980 | AJ48: 41160
A49: 34 | B49: 32740 | C49: 31520 | D49: 30510 | E49: 29420 | F49: 28160 | G49: 28030 | H49: 27560 | I49: 28290 | J49: 28590 | K49: 29240 | L49: 30520 | M49: 31720 | N49: 33060 | O49: 34150 | P49: 35200 | Q49: 36010 | R49: 37840 | S49: 39510 | T49: 41910 | U49: 42580 | V49: 42080 | W49: 41610 | X49: 40300 | Y49: 39990 | Z49: 38930 | AA49: 38750 | AB49: 38410 | AC49: 37320 | AD49: 38860 | AE49: 38520 | AF49: 37840 | AG49: 37820 | AH49: 38750 | AI49: 38880 | AJ49: 39620
A50: 35 | B50: 33360 | C50: 33040 | D50: 31710 | E50: 30800 | F50: 29620 | G50: 28240 | H50: 28000 | I50: 27630 | J50: 28690 | K50: 29080 | L50: 29850 | M50: 31280 | N50: 32510 | O50: 33660 | P50: 34970 | Q50: 35210 | R50: 36000 | S50: 39150 | T50: 40780 | U50: 42370 | V50: 43080 | W50: 42620 | X50: 42170 | Y50: 40870 | Z50: 40580 | AA50: 39530 | AB50: 39350 | AC50: 39010 | AD50: 37930 | AE50: 39470 | AF50: 39130 | AG50: 38460 | AH50: 38440 | AI50: 39370 | AJ50: 39500
A51: 36 | B51: 32520 | C51: 33680 | D51: 33230 | E51: 31930 | F51: 30980 | G51: 29690 | H51: 28210 | I51: 28060 | J51: 27970 | K51: 29170 | L51: 29740 | M51: 30510 | N51: 31930 | O51: 33130 | P51: 34340 | Q51: 35040 | R51: 35130 | S51: 37380 | T51: 40330 | U51: 41210 | V51: 42850 | W51: 43600 | X51: 43150 | Y51: 42720 | Z51: 41440 | AA51: 41150 | AB51: 40100 | AC51: 39930 | AD51: 39590 | AE51: 38510 | AF51: 40060 | AG51: 39720 | AH51: 39050 | AI51: 39030 | AJ51: 39970
A52: 37 | B52: 32870 | C52: 32750 | D52: 33850 | E52: 33430 | F52: 32100 | G52: 30990 | H52: 29700 | I52: 28300 | J52: 28390 | K52: 28340 | L52: 29740 | M52: 30380 | N52: 31080 | O52: 32540 | P52: 33840 | Q52: 34360 | R52: 35040 | S52: 36260 | T52: 38560 | U52: 40720 | V52: 41660 | W52: 43330 | X52: 44100 | Y52: 43670 | Z52: 43250 | AA52: 41970 | AB52: 41690 | AC52: 40640 | AD52: 40470 | AE52: 40140 | AF52: 39070 | AG52: 40610 | AH52: 40280 | AI52: 39610 | AJ52: 39600
A53: 38 | B53: 32450 | C53: 33080 | D53: 32830 | E53: 34000 | F53: 33580 | G53: 32190 | H53: 30960 | I53: 29790 | J53: 28530 | K53: 28830 | L53: 28910 | M53: 30270 | N53: 30910 | O53: 31650 | P53: 33180 | Q53: 33930 | R53: 34260 | S53: 36150 | T53: 37350 | U53: 38910 | V53: 41120 | W53: 42080 | X53: 43770 | Y53: 44560 | Z53: 44140 | AA53: 43730 | AB53: 42460 | AC53: 42180 | AD53: 41130 | AE53: 40960 | AF53: 40640 | AG53: 39560 | AH53: 41110 | AI53: 40780 | AJ53: 40120
A54: 39 | B54: 32220 | C54: 32560 | D54: 33200 | E54: 32960 | F54: 34140 | G54: 33600 | H54: 32280 | I54: 31070 | J54: 30010 | K54: 28830 | L54: 29270 | M54: 29420 | N54: 30700 | O54: 31380 | P54: 32230 | Q54: 33260 | R54: 33870 | S54: 35240 | T54: 37090 | U54: 37670 | V54: 39270 | W54: 41510 | X54: 42490 | Y54: 44200 | Z54: 44990 | AA54: 44580 | AB54: 44170 | AC54: 42900 | AD54: 42620 | AE54: 41580 | AF54: 41420 | AG54: 41090 | AH54: 40020 | AI54: 41570 | AJ54: 41250
A55: 40 | B55: 32020 | C55: 32380 | D55: 32680 | E55: 33300 | F55: 33100 | G55: 34190 | H55: 33550 | I55: 32360 | J55: 31360 | K55: 30330 | L55: 29240 | M55: 29740 | N55: 29870 | O55: 31120 | P55: 31930 | Q55: 32340 | R55: 33200 | S55: 34840 | T55: 36090 | U55: 37370 | V55: 37990 | W55: 39610 | X55: 41870 | Y55: 42870 | Z55: 44580 | AA55: 45380 | AB55: 44970 | AC55: 44560 | AD55: 43300 | AE55: 43020 | AF55: 41980 | AG55: 41820 | AH55: 41500 | AI55: 40440 | AJ55: 41990
A56: 41 | B56: 32420 | C56: 32110 | D56: 32440 | E56: 32740 | F56: 33370 | G56: 33100 | H56: 34190 | I56: 33550 | J56: 32480 | K56: 31700 | L56: 30750 | M56: 29630 | N56: 30090 | O56: 30210 | P56: 31580 | Q56: 31980 | R56: 32220 | S56: 34100 | T56: 35670 | U56: 36320 | V56: 37640 | W56: 38290 | X56: 39930 | Y56: 42200 | Z56: 43200 | AA56: 44920 | AB56: 45720 | AC56: 45310 | AD56: 44900 | AE56: 43640 | AF56: 43370 | AG56: 42340 | AH56: 42180 | AI56: 41860 | AJ56: 40800
A57: 42 | B57: 33510 | C57: 32510 | D57: 32160 | E57: 32460 | F57: 32800 | G57: 33360 | H57: 33050 | I57: 34240 | J57: 33770 | K57: 32710 | L57: 32070 | M57: 31110 | N57: 29920 | O57: 30400 | P57: 30590 | Q57: 31590 | R57: 31840 | S57: 33080 | T57: 34810 | U57: 35870 | V57: 36560 | W57: 37900 | X57: 38560 | Y57: 40210 | Z57: 42490 | AA57: 43490 | AB57: 45210 | AC57: 46010 | AD57: 45610 | AE57: 45210 | AF57: 43950 | AG57: 43680 | AH57: 42650 | AI57: 42490 | AJ57: 42180
A58: 43 | B58: 34420 | C58: 33610 | D58: 32450 | E58: 32140 | F58: 32540 | G58: 32750 | H58: 33270 | I58: 33070 | J58: 34380 | K58: 34030 | L58: 32950 | M58: 32390 | N58: 31330 | O58: 30210 | P58: 30760 | Q58: 30640 | R58: 31460 | S58: 32540 | T58: 33730 | U58: 34980 | V58: 36070 | W58: 36780 | X58: 38130 | Y58: 38800 | Z58: 40460 | AA58: 42740 | AB58: 43750 | AC58: 45460 | AD58: 46270 | AE58: 45870 | AF58: 45470 | AG58: 44220 | AH58: 43950 | AI58: 42920 | AJ58: 42770
A59: 44 | B59: 34170 | C59: 34490 | D59: 33560 | E59: 32440 | F59: 32160 | G59: 32530 | H59: 32680 | I59: 33180 | J59: 33230 | K59: 34610 | L59: 34330 | M59: 33220 | N59: 32670 | O59: 31530 | P59: 30520 | Q59: 30800 | R59: 30510 | S59: 32050 | T59: 33130 | U59: 33840 | V59: 35130 | W59: 36230 | X59: 36960 | Y59: 38320 | Z59: 39000 | AA59: 40660 | AB59: 42940 | AC59: 43950 | AD59: 45670 | AE59: 46470 | AF59: 46080 | AG59: 45680 | AH59: 44430 | AI59: 44170 | AJ59: 43140
A60: 45 | B60: 33510 | C60: 34170 | D60: 34370 | E60: 33510 | F60: 32390 | G60: 32090 | H60: 32440 | I60: 32650 | J60: 33280 | K60: 33410 | L60: 34850 | M60: 34620 | N60: 33450 | O60: 32810 | P60: 31800 | Q60: 30490 | R60: 30710 | S60: 31010 | T60: 32560 | U60: 33200 | V60: 33950 | W60: 35240 | X60: 36360 | Y60: 37090 | Z60: 38460 | AA60: 39140 | AB60: 40800 | AC60: 43080 | AD60: 44090 | AE60: 45810 | AF60: 46620 | AG60: 46230 | AH60: 45830 | AI60: 44590 | AJ60: 44330
A61: 46 | B61: 31920 | C61: 33480 | D61: 34110 | E61: 34280 | F61: 33480 | G61: 32280 | H61: 31920 | I61: 32390 | J61: 32750 | K61: 33380 | L61: 33560 | M61: 35030 | N61: 34820 | O61: 33570 | P61: 33030 | Q61: 31780 | R61: 30370 | S61: 31140 | T61: 31390 | U61: 32580 | V61: 33240 | W61: 34000 | X61: 35310 | Y61: 36440 | Z61: 37180 | AA61: 38540 | AB61: 39230 | AC61: 40890 | AD61: 43170 | AE61: 44180 | AF61: 45900 | AG61: 46710 | AH61: 46320 | AI61: 45920 | AJ61: 44680
A62: 47 | B62: 31370 | C62: 31900 | D62: 33410 | E62: 34030 | F62: 34240 | G62: 33400 | H62: 32110 | I62: 31790 | J62: 32370 | K62: 32860 | L62: 33560 | M62: 33690 | N62: 35110 | O62: 34820 | P62: 33810 | Q62: 32980 | R62: 31640 | S62: 30750 | T62: 31400 | U62: 31370 | V62: 32570 | W62: 33250 | X62: 34020 | Y62: 35330 | Z62: 36460 | AA62: 37200 | AB62: 38570 | AC62: 39260 | AD62: 40920 | AE62: 43200 | AF62: 44210 | AG62: 45930 | AH62: 46740 | AI62: 46350 | AJ62: 45960
A63: 48 | B63: 29970 | C63: 31320 | D63: 31780 | E63: 33320 | F63: 33960 | G63: 34130 | H63: 33190 | I63: 31970 | J63: 31760 | K63: 32450 | L63: 33030 | M63: 33730 | N63: 33740 | O63: 35170 | P63: 34870 | Q63: 33790 | R63: 32770 | S63: 31880 | T63: 30950 | U63: 31330 | V63: 31320 | W63: 32530 | X63: 33220 | Y63: 33990 | Z63: 35310 | AA63: 36440 | AB63: 37180 | AC63: 38550 | AD63: 39240 | AE63: 40900 | AF63: 43180 | AG63: 44190 | AH63: 45910 | AI63: 46720 | AJ63: 46340
A64: 49 | B64: 29280 | C64: 29840 | D64: 31230 | E64: 31700 | F64: 33260 | G64: 33830 | H64: 33930 | I64: 33100 | J64: 32010 | K64: 31800 | L64: 32510 | M64: 33180 | N64: 33830 | O64: 33690 | P64: 35250 | Q64: 34770 | R64: 33650 | S64: 32880 | T64: 32010 | U64: 30850 | V64: 31250 | W64: 31250 | X64: 32470 | Y64: 33160 | Z64: 33940 | AA64: 35260 | AB64: 36390 | AC64: 37130 | AD64: 38500 | AE64: 39190 | AF64: 40850 | AG64: 43120 | AH64: 44140 | AI64: 45860 | AJ64: 46670
A65: 50 | B65: 28580 | C65: 29200 | D65: 29730 | E65: 31150 | F65: 31650 | G65: 33090 | H65: 33640 | I65: 33790 | J65: 33120 | K65: 32140 | L65: 31890 | M65: 32560 | N65: 33230 | O65: 33810 | P65: 33800 | Q65: 35150 | R65: 34570 | S65: 33720 | T65: 32970 | U65: 31890 | V65: 30750 | W65: 31150 | X65: 31160 | Y65: 32380 | Z65: 33080 | AA65: 33860 | AB65: 35180 | AC65: 36310 | AD65: 37060 | AE65: 38420 | AF65: 39110 | AG65: 40770 | AH65: 43050 | AI65: 44060 | AJ65: 45780
A66: 51 | B66: 27550 | C66: 28490 | D66: 29090 | E66: 29610 | F66: 31090 | G66: 31520 | H66: 32950 | I66: 33500 | J66: 33770 | K66: 33210 | L66: 32330 | M66: 31980 | N66: 32580 | O66: 33130 | P66: 33900 | Q66: 33650 | R66: 34900 | S66: 34590 | T66: 33750 | U66: 32850 | V66: 31780 | W66: 30650 | X66: 31060 | Y66: 31080 | Z66: 32300 | AA66: 33000 | AB66: 33780 | AC66: 35100 | AD66: 36230 | AE66: 36970 | AF66: 38340 | AG66: 39030 | AH66: 40690 | AI66: 42960 | AJ66: 43980
A67: 52 | B67: 26780 | C67: 27430 | D67: 28360 | E67: 28970 | F67: 29570 | G67: 30970 | H67: 31340 | I67: 32770 | J67: 33490 | K67: 33830 | L67: 33280 | M67: 32430 | N67: 32030 | O67: 32450 | P67: 33240 | Q67: 33730 | R67: 33430 | S67: 34870 | T67: 34510 | U67: 33620 | V67: 32740 | W67: 31690 | X67: 30560 | Y67: 30980 | Z67: 31000 | AA67: 32220 | AB67: 32920 | AC67: 33700 | AD67: 35020 | AE67: 36150 | AF67: 36900 | AG67: 38260 | AH67: 38960 | AI67: 40610 | AJ67: 42880
A68: 53 | B68: 25610 | C68: 26710 | D68: 27350 | E68: 28270 | F68: 28970 | G68: 29410 | H68: 30830 | I68: 31240 | J68: 32740 | K68: 33520 | L68: 33960 | M68: 33370 | N68: 32560 | O68: 31900 | P68: 32570 | Q68: 32970 | R68: 33390 | S68: 33370 | T68: 34830 | U68: 34390 | V68: 33520 | W68: 32650 | X68: 31600 | Y68: 30490 | Z68: 30910 | AA68: 30930 | AB68: 32150 | AC68: 32850 | AD68: 33630 | AE68: 34950 | AF68: 36080 | AG68: 36830 | AH68: 38190 | AI68: 38890 | AJ68: 40540
A69: 54 | B69: 25210 | C69: 25540 | D69: 26610 | E69: 27230 | F69: 28220 | G69: 28900 | H69: 29320 | I69: 30700 | J69: 31200 | K69: 32760 | L69: 33550 | M69: 34060 | N69: 33430 | O69: 32340 | P69: 31960 | Q69: 32390 | R69: 32650 | S69: 33290 | T69: 33270 | U69: 34730 | V69: 34300 | W69: 33440 | X69: 32580 | Y69: 31540 | Z69: 30430 | AA69: 30850 | AB69: 30870 | AC69: 32100 | AD69: 32800 | AE69: 33580 | AF69: 34890 | AG69: 36020 | AH69: 36770 | AI69: 38140 | AJ69: 38830
A70: 55 | B70: 24770 | C70: 25110 | D70: 25500 | E70: 26580 | F70: 27210 | G70: 28110 | H70: 28840 | I70: 29230 | J70: 30670 | K70: 31220 | L70: 32800 | M70: 33570 | N70: 34120 | O70: 33270 | P70: 32460 | Q70: 31640 | R70: 32150 | S70: 32480 | T70: 33170 | U70: 33180 | V70: 34650 | W70: 34230 | X70: 33380 | Y70: 32530 | Z70: 31490 | AA70: 30390 | AB70: 30810 | AC70: 30840 | AD70: 32060 | AE70: 32760 | AF70: 33540 | AG70: 34860 | AH70: 35990 | AI70: 36730 | AJ70: 38100
A71: 56 | B71: 24930 | C71: 24730 | D71: 25040 | E71: 25500 | F71: 26570 | G71: 27160 | H71: 28040 | I71: 28790 | J71: 29280 | K71: 30710 | L71: 31300 | M71: 32860 | N71: 33590 | O71: 33930 | P71: 33340 | Q71: 32120 | R71: 31290 | S71: 31970 | T71: 32340 | U71: 33100 | V71: 33120 | W71: 34590 | X71: 34180 | Y71: 33340 | Z71: 32490 | AA71: 31460 | AB71: 30360 | AC71: 30790 | AD71: 30810 | AE71: 32030 | AF71: 32740 | AG71: 33520 | AH71: 34830 | AI71: 35960 | AJ71: 36710
A72: 57 | B72: 24090 | C72: 24850 | D72: 24680 | E72: 25000 | F72: 25510 | G72: 26540 | H72: 27140 | I72: 27970 | J72: 28700 | K72: 29360 | L72: 30770 | M72: 31310 | N72: 32830 | O72: 33480 | P72: 34060 | Q72: 32990 | R72: 31730 | S72: 31150 | T72: 31860 | U72: 32280 | V72: 33050 | W72: 33080 | X72: 34550 | Y72: 34150 | Z72: 33310 | AA72: 32460 | AB72: 31440 | AC72: 30350 | AD72: 30770 | AE72: 30800 | AF72: 32020 | AG72: 32730 | AH72: 33510 | AI72: 34820 | AJ72: 35950
A73: 58 | B73: 24480 | C73: 24050 | D73: 24700 | E73: 24570 | F73: 25000 | G73: 25480 | H73: 26530 | I73: 27100 | J73: 27920 | K73: 28670 | L73: 29450 | M73: 30810 | N73: 31290 | O73: 32620 | P73: 33650 | Q73: 33630 | R73: 32550 | S73: 31510 | T73: 31020 | U73: 31810 | V73: 32240 | W73: 33010 | X73: 33050 | Y73: 34520 | Z73: 34120 | AA73: 33290 | AB73: 32450 | AC73: 31430 | AD73: 30350 | AE73: 30780 | AF73: 30810 | AG73: 32030 | AH73: 32730 | AI73: 33510 | AJ73: 34820
A74: 59 | B74: 24660 | C74: 24450 | D74: 23980 | E74: 24630 | F74: 24500 | G74: 24970 | H74: 25480 | I74: 26490 | J74: 27060 | K74: 27920 | L74: 28700 | M74: 29560 | N74: 30780 | O74: 31150 | P74: 32710 | Q74: 33290 | R74: 33190 | S74: 32300 | T74: 31360 | U74: 30980 | V74: 31770 | W74: 32210 | X74: 32990 | Y74: 33030 | Z74: 34500 | AA74: 34110 | AB74: 33280 | AC74: 32450 | AD74: 31440 | AE74: 30360 | AF74: 30790 | AG74: 30820 | AH74: 32040 | AI74: 32740 | AJ74: 33520
A75: 60 | B75: 20800 | C75: 24570 | D75: 24410 | E75: 23930 | F75: 24560 | G75: 24490 | H75: 24980 | I75: 25490 | J75: 26470 | K75: 27100 | L75: 27930 | M75: 28670 | N75: 29560 | O75: 30620 | P75: 31310 | Q75: 32280 | R75: 32940 | S75: 32930 | T75: 32200 | U75: 31300 | V75: 30940 | W75: 31740 | X75: 32180 | Y75: 32960 | Z75: 33010 | AA75: 34480 | AB75: 34090 | AC75: 33270 | AD75: 32440 | AE75: 31440 | AF75: 30370 | AG75: 30790 | AH75: 30830 | AI75: 32050 | AJ75: 32750
A76: 61 | B76: 19700 | C76: 20750 | D76: 24470 | E76: 24340 | F76: 23890 | G76: 24540 | H76: 24440 | I76: 24970 | J76: 25470 | K76: 26430 | L76: 27220 | M76: 27870 | N76: 28610 | O76: 29460 | P76: 30770 | Q76: 30830 | R76: 31790 | S76: 32630 | T76: 32800 | U76: 32140 | V76: 31260 | W76: 30910 | X76: 31710 | Y76: 32160 | Z76: 32940 | AA76: 32990 | AB76: 34460 | AC76: 34080 | AD76: 33260 | AE76: 32440 | AF76: 31440 | AG76: 30380 | AH76: 30810 | AI76: 30850 | AJ76: 32060
A77: 62 | B77: 18680 | C77: 19610 | D77: 20680 | E77: 24370 | F77: 24280 | G77: 23840 | H77: 24510 | I77: 24380 | J77: 24920 | K77: 25430 | L77: 26400 | M77: 27180 | N77: 27820 | O77: 28520 | P77: 29640 | Q77: 30390 | R77: 30380 | S77: 31510 | T77: 32450 | U77: 32730 | V77: 32080 | W77: 31220 | X77: 30870 | Y77: 31680 | Z77: 32130 | AA77: 32910 | AB77: 32970 | AC77: 34430 | AD77: 34060 | AE77: 33250 | AF77: 32440 | AG77: 31440 | AH77: 30390 | AI77: 30820 | AJ77: 30860
A78: 63 | B78: 16840 | C78: 18600 | D78: 19540 | E78: 20580 | F78: 24270 | G78: 24200 | H78: 23820 | I78: 24470 | J78: 24270 | K78: 24920 | L78: 25420 | M78: 26370 | N78: 27120 | O78: 27760 | P78: 28730 | Q78: 29220 | R78: 29890 | S78: 30120 | T78: 31370 | U78: 32360 | V78: 32650 | W78: 32020 | X78: 31170 | Y78: 30830 | Z78: 31640 | AA78: 32090 | AB78: 32870 | AC78: 32930 | AD78: 34390 | AE78: 34020 | AF78: 33230 | AG78: 32420 | AH78: 31430 | AI78: 30380 | AJ78: 30810
A79: 64 | B79: 18730 | C79: 16750 | D79: 18530 | E79: 19490 | F79: 20520 | G79: 24170 | H79: 24150 | I79: 23800 | J79: 24370 | K79: 24140 | L79: 24830 | M79: 25400 | N79: 26240 | O79: 26990 | P79: 28000 | Q79: 28380 | R79: 28800 | S79: 29610 | T79: 29960 | U79: 31260 | V79: 32260 | W79: 32560 | X79: 31940 | Y79: 31090 | Z79: 30760 | AA79: 31570 | AB79: 32020 | AC79: 32810 | AD79: 32870 | AE79: 34330 | AF79: 33970 | AG79: 33180 | AH79: 32380 | AI79: 31400 | AJ79: 30360
A80: 65 | B80: 18400 | C80: 18630 | D80: 16670 | E80: 18440 | F80: 19440 | G80: 20450 | H80: 24040 | I80: 24050 | J80: 23620 | K80: 24270 | L80: 24050 | M80: 24720 | N80: 25300 | O80: 26070 | P80: 27150 | Q80: 27620 | R80: 27950 | S80: 28510 | T80: 29430 | U80: 29840 | V80: 31140 | W80: 32140 | X80: 32440 | Y80: 31830 | Z80: 31000 | AA80: 30680 | AB80: 31490 | AC80: 31940 | AD80: 32730 | AE80: 32790 | AF80: 34250 | AG80: 33890 | AH80: 33110 | AI80: 32320 | AJ80: 31350
A81: 66 | B81: 16900 | C81: 18240 | D81: 18470 | E81: 16570 | F81: 18340 | G81: 19330 | H81: 20350 | I81: 23940 | J81: 23910 | K81: 23450 | L81: 24090 | M81: 23950 | N81: 24570 | O81: 25070 | P81: 26220 | Q81: 26740 | R81: 27170 | S81: 27730 | T81: 28350 | U81: 29280 | V81: 29700 | W81: 31000 | X81: 32000 | Y81: 32310 | Z81: 31710 | AA81: 30890 | AB81: 30570 | AC81: 31380 | AD81: 31840 | AE81: 32630 | AF81: 32690 | AG81: 34150 | AH81: 33800 | AI81: 33020 | AJ81: 32240
A82: 67 | B82: 15620 | C82: 16740 | D82: 18050 | E82: 18370 | F82: 16430 | G82: 18210 | H82: 19190 | I82: 20190 | J82: 23730 | K82: 23720 | L82: 23280 | M82: 23910 | N82: 23710 | O82: 24360 | P82: 25120 | Q82: 25740 | R82: 26230 | S82: 26840 | T82: 27440 | U82: 28180 | V82: 29120 | W82: 29540 | X82: 30840 | Y82: 31840 | Z82: 32160 | AA82: 31560 | AB82: 30750 | AC82: 30440 | AD82: 31250 | AE82: 31710 | AF82: 32500 | AG82: 32570 | AH82: 34020 | AI82: 33680 | AJ82: 32910
A83: 68 | B83: 14760 | C83: 15410 | D83: 16570 | E83: 17860 | F83: 18190 | G83: 16290 | H83: 18050 | I83: 19110 | J83: 20010 | K83: 23460 | L83: 23510 | M83: 23070 | N83: 23680 | O83: 23470 | P83: 24360 | Q83: 24680 | R83: 25280 | S83: 25820 | T83: 26610 | U83: 27250 | V83: 28000 | W83: 28930 | X83: 29360 | Y83: 30650 | Z83: 31660 | AA83: 31970 | AB83: 31390 | AC83: 30590 | AD83: 30290 | AE83: 31100 | AF83: 31560 | AG83: 32350 | AH83: 32420 | AI83: 33870 | AJ83: 33530
A84: 69 | B84: 14230 | C84: 14600 | D84: 15220 | E84: 16380 | F84: 17680 | G84: 18000 | H84: 16110 | I84: 17900 | J84: 18880 | K84: 19780 | L84: 23170 | M84: 23270 | N84: 22740 | O84: 23440 | P84: 23430 | Q84: 23960 | R84: 24210 | S84: 24980 | T84: 25560 | U84: 26400 | V84: 27040 | W84: 27790 | X84: 28720 | Y84: 29160 | Z84: 30450 | AA84: 31450 | AB84: 31770 | AC84: 31200 | AD84: 30410 | AE84: 30110 | AF84: 30920 | AG84: 31390 | AH84: 32170 | AI84: 32260 | AJ84: 33700
A85: 70 | B85: 13460 | C85: 13990 | D85: 14400 | E85: 15000 | F85: 16170 | G85: 17450 | H85: 17790 | I85: 15930 | J85: 17690 | K85: 18640 | L85: 19550 | M85: 22870 | N85: 22970 | O85: 22460 | P85: 23360 | Q85: 23010 | R85: 23480 | S85: 23820 | T85: 24690 | U85: 25340 | V85: 26180 | W85: 26820 | X85: 27570 | Y85: 28510 | Z85: 28940 | AA85: 30230 | AB85: 31230 | AC85: 31550 | AD85: 30990 | AE85: 30210 | AF85: 29920 | AG85: 30730 | AH85: 31200 | AI85: 31980 | AJ85: 32070
A86: 71 | B86: 12650 | C86: 13250 | D86: 13770 | E86: 14190 | F86: 14780 | G86: 15900 | H86: 17210 | I86: 17570 | J86: 15700 | K86: 17460 | L86: 18370 | M86: 19290 | N86: 22520 | O86: 22640 | P86: 22340 | Q86: 22970 | R86: 22540 | S86: 23100 | T86: 23540 | U86: 24440 | V86: 25090 | W86: 25930 | X86: 26580 | Y86: 27330 | Z86: 28260 | AA86: 28700 | AB86: 29980 | AC86: 30980 | AD86: 31310 | AE86: 30750 | AF86: 29990 | AG86: 29710 | AH86: 30520 | AI86: 30980 | AJ86: 31770
A87: 72 | B87: 12410 | C87: 12440 | D87: 13040 | E87: 13540 | F87: 14000 | G87: 14570 | H87: 15680 | I87: 16960 | J87: 17320 | K87: 15460 | L87: 17180 | M87: 18070 | N87: 18980 | O87: 22220 | P87: 22470 | Q87: 21880 | R87: 22500 | S87: 22150 | T87: 22810 | U87: 23270 | V87: 24180 | W87: 24830 | X87: 25660 | Y87: 26310 | Z87: 27060 | AA87: 27990 | AB87: 28430 | AC87: 29710 | AD87: 30700 | AE87: 31030 | AF87: 30490 | AG87: 29740 | AH87: 29470 | AI87: 30280 | AJ87: 30740
A88: 73 | B88: 12300 | C88: 12150 | D88: 12180 | E88: 12780 | F88: 13280 | G88: 13760 | H88: 14350 | I88: 15490 | J88: 16700 | K88: 17050 | L88: 15210 | M88: 16840 | N88: 17720 | O88: 18600 | P88: 22040 | Q88: 22000 | R88: 21380 | S88: 22130 | T88: 21830 | U88: 22520 | V88: 22990 | W88: 23890 | X88: 24540 | Y88: 25370 | Z88: 26020 | AA88: 26770 | AB88: 27700 | AC88: 28140 | AD88: 29410 | AE88: 30400 | AF88: 30740 | AG88: 30210 | AH88: 29470 | AI88: 29200 | AJ88: 30010
A89: 74 | B89: 11960 | C89: 12030 | D89: 11880 | E89: 11930 | F89: 12500 | G89: 13050 | H89: 13510 | I89: 14060 | J89: 15230 | K89: 16370 | L89: 16740 | M89: 14900 | N89: 16490 | O89: 17350 | P89: 18400 | Q89: 21620 | R89: 21510 | S89: 20970 | T89: 21790 | U89: 21520 | V89: 22210 | W89: 22680 | X89: 23570 | Y89: 24230 | Z89: 25060 | AA89: 25700 | AB89: 26450 | AC89: 27370 | AD89: 27810 | AE89: 29080 | AF89: 30070 | AG89: 30410 | AH89: 29890 | AI89: 29170 | AJ89: 28910
A90: 75 | B90: 12130 | C90: 11650 | D90: 11720 | E90: 11580 | F90: 11660 | G90: 12210 | H90: 12750 | I90: 13220 | J90: 13800 | K90: 14950 | L90: 16050 | M90: 16380 | N90: 14540 | O90: 16140 | P90: 17110 | Q90: 17960 | R90: 21080 | S90: 20960 | T90: 20570 | U90: 21440 | V90: 21180 | W90: 21870 | X90: 22340 | Y90: 23230 | Z90: 23880 | AA90: 24710 | AB90: 25350 | AC90: 26100 | AD90: 27020 | AE90: 27460 | AF90: 28720 | AG90: 29700 | AH90: 30050 | AI90: 29550 | AJ90: 28840
A91: 76 | B91: 11810 | C91: 11810 | D91: 11370 | E91: 11450 | F91: 11320 | G91: 11380 | H91: 11880 | I91: 12470 | J91: 12930 | K91: 13500 | L91: 14640 | M91: 15680 | N91: 16020 | O91: 14210 | P91: 15870 | Q91: 16670 | R91: 17430 | S91: 20590 | T91: 20550 | U91: 20200 | V91: 21060 | W91: 20820 | X91: 21500 | Y91: 21970 | Z91: 22860 | AA91: 23510 | AB91: 24330 | AC91: 24970 | AD91: 25720 | AE91: 26630 | AF91: 27080 | AG91: 28320 | AH91: 29300 | AI91: 29650 | AJ91: 29160
A92: 77 | B92: 11080 | C92: 11460 | D92: 11470 | E92: 11050 | F92: 11120 | G92: 11050 | H92: 11070 | I92: 11540 | J92: 12120 | K92: 12620 | L92: 13180 | M92: 14290 | N92: 15250 | O92: 15590 | P92: 13980 | Q92: 15470 | R92: 16130 | S92: 16920 | T92: 20130 | U92: 20130 | V92: 19800 | W92: 20650 | X92: 20420 | Y92: 21100 | Z92: 21580 | AA92: 22450 | AB92: 23100 | AC92: 23920 | AD92: 24560 | AE92: 25300 | AF92: 26200 | AG92: 26650 | AH92: 27890 | AI92: 28860 | AJ92: 29210
A93: 78 | B93: 10800 | C93: 10740 | D93: 11110 | E93: 11130 | F93: 10710 | G93: 10800 | H93: 10750 | I93: 10730 | J93: 11180 | K93: 11750 | L93: 12220 | M93: 12840 | N93: 13860 | O93: 14840 | P93: 15220 | Q93: 13610 | R93: 14950 | S93: 15660 | T93: 16530 | U93: 19660 | V93: 19680 | W93: 19360 | X93: 20210 | Y93: 19990 | Z93: 20670 | AA93: 21140 | AB93: 22010 | AC93: 22650 | AD93: 23460 | AE93: 24100 | AF93: 24830 | AG93: 25730 | AH93: 26180 | AI93: 27410 | AJ93: 28370
A94: 79 | B94: 10220 | C94: 10390 | D94: 10360 | E94: 10710 | F94: 10800 | G94: 10360 | H94: 10460 | I94: 10380 | J94: 10380 | K94: 10830 | L94: 11340 | M94: 11830 | N94: 12410 | O94: 13400 | P94: 14460 | Q94: 14720 | R94: 13160 | S94: 14410 | T94: 15170 | U94: 16090 | V94: 19150 | W94: 19180 | X94: 18880 | Y94: 19720 | Z94: 19520 | AA94: 20190 | AB94: 20660 | AC94: 21520 | AD94: 22160 | AE94: 22960 | AF94: 23590 | AG94: 24320 | AH94: 25210 | AI94: 25660 | AJ94: 26870
A95: 80 | B95: 9890 | C95: 9830 | D95: 9990 | E95: 9950 | F95: 10300 | G95: 10410 | H95: 9930 | I95: 10090 | J95: 10000 | K95: 10010 | L95: 10420 | M95: 10940 | N95: 11400 | O95: 11970 | P95: 12960 | Q95: 13990 | R95: 14140 | S95: 12670 | T95: 13920 | U95: 14710 | V95: 15620 | W95: 18600 | X95: 18640 | Y95: 18360 | Z95: 19180 | AA95: 19000 | AB95: 19660 | AC95: 20130 | AD95: 20970 | AE95: 21610 | AF95: 22400 | AG95: 23030 | AH95: 23750 | AI95: 24630 | AJ95: 25080
A96: 81 | B96: 9610 | C96: 9450 | D96: 9380 | E96: 9540 | F96: 9510 | G96: 9820 | H96: 9960 | I96: 9520 | J96: 9660 | K96: 9590 | L96: 9630 | M96: 9970 | N96: 10460 | O96: 10890 | P96: 11530 | Q96: 12480 | R96: 13380 | S96: 13500 | T96: 12170 | U96: 13440 | V96: 14210 | W96: 15100 | X96: 18000 | Y96: 18040 | Z96: 17780 | AA96: 18590 | AB96: 18420 | AC96: 19080 | AD96: 19540 | AE96: 20370 | AF96: 21000 | AG96: 21780 | AH96: 22400 | AI96: 23110 | AJ96: 23980
A97: 82 | B97: 8770 | C97: 9110 | D97: 8970 | E97: 8930 | F97: 9080 | G97: 9040 | H97: 9340 | I97: 9530 | J97: 9070 | K97: 9160 | L97: 9150 | M97: 9180 | N97: 9480 | O97: 9970 | P97: 10500 | Q97: 10990 | R97: 11860 | S97: 12710 | T97: 12970 | U97: 11680 | V97: 12920 | W97: 13670 | X97: 14540 | Y97: 17330 | Z97: 17390 | AA97: 17150 | AB97: 17940 | AC97: 17790 | AD97: 18430 | AE97: 18890 | AF97: 19700 | AG97: 20320 | AH97: 21080 | AI97: 21700 | AJ97: 22400
A98: 83 | B98: 8030 | C98: 8270 | D98: 8570 | E98: 8440 | F98: 8400 | G98: 8590 | H98: 8550 | I98: 8820 | J98: 9020 | K98: 8550 | L98: 8690 | M98: 8680 | N98: 8700 | O98: 9010 | P98: 9450 | Q98: 9940 | R98: 10370 | S98: 11220 | T98: 12100 | U98: 12380 | V98: 11160 | W98: 12350 | X98: 13080 | Y98: 13920 | Z98: 16600 | AA98: 16670 | AB98: 16450 | AC98: 17220 | AD98: 17090 | AE98: 17710 | AF98: 18160 | AG98: 18960 | AH98: 19560 | AI98: 20310 | AJ98: 20910
A99: 84 | B99: 7700 | C99: 7490 | D99: 7730 | E99: 8040 | F99: 7890 | G99: 7870 | H99: 7980 | I99: 8060 | J99: 8350 | K99: 8450 | L99: 8090 | M99: 8140 | N99: 8170 | O99: 8190 | P99: 8540 | Q99: 8950 | R99: 9330 | S99: 9740 | T99: 10620 | U99: 11460 | V99: 11730 | W99: 10590 | X99: 11730 | Y99: 12430 | Z99: 13240 | AA99: 15810 | AB99: 15880 | AC99: 15680 | AD99: 16430 | AE99: 16310 | AF99: 16920 | AG99: 17360 | AH99: 18130 | AI99: 18720 | AJ99: 19450
A100: 85 | B100: 6940 | C100: 7130 | D100: 6960 | E100: 7160 | F100: 7480 | G100: 7290 | H100: 7350 | I100: 7380 | J100: 7510 | K100: 7750 | L100: 7850 | M100: 7530 | N100: 7600 | O100: 7620 | P100: 7650 | Q100: 8030 | R100: 8330 | S100: 8670 | T100: 9160 | U100: 9970 | V100: 10770 | W100: 11040 | X100: 9980 | Y100: 11050 | Z100: 11730 | AA100: 12500 | AB100: 14930 | AC100: 15010 | AD100: 14840 | AE100: 15550 | AF100: 15450 | AG100: 16040 | AH100: 16470 | AI100: 17220 | AJ100: 17790
A101: 86 | B101: 6240 | C101: 6390 | D101: 6540 | E101: 6380 | F101: 6560 | G101: 6900 | H101: 6650 | I101: 6750 | J101: 6850 | K101: 6940 | L101: 7160 | M101: 7200 | N101: 6930 | O101: 7000 | P101: 7090 | Q101: 7100 | R101: 7440 | S101: 7680 | T101: 8060 | U101: 8520 | V101: 9280 | W101: 10040 | X101: 10300 | Y101: 9310 | Z101: 10330 | AA101: 10960 | AB101: 11690 | AC101: 13980 | AD101: 14070 | AE101: 13920 | AF101: 14600 | AG101: 14520 | AH101: 15080 | AI101: 15500 | AJ101: 16210
A102: 87 | B102: 4700 | C102: 5630 | D102: 5730 | E102: 5900 | F102: 5790 | G102: 5930 | H102: 6250 | I102: 6040 | J102: 6210 | K102: 6250 | L102: 6360 | M102: 6550 | N102: 6560 | O102: 6310 | P102: 6420 | Q102: 6510 | R102: 6450 | S102: 6770 | T102: 7020 | U102: 7400 | V102: 7830 | W102: 8540 | X102: 9250 | Y102: 9500 | Z102: 8600 | AA102: 9550 | AB102: 10140 | AC102: 10830 | AD102: 12960 | AE102: 13050 | AF102: 12920 | AG102: 13560 | AH102: 13500 | AI102: 14030 | AJ102: 14430
A103: 88 | B103: 4260 | C103: 4210 | D103: 4990 | E103: 5140 | F103: 5280 | G103: 5170 | H103: 5280 | I103: 5610 | J103: 5470 | K103: 5590 | L103: 5620 | M103: 5750 | N103: 5890 | O103: 5930 | P103: 5720 | Q103: 5800 | R103: 5850 | S103: 5800 | T103: 6150 | U103: 6360 | V103: 6720 | W103: 7110 | X103: 7770 | Y103: 8420 | Z103: 8650 | AA103: 7840 | AB103: 8710 | AC103: 9270 | AD103: 9900 | AE103: 11860 | AF103: 11960 | AG103: 11850 | AH103: 12450 | AI103: 12400 | AJ103: 12900
A104: 89 | B104: 3770 | C104: 3750 | D104: 3720 | E104: 4400 | F104: 4520 | G104: 4660 | H104: 4540 | I104: 4660 | J104: 5010 | K104: 4890 | L104: 4990 | M104: 4950 | N104: 5110 | O104: 5240 | P104: 5280 | Q104: 5120 | R104: 5190 | S104: 5140 | T104: 5150 | U104: 5480 | V104: 5680 | W104: 6000 | X104: 6370 | Y104: 6960 | Z104: 7550 | AA104: 7770 | AB104: 7050 | AC104: 7840 | AD104: 8350 | AE104: 8930 | AF104: 10700 | AG104: 10800 | AH104: 10710 | AI104: 11270 | AJ104: 11230
A105: 90 | B105: 3250 | C105: 3250 | D105: 3240 | E105: 3190 | F105: 3800 | G105: 3930 | H105: 4010 | I105: 3930 | J105: 4070 | K105: 4410 | L105: 4240 | M105: 4340 | N105: 4320 | O105: 4470 | P105: 4600 | Q105: 4660 | R105: 4470 | S105: 4480 | T105: 4490 | U105: 4510 | V105: 4810 | W105: 4990 | X105: 5280 | Y105: 5600 | Z105: 6130 | AA105: 6660 | AB105: 6860 | AC105: 6230 | AD105: 6940 | AE105: 7390 | AF105: 7920 | AG105: 9500 | AH105: 9600 | AI105: 9530 | AJ105: 10030
A106: 91 | B106: 2700 | C106: 2720 | D106: 2760 | E106: 2730 | F106: 2700 | G106: 3200 | H106: 3320 | I106: 3410 | J106: 3370 | K106: 3510 | L106: 3740 | M106: 3660 | N106: 3690 | O106: 3680 | P106: 3850 | Q106: 3990 | R106: 3930 | S106: 3810 | T106: 3840 | U106: 3850 | V106: 3880 | W106: 4140 | X106: 4300 | Y106: 4550 | Z106: 4840 | AA106: 5310 | AB106: 5770 | AC106: 5950 | AD106: 5410 | AE106: 6030 | AF106: 6430 | AG106: 6890 | AH106: 8280 | AI106: 8370 | AJ106: 8320
A107: 92 | B107: 2080 | C107: 2240 | D107: 2290 | E107: 2290 | F107: 2300 | G107: 2240 | H107: 2650 | I107: 2740 | J107: 2890 | K107: 2840 | L107: 2970 | M107: 3170 | N107: 3090 | O107: 3060 | P107: 3100 | Q107: 3280 | R107: 3310 | S107: 3270 | T107: 3160 | U107: 3220 | V107: 3230 | W107: 3260 | X107: 3490 | Y107: 3630 | Z107: 3850 | AA107: 4100 | AB107: 4500 | AC107: 4900 | AD107: 5050 | AE107: 4600 | AF107: 5130 | AG107: 5480 | AH107: 5880 | AI107: 7070 | AJ107: 7160
A108: 93 | B108: 1740 | C108: 1660 | D108: 1830 | E108: 1880 | F108: 1870 | G108: 1880 | H108: 1790 | I108: 2150 | J108: 2270 | K108: 2370 | L108: 2360 | M108: 2500 | N108: 2610 | O108: 2520 | P108: 2530 | Q108: 2560 | R108: 2700 | S108: 2700 | T108: 2640 | U108: 2590 | V108: 2650 | W108: 2660 | X108: 2690 | Y108: 2880 | Z108: 3000 | AA108: 3180 | AB108: 3390 | AC108: 3730 | AD108: 4070 | AE108: 4200 | AF108: 3830 | AG108: 4280 | AH108: 4570 | AI108: 4910 | AJ108: 5910
A109: 94 | B109: 1310 | C109: 1370 | D109: 1330 | E109: 1450 | F109: 1480 | G109: 1480 | H109: 1480 | I109: 1400 | J109: 1740 | K109: 1830 | L109: 1920 | M109: 1940 | N109: 2000 | O109: 2070 | P109: 2050 | Q109: 2070 | R109: 1990 | S109: 2120 | T109: 2190 | U109: 2110 | V109: 2080 | W109: 2130 | X109: 2140 | Y109: 2170 | Z109: 2320 | AA109: 2420 | AB109: 2580 | AC109: 2750 | AD109: 3020 | AE109: 3300 | AF109: 3410 | AG109: 3120 | AH109: 3480 | AI109: 3730 | AJ109: 4010
A110: 95 & over | B110: 2960 | C110: 3090 | D110: 3260 | E110: 3310 | F110: 3590 | G110: 3710 | H110: 3780 | I110: 3810 | J110: 3860 | K110: 4120 | L110: 4390 | M110: 4710 | N110: 4980 | O110: 5180 | P110: 5330 | Q110: 5510 | R110: 5380 | S110: 5140 | T110: 5280 | U110: 5600 | V110: 5800 | W110: 5920 | X110: 6040 | Y110: 6140 | Z110: 6230 | AA110: 6430 | AB110: 6660 | AC110: 6950 | AD110: 7320 | AE110: 7810 | AF110: 8410 | AG110: 8960 | AH110: 9140 | AI110: 9560 | AJ110: 10080
A111: Female total | B111: =SUM(B$15:B$110) -> 2136250 | C111: =SUM(C$15:C$110) -> 2157380 | D111: 2176330 | E111: 2197940 | F111: 2222910 | G111: 2240420 | H111: 2252990 | I111: 2269940 | J111: 2300720 | K111: 2339290 | L111: 2385590 | M111: 2430960 | N111: 2470450 | O111: 2503330 | P111: 2553480 | Q111: 2559850 | R111: 2558580 | S111: 2610040 | T111: 2655820 | U111: 2679180 | V111: 2704680 | W111: 2730980 | X111: 2757940 | Y111: 2785200 | Z111: 2812540 | AA111: 2839720 | AB111: 2866560 | AC111: 2893160 | AD111: 2919460 | AE111: 2945480 | AF111: 2971390 | AG111: 2997010 | AH111: 3022440 | AI111: 3047710 | AJ111: 3072780
A114: MALE POPULATION
A115: =$A$15 -> 0 | B115: 30150 | C115: 31900 | D115: 33050 | E115: 33060 | F115: 33020 | G115: 32130 | H115: 31320 | I115: 30890 | J115: 30140 | K115: 30350 | L115: 30610 | M115: 30690 | N115: 30530 | O115: 30740 | P115: 30270 | Q115: 31310 | R115: 30520 | S115: 29280 | T115: 29270 | U115: 29840 | V115: 29850 | W115: 29850 | X115: 29830 | Y115: 29820 | Z115: 29810 | AA115: 29810 | AB115: 29830 | AC115: 29890 | AD115: 29980 | AE115: 30100 | AF115: 30270 | AG115: 30460 | AH115: 30680 | AI115: 30910 | AJ115: 31150
A116: =$A$16 -> 1 | B116: 29380 | C116: 30170 | D116: 31780 | E116: 32980 | F116: 33130 | G116: 33060 | H116: 32050 | I116: 31410 | J116: 31010 | K116: 30350 | L116: 30650 | M116: 30930 | N116: 30900 | O116: 30640 | P116: 31000 | Q116: 30370 | R116: 31240 | S116: 30750 | T116: 29490 | U116: 29240 | V116: 29840 | W116: 29860 | X116: 29870 | Y116: 29860 | Z116: 29850 | AA116: 29840 | AB116: 29850 | AC116: 29880 | AD116: 29930 | AE116: 30020 | AF116: 30150 | AG116: 30310 | AH116: 30510 | AI116: 30730 | AJ116: 30970
A117: =$A$17 -> 2 | B117: 29510 | C117: 29490 | D117: 30170 | E117: 31800 | F117: 33070 | G117: 33070 | H117: 32930 | I117: 31970 | J117: 31670 | K117: 31400 | L117: 30920 | M117: 31290 | N117: 31420 | O117: 31310 | P117: 31070 | Q117: 31160 | R117: 30440 | S117: 31660 | T117: 31270 | U117: 29590 | V117: 29370 | W117: 29980 | X117: 30020 | Y117: 30030 | Z117: 30030 | AA117: 30030 | AB117: 30020 | AC117: 30030 | AD117: 30060 | AE117: 30110 | AF117: 30200 | AG117: 30340 | AH117: 30500 | AI117: 30700 | AJ117: 30920
A118: =$A$18 -> 3 | B118: 28800 | C118: 29680 | D118: 29550 | E118: 30280 | F118: 31860 | G118: 32950 | H118: 32970 | I118: 32960 | J118: 32220 | K118: 32020 | L118: 31970 | M118: 31570 | N118: 31850 | O118: 31860 | P118: 31920 | Q118: 31240 | R118: 31390 | S118: 31090 | T118: 32200 | U118: 31410 | V118: 29770 | W118: 29560 | X118: 30190 | Y118: 30240 | Z118: 30260 | AA118: 30260 | AB118: 30260 | AC118: 30250 | AD118: 30260 | AE118: 30290 | AF118: 30350 | AG118: 30450 | AH118: 30580 | AI118: 30750 | AJ118: 30950
A119: =$A$19 -> 4 | B119: 28370 | C119: 28970 | D119: 29740 | E119: 29670 | F119: 30290 | G119: 31810 | H119: 32820 | I119: 32930 | J119: 33110 | K119: 32540 | L119: 32460 | M119: 32480 | N119: 32120 | O119: 32360 | P119: 32360 | Q119: 32020 | R119: 31360 | S119: 32140 | T119: 31840 | U119: 32380 | V119: 31630 | W119: 30010 | X119: 29820 | Y119: 30460 | Z119: 30510 | AA119: 30540 | AB119: 30550 | AC119: 30540 | AD119: 30540 | AE119: 30550 | AF119: 30580 | AG119: 30640 | AH119: 30740 | AI119: 30870 | AJ119: 31050
A120: =$A$20 -> 5 | B120: 29670 | C120: 28590 | D120: 29100 | E120: 29870 | F120: 29760 | G120: 30240 | H120: 31670 | I120: 32730 | J120: 33050 | K120: 33360 | L120: 32990 | M120: 32950 | N120: 32960 | O120: 32680 | P120: 32910 | Q120: 32500 | R120: 32050 | S120: 32120 | T120: 32920 | U120: 32030 | V120: 32610 | W120: 31880 | X120: 30280 | Y120: 30100 | Z120: 30750 | AA120: 30800 | AB120: 30830 | AC120: 30840 | AD120: 30840 | AE120: 30840 | AF120: 30850 | AG120: 30890 | AH120: 30950 | AI120: 31050 | AJ120: 31180
A121: =$A$21 -> 6 | B121: 30280 | C121: 29980 | D121: 28760 | E121: 29210 | F121: 29950 | G121: 29730 | H121: 30080 | I121: 31520 | J121: 32870 | K121: 33280 | L121: 33630 | M121: 33450 | N121: 33340 | O121: 33330 | P121: 33180 | Q121: 32980 | R121: 32530 | S121: 32760 | T121: 32910 | U121: 33130 | V121: 32280 | W121: 32880 | X121: 32170 | Y121: 30580 | Z121: 30410 | AA121: 31060 | AB121: 31120 | AC121: 31150 | AD121: 31160 | AE121: 31160 | AF121: 31160 | AG121: 31180 | AH121: 31210 | AI121: 31280 | AJ121: 31380
A122: =$A$22 -> 7 | B122: 29500 | C122: 30570 | D122: 30180 | E122: 28890 | F122: 29340 | G122: 29910 | H122: 29610 | I122: 29960 | J122: 31670 | K122: 33060 | L122: 33510 | M122: 33970 | N122: 33780 | O122: 33750 | P122: 33740 | Q122: 33350 | R122: 33010 | S122: 33250 | T122: 33470 | U122: 33130 | V122: 33390 | W122: 32560 | X122: 33180 | Y122: 32480 | Z122: 30900 | AA122: 30730 | AB122: 31390 | AC122: 31450 | AD122: 31480 | AE122: 31490 | AF122: 31500 | AG122: 31500 | AH122: 31520 | AI122: 31560 | AJ122: 31620
A123: =$A$23 -> 8 | B123: 29960 | C123: 29810 | D123: 30860 | E123: 30370 | F123: 29120 | G123: 29410 | H123: 29840 | I123: 29550 | J123: 30110 | K123: 31880 | L123: 33360 | M123: 33860 | N123: 34200 | O123: 34170 | P123: 34210 | Q123: 33870 | R123: 33350 | S123: 33740 | T123: 34050 | U123: 33700 | V123: 33400 | W123: 33680 | X123: 32870 | Y123: 33500 | Z123: 32810 | AA123: 31230 | AB123: 31060 | AC123: 31720 | AD123: 31790 | AE123: 31820 | AF123: 31840 | AG123: 31840 | AH123: 31850 | AI123: 31870 | AJ123: 31910
A124: =$A$24 -> 9 | B124: 29820 | C124: 30270 | D124: 30090 | E124: 31080 | F124: 30610 | G124: 29220 | H124: 29330 | I124: 29810 | J124: 29700 | K124: 30340 | L124: 32240 | M124: 33630 | N124: 34150 | O124: 34610 | P124: 34590 | Q124: 34310 | R124: 33920 | S124: 34030 | T124: 34600 | U124: 34290 | V124: 33970 | W124: 33690 | X124: 33990 | Y124: 33190 | Z124: 33830 | AA124: 33140 | AB124: 31570 | AC124: 31400 | AD124: 32060 | AE124: 32130 | AF124: 32170 | AG124: 32180 | AH124: 32190 | AI124: 32200 | AJ124: 32220
A125: =$A$25 -> 10 | B125: 31100 | C125: 30190 | D125: 30480 | E125: 30320 | F125: 31360 | G125: 30720 | H125: 29220 | I125: 29330 | J125: 29960 | K125: 29980 | L125: 30710 | M125: 32680 | N125: 33930 | O125: 34530 | P125: 35100 | Q125: 34700 | R125: 34360 | S125: 34700 | T125: 34830 | U125: 34830 | V125: 34560 | W125: 34270 | X125: 34000 | Y125: 34310 | Z125: 33530 | AA125: 34170 | AB125: 33480 | AC125: 31910 | AD125: 31750 | AE125: 32410 | AF125: 32480 | AG125: 32520 | AH125: 32540 | AI125: 32550 | AJ125: 32560
A126: =$A$26 -> 11 | B126: 31570 | C126: 31310 | D126: 30420 | E126: 30690 | F126: 30620 | G126: 31500 | H126: 30790 | I126: 29240 | J126: 29600 | K126: 30160 | L126: 30300 | M126: 31150 | N126: 33010 | O126: 34340 | P126: 34870 | Q126: 35210 | R126: 34760 | S126: 35040 | T126: 35460 | U126: 35070 | V126: 35110 | W126: 34860 | X126: 34590 | Y126: 34330 | Z126: 34650 | AA126: 33870 | AB126: 34520 | AC126: 33830 | AD126: 32260 | AE126: 32100 | AF126: 32770 | AG126: 32840 | AH126: 32880 | AI126: 32900 | AJ126: 32910
A127: =$A$27 -> 12 | B127: 31640 | C127: 31640 | D127: 31450 | E127: 30620 | F127: 30980 | G127: 30730 | H127: 31640 | I127: 30870 | J127: 29490 | K127: 29980 | L127: 30450 | M127: 30710 | N127: 31540 | O127: 33560 | P127: 34840 | Q127: 35020 | R127: 35240 | S127: 35440 | T127: 35780 | U127: 35700 | V127: 35350 | W127: 35420 | X127: 35180 | Y127: 34920 | Z127: 34670 | AA127: 35000 | AB127: 34210 | AC127: 34860 | AD127: 34180 | AE127: 32610 | AF127: 32460 | AG127: 33120 | AH127: 33190 | AI127: 33240 | AJ127: 33260
A128: =$A$28 -> 13 | B128: 32400 | C128: 31620 | D128: 31620 | E128: 31610 | F128: 30840 | G128: 31190 | H128: 30830 | I128: 31780 | J128: 31050 | K128: 29880 | L128: 30500 | M128: 30750 | N128: 31040 | O128: 32050 | P128: 34110 | Q128: 35090 | R128: 35090 | S128: 35950 | T128: 36220 | U128: 36050 | V128: 36010 | W128: 35680 | X128: 35760 | Y128: 35540 | Z128: 35280 | AA128: 35040 | AB128: 35360 | AC128: 34580 | AD128: 35230 | AE128: 34550 | AF128: 32990 | AG128: 32830 | AH128: 33500 | AI128: 33570 | AJ128: 33620
A129: =$A$29 -> 14 | B129: 32800 | C129: 32260 | D129: 31550 | E129: 31640 | F129: 31810 | G129: 31060 | H129: 31400 | I129: 30980 | J129: 31850 | K129: 31360 | L129: 30430 | M129: 31080 | N129: 31160 | O129: 31570 | P129: 32560 | Q129: 34280 | R129: 35220 | S129: 35800 | T129: 36680 | U129: 36540 | V129: 36400 | W129: 36380 | X129: 36060 | Y129: 36150 | Z129: 35940 | AA129: 35680 | AB129: 35440 | AC129: 35770 | AD129: 34990 | AE129: 35640 | AF129: 34960 | AG129: 33400 | AH129: 33250 | AI129: 33920 | AJ129: 33990
A130: =$A$30 -> 15 | B130: 33590 | C130: 32590 | D130: 32100 | E130: 31480 | F130: 31790 | G130: 31950 | H130: 31310 | I130: 31620 | J130: 31200 | K130: 32200 | L130: 31970 | M130: 31110 | N130: 31730 | O130: 31760 | P130: 32140 | Q130: 32720 | R130: 34490 | S130: 36160 | T130: 36610 | U130: 37050 | V130: 36940 | W130: 36820 | X130: 36810 | Y130: 36510 | Z130: 36600 | AA130: 36390 | AB130: 36140 | AC130: 35900 | AD130: 36230 | AE130: 35450 | AF130: 36110 | AG130: 35430 | AH130: 33870 | AI130: 33720 | AJ130: 34390
A131: =$A$31 -> 16 | B131: 32610 | C131: 33310 | D131: 32300 | E131: 32050 | F131: 31680 | G131: 31980 | H131: 32180 | I131: 31650 | J131: 31920 | K131: 31620 | L131: 32770 | M131: 32690 | N131: 31800 | O131: 32190 | P131: 32350 | Q131: 32320 | R131: 32920 | S131: 35350 | T131: 37080 | U131: 37080 | V131: 37560 | W131: 37460 | X131: 37360 | Y131: 37370 | Z131: 37070 | AA131: 37170 | AB131: 36960 | AC131: 36710 | AD131: 36480 | AE131: 36810 | AF131: 36030 | AG131: 36690 | AH131: 36010 | AI131: 34450 | AJ131: 34310
A132: =$A$32 -> 17 | B132: 31820 | C132: 32260 | D132: 33160 | E132: 32180 | F132: 32210 | G132: 31800 | H132: 32120 | I132: 32430 | J132: 31970 | K132: 32340 | L132: 32150 | M132: 33240 | N132: 33240 | O132: 32050 | P132: 32410 | Q132: 32410 | R132: 32480 | S132: 33660 | T132: 36040 | U132: 37630 | V132: 37680 | W132: 38190 | X132: 38120 | Y132: 38030 | Z132: 38050 | AA132: 37760 | AB132: 37860 | AC132: 37660 | AD132: 37410 | AE132: 37180 | AF132: 37510 | AG132: 36740 | AH132: 37400 | AI132: 36730 | AJ132: 35170
A133: =$A$33 -> 18 | B133: 31140 | C133: 31370 | D133: 31770 | E133: 32780 | F133: 32130 | G133: 32140 | H133: 31760 | I133: 32160 | J133: 32870 | K133: 32580 | L133: 32900 | M133: 32440 | N133: 33440 | O133: 33280 | P133: 32230 | Q133: 32100 | R133: 32260 | S133: 32990 | T133: 34000 | U133: 36600 | V133: 38250 | W133: 38330 | X133: 38870 | Y133: 38820 | Z133: 38750 | AA133: 38770 | AB133: 38480 | AC133: 38590 | AD133: 38390 | AE133: 38140 | AF133: 37910 | AG133: 38250 | AH133: 37480 | AI133: 38150 | AJ133: 37480
A134: =$A$34 -> 19 | B134: 30250 | C134: 30770 | D134: 31170 | E134: 31800 | F134: 33050 | G134: 32460 | H134: 32470 | I134: 32290 | J134: 33320 | K134: 34130 | L134: 33640 | M134: 33610 | N134: 32890 | O134: 33760 | P134: 33740 | Q134: 31810 | R134: 31740 | S134: 33010 | T134: 33790 | U134: 34500 | V134: 37170 | W134: 38850 | X134: 38960 | Y134: 39520 | Z134: 39480 | AA134: 39420 | AB134: 39450 | AC134: 39160 | AD134: 39270 | AE134: 39080 | AF134: 38840 | AG134: 38610 | AH134: 38950 | AI134: 38190 | AJ134: 38860
A135: =$A$35 -> 20 | B135: 29830 | C135: 29900 | D135: 30470 | E135: 31180 | F135: 32100 | G135: 33380 | H135: 32580 | I135: 32810 | J135: 33360 | K135: 34710 | L135: 35250 | M135: 34280 | N135: 34130 | O135: 33130 | P135: 34400 | Q135: 33190 | R135: 31430 | S135: 32620 | T135: 34030 | U135: 34210 | V135: 35000 | W135: 37700 | X135: 39420 | Y135: 39550 | Z135: 40120 | AA135: 40100 | AB135: 40040 | AC135: 40070 | AD135: 39790 | AE135: 39900 | AF135: 39710 | AG135: 39470 | AH135: 39250 | AI135: 39600 | AJ135: 38840
A136: =$A$36 -> 21 | B136: 29560 | C136: 29170 | D136: 29450 | E136: 30280 | F136: 31170 | G136: 32090 | H136: 33060 | I136: 32490 | J136: 33640 | K136: 34560 | L136: 35630 | M136: 35580 | N136: 34500 | O136: 34400 | P136: 33810 | Q136: 33920 | R136: 32710 | S136: 32360 | T136: 33420 | U136: 34220 | V136: 34470 | W136: 35290 | X136: 38030 | Y136: 39760 | Z136: 39910 | AA136: 40490 | AB136: 40470 | AC136: 40410 | AD136: 40450 | AE136: 40170 | AF136: 40290 | AG136: 40100 | AH136: 39870 | AI136: 39660 | AJ136: 40000
A137: =$A$37 -> 22 | B137: 29400 | C137: 28750 | D137: 28560 | E137: 29170 | F137: 30130 | G137: 30860 | H137: 31510 | I137: 32760 | J137: 33500 | K137: 35130 | L137: 35470 | M137: 35840 | N137: 35600 | O137: 34550 | P137: 34890 | Q137: 33310 | R137: 33450 | S137: 33470 | T137: 33000 | U137: 33510 | V137: 34380 | W137: 34670 | X137: 35520 | Y137: 38280 | Z137: 40030 | AA137: 40190 | AB137: 40770 | AC137: 40750 | AD137: 40700 | AE137: 40740 | AF137: 40470 | AG137: 40590 | AH137: 40410 | AI137: 40180 | AJ137: 39970
A138: =$A$38 -> 23 | B138: 29090 | C138: 28510 | D138: 28050 | E138: 28280 | F138: 28950 | G138: 29690 | H138: 30250 | I138: 31220 | J138: 33600 | K138: 35270 | L138: 36570 | M138: 36110 | N138: 36120 | O138: 35810 | P138: 35380 | Q138: 34290 | R138: 32750 | S138: 34240 | T138: 34000 | U138: 33050 | V138: 33640 | W138: 34560 | X138: 34880 | Y138: 35750 | Z138: 38530 | AA138: 40280 | AB138: 40450 | AC138: 41030 | AD138: 41020 | AE138: 40970 | AF138: 41010 | AG138: 40750 | AH138: 40880 | AI138: 40690 | AJ138: 40470
A139: =$A$39 -> 24 | B139: 27970 | C139: 28320 | D139: 27860 | E139: 27710 | F139: 28100 | G139: 28460 | H139: 28950 | I139: 29910 | J139: 32200 | K139: 35200 | L139: 36820 | M139: 37470 | N139: 36450 | O139: 36340 | P139: 36870 | Q139: 34730 | R139: 33700 | S139: 33590 | T139: 34620 | U139: 34050 | V139: 33180 | W139: 33810 | X139: 34750 | Y139: 35100 | Z139: 35990 | AA139: 38770 | AB139: 40530 | AC139: 40700 | AD139: 41290 | AE139: 41280 | AF139: 41230 | AG139: 41280 | AH139: 41020 | AI139: 41150 | AJ139: 40980
A140: =$A$40 -> 25 | B140: 26850 | C140: 27330 | D140: 27690 | E140: 27550 | F140: 27400 | G140: 27490 | H140: 27780 | I140: 28550 | J140: 30780 | K140: 33840 | L140: 36740 | M140: 37940 | N140: 37990 | O140: 36610 | P140: 37410 | Q140: 36230 | R140: 34050 | S140: 34530 | T140: 33850 | U140: 34660 | V140: 34170 | W140: 33330 | X140: 33990 | Y140: 34960 | Z140: 35320 | AA140: 36220 | AB140: 39000 | AC140: 40760 | AD140: 40930 | AE140: 41530 | AF140: 41520 | AG140: 41480 | AH140: 41540 | AI140: 41280 | AJ140: 41410
A141: =$A$41 -> 26 | B141: 25810 | C141: 26520 | D141: 26680 | E141: 27300 | F141: 27360 | G141: 26870 | H141: 26900 | I141: 27500 | J141: 29490 | K141: 32170 | L141: 35490 | M141: 37790 | N141: 38730 | O141: 38220 | P141: 37780 | Q141: 36690 | R141: 35310 | S141: 35000 | T141: 34780 | U141: 33920 | V141: 34790 | W141: 34330 | X141: 33530 | Y141: 34210 | Z141: 35190 | AA141: 35560 | AB141: 36460 | AC141: 39240 | AD141: 41010 | AE141: 41190 | AF141: 41780 | AG141: 41780 | AH141: 41750 | AI141: 41800 | AJ141: 41550
A142: =$A$42 -> 27 | B142: 24950 | C142: 25500 | D142: 26180 | E142: 26500 | F142: 27160 | G142: 26830 | H142: 26330 | I142: 26710 | J142: 28440 | K142: 31000 | L142: 33600 | M142: 36760 | N142: 38680 | O142: 39030 | P142: 39300 | Q142: 37130 | R142: 35860 | S142: 36560 | T142: 35260 | U142: 34910 | V142: 34110 | W142: 35020 | X142: 34590 | Y142: 33800 | Z142: 34500 | AA142: 35480 | AB142: 35850 | AC142: 36760 | AD142: 39550 | AE142: 41310 | AF142: 41490 | AG142: 42090 | AH142: 42100 | AI142: 42060 | AJ142: 42120
A143: =$A$43 -> 28 | B143: 24310 | C143: 25050 | D143: 25420 | E143: 26210 | F143: 26400 | G143: 26740 | H143: 26420 | I143: 26240 | J143: 27720 | K143: 29900 | L143: 32600 | M143: 34940 | N143: 37910 | O143: 39120 | P143: 40080 | Q143: 38540 | R143: 36380 | S143: 37510 | T143: 37090 | U143: 35470 | V143: 35180 | W143: 34420 | X143: 35350 | Y143: 34940 | Z143: 34170 | AA143: 34870 | AB143: 35860 | AC143: 36240 | AD143: 37150 | AE143: 39930 | AF143: 41700 | AG143: 41890 | AH143: 42490 | AI143: 42500 | AJ143: 42470
A144: =$A$44 -> 29 | B144: 24860 | C144: 24580 | D144: 25170 | E144: 25650 | F144: 26170 | G144: 26150 | H144: 26520 | I144: 26330 | J144: 27110 | K144: 29070 | L144: 31620 | M144: 34150 | N144: 36030 | O144: 38510 | P144: 40340 | Q144: 39410 | R144: 37670 | S144: 38060 | T144: 38040 | U144: 37380 | V144: 35820 | W144: 35560 | X144: 34820 | Y144: 35780 | Z144: 35380 | AA144: 34610 | AB144: 35320 | AC144: 36310 | AD144: 36690 | AE144: 37600 | AF144: 40390 | AG144: 42160 | AH144: 42350 | AI144: 42960 | AJ144: 42970
A145: =$A$45 -> 30 | B145: 25180 | C145: 25160 | D145: 24780 | E145: 25430 | F145: 25770 | G145: 26150 | H145: 26000 | I145: 26530 | J145: 27330 | K145: 28470 | L145: 30500 | M145: 33140 | N145: 35420 | O145: 36740 | P145: 39650 | Q145: 39820 | R145: 38760 | S145: 39660 | T145: 38920 | U145: 38380 | V145: 37780 | W145: 36250 | X145: 36020 | Y145: 35300 | Z145: 36270 | AA145: 35870 | AB145: 35110 | AC145: 35820 | AD145: 36810 | AE145: 37200 | AF145: 38110 | AG145: 40900 | AH145: 42680 | AI145: 42870 | AJ145: 43480
A146: =$A$46 -> 31 | B146: 26120 | C146: 25420 | D146: 25480 | E146: 25060 | F146: 25520 | G146: 25770 | H146: 26110 | I146: 26060 | J146: 27460 | K146: 28560 | L146: 29760 | M146: 31930 | N146: 34380 | O146: 36180 | P146: 38030 | Q146: 39100 | R146: 39310 | S146: 40880 | T146: 40550 | U146: 39270 | V146: 38780 | W146: 38210 | X146: 36700 | Y146: 36490 | Z146: 35780 | AA146: 36750 | AB146: 36360 | AC146: 35600 | AD146: 36310 | AE146: 37310 | AF146: 37690 | AG146: 38610 | AH146: 41410 | AI146: 43180 | AJ146: 43370
A147: =$A$47 -> 32 | B147: 27080 | C147: 26350 | D147: 25550 | E147: 25630 | F147: 25140 | G147: 25470 | H147: 25610 | I147: 26030 | J147: 26910 | K147: 28440 | L147: 29910 | M147: 31030 | N147: 33060 | O147: 35140 | P147: 37340 | Q147: 37690 | R147: 38630 | S147: 41530 | T147: 41920 | U147: 40890 | V147: 39660 | W147: 39200 | X147: 38640 | Y147: 37150 | Z147: 36950 | AA147: 36250 | AB147: 37220 | AC147: 36840 | AD147: 36080 | AE147: 36790 | AF147: 37790 | AG147: 38180 | AH147: 39100 | AI147: 41900 | AJ147: 43670
A148: =$A$48 -> 33 | B148: 28270 | C148: 27360 | D148: 26460 | E148: 25700 | F148: 25670 | G148: 25030 | H148: 25340 | I148: 25570 | J148: 26780 | K148: 27870 | L148: 29590 | M148: 31100 | N148: 32140 | O148: 33860 | P148: 36230 | Q148: 37180 | R148: 37370 | S148: 40990 | T148: 42440 | U148: 42270 | V148: 41290 | W148: 40090 | X148: 39640 | Y148: 39110 | Z148: 37630 | AA148: 37440 | AB148: 36730 | AC148: 37710 | AD148: 37330 | AE148: 36580 | AF148: 37290 | AG148: 38290 | AH148: 38680 | AI148: 39610 | AJ148: 42400
A149: =$A$49 -> 34 | B149: 29670 | C149: 28570 | D149: 27580 | E149: 26650 | F149: 25770 | G149: 25700 | H149: 24980 | I149: 25320 | J149: 26290 | K149: 27700 | L149: 28960 | M149: 30720 | N149: 32190 | O149: 32930 | P149: 34780 | Q149: 36150 | R149: 37020 | S149: 39800 | T149: 42130 | U149: 42790 | V149: 42660 | W149: 41710 | X149: 40530 | Y149: 40110 | Z149: 39590 | AA149: 38110 | AB149: 37920 | AC149: 37220 | AD149: 38200 | AE149: 37820 | AF149: 37070 | AG149: 37790 | AH149: 38800 | AI149: 39190 | AJ149: 40110
A150: =$A$50 -> 35 | B150: 30140 | C150: 29910 | D150: 28640 | E150: 27750 | F150: 26780 | G150: 25730 | H150: 25670 | I150: 24970 | J150: 25980 | K150: 27190 | L150: 28680 | M150: 30040 | N150: 31710 | O150: 32960 | P150: 34060 | Q150: 34860 | R150: 36130 | S150: 39320 | T150: 40830 | U150: 42480 | V150: 43190 | W150: 43100 | X150: 42170 | Y150: 41010 | Z150: 40600 | AA150: 40080 | AB150: 38610 | AC150: 38420 | AD150: 37730 | AE150: 38710 | AF150: 38330 | AG150: 37590 | AH150: 38310 | AI150: 39320 | AJ150: 39710
A151: =$A$51 -> 36 | B151: 29680 | C151: 30320 | D151: 30070 | E151: 28790 | F151: 27890 | G151: 26800 | H151: 25710 | I151: 25740 | J151: 25570 | K151: 26830 | L151: 28100 | M151: 29670 | N151: 31090 | O151: 32550 | P151: 33910 | Q151: 34040 | R151: 34850 | S151: 38490 | T151: 40500 | U151: 41180 | V151: 42880 | W151: 43630 | X151: 43550 | Y151: 42650 | Z151: 41500 | AA151: 41090 | AB151: 40570 | AC151: 39110 | AD151: 38930 | AE151: 38240 | AF151: 39220 | AG151: 38850 | AH151: 38110 | AI151: 38830 | AJ151: 39840
A152: =$A$52 -> 37 | B152: 30040 | C152: 29860 | D152: 30480 | E152: 30200 | F152: 28920 | G152: 27960 | H152: 26770 | I152: 25830 | J152: 26230 | K152: 26280 | L152: 27720 | M152: 29140 | N152: 30600 | O152: 31900 | P152: 33520 | Q152: 33930 | R152: 34010 | S152: 37020 | T152: 39680 | U152: 40830 | V152: 41560 | W152: 43290 | X152: 44060 | Y152: 44000 | Z152: 43110 | AA152: 41960 | AB152: 41560 | AC152: 41050 | AD152: 39590 | AE152: 39410 | AF152: 38720 | AG152: 39710 | AH152: 39340 | AI152: 38600 | AJ152: 39330
A153: =$A$53 -> 38 | B153: 29710 | C153: 30220 | D153: 29910 | E153: 30610 | F153: 30300 | G153: 28910 | H153: 27940 | I153: 26840 | J153: 26360 | K153: 26880 | L153: 27080 | M153: 28640 | N153: 30040 | O153: 31220 | P153: 32640 | Q153: 33520 | R153: 33910 | S153: 36150 | T153: 37960 | U153: 39990 | V153: 41200 | W153: 41960 | X153: 43710 | Y153: 44490 | Z153: 44440 | AA153: 43550 | AB153: 42410 | AC153: 42020 | AD153: 41510 | AE153: 40050 | AF153: 39880 | AG153: 39190 | AH153: 40180 | AI153: 39810 | AJ153: 39080
A154: =$A$54 -> 39 | B154: 29570 | C154: 29890 | D154: 30260 | E154: 30030 | F154: 30640 | G154: 30250 | H154: 28910 | I154: 28120 | J154: 27310 | K154: 27010 | L154: 27580 | M154: 27870 | N154: 29500 | O154: 30730 | P154: 32010 | Q154: 32580 | R154: 33360 | S154: 35930 | T154: 37120 | U154: 38240 | V154: 40330 | W154: 41560 | X154: 42340 | Y154: 44100 | Z154: 44890 | AA154: 44850 | AB154: 43970 | AC154: 42830 | AD154: 42440 | AE154: 41930 | AF154: 40490 | AG154: 40310 | AH154: 39630 | AI154: 40620 | AJ154: 40260
A155: =$A$55 -> 40 | B155: 29920 | C155: 29750 | D155: 29950 | E155: 30360 | F155: 30050 | G155: 30610 | H155: 30210 | I155: 29000 | J155: 28540 | K155: 27880 | L155: 27730 | M155: 28340 | N155: 28670 | O155: 30090 | P155: 31440 | Q155: 32070 | R155: 32430 | S155: 35210 | T155: 36830 | U155: 37360 | V155: 38530 | W155: 40640 | X155: 41890 | Y155: 42680 | Z155: 44450 | AA155: 45250 | AB155: 45210 | AC155: 44330 | AD155: 43200 | AE155: 42810 | AF155: 42310 | AG155: 40860 | AH155: 40690 | AI155: 40010 | AJ155: 41010
A156: =$A$56 -> 41 | B156: 30380 | C156: 30040 | D156: 29780 | E156: 30010 | F156: 30420 | G156: 30010 | H156: 30580 | I156: 30270 | J156: 29570 | K156: 29050 | L156: 28500 | M156: 28400 | N156: 29020 | O156: 29160 | P156: 30680 | Q156: 31450 | R156: 31950 | S156: 34140 | T156: 36090 | U156: 37050 | V156: 37620 | W156: 38810 | X156: 40940 | Y156: 42200 | Z156: 43000 | AA156: 44780 | AB156: 45570 | AC156: 45540 | AD156: 44670 | AE156: 43540 | AF156: 43150 | AG156: 42650 | AH156: 41210 | AI156: 41040 | AJ156: 40370
A157: =$A$57 -> 42 | B157: 31600 | C157: 30480 | D157: 30040 | E157: 29810 | F157: 30060 | G157: 30400 | H157: 29940 | I157: 30650 | J157: 30730 | K157: 30140 | L157: 29640 | M157: 29160 | N157: 29050 | O157: 29590 | P157: 29730 | Q157: 30660 | R157: 31300 | S157: 33460 | T157: 34890 | U157: 36270 | V157: 37260 | W157: 37860 | X157: 39070 | Y157: 41200 | Z157: 42470 | AA157: 43280 | AB157: 45050 | AC157: 45850 | AD157: 45820 | AE157: 44950 | AF157: 43830 | AG157: 43440 | AH157: 42950 | AI157: 41510 | AJ157: 41350
A158: =$A$58 -> 43 | B158: 31940 | C158: 31630 | D158: 30470 | E158: 30040 | F158: 29760 | G158: 30010 | H158: 30300 | I158: 29990 | J158: 31110 | K158: 31310 | L158: 30820 | M158: 30240 | N158: 29770 | O158: 29500 | P158: 30100 | Q158: 29670 | R158: 30480 | S158: 32720 | T158: 34120 | U158: 35030 | V158: 36440 | W158: 37460 | X158: 38070 | Y158: 39290 | Z158: 41430 | AA158: 42700 | AB158: 43510 | AC158: 45290 | AD158: 46090 | AE158: 46060 | AF158: 45190 | AG158: 44070 | AH158: 43690 | AI158: 43200 | AJ158: 41770
A159: =$A$59 -> 44 | B159: 32110 | C159: 31970 | D159: 31540 | E159: 30420 | F159: 30060 | G159: 29670 | H159: 29920 | I159: 30260 | J159: 30470 | K159: 31570 | L159: 31930 | M159: 31430 | N159: 30790 | O159: 30130 | P159: 29960 | Q159: 30130 | R159: 29490 | S159: 31720 | T159: 33250 | U159: 34210 | V159: 35150 | W159: 36580 | X159: 37610 | Y159: 38230 | Z159: 39450 | AA159: 41600 | AB159: 42870 | AC159: 43680 | AD159: 45460 | AE159: 46260 | AF159: 46240 | AG159: 45370 | AH159: 44260 | AI159: 43880 | AJ159: 43390
A160: =$A$60 -> 45 | B160: 31490 | C160: 32140 | D160: 31920 | E160: 31530 | F160: 30400 | G160: 29970 | H160: 29530 | I160: 29930 | J160: 30650 | K160: 30940 | L160: 32060 | M160: 32500 | N160: 32030 | O160: 31110 | P160: 30480 | Q160: 29940 | R160: 29970 | S160: 30510 | T160: 32190 | U160: 33300 | V160: 34290 | W160: 35240 | X160: 36690 | Y160: 37720 | Z160: 38350 | AA160: 39580 | AB160: 41720 | AC160: 42990 | AD160: 43810 | AE160: 45580 | AF160: 46390 | AG160: 46370 | AH160: 45500 | AI160: 44390 | AJ160: 44020
A161: =$A$61 -> 46 | B161: 30540 | C161: 31420 | D161: 32070 | E161: 31870 | F161: 31460 | G161: 30290 | H161: 29820 | I161: 29520 | J161: 30230 | K161: 31090 | L161: 31460 | M161: 32560 | N161: 33000 | O161: 32250 | P161: 31470 | Q161: 30400 | R161: 29730 | S161: 30820 | T161: 30860 | U161: 32200 | V161: 33330 | W161: 34330 | X161: 35300 | Y161: 36750 | Z161: 37790 | AA161: 38420 | AB161: 39650 | AC161: 41790 | AD161: 43060 | AE161: 43880 | AF161: 45660 | AG161: 46460 | AH161: 46440 | AI161: 45580 | AJ161: 44480
A162: =$A$62 -> 47 | B162: 30080 | C162: 30470 | D162: 31270 | E162: 31960 | F162: 31720 | G162: 31300 | H162: 30150 | I162: 29680 | J162: 29780 | K162: 30590 | L162: 31490 | M162: 31920 | N162: 33000 | O162: 33200 | P162: 32490 | Q162: 31370 | R162: 30170 | S162: 30450 | T162: 31110 | U162: 30830 | V162: 32200 | W162: 33340 | X162: 34350 | Y162: 35330 | Z162: 36780 | AA162: 37820 | AB162: 38450 | AC162: 39680 | AD162: 41820 | AE162: 43100 | AF162: 43910 | AG162: 45690 | AH162: 46500 | AI162: 46480 | AJ162: 45630
A163: =$A$63 -> 48 | B163: 28610 | C163: 30010 | D163: 30340 | E163: 31240 | F163: 31890 | G163: 31530 | H163: 31110 | I163: 30000 | J163: 29900 | K163: 30080 | L163: 31030 | M163: 31900 | N163: 32290 | O163: 33190 | P163: 33360 | Q163: 32400 | R163: 31200 | S163: 30640 | T163: 30670 | U163: 31040 | V163: 30790 | W163: 32170 | X163: 33320 | Y163: 34340 | Z163: 35320 | AA163: 36770 | AB163: 37820 | AC163: 38450 | AD163: 39680 | AE163: 41810 | AF163: 43090 | AG163: 43910 | AH163: 45680 | AI163: 46490 | AJ163: 46480
A164: =$A$64 -> 49 | B164: 28400 | C164: 28490 | D164: 29860 | E164: 30220 | F164: 31130 | G164: 31760 | H164: 31330 | I164: 30960 | J164: 30200 | K164: 30140 | L164: 30360 | M164: 31360 | N164: 32290 | O164: 32420 | P164: 33360 | Q164: 33200 | R164: 32130 | S164: 31570 | T164: 30730 | U164: 30570 | V164: 30970 | W164: 30730 | X164: 32110 | Y164: 33270 | Z164: 34300 | AA164: 35270 | AB164: 36730 | AC164: 37770 | AD164: 38400 | AE164: 39630 | AF164: 41770 | AG164: 43050 | AH164: 43860 | AI164: 45640 | AJ164: 46450
A165: =$A$65 -> 50 | B165: 27750 | C165: 28300 | D165: 28330 | E165: 29730 | F165: 30080 | G165: 30940 | H165: 31520 | I165: 31200 | J165: 31150 | K165: 30470 | L165: 30440 | M165: 30640 | N165: 31660 | O165: 32300 | P165: 32540 | Q165: 33310 | R165: 32920 | S165: 32370 | T165: 31620 | U165: 30610 | V165: 30470 | W165: 30880 | X165: 30650 | Y165: 32040 | Z165: 33200 | AA165: 34230 | AB165: 35200 | AC165: 36660 | AD165: 37700 | AE165: 38340 | AF165: 39570 | AG165: 41700 | AH165: 42980 | AI165: 43800 | AJ165: 45570
A166: =$A$66 -> 51 | B166: 26550 | C166: 27630 | D166: 28160 | E166: 28190 | F166: 29630 | G166: 29880 | H166: 30740 | I166: 31370 | J166: 31370 | K166: 31310 | L166: 30700 | M166: 30660 | N166: 30900 | O166: 31600 | P166: 32400 | Q166: 32350 | R166: 33040 | S166: 33030 | T166: 32270 | U166: 31480 | V166: 30490 | W166: 30360 | X166: 30780 | Y166: 30560 | Z166: 31950 | AA166: 33110 | AB166: 34140 | AC166: 35110 | AD166: 36570 | AE166: 37610 | AF166: 38250 | AG166: 39480 | AH166: 41610 | AI166: 42880 | AJ166: 43700
A167: =$A$67 -> 52 | B167: 25810 | C167: 26450 | D167: 27420 | E167: 27980 | F167: 28050 | G167: 29430 | H167: 29630 | I167: 30570 | J167: 31440 | K167: 31620 | L167: 31560 | M167: 30960 | N167: 30800 | O167: 30820 | P167: 31600 | Q167: 32220 | R167: 32060 | S167: 33110 | T167: 32980 | U167: 32110 | V167: 31350 | W167: 30370 | X167: 30250 | Y167: 30680 | Z167: 30460 | AA167: 31850 | AB167: 33010 | AC167: 34030 | AD167: 35010 | AE167: 36470 | AF167: 37510 | AG167: 38140 | AH167: 39370 | AI167: 41500 | AJ167: 42780
A168: =$A$68 -> 53 | B168: 25070 | C168: 25680 | D168: 26270 | E168: 27290 | F168: 27870 | G168: 27840 | H168: 29190 | I168: 29500 | J168: 30590 | K168: 31550 | L168: 31810 | M168: 31740 | N168: 31150 | O168: 30770 | P168: 30920 | Q168: 31440 | R168: 31950 | S168: 32010 | T168: 33070 | U168: 32820 | V168: 31970 | W168: 31220 | X168: 30260 | Y168: 30140 | Z168: 30570 | AA168: 30360 | AB168: 31740 | AC168: 32910 | AD168: 33930 | AE168: 34910 | AF168: 36360 | AG168: 37400 | AH168: 38040 | AI168: 39270 | AJ168: 41400
A169: =$A$69 -> 54 | B169: 24750 | C169: 24910 | D169: 25610 | E169: 26170 | F169: 27170 | G169: 27700 | H169: 27670 | I169: 29030 | J169: 29500 | K169: 30660 | L169: 31700 | M169: 31980 | N169: 31840 | O169: 31080 | P169: 30850 | Q169: 30730 | R169: 31150 | S169: 31830 | T169: 31770 | U169: 32910 | V169: 32680 | W169: 31850 | X169: 31110 | Y169: 30150 | Z169: 30040 | AA169: 30470 | AB169: 30260 | AC169: 31650 | AD169: 32810 | AE169: 33830 | AF169: 34810 | AG169: 36260 | AH169: 37310 | AI169: 37940 | AJ169: 39170
A170: =$A$70 -> 55 | B170: 24160 | C170: 24590 | D170: 24710 | E170: 25530 | F170: 26030 | G170: 26960 | H170: 27520 | I170: 27530 | J170: 29070 | K170: 29640 | L170: 30710 | M170: 31770 | N170: 32110 | O170: 31730 | P170: 31160 | Q170: 30680 | R170: 30450 | S170: 31030 | T170: 31630 | U170: 31630 | V170: 32780 | W170: 32560 | X170: 31740 | Y170: 31000 | Z170: 30060 | AA170: 29950 | AB170: 30390 | AC170: 30180 | AD170: 31560 | AE170: 32730 | AF170: 33750 | AG170: 34730 | AH170: 36180 | AI170: 37220 | AJ170: 37860
A171: =$A$71 -> 56 | B171: 24180 | C171: 24100 | D171: 24450 | E171: 24570 | F171: 25410 | G171: 25870 | H171: 26760 | I171: 27380 | J171: 27590 | K171: 29150 | L171: 29730 | M171: 30730 | N171: 31810 | O171: 31970 | P171: 31770 | Q171: 30940 | R171: 30350 | S171: 30240 | T171: 30790 | U171: 31490 | V171: 31500 | W171: 32660 | X171: 32450 | Y171: 31640 | Z171: 30910 | AA171: 29970 | AB171: 29870 | AC171: 30310 | AD171: 30100 | AE171: 31480 | AF171: 32650 | AG171: 33670 | AH171: 34650 | AI171: 36090 | AJ171: 37130
A172: =$A$72 -> 57 | B172: 23830 | C172: 24030 | D172: 23970 | E172: 24310 | F172: 24480 | G172: 25290 | H172: 25730 | I172: 26620 | J172: 27330 | K172: 27690 | L172: 29250 | M172: 29850 | N172: 30770 | O172: 31640 | P172: 32040 | Q172: 31570 | R172: 30630 | S172: 30150 | T172: 30020 | U172: 30660 | V172: 31370 | W172: 31390 | X172: 32550 | Y172: 32340 | Z172: 31540 | AA172: 30830 | AB172: 29890 | AC172: 29800 | AD172: 30230 | AE172: 30030 | AF172: 31410 | AG172: 32570 | AH172: 33590 | AI172: 34570 | AJ172: 36020
A173: =$A$73 -> 58 | B173: 23890 | C173: 23710 | D173: 23900 | E173: 23870 | F173: 24240 | G173: 24350 | H173: 25160 | I173: 25610 | J173: 26590 | K173: 27240 | L173: 27750 | M173: 29280 | N173: 29880 | O173: 30660 | P173: 31700 | Q173: 31840 | R173: 31250 | S173: 30370 | T173: 29900 | U173: 29890 | V173: 30540 | W173: 31260 | X173: 31290 | Y173: 32450 | Z173: 32250 | AA173: 31460 | AB173: 30750 | AC173: 29820 | AD173: 29730 | AE173: 30160 | AF173: 29970 | AG173: 31350 | AH173: 32510 | AI173: 33530 | AJ173: 34500
A174: =$A$74 -> 59 | B174: 24020 | C174: 23810 | D174: 23610 | E174: 23740 | F174: 23780 | G174: 24060 | H174: 24210 | I174: 25030 | J174: 25570 | K174: 26540 | L174: 27260 | M174: 27800 | N174: 29260 | O174: 29720 | P174: 30710 | Q174: 31470 | R174: 31510 | S174: 30970 | T174: 30130 | U174: 29780 | V174: 29780 | W174: 30440 | X174: 31160 | Y174: 31200 | Z174: 32360 | AA174: 32160 | AB174: 31380 | AC174: 30670 | AD174: 29760 | AE174: 29670 | AF174: 30110 | AG174: 29920 | AH174: 31290 | AI174: 32450 | AJ174: 33470
A175: =$A$75 -> 60 | B175: 20160 | C175: 23860 | D175: 23690 | E175: 23510 | F175: 23680 | G175: 23700 | H175: 23950 | I175: 24120 | J175: 24970 | K175: 25620 | L175: 26540 | M175: 27210 | N175: 27840 | O175: 29140 | P175: 29740 | Q175: 30510 | R175: 31170 | S175: 31200 | T175: 30730 | U175: 30000 | V175: 29660 | W175: 29680 | X175: 30340 | Y175: 31070 | Z175: 31110 | AA175: 32270 | AB175: 32080 | AC175: 31300 | AD175: 30600 | AE175: 29690 | AF175: 29610 | AG175: 30050 | AH175: 29860 | AI175: 31240 | AJ175: 32390
A176: =$A$76 -> 61 | B176: 19140 | C176: 20030 | D176: 23700 | E176: 23550 | F176: 23420 | G176: 23540 | H176: 23580 | I176: 23850 | J176: 24110 | K176: 24960 | L176: 25640 | M176: 26510 | N176: 27110 | O176: 27720 | P176: 29200 | Q176: 29490 | R176: 30290 | S176: 30880 | T176: 30950 | U176: 30590 | V176: 29880 | W176: 29560 | X176: 29580 | Y176: 30240 | Z176: 30970 | AA176: 31020 | AB176: 32180 | AC176: 31990 | AD176: 31230 | AE176: 30540 | AF176: 29640 | AG176: 29560 | AH176: 30000 | AI176: 29820 | AJ176: 31180
A177: =$A$77 -> 62 | B177: 18400 | C177: 19020 | D177: 19890 | E177: 23560 | F177: 23450 | G177: 23330 | H177: 23410 | I177: 23520 | J177: 23840 | K177: 24130 | L177: 24930 | M177: 25610 | N177: 26400 | O177: 27010 | P177: 27840 | Q177: 28820 | R177: 29080 | S177: 30090 | T177: 30610 | U177: 30800 | V177: 30460 | W177: 29770 | X177: 29450 | Y177: 29480 | Z177: 30150 | AA177: 30880 | AB177: 30930 | AC177: 32090 | AD177: 31910 | AE177: 31150 | AF177: 30470 | AG177: 29580 | AH177: 29500 | AI177: 29940 | AJ177: 29770
A178: =$A$78 -> 63 | B178: 16270 | C178: 18230 | D178: 18890 | E178: 19760 | F178: 23410 | G178: 23320 | H178: 23240 | I178: 23270 | J178: 23440 | K178: 23800 | L178: 24090 | M178: 24890 | N178: 25430 | O178: 26250 | P178: 27090 | Q178: 27570 | R178: 28500 | S178: 28780 | T178: 29840 | U178: 30450 | V178: 30660 | W178: 30330 | X178: 29650 | Y178: 29340 | Z178: 29380 | AA178: 30050 | AB178: 30780 | AC178: 30840 | AD178: 31990 | AE178: 31820 | AF178: 31070 | AG178: 30390 | AH178: 29510 | AI178: 29440 | AJ178: 29880
A179: =$A$79 -> 64 | B179: 17930 | C179: 16110 | D179: 18080 | E179: 18740 | F179: 19670 | G179: 23280 | H179: 23190 | I179: 23140 | J179: 23170 | K179: 23360 | L179: 23780 | M179: 24050 | N179: 24810 | O179: 25410 | P179: 26340 | Q179: 26810 | R179: 27210 | S179: 28200 | T179: 28500 | U179: 29660 | V179: 30280 | W179: 30500 | X179: 30180 | Y179: 29520 | Z179: 29220 | AA179: 29260 | AB179: 29930 | AC179: 30670 | AD179: 30720 | AE179: 31880 | AF179: 31710 | AG179: 30970 | AH179: 30310 | AI179: 29430 | AJ179: 29370
A180: =$A$80 -> 65 | B180: 17660 | C180: 17780 | D180: 15980 | E180: 17930 | F180: 18590 | G180: 19590 | H180: 23200 | I180: 23070 | J180: 23060 | K180: 23100 | L180: 23280 | M180: 23710 | N180: 24020 | O180: 24660 | P180: 25540 | Q180: 26000 | R180: 26450 | S180: 26960 | T180: 27950 | U180: 28310 | V180: 29480 | W180: 30110 | X180: 30330 | Y180: 30020 | Z180: 29370 | AA180: 29080 | AB180: 29130 | AC180: 29800 | AD180: 30530 | AE180: 30600 | AF180: 31750 | AG180: 31590 | AH180: 30860 | AI180: 30200 | AJ180: 29340
A181: =$A$81 -> 66 | B181: 16280 | C181: 17430 | D181: 17580 | E181: 15830 | F181: 17790 | G181: 18420 | H181: 19390 | I181: 23050 | J181: 22850 | K181: 22840 | L181: 22960 | M181: 23100 | N181: 23520 | O181: 23790 | P181: 24690 | Q181: 25160 | R181: 25550 | S181: 26120 | T181: 26680 | U181: 27740 | V181: 28110 | W181: 29280 | X181: 29910 | Y181: 30140 | Z181: 29850 | AA181: 29200 | AB181: 28930 | AC181: 28980 | AD181: 29650 | AE181: 30380 | AF181: 30450 | AG181: 31600 | AH181: 31450 | AI181: 30720 | AJ181: 30080
A182: =$A$82 -> 67 | B182: 14490 | C182: 16080 | D182: 17200 | E182: 17370 | F182: 15630 | G182: 17630 | H182: 18190 | I182: 19250 | J182: 22790 | K182: 22630 | L182: 22650 | M182: 22790 | N182: 22870 | O182: 23280 | P182: 23690 | Q182: 24320 | R182: 24630 | S182: 25230 | T182: 25770 | U182: 26450 | V182: 27520 | W182: 27890 | X182: 29060 | Y182: 29690 | Z182: 29930 | AA182: 29640 | AB182: 29010 | AC182: 28740 | AD182: 28800 | AE182: 29470 | AF182: 30200 | AG182: 30280 | AH182: 31420 | AI182: 31270 | AJ182: 30570
A183: =$A$83 -> 68 | B183: 13990 | C183: 14260 | D183: 15840 | E183: 16980 | F183: 17180 | G183: 15460 | H183: 17420 | I183: 18010 | J183: 19040 | K183: 22450 | L183: 22440 | M183: 22410 | N183: 22540 | O183: 22590 | P183: 23180 | Q183: 23260 | R183: 23900 | S183: 24330 | T183: 24920 | U183: 25520 | V183: 26200 | W183: 27260 | X183: 27640 | Y183: 28800 | Z183: 29440 | AA183: 29680 | AB183: 29410 | AC183: 28790 | AD183: 28530 | AE183: 28590 | AF183: 29260 | AG183: 29990 | AH183: 30070 | AI183: 31220 | AJ183: 31070
A184: =$A$84 -> 69 | B184: 13200 | C184: 13760 | D184: 14020 | E184: 15590 | F184: 16690 | G184: 16960 | H184: 15240 | I184: 17190 | J184: 17730 | K184: 18770 | L184: 22160 | M184: 22100 | N184: 22140 | O184: 22240 | P184: 22510 | Q184: 22710 | R184: 22730 | S184: 23480 | T184: 23950 | U184: 24640 | V184: 25240 | W184: 25930 | X184: 26980 | Y184: 27370 | Z184: 28520 | AA184: 29160 | AB184: 29410 | AC184: 29140 | AD184: 28540 | AE184: 28290 | AF184: 28360 | AG184: 29030 | AH184: 29760 | AI184: 29840 | AJ184: 30980
A185: =$A$85 -> 70 | B185: 12400 | C185: 12920 | D185: 13480 | E185: 13750 | F185: 15340 | G185: 16390 | H185: 16680 | I185: 14990 | J185: 16930 | K185: 17460 | L185: 18500 | M185: 21800 | N185: 21730 | O185: 21730 | P185: 22090 | Q185: 22020 | R185: 22210 | S185: 22350 | T185: 23130 | U185: 23640 | V185: 24330 | W185: 24940 | X185: 25630 | Y185: 26680 | Z185: 27060 | AA185: 28210 | AB185: 28850 | AC185: 29100 | AD185: 28850 | AE185: 28260 | AF185: 28010 | AG185: 28090 | AH185: 28760 | AI185: 29490 | AJ185: 29580
A186: =$A$86 -> 71 | B186: 11940 | C186: 12080 | D186: 12600 | E186: 13170 | F186: 13490 | G186: 15030 | H186: 16060 | I186: 16410 | J186: 14720 | K186: 16580 | L186: 17190 | M186: 18220 | N186: 21400 | O186: 21370 | P186: 21450 | Q186: 21630 | R186: 21490 | S186: 21700 | T186: 21970 | U186: 22780 | V186: 23300 | W186: 23990 | X186: 24600 | Y186: 25290 | Z186: 26330 | AA186: 26720 | AB186: 27860 | AC186: 28500 | AD186: 28760 | AE186: 28510 | AF186: 27940 | AG186: 27700 | AH186: 27790 | AI186: 28460 | AJ186: 29190
A187: =$A$87 -> 72 | B187: 11370 | C187: 11660 | D187: 11800 | E187: 12290 | F187: 12880 | G187: 13170 | H187: 14710 | I187: 15750 | J187: 16070 | K187: 14420 | L187: 16260 | M187: 16840 | N187: 17870 | O187: 20970 | P187: 21130 | Q187: 20890 | R187: 21040 | S187: 21050 | T187: 21260 | U187: 21610 | V187: 22420 | W187: 22940 | X187: 23630 | Y187: 24230 | Z187: 24920 | AA187: 25950 | AB187: 26350 | AC187: 27480 | AD187: 28120 | AE187: 28380 | AF187: 28150 | AG187: 27590 | AH187: 27370 | AI187: 27460 | AJ187: 28120
A188: =$A$88 -> 73 | B188: 10890 | C188: 11030 | D188: 11360 | E188: 11460 | F188: 11980 | G188: 12540 | H188: 12830 | I188: 14360 | J188: 15350 | K188: 15670 | L188: 14100 | M188: 15900 | N188: 16460 | O188: 17420 | P188: 20680 | Q188: 20600 | R188: 20280 | S188: 20570 | T188: 20560 | U188: 20860 | V188: 21220 | W188: 22020 | X188: 22540 | Y188: 23230 | Z188: 23830 | AA188: 24510 | AB188: 25540 | AC188: 25940 | AD188: 27070 | AE188: 27700 | AF188: 27970 | AG188: 27750 | AH188: 27200 | AI188: 26990 | AJ188: 27090
A189: =$A$89 -> 74 | B189: 10790 | C189: 10530 | D189: 10700 | E189: 11010 | F189: 11130 | G189: 11670 | H189: 12190 | I189: 12520 | J189: 13970 | K189: 14970 | L189: 15210 | M189: 13760 | N189: 15520 | O189: 16040 | P189: 17100 | Q189: 20130 | R189: 19980 | S189: 19710 | T189: 20100 | U189: 20120 | V189: 20430 | W189: 20790 | X189: 21590 | Y189: 22110 | Z189: 22790 | AA189: 23390 | AB189: 24070 | AC189: 25090 | AD189: 25490 | AE189: 26610 | AF189: 27250 | AG189: 27520 | AH189: 27310 | AI189: 26780 | AJ189: 26590
A190: =$A$90 -> 75 | B190: 10770 | C190: 10450 | D190: 10190 | E190: 10350 | F190: 10640 | G190: 10790 | H190: 11310 | I190: 11820 | J190: 12190 | K190: 13560 | L190: 14520 | M190: 14800 | N190: 13350 | O190: 15090 | P190: 15680 | Q190: 16570 | R190: 19500 | S190: 19350 | T190: 19160 | U190: 19620 | V190: 19660 | W190: 19970 | X190: 20330 | Y190: 21120 | Z190: 21640 | AA190: 22320 | AB190: 22920 | AC190: 23590 | AD190: 24610 | AE190: 25010 | AF190: 26110 | AG190: 26750 | AH190: 27030 | AI190: 26830 | AJ190: 26320
A191: =$A$91 -> 76 | B191: 10040 | C191: 10380 | D191: 10070 | E191: 9830 | F191: 9980 | G191: 10290 | H191: 10410 | I191: 10910 | J191: 11440 | K191: 11770 | L191: 13120 | M191: 14050 | N191: 14300 | O191: 12880 | P191: 14700 | Q191: 15190 | R191: 15920 | S191: 18860 | T191: 18790 | U191: 18650 | V191: 19110 | W191: 19160 | X191: 19470 | Y191: 19830 | Z191: 20620 | AA191: 21130 | AB191: 21810 | AC191: 22400 | AD191: 23080 | AE191: 24070 | AF191: 24480 | AG191: 25570 | AH191: 26200 | AI191: 26490 | AJ191: 26310
A192: =$A$92 -> 77 | B192: 9480 | C192: 9590 | D192: 9950 | E192: 9670 | F192: 9460 | G192: 9610 | H192: 9880 | I192: 10020 | J192: 10540 | K192: 11040 | L192: 11370 | M192: 12630 | N192: 13550 | O192: 13830 | P192: 12480 | Q192: 14180 | R192: 14580 | S192: 15290 | T192: 18280 | U192: 18230 | V192: 18100 | W192: 18560 | X192: 18610 | Y192: 18930 | Z192: 19300 | AA192: 20070 | AB192: 20580 | AC192: 21250 | AD192: 21840 | AE192: 22510 | AF192: 23490 | AG192: 23900 | AH192: 24980 | AI192: 25610 | AJ192: 25900
A193: =$A$93 -> 78 | B193: 9060 | C193: 9040 | D193: 9120 | E193: 9480 | F193: 9290 | G193: 8990 | H193: 9200 | I193: 9480 | J193: 9600 | K193: 10100 | L193: 10560 | M193: 10970 | N193: 12090 | O193: 13030 | P193: 13360 | Q193: 11920 | R193: 13570 | S193: 13960 | T193: 14750 | U193: 17650 | V193: 17620 | W193: 17510 | X193: 17960 | Y193: 18030 | Z193: 18350 | AA193: 18710 | AB193: 19470 | AC193: 19990 | AD193: 20640 | AE193: 21230 | AF193: 21890 | AG193: 22860 | AH193: 23270 | AI193: 24330 | AJ193: 24960
A194: =$A$94 -> 79 | B194: 8220 | C194: 8550 | D194: 8580 | E194: 8610 | F194: 9030 | G194: 8850 | H194: 8550 | I194: 8780 | J194: 9020 | K194: 9180 | L194: 9650 | M194: 10060 | N194: 10510 | O194: 11550 | P194: 12530 | Q194: 12790 | R194: 11310 | S194: 12960 | T194: 13390 | U194: 14180 | V194: 16990 | W194: 16970 | X194: 16870 | Y194: 17320 | Z194: 17400 | AA194: 17720 | AB194: 18080 | AC194: 18830 | AD194: 19340 | AE194: 19990 | AF194: 20570 | AG194: 21220 | AH194: 22170 | AI194: 22580 | AJ194: 23620
A195: =$A$95 -> 80 | B195: 7520 | C195: 7750 | D195: 8010 | E195: 8070 | F195: 8120 | G195: 8560 | H195: 8390 | I195: 8100 | J195: 8340 | K195: 8550 | L195: 8730 | M195: 9160 | N195: 9570 | O195: 9990 | P195: 11060 | Q195: 11940 | R195: 12170 | S195: 10700 | T195: 12380 | U195: 12810 | V195: 13580 | W195: 16280 | X195: 16270 | Y195: 16190 | Z195: 16630 | AA195: 16720 | AB195: 17040 | AC195: 17400 | AD195: 18130 | AE195: 18630 | AF195: 19270 | AG195: 19850 | AH195: 20490 | AI195: 21420 | AJ195: 21830
A196: =$A$96 -> 81 | B196: 6900 | C196: 6990 | D196: 7210 | E196: 7500 | F196: 7560 | G196: 7650 | H196: 8040 | I196: 7900 | J196: 7640 | K196: 7870 | L196: 8080 | M196: 8180 | N196: 8610 | O196: 9020 | P196: 9460 | Q196: 10460 | R196: 11270 | S196: 11490 | T196: 10170 | U196: 11770 | V196: 12190 | W196: 12930 | X196: 15520 | Y196: 15520 | Z196: 15460 | AA196: 15900 | AB196: 15990 | AC196: 16310 | AD196: 16670 | AE196: 17380 | AF196: 17870 | AG196: 18500 | AH196: 19060 | AI196: 19690 | AJ196: 20600
A197: =$A$97 -> 82 | B197: 5900 | C197: 6400 | D197: 6460 | E197: 6720 | F197: 6960 | G197: 7040 | H197: 7130 | I197: 7540 | J197: 7360 | K197: 7100 | L197: 7370 | M197: 7560 | N197: 7630 | O197: 8060 | P197: 8490 | Q197: 8900 | R197: 9790 | S197: 10590 | T197: 10780 | U197: 9600 | V197: 11120 | W197: 11530 | X197: 12250 | Y197: 14700 | Z197: 14720 | AA197: 14680 | AB197: 15100 | AC197: 15210 | AD197: 15520 | AE197: 15880 | AF197: 16570 | AG197: 17050 | AH197: 17660 | AI197: 18210 | AJ197: 18820
A198: =$A$98 -> 83 | B198: 5210 | C198: 5440 | D198: 5830 | E198: 5940 | F198: 6210 | G198: 6400 | H198: 6540 | I198: 6570 | J198: 7000 | K198: 6820 | L198: 6610 | M198: 6860 | N198: 7010 | O198: 7060 | P198: 7550 | Q198: 7900 | R198: 8260 | S198: 9110 | T198: 9850 | U198: 10100 | V198: 9000 | W198: 10440 | X198: 10830 | Y198: 11520 | Z198: 13840 | AA198: 13870 | AB198: 13840 | AC198: 14250 | AD198: 14360 | AE198: 14670 | AF198: 15020 | AG198: 15690 | AH198: 16160 | AI198: 16750 | AJ198: 17280
A199: =$A$99 -> 84 | B199: 4650 | C199: 4730 | D199: 4950 | E199: 5290 | F199: 5380 | G199: 5700 | H199: 5860 | I199: 6000 | J199: 5990 | K199: 6480 | L199: 6250 | M199: 6040 | N199: 6300 | O199: 6460 | P199: 6570 | Q199: 6950 | R199: 7290 | S199: 7560 | T199: 8410 | U199: 9140 | V199: 9380 | W199: 8370 | X199: 9720 | Y199: 10100 | Z199: 10740 | AA199: 12920 | AB199: 12960 | AC199: 12950 | AD199: 13350 | AE199: 13460 | AF199: 13760 | AG199: 14100 | AH199: 14740 | AI199: 15200 | AJ199: 15760
A200: =$A$100 -> 85 | B200: 3850 | C200: 4140 | D200: 4250 | E200: 4440 | F200: 4760 | G200: 4830 | H200: 5160 | I200: 5280 | J200: 5440 | K200: 5450 | L200: 5910 | M200: 5620 | N200: 5480 | O200: 5760 | P200: 5930 | Q200: 6020 | R200: 6270 | S200: 6620 | T200: 6930 | U200: 7720 | V200: 8400 | W200: 8630 | X200: 7710 | Y200: 8960 | Z200: 9320 | AA200: 9930 | AB200: 11960 | AC200: 12010 | AD200: 12000 | AE200: 12380 | AF200: 12500 | AG200: 12800 | AH200: 13120 | AI200: 13730 | AJ200: 14160
A201: =$A$101 -> 86 | B201: 3290 | C201: 3420 | D201: 3640 | E201: 3790 | F201: 3970 | G201: 4250 | H201: 4310 | I201: 4610 | J201: 4730 | K201: 4860 | L201: 4890 | M201: 5290 | N201: 5020 | O201: 4960 | P201: 5220 | Q201: 5380 | R201: 5420 | S201: 5640 | T201: 6010 | U201: 6280 | V201: 7010 | W201: 7630 | X201: 7860 | Y201: 7030 | Z201: 8180 | AA201: 8510 | AB201: 9080 | AC201: 10940 | AD201: 11000 | AE201: 11010 | AF201: 11370 | AG201: 11490 | AH201: 11770 | AI201: 12080 | AJ201: 12660
A202: =$A$102 -> 87 | B202: 2380 | C202: 2850 | D202: 2980 | E202: 3200 | F202: 3330 | G202: 3480 | H202: 3760 | I202: 3760 | J202: 4060 | K202: 4120 | L202: 4320 | M202: 4350 | N202: 4640 | O202: 4500 | P202: 4410 | Q202: 4690 | R202: 4810 | S202: 4810 | T202: 5030 | U202: 5370 | V202: 5630 | W202: 6290 | X202: 6850 | Y202: 7060 | Z202: 6320 | AA202: 7370 | AB202: 7680 | AC202: 8200 | AD202: 9890 | AE202: 9950 | AF202: 9970 | AG202: 10310 | AH202: 10430 | AI202: 10700 | AJ202: 10990
... 281 more rows

Sheet Population Treasury
A1: RESIDENT POPULATION OF NEW ZEALAND, BY SINGLE YEAR OF AGE AND GENDER, AS AT 30 JUNE, THAT MATCHES HOUSEHOLD LABOUR FORCE SURVEY (HLFS) HISTORY AND TREASURY"S HLFS-BASED FORECASTS
A2: Year ended 30 June | B2: 2005/06 | C2: 2006/07 | D2: 2007/08 | E2: 2008/09 | F2: 2009/10 | G2: 2010/11 | H2: 2011/12 | I2: 2012/13 | J2: 2013/14 | K2: 2014/15 | L2: 2015/16 | M2: 2016/17 | N2: 2017/18 | O2: 2018/19 | P2: 2019/20 | Q2: 2020/21 | R2: 2021/22 | S2: 2022/23 | T2: 2023/24 | U2: 2024/25 | V2: 2025/26 | W2: 2026/27 | X2: 2027/28 | Y2: 2028/29 | Z2: 2029/30 | AA2: 2030/31 | AB2: 2031/32 | AC2: 2032/33 | AD2: 2033/34 | AE2: 2034/35 | AF2: 2035/36 | AG2: 2036/37 | AH2: 2037/38 | AI2: 2038/39 | AJ2: 2039/40
B3: 2006 | C3: 2007 | D3: 2008 | E3: 2009 | F3: 2010 | G3: 2011 | H3: 2012 | I3: 2013 | J3: 2014 | K3: 2015 | L3: 2016 | M3: 2017 | N3: 2018 | O3: 2019 | P3: 2020 | Q3: 2021 | R3: 2022 | S3: 2023 | T3: 2024 | U3: 2025 | V3: 2026 | W3: 2027 | X3: 2028 | Y3: 2029 | Z3: 2030 | AA3: 2031 | AB3: 2032 | AC3: 2033 | AD3: 2034 | AE3: 2035 | AF3: 2036 | AG3: 2037 | AH3: 2038 | AI3: 2039 | AJ3: 2040
A4: Population (millions) | B4: =SUM(B$15:B$110,B$115:B$210)/1000000 -> 4.1669 | C4: =SUM(C$15:C$110,C$115:C$210)/1000000 -> 4.212 | D4: =SUM(D$15:D$110,D$115:D$210)/1000000 -> 4.2489 | E4: 4.2865 | F4: 4.3365 | G4: 4.3758 | H4: 4.4015 | I4: 4.4299 | J4: 4.4882 | K4: 4.5765 | L4: 4.6772 | M4: 4.7797 | N4: 4.8706 | O4: 4.9462 | P4: 5.0406 | Q4: 5.0821 | R4: 5.0838 | S4: 5.1452 | T4: 5.2687 | U4: 5.3117 | V4: 5.3497 | W4: 5.408 | X4: 5.472 | Y4: 5.5376 | Z4: 5.6035 | AA4: 5.660230007 | AB4: 5.715690011 | AC4: 5.770080013 | AD4: 5.823290013 | AE4: 5.875920013 | AF4: 5.928380013 | AG4: 5.980410013 | AH4: 6.032190013 | AI4: 6.083660013 | AJ4: 6.134940013
A5: Annual growth (%) | C5: =C$4/B$4-1 -> 0.01082339389 | D5: =D$4/C$4-1 -> 0.008760683761 | E5: 0.008849349243 | F5: 0.01166452817 | G5: 0.009062608094 | H5: 0.005873211756 | I5: 0.006452345791 | J5: 0.01316056796 | K5: 0.01967381133 | L5: 0.02200371463 | M5: 0.02191482083 | N5: 0.01901793 | O5: 0.01552170164 | P5: 0.01908535846 | Q5: 0.008233146848 | R5: 0.0003345073887 | S5: 0.01207757976 | T5: 0.02400295421 | U5: 0.008161406039 | V5: 0.007154018487 | W5: 0.01089780735 | X5: 0.01183431953 | Y5: 0.01198830409 | Z5: 0.01190046229 | AA5: 0.01012403082 | AB5: 0.00979818917 | AC5: 0.009515911856 | AD5: 0.00922170921 | AE5: 0.009037846283 | AF5: 0.008927963601 | AG5: 0.008776427942 | AH5: 0.00865826923 | AI5: 0.008532556151 | AJ5: 0.008429136389
A6: Working-age popn (15+, millions) | B6: =SUM(B$30:B$110,B$130:B$210)/1000000 -> 3.2251 | C6: =SUM(C$30:C$110,C$130:C$210)/1000000 -> 3.2726 | D6: 3.3046 | E6: 3.3358 | F6: 3.3767 | G6: 3.4116 | H6: 3.437 | I6: 3.4639 | J6: 3.5153 | K6: 3.5958 | L6: 3.6897 | M6: 3.7874 | N6: 3.8691 | O6: 3.9419 | P6: 4.0198 | Q6: 4.0667 | R6: 4.0703 | S6: 4.118 | T6: 4.2372 | U6: 4.2869 | V6: 4.3295 | W6: 4.3828 | X6: 4.4405 | Y6: 4.4992 | Z6: 4.5582 | AA6: 4.618110979 | AB6: 4.677059115 | AC6: 4.734101957 | AD6: 4.790271957 | AE6: 4.844521957 | AF6: 4.898981957 | AG6: 4.952291957 | AH6: 5.000731957 | AI6: 5.048371957 | AJ6: 5.096551957
A7: Minors' popn (0-14, millions) | B7: =SUM(B$15:B$29,B$115:B$129)/1000000 -> 0.9418 | C7: =SUM(C$15:C$29,C$115:C$129)/1000000 -> 0.9394 | D7: 0.9443 | E7: 0.9507 | F7: 0.9598 | G7: 0.9642 | H7: 0.9645 | I7: 0.966 | J7: 0.9729 | K7: 0.9807 | L7: 0.9875 | M7: 0.9923 | N7: 1.0015 | O7: 1.0043 | P7: 1.0208 | Q7: 1.0154 | R7: 1.0135 | S7: 1.0272 | T7: 1.0315 | U7: 1.0248 | V7: 1.0202 | W7: 1.0252 | X7: 1.0315 | Y7: 1.0384 | Z7: 1.0453 | AA7: 1.042119028 | AB7: 1.038630896 | AC7: 1.035978056 | AD7: 1.033018056 | AE7: 1.031398056 | AF7: 1.029398056 | AG7: 1.028118056 | AH7: 1.031458056 | AI7: 1.035288056 | AJ7: 1.038388056
A8: Net Migration (thousands) - Treasury | U8: ='Economic Forecasts'!W$17 -> 12 | V8: ='Economic Forecasts'!X$17 -> 28.2 | W8: ='Economic Forecasts'!Y$17 -> 36.3 | X8: ='Economic Forecasts'!Z$17 -> 39 | Y8: ='Economic Forecasts'!AA$17 -> 39.8 | Z8: ='Economic Forecasts'!AB$17 -> 39.9 | AA8: =MAX(Z$8-0.4,AA$9) -> 39.5 | AB8: =MAX(AA$8-0.4,AB$9) -> 39.1 | AC8: =MAX(AB$8-0.4,AC$9) -> 38.7 | AD8: =MAX(AC$8-0.4,AD$9) -> 38.3 | AE8: =MAX(AD$8-0.4,AE$9) -> 38.5 | AF8: 38.8 | AG8: 39 | AH8: 39.3 | AI8: 39.5 | AJ8: 39.8
A9: Net Migration (thousands) - Statistics NZ | U9: 25 | V9: 30 | W9: 32.5 | X9: 34.5 | Y9: 36 | Z9: 37 | AA9: =Z9+0.5 -> 37.5 | AB9: =AA9+0.3 -> 37.8 | AC9: =AB9+0.2 -> 38 | AD9: =AC9+0.3 -> 38.3 | AE9: =AD9+0.2 -> 38.5 | AF9: =AE9+0.3 -> 38.8 | AG9: =AF9+0.2 -> 39 | AH9: =AG9+0.3 -> 39.3 | AI9: =AH9+0.2 -> 39.5 | AJ9: =AI9+0.3 -> 39.8
A10: Net Migration by age and gender group (percentages are based on June-end years between 2001/02 and 2022/23, where net migration was at least 10,000)
A11: Age Group (years) | B11: 0 to 4 | C11: 5 to 9 | D11: 10 to 14 | E11: 15 to 19 | F11: 20 to 24 | G11: 25 to 29 | H11: 30 to 34 | I11: 35 to 39 | J11: 40 to 44 | K11: 45 to 49 | L11: 50 to 54 | M11: 55 to 59 | N11: 60 to 64 | O11: 65 to 69 | P11: 70 to 74 | Q11: 75 to 79 | R11: 80 to 84 | S11: 85 to 89 | T11: 90 & over | U11: TOTAL
A12: Female | B12: 0.02642559071 | C12: 0.04123473318 | D12: 0.04015631951 | E12: 0.05541075945 | F12: -0.007026832894 | G12: 0.09977387405 | H12: 0.1024901808 | I12: 0.06493174075 | J12: 0.03668081702 | K12: 0.009625813475 | L12: 0.002560680251 | M12: 0.01051327024 | N12: 0.0153957004 | O12: 0.007815533261 | P12: 0.003159803205 | Q12: 0.001741922484 | R12: 0.0009572934835 | S12: 0.0003178694364 | T12: 0.0003014299007 | U12: =SUM($B$12:$T$12) -> 0.5124664987
A13: Male | B13: 0.03003730914 | C13: 0.0442821691 | D13: 0.0423778566 | E13: 0.06862146277 | F13: -0.01023804393 | G13: 0.04588582016 | H13: 0.09381836778 | I13: 0.07100717976 | J13: 0.04682916162 | K13: 0.01829293424 | L13: 0.004136591447 | M13: 0.004583069909 | N13: 0.01275872217 | O13: 0.008815510623 | P13: 0.003565947717 | Q13: 0.001600959291 | R13: 0.0004817726831 | S13: 0.0003805589635 | T13: 0.0002994967048 | U13: =SUM($B$13:$T$13) -> 0.4875368467
A14: FEMALE POPULATION
A15: 0 | B15: ='Statistics NZ'!B$15*('Economic Forecasts'!D$10-'Economic Forecasts'!D$9)*1000000/SUM('Statistics NZ'!B$15:B$29,'Statistics NZ'!B$115:B$129) -> 30650.8291 | C15: ='Statistics NZ'!C$15*('Economic Forecasts'!E$10-'Economic Forecasts'!E$9)*1000000/SUM('Statistics NZ'!C$15:C$29,'Statistics NZ'!C$115:C$129) -> 31861.39571 | D15: ='Statistics NZ'!D$15*('Economic Forecasts'!F$10-'Economic Forecasts'!F$9)*1000000/SUM('Statistics NZ'!D$15:D$29,'Statistics NZ'!D$115:D$129) -> 33068.58438 | E15: ='Statistics NZ'!E$15*('Economic Forecasts'!G$10-'Economic Forecasts'!G$9)*1000000/SUM('Statistics NZ'!E$15:E$29,'Statistics NZ'!E$115:E$129) -> 32524.83577 | F15: ='Statistics NZ'!F$15*('Economic Forecasts'!H$10-'Economic Forecasts'!H$9)*1000000/SUM('Statistics NZ'!F$15:F$29,'Statistics NZ'!F$115:F$129) -> 33302.46218 | G15: ='Statistics NZ'!G$15*('Economic Forecasts'!I$10-'Economic Forecasts'!I$9)*1000000/SUM('Statistics NZ'!G$15:G$29,'Statistics NZ'!G$115:G$129) -> 32471.38387 | H15: ='Statistics NZ'!H$15*('Economic Forecasts'!J$10-'Economic Forecasts'!J$9)*1000000/SUM('Statistics NZ'!H$15:H$29,'Statistics NZ'!H$115:H$129) -> 31676.13018 | I15: ='Statistics NZ'!I$15*('Economic Forecasts'!K$10-'Economic Forecasts'!K$9)*1000000/SUM('Statistics NZ'!I$15:I$29,'Statistics NZ'!I$115:I$129) -> 31218.89545 | J15: ='Statistics NZ'!J$15*('Economic Forecasts'!L$10-'Economic Forecasts'!L$9)*1000000/SUM('Statistics NZ'!J$15:J$29,'Statistics NZ'!J$115:J$129) -> 30295.41302 | K15: ='Statistics NZ'!K$15*('Economic Forecasts'!M$10-'Economic Forecasts'!M$9)*1000000/SUM('Statistics NZ'!K$15:K$29,'Statistics NZ'!K$115:K$129) -> 30529.45915 | L15: ='Statistics NZ'!L$15*('Economic Forecasts'!N$10-'Economic Forecasts'!N$9)*1000000/SUM('Statistics NZ'!L$15:L$29,'Statistics NZ'!L$115:L$129) -> 30747.90184 | M15: ='Statistics NZ'!M$15*('Economic Forecasts'!O$10-'Economic Forecasts'!O$9)*1000000/SUM('Statistics NZ'!M$15:M$29,'Statistics NZ'!M$115:M$129) -> 31193.7438 | N15: ='Statistics NZ'!N$15*('Economic Forecasts'!P$10-'Economic Forecasts'!P$9)*1000000/SUM('Statistics NZ'!N$15:N$29,'Statistics NZ'!N$115:N$129) -> 30686.12846 | O15: ='Statistics NZ'!O$15*('Economic Forecasts'!Q$10-'Economic Forecasts'!Q$9)*1000000/SUM('Statistics NZ'!O$15:O$29,'Statistics NZ'!O$115:O$129) -> 30339.48675 | P15: ='Statistics NZ'!P$15*('Economic Forecasts'!R$10-'Economic Forecasts'!R$9)*1000000/SUM('Statistics NZ'!P$15:P$29,'Statistics NZ'!P$115:P$129) -> 30669.48709 | Q15: ='Statistics NZ'!Q$15*('Economic Forecasts'!S$10-'Economic Forecasts'!S$9)*1000000/SUM('Statistics NZ'!Q$15:Q$29,'Statistics NZ'!Q$115:Q$129) -> 30976.24339 | R15: ='Statistics NZ'!R$15*('Economic Forecasts'!T$10-'Economic Forecasts'!T$9)*1000000/SUM('Statistics NZ'!R$15:R$29,'Statistics NZ'!R$115:R$129) -> 31363.90241 | S15: ='Statistics NZ'!S$15*('Economic Forecasts'!U$10-'Economic Forecasts'!U$9)*1000000/SUM('Statistics NZ'!S$15:S$29,'Statistics NZ'!S$115:S$129) -> 29186.09029 | T15: ='Statistics NZ'!T$15*('Economic Forecasts'!V$10-'Economic Forecasts'!V$9)*1000000/SUM('Statistics NZ'!T$15:T$29,'Statistics NZ'!T$115:T$129) -> 29377.59646 | U15: =SUM('Statistics NZ'!U$15,$B$12/5*(U$8-U$9)*1000)*('Economic Forecasts'!W$10-'Economic Forecasts'!W$9)*1000000/SUM('Statistics NZ'!U$15:U$29,'Statistics NZ'!U$115:U$129,SUM($B$12:$D$13)*(U$8-U$9)*1000) -> 29934.03955 | V15: =SUM('Statistics NZ'!V$15,$B$12/5*(V$8-V$9)*1000)*('Economic Forecasts'!X$10-'Economic Forecasts'!X$9)*1000000/SUM('Statistics NZ'!V$15:V$29,'Statistics NZ'!V$115:V$129,SUM($B$12:$D$13)*(V$8-V$9)*1000) -> 30006.52758 | W15: =SUM('Statistics NZ'!W$15,$B$12/5*(W$8-W$9)*1000)*('Economic Forecasts'!Y$10-'Economic Forecasts'!Y$9)*1000000/SUM('Statistics NZ'!W$15:W$29,'Statistics NZ'!W$115:W$129,SUM($B$12:$D$13)*(W$8-W$9)*1000) -> 30332.61883 | X15: =SUM('Statistics NZ'!X$15,$B$12/5*(X$8-X$9)*1000)*('Economic Forecasts'!Z$10-'Economic Forecasts'!Z$9)*1000000/SUM('Statistics NZ'!X$15:X$29,'Statistics NZ'!X$115:X$129,SUM($B$12:$D$13)*(X$8-X$9)*1000) -> 30693.29617 | Y15: =SUM('Statistics NZ'!Y$15,$B$12/5*(Y$8-Y$9)*1000)*('Economic Forecasts'!AA$10-'Economic Forecasts'!AA$9)*1000000/SUM('Statistics NZ'!Y$15:Y$29,'Statistics NZ'!Y$115:Y$129,SUM($B$12:$D$13)*(Y$8-Y$9)*1000) -> 31021.07855 | Z15: =SUM('Statistics NZ'!Z$15,$B$12/5*(Z$8-Z$9)*1000)*('Economic Forecasts'!AB$10-'Economic Forecasts'!AB$9)*1000000/SUM('Statistics NZ'!Z$15:Z$29,'Statistics NZ'!Z$115:Z$129,SUM($B$12:$D$13)*(Z$8-Z$9)*1000) -> 31363.10044 | AA15: =SUM(Z$15,'Statistics NZ'!AA$15-'Statistics NZ'!Z$15,$B$12/5*(AA$8-AA$9)*1000) -> 31383.67068 | AB15: =SUM(AA$15,'Statistics NZ'!AB$15-'Statistics NZ'!AA$15,$B$12/5*(AB$8-AB$9)*1000) -> 31410.54133 | AC15: =SUM(AB$15,'Statistics NZ'!AC$15-'Statistics NZ'!AB$15,$B$12/5*(AC$8-AC$9)*1000) -> 31464.24091 | AD15: =SUM(AC$15,'Statistics NZ'!AD$15-'Statistics NZ'!AC$15,$B$12/5*(AD$8-AD$9)*1000) -> 31544.24091 | AE15: =SUM(AD$15,'Statistics NZ'!AE$15-'Statistics NZ'!AD$15,$B$12/5*(AE$8-AE$9)*1000) -> 31664.24091 | AF15: =SUM(AE$15,'Statistics NZ'!AF$15-'Statistics NZ'!AE$15,$B$12/5*(AF$8-AF$9)*1000) -> 31824.24091 | AG15: =SUM(AF$15,'Statistics NZ'!AG$15-'Statistics NZ'!AF$15,$B$12/5*(AG$8-AG$9)*1000) -> 32004.24091 | AH15: =SUM(AG$15,'Statistics NZ'!AH$15-'Statistics NZ'!AG$15,$B$12/5*(AH$8-AH$9)*1000) -> 32214.24091 | AI15: =SUM(AH$15,'Statistics NZ'!AI$15-'Statistics NZ'!AH$15,$B$12/5*(AI$8-AI$9)*1000) -> 32434.24091 | AJ15: =SUM(AI$15,'Statistics NZ'!AJ$15-'Statistics NZ'!AI$15,$B$12/5*(AJ$8-AJ$9)*1000) -> 32654.24091
A16: 1 | B16: ='Statistics NZ'!B$16*('Economic Forecasts'!D$10-'Economic Forecasts'!D$9)*1000000/SUM('Statistics NZ'!B$15:B$29,'Statistics NZ'!B$115:B$129) -> 29675.43087 | C16: ='Statistics NZ'!C$16*('Economic Forecasts'!E$10-'Economic Forecasts'!E$9)*1000000/SUM('Statistics NZ'!C$15:C$29,'Statistics NZ'!C$115:C$129) -> 30406.92247 | D16: ='Statistics NZ'!D$16*('Economic Forecasts'!F$10-'Economic Forecasts'!F$9)*1000000/SUM('Statistics NZ'!D$15:D$29,'Statistics NZ'!D$115:D$129) -> 31750.48073 | E16: ='Statistics NZ'!E$16*('Economic Forecasts'!G$10-'Economic Forecasts'!G$9)*1000000/SUM('Statistics NZ'!E$15:E$29,'Statistics NZ'!E$115:E$129) -> 32978.47441 | F16: ='Statistics NZ'!F$16*('Economic Forecasts'!H$10-'Economic Forecasts'!H$9)*1000000/SUM('Statistics NZ'!F$15:F$29,'Statistics NZ'!F$115:F$129) -> 32573.21118 | G16: ='Statistics NZ'!G$16*('Economic Forecasts'!I$10-'Economic Forecasts'!I$9)*1000000/SUM('Statistics NZ'!G$15:G$29,'Statistics NZ'!G$115:G$129) -> 33307.78404 | H16: ='Statistics NZ'!H$16*('Economic Forecasts'!J$10-'Economic Forecasts'!J$9)*1000000/SUM('Statistics NZ'!H$15:H$29,'Statistics NZ'!H$115:H$129) -> 32481.81488 | I16: ='Statistics NZ'!I$16*('Economic Forecasts'!K$10-'Economic Forecasts'!K$9)*1000000/SUM('Statistics NZ'!I$15:I$29,'Statistics NZ'!I$115:I$129) -> 31835.40752 | J16: ='Statistics NZ'!J$16*('Economic Forecasts'!L$10-'Economic Forecasts'!L$9)*1000000/SUM('Statistics NZ'!J$15:J$29,'Statistics NZ'!J$115:J$129) -> 31490.58253 | K16: ='Statistics NZ'!K$16*('Economic Forecasts'!M$10-'Economic Forecasts'!M$9)*1000000/SUM('Statistics NZ'!K$15:K$29,'Statistics NZ'!K$115:K$129) -> 30690.02783 | L16: ='Statistics NZ'!L$16*('Economic Forecasts'!N$10-'Economic Forecasts'!N$9)*1000000/SUM('Statistics NZ'!L$15:L$29,'Statistics NZ'!L$115:L$129) -> 30865.38254 | M16: ='Statistics NZ'!M$16*('Economic Forecasts'!O$10-'Economic Forecasts'!O$9)*1000000/SUM('Statistics NZ'!M$15:M$29,'Statistics NZ'!M$115:M$129) -> 30759.46757 | N16: ='Statistics NZ'!N$16*('Economic Forecasts'!P$10-'Economic Forecasts'!P$9)*1000000/SUM('Statistics NZ'!N$15:N$29,'Statistics NZ'!N$115:N$129) -> 31342.17672 | O16: ='Statistics NZ'!O$16*('Economic Forecasts'!Q$10-'Economic Forecasts'!Q$9)*1000000/SUM('Statistics NZ'!O$15:O$29,'Statistics NZ'!O$115:O$129) -> 30559.94669 | P16: ='Statistics NZ'!P$16*('Economic Forecasts'!R$10-'Economic Forecasts'!R$9)*1000000/SUM('Statistics NZ'!P$15:P$29,'Statistics NZ'!P$115:P$129) -> 30690.59479 | Q16: ='Statistics NZ'!Q$16*('Economic Forecasts'!S$10-'Economic Forecasts'!S$9)*1000000/SUM('Statistics NZ'!Q$15:Q$29,'Statistics NZ'!Q$115:Q$129) -> 30567.28148 | R16: ='Statistics NZ'!R$16*('Economic Forecasts'!T$10-'Economic Forecasts'!T$9)*1000000/SUM('Statistics NZ'!R$15:R$29,'Statistics NZ'!R$115:R$129) -> 30995.78149 | S16: ='Statistics NZ'!S$16*('Economic Forecasts'!U$10-'Economic Forecasts'!U$9)*1000000/SUM('Statistics NZ'!S$15:S$29,'Statistics NZ'!S$115:S$129) -> 31812.41482 | T16: ='Statistics NZ'!T$16*('Economic Forecasts'!V$10-'Economic Forecasts'!V$9)*1000000/SUM('Statistics NZ'!T$15:T$29,'Statistics NZ'!T$115:T$129) -> 29261.43774 | U16: =SUM('Statistics NZ'!U$16,$B$12/5*(U$8-U$9)*1000)*('Economic Forecasts'!W$10-'Economic Forecasts'!W$9)*1000000/SUM('Statistics NZ'!U$15:U$29,'Statistics NZ'!U$115:U$129,SUM($B$12:$D$13)*(U$8-U$9)*1000) -> 29414.1173 | V16: =SUM('Statistics NZ'!V$16,$B$12/5*(V$8-V$9)*1000)*('Economic Forecasts'!X$10-'Economic Forecasts'!X$9)*1000000/SUM('Statistics NZ'!V$15:V$29,'Statistics NZ'!V$115:V$129,SUM($B$12:$D$13)*(V$8-V$9)*1000) -> 29995.91725 | W16: =SUM('Statistics NZ'!W$16,$B$12/5*(W$8-W$9)*1000)*('Economic Forecasts'!Y$10-'Economic Forecasts'!Y$9)*1000000/SUM('Statistics NZ'!W$15:W$29,'Statistics NZ'!W$115:W$129,SUM($B$12:$D$13)*(W$8-W$9)*1000) -> 30354.05525 | X16: =SUM('Statistics NZ'!X$16,$B$12/5*(X$8-X$9)*1000)*('Economic Forecasts'!Z$10-'Economic Forecasts'!Z$9)*1000000/SUM('Statistics NZ'!X$15:X$29,'Statistics NZ'!X$115:X$129,SUM($B$12:$D$13)*(X$8-X$9)*1000) -> 30736.68845 | Y16: =SUM('Statistics NZ'!Y$16,$B$12/5*(Y$8-Y$9)*1000)*('Economic Forecasts'!AA$10-'Economic Forecasts'!AA$9)*1000000/SUM('Statistics NZ'!Y$15:Y$29,'Statistics NZ'!Y$115:Y$129,SUM($B$12:$D$13)*(Y$8-Y$9)*1000) -> 31075.94411 | Z16: =SUM('Statistics NZ'!Z$16,$B$12/5*(Z$8-Z$9)*1000)*('Economic Forecasts'!AB$10-'Economic Forecasts'!AB$9)*1000000/SUM('Statistics NZ'!Z$15:Z$29,'Statistics NZ'!Z$115:Z$129,SUM($B$12:$D$13)*(Z$8-Z$9)*1000) -> 31418.59989 | AA16: =SUM(Z$16,'Statistics NZ'!AA$16-'Statistics NZ'!Z$16,$B$12/5*(AA$8-AA$9)*1000) -> 31429.17012 | AB16: =SUM(AA$16,'Statistics NZ'!AB$16-'Statistics NZ'!AA$16,$B$12/5*(AB$8-AB$9)*1000) -> 31436.04078 | AC16: =SUM(AB$16,'Statistics NZ'!AC$16-'Statistics NZ'!AB$16,$B$12/5*(AC$8-AC$9)*1000) -> 31469.74036 | AD16: =SUM(AC$16,'Statistics NZ'!AD$16-'Statistics NZ'!AC$16,$B$12/5*(AD$8-AD$9)*1000) -> 31519.74036 | AE16: =SUM(AD$16,'Statistics NZ'!AE$16-'Statistics NZ'!AD$16,$B$12/5*(AE$8-AE$9)*1000) -> 31599.74036 | AF16: =SUM(AE$16,'Statistics NZ'!AF$16-'Statistics NZ'!AE$16,$B$12/5*(AF$8-AF$9)*1000) -> 31719.74036 | AG16: =SUM(AF$16,'Statistics NZ'!AG$16-'Statistics NZ'!AF$16,$B$12/5*(AG$8-AG$9)*1000) -> 31879.74036 | AH16: =SUM(AG$16,'Statistics NZ'!AH$16-'Statistics NZ'!AG$16,$B$12/5*(AH$8-AH$9)*1000) -> 32069.74036 | AI16: =SUM(AH$16,'Statistics NZ'!AI$16-'Statistics NZ'!AH$16,$B$12/5*(AI$8-AI$9)*1000) -> 32279.74036 | AJ16: =SUM(AI$16,'Statistics NZ'!AJ$16-'Statistics NZ'!AI$16,$B$12/5*(AJ$8-AJ$9)*1000) -> 32499.74036
A17: 2 | B17: ='Statistics NZ'!B$17*('Economic Forecasts'!D$10-'Economic Forecasts'!D$9)*1000000/SUM('Statistics NZ'!B$15:B$29,'Statistics NZ'!B$115:B$129) -> 29876.87181 | C17: ='Statistics NZ'!C$17*('Economic Forecasts'!E$10-'Economic Forecasts'!E$9)*1000000/SUM('Statistics NZ'!C$15:C$29,'Statistics NZ'!C$115:C$129) -> 29616.44789 | D17: ='Statistics NZ'!D$17*('Economic Forecasts'!F$10-'Economic Forecasts'!F$9)*1000000/SUM('Statistics NZ'!D$15:D$29,'Statistics NZ'!D$115:D$129) -> 30442.92191 | E17: ='Statistics NZ'!E$17*('Economic Forecasts'!G$10-'Economic Forecasts'!G$9)*1000000/SUM('Statistics NZ'!E$15:E$29,'Statistics NZ'!E$115:E$129) -> 31881.30188 | F17: ='Statistics NZ'!F$17*('Economic Forecasts'!H$10-'Economic Forecasts'!H$9)*1000000/SUM('Statistics NZ'!F$15:F$29,'Statistics NZ'!F$115:F$129) -> 33122.79164 | G17: ='Statistics NZ'!G$17*('Economic Forecasts'!I$10-'Economic Forecasts'!I$9)*1000000/SUM('Statistics NZ'!G$15:G$29,'Statistics NZ'!G$115:G$129) -> 32577.2573 | H17: ='Statistics NZ'!H$17*('Economic Forecasts'!J$10-'Economic Forecasts'!J$9)*1000000/SUM('Statistics NZ'!H$15:H$29,'Statistics NZ'!H$115:H$129) -> 33192.08956 | I17: ='Statistics NZ'!I$17*('Economic Forecasts'!K$10-'Economic Forecasts'!K$9)*1000000/SUM('Statistics NZ'!I$15:I$29,'Statistics NZ'!I$115:I$129) -> 32505.06718 | J17: ='Statistics NZ'!J$17*('Economic Forecasts'!L$10-'Economic Forecasts'!L$9)*1000000/SUM('Statistics NZ'!J$15:J$29,'Statistics NZ'!J$115:J$129) -> 32173.53654 | K17: ='Statistics NZ'!K$17*('Economic Forecasts'!M$10-'Economic Forecasts'!M$9)*1000000/SUM('Statistics NZ'!K$15:K$29,'Statistics NZ'!K$115:K$129) -> 31995.98647 | L17: ='Statistics NZ'!L$17*('Economic Forecasts'!N$10-'Economic Forecasts'!N$9)*1000000/SUM('Statistics NZ'!L$15:L$29,'Statistics NZ'!L$115:L$129) -> 31036.26355 | M17: ='Statistics NZ'!M$17*('Economic Forecasts'!O$10-'Economic Forecasts'!O$9)*1000000/SUM('Statistics NZ'!M$15:M$29,'Statistics NZ'!M$115:M$129) -> 31214.928 | N17: ='Statistics NZ'!N$17*('Economic Forecasts'!P$10-'Economic Forecasts'!P$9)*1000000/SUM('Statistics NZ'!N$15:N$29,'Statistics NZ'!N$115:N$129) -> 31183.45537 | O17: ='Statistics NZ'!O$17*('Economic Forecasts'!Q$10-'Economic Forecasts'!Q$9)*1000000/SUM('Statistics NZ'!O$15:O$29,'Statistics NZ'!O$115:O$129) -> 31473.28072 | P17: ='Statistics NZ'!P$17*('Economic Forecasts'!R$10-'Economic Forecasts'!R$9)*1000000/SUM('Statistics NZ'!P$15:P$29,'Statistics NZ'!P$115:P$129) -> 31176.07188 | Q17: ='Statistics NZ'!Q$17*('Economic Forecasts'!S$10-'Economic Forecasts'!S$9)*1000000/SUM('Statistics NZ'!Q$15:Q$29,'Statistics NZ'!Q$115:Q$129) -> 30682.62971 | R17: ='Statistics NZ'!R$17*('Economic Forecasts'!T$10-'Economic Forecasts'!T$9)*1000000/SUM('Statistics NZ'!R$15:R$29,'Statistics NZ'!R$115:R$129) -> 30753.87346 | S17: ='Statistics NZ'!S$17*('Economic Forecasts'!U$10-'Economic Forecasts'!U$9)*1000000/SUM('Statistics NZ'!S$15:S$29,'Statistics NZ'!S$115:S$129) -> 31600.61445 | T17: ='Statistics NZ'!T$17*('Economic Forecasts'!V$10-'Economic Forecasts'!V$9)*1000000/SUM('Statistics NZ'!T$15:T$29,'Statistics NZ'!T$115:T$129) -> 32154.84588 | U17: =SUM('Statistics NZ'!U$17,$B$12/5*(U$8-U$9)*1000)*('Economic Forecasts'!W$10-'Economic Forecasts'!W$9)*1000000/SUM('Statistics NZ'!U$15:U$29,'Statistics NZ'!U$115:U$129,SUM($B$12:$D$13)*(U$8-U$9)*1000) -> 29403.50664 | V17: =SUM('Statistics NZ'!V$17,$B$12/5*(V$8-V$9)*1000)*('Economic Forecasts'!X$10-'Economic Forecasts'!X$9)*1000000/SUM('Statistics NZ'!V$15:V$29,'Statistics NZ'!V$115:V$129,SUM($B$12:$D$13)*(V$8-V$9)*1000) -> 29582.11441 | W17: =SUM('Statistics NZ'!W$17,$B$12/5*(W$8-W$9)*1000)*('Economic Forecasts'!Y$10-'Economic Forecasts'!Y$9)*1000000/SUM('Statistics NZ'!W$15:W$29,'Statistics NZ'!W$115:W$129,SUM($B$12:$D$13)*(W$8-W$9)*1000) -> 30450.51912 | X17: =SUM('Statistics NZ'!X$17,$B$12/5*(X$8-X$9)*1000)*('Economic Forecasts'!Z$10-'Economic Forecasts'!Z$9)*1000000/SUM('Statistics NZ'!X$15:X$29,'Statistics NZ'!X$115:X$129,SUM($B$12:$D$13)*(X$8-X$9)*1000) -> 30866.8653 | Y17: =SUM('Statistics NZ'!Y$17,$B$12/5*(Y$8-Y$9)*1000)*('Economic Forecasts'!AA$10-'Economic Forecasts'!AA$9)*1000000/SUM('Statistics NZ'!Y$15:Y$29,'Statistics NZ'!Y$115:Y$129,SUM($B$12:$D$13)*(Y$8-Y$9)*1000) -> 31229.56767 | Z17: =SUM('Statistics NZ'!Z$17,$B$12/5*(Z$8-Z$9)*1000)*('Economic Forecasts'!AB$10-'Economic Forecasts'!AB$9)*1000000/SUM('Statistics NZ'!Z$15:Z$29,'Statistics NZ'!Z$115:Z$129,SUM($B$12:$D$13)*(Z$8-Z$9)*1000) -> 31585.09823 | AA17: =SUM(Z$17,'Statistics NZ'!AA$17-'Statistics NZ'!Z$17,$B$12/5*(AA$8-AA$9)*1000) -> 31595.66846 | AB17: =SUM(AA$17,'Statistics NZ'!AB$17-'Statistics NZ'!AA$17,$B$12/5*(AB$8-AB$9)*1000) -> 31592.53912 | AC17: =SUM(AB$17,'Statistics NZ'!AC$17-'Statistics NZ'!AB$17,$B$12/5*(AC$8-AC$9)*1000) -> 31606.2387 | AD17: =SUM(AC$17,'Statistics NZ'!AD$17-'Statistics NZ'!AC$17,$B$12/5*(AD$8-AD$9)*1000) -> 31636.2387 | AE17: =SUM(AD$17,'Statistics NZ'!AE$17-'Statistics NZ'!AD$17,$B$12/5*(AE$8-AE$9)*1000) -> 31686.2387 | AF17: =SUM(AE$17,'Statistics NZ'!AF$17-'Statistics NZ'!AE$17,$B$12/5*(AF$8-AF$9)*1000) -> 31776.2387 | AG17: =SUM(AF$17,'Statistics NZ'!AG$17-'Statistics NZ'!AF$17,$B$12/5*(AG$8-AG$9)*1000) -> 31896.2387 | AH17: =SUM(AG$17,'Statistics NZ'!AH$17-'Statistics NZ'!AG$17,$B$12/5*(AH$8-AH$9)*1000) -> 32056.2387 | AI17: =SUM(AH$17,'Statistics NZ'!AI$17-'Statistics NZ'!AH$17,$B$12/5*(AI$8-AI$9)*1000) -> 32236.2387 | AJ17: =SUM(AI$17,'Statistics NZ'!AJ$17-'Statistics NZ'!AI$17,$B$12/5*(AJ$8-AJ$9)*1000) -> 32446.2387
A18: 3 | B18: ='Statistics NZ'!B$18*('Economic Forecasts'!D$10-'Economic Forecasts'!D$9)*1000000/SUM('Statistics NZ'!B$15:B$29,'Statistics NZ'!B$115:B$129) -> 28954.48436 | C18: ='Statistics NZ'!C$18*('Economic Forecasts'!E$10-'Economic Forecasts'!E$9)*1000000/SUM('Statistics NZ'!C$15:C$29,'Statistics NZ'!C$115:C$129) -> 29785.08246 | D18: ='Statistics NZ'!D$18*('Economic Forecasts'!F$10-'Economic Forecasts'!F$9)*1000000/SUM('Statistics NZ'!D$15:D$29,'Statistics NZ'!D$115:D$129) -> 29620.42523 | E18: ='Statistics NZ'!E$18*('Economic Forecasts'!G$10-'Economic Forecasts'!G$9)*1000000/SUM('Statistics NZ'!E$15:E$29,'Statistics NZ'!E$115:E$129) -> 30499.28648 | F18: ='Statistics NZ'!F$18*('Economic Forecasts'!H$10-'Economic Forecasts'!H$9)*1000000/SUM('Statistics NZ'!F$15:F$29,'Statistics NZ'!F$115:F$129) -> 32002.49301 | G18: ='Statistics NZ'!G$18*('Economic Forecasts'!I$10-'Economic Forecasts'!I$9)*1000000/SUM('Statistics NZ'!G$15:G$29,'Statistics NZ'!G$115:G$129) -> 33127.79919 | H18: ='Statistics NZ'!H$18*('Economic Forecasts'!J$10-'Economic Forecasts'!J$9)*1000000/SUM('Statistics NZ'!H$15:H$29,'Statistics NZ'!H$115:H$129) -> 32513.61823 | I18: ='Statistics NZ'!I$18*('Economic Forecasts'!K$10-'Economic Forecasts'!K$9)*1000000/SUM('Statistics NZ'!I$15:I$29,'Statistics NZ'!I$115:I$129) -> 33291.65154 | J18: ='Statistics NZ'!J$18*('Economic Forecasts'!L$10-'Economic Forecasts'!L$9)*1000000/SUM('Statistics NZ'!J$15:J$29,'Statistics NZ'!J$115:J$129) -> 32792.46361 | K18: ='Statistics NZ'!K$18*('Economic Forecasts'!M$10-'Economic Forecasts'!M$9)*1000000/SUM('Statistics NZ'!K$15:K$29,'Statistics NZ'!K$115:K$129) -> 32574.03373 | L18: ='Statistics NZ'!L$18*('Economic Forecasts'!N$10-'Economic Forecasts'!N$9)*1000000/SUM('Statistics NZ'!L$15:L$29,'Statistics NZ'!L$115:L$129) -> 32531.47239 | M18: ='Statistics NZ'!M$18*('Economic Forecasts'!O$10-'Economic Forecasts'!O$9)*1000000/SUM('Statistics NZ'!M$15:M$29,'Statistics NZ'!M$115:M$129) -> 31363.21745 | N18: ='Statistics NZ'!N$18*('Economic Forecasts'!P$10-'Economic Forecasts'!P$9)*1000000/SUM('Statistics NZ'!N$15:N$29,'Statistics NZ'!N$115:N$129) -> 31776.01509 | O18: ='Statistics NZ'!O$18*('Economic Forecasts'!Q$10-'Economic Forecasts'!Q$9)*1000000/SUM('Statistics NZ'!O$15:O$29,'Statistics NZ'!O$115:O$129) -> 31410.29217 | P18: ='Statistics NZ'!P$18*('Economic Forecasts'!R$10-'Economic Forecasts'!R$9)*1000000/SUM('Statistics NZ'!P$15:P$29,'Statistics NZ'!P$115:P$129) -> 32178.68759 | Q18: ='Statistics NZ'!Q$18*('Economic Forecasts'!S$10-'Economic Forecasts'!S$9)*1000000/SUM('Statistics NZ'!Q$15:Q$29,'Statistics NZ'!Q$115:Q$129) -> 31123.05023 | R18: ='Statistics NZ'!R$18*('Economic Forecasts'!T$10-'Economic Forecasts'!T$9)*1000000/SUM('Statistics NZ'!R$15:R$29,'Statistics NZ'!R$115:R$129) -> 30974.74601 | S18: ='Statistics NZ'!S$18*('Economic Forecasts'!U$10-'Economic Forecasts'!U$9)*1000000/SUM('Statistics NZ'!S$15:S$29,'Statistics NZ'!S$115:S$129) -> 31494.71427 | T18: ='Statistics NZ'!T$18*('Economic Forecasts'!V$10-'Economic Forecasts'!V$9)*1000000/SUM('Statistics NZ'!T$15:T$29,'Statistics NZ'!T$115:T$129) -> 32038.68716 | U18: =SUM('Statistics NZ'!U$18,$B$12/5*(U$8-U$9)*1000)*('Economic Forecasts'!W$10-'Economic Forecasts'!W$9)*1000000/SUM('Statistics NZ'!U$15:U$29,'Statistics NZ'!U$115:U$129,SUM($B$12:$D$13)*(U$8-U$9)*1000) -> 32363.88031 | V18: =SUM('Statistics NZ'!V$18,$B$12/5*(V$8-V$9)*1000)*('Economic Forecasts'!X$10-'Economic Forecasts'!X$9)*1000000/SUM('Statistics NZ'!V$15:V$29,'Statistics NZ'!V$115:V$129,SUM($B$12:$D$13)*(V$8-V$9)*1000) -> 29624.55573 | W18: =SUM('Statistics NZ'!W$18,$B$12/5*(W$8-W$9)*1000)*('Economic Forecasts'!Y$10-'Economic Forecasts'!Y$9)*1000000/SUM('Statistics NZ'!W$15:W$29,'Statistics NZ'!W$115:W$129,SUM($B$12:$D$13)*(W$8-W$9)*1000) -> 30096.81825 | X18: =SUM('Statistics NZ'!X$18,$B$12/5*(X$8-X$9)*1000)*('Economic Forecasts'!Z$10-'Economic Forecasts'!Z$9)*1000000/SUM('Statistics NZ'!X$15:X$29,'Statistics NZ'!X$115:X$129,SUM($B$12:$D$13)*(X$8-X$9)*1000) -> 31029.58636 | Y18: =SUM('Statistics NZ'!Y$18,$B$12/5*(Y$8-Y$9)*1000)*('Economic Forecasts'!AA$10-'Economic Forecasts'!AA$9)*1000000/SUM('Statistics NZ'!Y$15:Y$29,'Statistics NZ'!Y$115:Y$129,SUM($B$12:$D$13)*(Y$8-Y$9)*1000) -> 31427.08368 | Z18: =SUM('Statistics NZ'!Z$18,$B$12/5*(Z$8-Z$9)*1000)*('Economic Forecasts'!AB$10-'Economic Forecasts'!AB$9)*1000000/SUM('Statistics NZ'!Z$15:Z$29,'Statistics NZ'!Z$115:Z$129,SUM($B$12:$D$13)*(Z$8-Z$9)*1000) -> 31807.09602 | AA18: =SUM(Z$18,'Statistics NZ'!AA$18-'Statistics NZ'!Z$18,$B$12/5*(AA$8-AA$9)*1000) -> 31827.66625 | AB18: =SUM(AA$18,'Statistics NZ'!AB$18-'Statistics NZ'!AA$18,$B$12/5*(AB$8-AB$9)*1000) -> 31824.53691 | AC18: =SUM(AB$18,'Statistics NZ'!AC$18-'Statistics NZ'!AB$18,$B$12/5*(AC$8-AC$9)*1000) -> 31828.23649 | AD18: =SUM(AC$18,'Statistics NZ'!AD$18-'Statistics NZ'!AC$18,$B$12/5*(AD$8-AD$9)*1000) -> 31838.23649 | AE18: =SUM(AD$18,'Statistics NZ'!AE$18-'Statistics NZ'!AD$18,$B$12/5*(AE$8-AE$9)*1000) -> 31868.23649 | AF18: =SUM(AE$18,'Statistics NZ'!AF$18-'Statistics NZ'!AE$18,$B$12/5*(AF$8-AF$9)*1000) -> 31918.23649 | AG18: =SUM(AF$18,'Statistics NZ'!AG$18-'Statistics NZ'!AF$18,$B$12/5*(AG$8-AG$9)*1000) -> 32008.23649 | AH18: =SUM(AG$18,'Statistics NZ'!AH$18-'Statistics NZ'!AG$18,$B$12/5*(AH$8-AH$9)*1000) -> 32138.23649 | AI18: =SUM(AH$18,'Statistics NZ'!AI$18-'Statistics NZ'!AH$18,$B$12/5*(AI$8-AI$9)*1000) -> 32298.23649 | AJ18: =SUM(AI$18,'Statistics NZ'!AJ$18-'Statistics NZ'!AI$18,$B$12/5*(AJ$8-AJ$9)*1000) -> 32488.23649
A19: 4 | B19: ='Statistics NZ'!B$19*('Economic Forecasts'!D$10-'Economic Forecasts'!D$9)*1000000/SUM('Statistics NZ'!B$15:B$29,'Statistics NZ'!B$115:B$129) -> 29049.90375 | C19: ='Statistics NZ'!C$19*('Economic Forecasts'!E$10-'Economic Forecasts'!E$9)*1000000/SUM('Statistics NZ'!C$15:C$29,'Statistics NZ'!C$115:C$129) -> 28941.90957 | D19: ='Statistics NZ'!D$19*('Economic Forecasts'!F$10-'Economic Forecasts'!F$9)*1000000/SUM('Statistics NZ'!D$15:D$29,'Statistics NZ'!D$115:D$129) -> 29852.41148 | E19: ='Statistics NZ'!E$19*('Economic Forecasts'!G$10-'Economic Forecasts'!G$9)*1000000/SUM('Statistics NZ'!E$15:E$29,'Statistics NZ'!E$115:E$129) -> 29739.70549 | F19: ='Statistics NZ'!F$19*('Economic Forecasts'!H$10-'Economic Forecasts'!H$9)*1000000/SUM('Statistics NZ'!F$15:F$29,'Statistics NZ'!F$115:F$129) -> 30681.38613 | G19: ='Statistics NZ'!G$19*('Economic Forecasts'!I$10-'Economic Forecasts'!I$9)*1000000/SUM('Statistics NZ'!G$15:G$29,'Statistics NZ'!G$115:G$129) -> 32026.71542 | H19: ='Statistics NZ'!H$19*('Economic Forecasts'!J$10-'Economic Forecasts'!J$9)*1000000/SUM('Statistics NZ'!H$15:H$29,'Statistics NZ'!H$115:H$129) -> 33011.87061 | I19: ='Statistics NZ'!I$19*('Economic Forecasts'!K$10-'Economic Forecasts'!K$9)*1000000/SUM('Statistics NZ'!I$15:I$29,'Statistics NZ'!I$115:I$129) -> 32473.17862 | J19: ='Statistics NZ'!J$19*('Economic Forecasts'!L$10-'Economic Forecasts'!L$9)*1000000/SUM('Statistics NZ'!J$15:J$29,'Statistics NZ'!J$115:J$129) -> 33571.45803 | K19: ='Statistics NZ'!K$19*('Economic Forecasts'!M$10-'Economic Forecasts'!M$9)*1000000/SUM('Statistics NZ'!K$15:K$29,'Statistics NZ'!K$115:K$129) -> 33227.01304 | L19: ='Statistics NZ'!L$19*('Economic Forecasts'!N$10-'Economic Forecasts'!N$9)*1000000/SUM('Statistics NZ'!L$15:L$29,'Statistics NZ'!L$115:L$129) -> 32980.03504 | M19: ='Statistics NZ'!M$19*('Economic Forecasts'!O$10-'Economic Forecasts'!O$9)*1000000/SUM('Statistics NZ'!M$15:M$29,'Statistics NZ'!M$115:M$129) -> 32814.33558 | N19: ='Statistics NZ'!N$19*('Economic Forecasts'!P$10-'Economic Forecasts'!P$9)*1000000/SUM('Statistics NZ'!N$15:N$29,'Statistics NZ'!N$115:N$129) -> 31850.08505 | O19: ='Statistics NZ'!O$19*('Economic Forecasts'!Q$10-'Economic Forecasts'!Q$9)*1000000/SUM('Statistics NZ'!O$15:O$29,'Statistics NZ'!O$115:O$129) -> 32019.18152 | P19: ='Statistics NZ'!P$19*('Economic Forecasts'!R$10-'Economic Forecasts'!R$9)*1000000/SUM('Statistics NZ'!P$15:P$29,'Statistics NZ'!P$115:P$129) -> 32104.81064 | Q19: ='Statistics NZ'!Q$19*('Economic Forecasts'!S$10-'Economic Forecasts'!S$9)*1000000/SUM('Statistics NZ'!Q$15:Q$29,'Statistics NZ'!Q$115:Q$129) -> 32098.2671 | R19: ='Statistics NZ'!R$19*('Economic Forecasts'!T$10-'Economic Forecasts'!T$9)*1000000/SUM('Statistics NZ'!R$15:R$29,'Statistics NZ'!R$115:R$129) -> 31342.86693 | S19: ='Statistics NZ'!S$19*('Economic Forecasts'!U$10-'Economic Forecasts'!U$9)*1000000/SUM('Statistics NZ'!S$15:S$29,'Statistics NZ'!S$115:S$129) -> 31992.44513 | T19: ='Statistics NZ'!T$19*('Economic Forecasts'!V$10-'Economic Forecasts'!V$9)*1000000/SUM('Statistics NZ'!T$15:T$29,'Statistics NZ'!T$115:T$129) -> 32133.72611 | U19: =SUM('Statistics NZ'!U$19,$B$12/5*(U$8-U$9)*1000)*('Economic Forecasts'!W$10-'Economic Forecasts'!W$9)*1000000/SUM('Statistics NZ'!U$15:U$29,'Statistics NZ'!U$115:U$129,SUM($B$12:$D$13)*(U$8-U$9)*1000) -> 32289.6057 | V19: =SUM('Statistics NZ'!V$19,$B$12/5*(V$8-V$9)*1000)*('Economic Forecasts'!X$10-'Economic Forecasts'!X$9)*1000000/SUM('Statistics NZ'!V$15:V$29,'Statistics NZ'!V$115:V$129,SUM($B$12:$D$13)*(V$8-V$9)*1000) -> 32637.88923 | W19: =SUM('Statistics NZ'!W$19,$B$12/5*(W$8-W$9)*1000)*('Economic Forecasts'!Y$10-'Economic Forecasts'!Y$9)*1000000/SUM('Statistics NZ'!W$15:W$29,'Statistics NZ'!W$115:W$129,SUM($B$12:$D$13)*(W$8-W$9)*1000) -> 30193.28212 | X19: =SUM('Statistics NZ'!X$19,$B$12/5*(X$8-X$9)*1000)*('Economic Forecasts'!Z$10-'Economic Forecasts'!Z$9)*1000000/SUM('Statistics NZ'!X$15:X$29,'Statistics NZ'!X$115:X$129,SUM($B$12:$D$13)*(X$8-X$9)*1000) -> 30714.99231 | Y19: =SUM('Statistics NZ'!Y$19,$B$12/5*(Y$8-Y$9)*1000)*('Economic Forecasts'!AA$10-'Economic Forecasts'!AA$9)*1000000/SUM('Statistics NZ'!Y$15:Y$29,'Statistics NZ'!Y$115:Y$129,SUM($B$12:$D$13)*(Y$8-Y$9)*1000) -> 31646.54592 | Z19: =SUM('Statistics NZ'!Z$19,$B$12/5*(Z$8-Z$9)*1000)*('Economic Forecasts'!AB$10-'Economic Forecasts'!AB$9)*1000000/SUM('Statistics NZ'!Z$15:Z$29,'Statistics NZ'!Z$115:Z$129,SUM($B$12:$D$13)*(Z$8-Z$9)*1000) -> 32062.39348 | AA19: =SUM(Z$19,'Statistics NZ'!AA$19-'Statistics NZ'!Z$19,$B$12/5*(AA$8-AA$9)*1000) -> 32102.96371 | AB19: =SUM(AA$19,'Statistics NZ'!AB$19-'Statistics NZ'!AA$19,$B$12/5*(AB$8-AB$9)*1000) -> 32119.83436 | AC19: =SUM(AB$19,'Statistics NZ'!AC$19-'Statistics NZ'!AB$19,$B$12/5*(AC$8-AC$9)*1000) -> 32113.53395 | AD19: =SUM(AC$19,'Statistics NZ'!AD$19-'Statistics NZ'!AC$19,$B$12/5*(AD$8-AD$9)*1000) -> 32113.53395 | AE19: =SUM(AD$19,'Statistics NZ'!AE$19-'Statistics NZ'!AD$19,$B$12/5*(AE$8-AE$9)*1000) -> 32123.53395 | AF19: =SUM(AE$19,'Statistics NZ'!AF$19-'Statistics NZ'!AE$19,$B$12/5*(AF$8-AF$9)*1000) -> 32153.53395 | AG19: =SUM(AF$19,'Statistics NZ'!AG$19-'Statistics NZ'!AF$19,$B$12/5*(AG$8-AG$9)*1000) -> 32213.53395 | AH19: =SUM(AG$19,'Statistics NZ'!AH$19-'Statistics NZ'!AG$19,$B$12/5*(AH$8-AH$9)*1000) -> 32303.53395 | AI19: =SUM(AH$19,'Statistics NZ'!AI$19-'Statistics NZ'!AH$19,$B$12/5*(AI$8-AI$9)*1000) -> 32433.53395 | AJ19: =SUM(AI$19,'Statistics NZ'!AJ$19-'Statistics NZ'!AI$19,$B$12/5*(AJ$8-AJ$9)*1000) -> 32593.53395
A20: 5 | B20: ='Statistics NZ'!B$20*('Economic Forecasts'!D$10-'Economic Forecasts'!D$9)*1000000/SUM('Statistics NZ'!B$15:B$29,'Statistics NZ'!B$115:B$129) -> 30078.31275 | C20: ='Statistics NZ'!C$20*('Economic Forecasts'!E$10-'Economic Forecasts'!E$9)*1000000/SUM('Statistics NZ'!C$15:C$29,'Statistics NZ'!C$115:C$129) -> 29142.16313 | D20: ='Statistics NZ'!D$20*('Economic Forecasts'!F$10-'Economic Forecasts'!F$9)*1000000/SUM('Statistics NZ'!D$15:D$29,'Statistics NZ'!D$115:D$129) -> 29114.27343 | E20: ='Statistics NZ'!E$20*('Economic Forecasts'!G$10-'Economic Forecasts'!G$9)*1000000/SUM('Statistics NZ'!E$15:E$29,'Statistics NZ'!E$115:E$129) -> 29971.79968 | F20: ='Statistics NZ'!F$20*('Economic Forecasts'!H$10-'Economic Forecasts'!H$9)*1000000/SUM('Statistics NZ'!F$15:F$29,'Statistics NZ'!F$115:F$129) -> 29930.99742 | G20: ='Statistics NZ'!G$20*('Economic Forecasts'!I$10-'Economic Forecasts'!I$9)*1000000/SUM('Statistics NZ'!G$15:G$29,'Statistics NZ'!G$115:G$129) -> 30756.23415 | H20: ='Statistics NZ'!H$20*('Economic Forecasts'!J$10-'Economic Forecasts'!J$9)*1000000/SUM('Statistics NZ'!H$15:H$29,'Statistics NZ'!H$115:H$129) -> 31930.55693 | I20: ='Statistics NZ'!I$20*('Economic Forecasts'!K$10-'Economic Forecasts'!K$9)*1000000/SUM('Statistics NZ'!I$15:I$29,'Statistics NZ'!I$115:I$129) -> 33047.17261 | J20: ='Statistics NZ'!J$20*('Economic Forecasts'!L$10-'Economic Forecasts'!L$9)*1000000/SUM('Statistics NZ'!J$15:J$29,'Statistics NZ'!J$115:J$129) -> 32760.45014 | K20: ='Statistics NZ'!K$20*('Economic Forecasts'!M$10-'Economic Forecasts'!M$9)*1000000/SUM('Statistics NZ'!K$15:K$29,'Statistics NZ'!K$115:K$129) -> 33954.92441 | L20: ='Statistics NZ'!L$20*('Economic Forecasts'!N$10-'Economic Forecasts'!N$9)*1000000/SUM('Statistics NZ'!L$15:L$29,'Statistics NZ'!L$115:L$129) -> 33535.39833 | M20: ='Statistics NZ'!M$20*('Economic Forecasts'!O$10-'Economic Forecasts'!O$9)*1000000/SUM('Statistics NZ'!M$15:M$29,'Statistics NZ'!M$115:M$129) -> 33248.61181 | N20: ='Statistics NZ'!N$20*('Economic Forecasts'!P$10-'Economic Forecasts'!P$9)*1000000/SUM('Statistics NZ'!N$15:N$29,'Statistics NZ'!N$115:N$129) -> 33299.74009 | O20: ='Statistics NZ'!O$20*('Economic Forecasts'!Q$10-'Economic Forecasts'!Q$9)*1000000/SUM('Statistics NZ'!O$15:O$29,'Statistics NZ'!O$115:O$129) -> 32113.66435 | P20: ='Statistics NZ'!P$20*('Economic Forecasts'!R$10-'Economic Forecasts'!R$9)*1000000/SUM('Statistics NZ'!P$15:P$29,'Statistics NZ'!P$115:P$129) -> 32706.38008 | Q20: ='Statistics NZ'!Q$20*('Economic Forecasts'!S$10-'Economic Forecasts'!S$9)*1000000/SUM('Statistics NZ'!Q$15:Q$29,'Statistics NZ'!Q$115:Q$129) -> 31972.43267 | R20: ='Statistics NZ'!R$20*('Economic Forecasts'!T$10-'Economic Forecasts'!T$9)*1000000/SUM('Statistics NZ'!R$15:R$29,'Statistics NZ'!R$115:R$129) -> 32247.39262 | S20: ='Statistics NZ'!S$20*('Economic Forecasts'!U$10-'Economic Forecasts'!U$9)*1000000/SUM('Statistics NZ'!S$15:S$29,'Statistics NZ'!S$115:S$129) -> 32288.96564 | T20: ='Statistics NZ'!T$20*('Economic Forecasts'!V$10-'Economic Forecasts'!V$9)*1000000/SUM('Statistics NZ'!T$15:T$29,'Statistics NZ'!T$115:T$129) -> 32746.19936 | U20: =SUM('Statistics NZ'!U$20,$C$12/5*(U$8-U$9)*1000)*('Economic Forecasts'!W$10-'Economic Forecasts'!W$9)*1000000/SUM('Statistics NZ'!U$15:U$29,'Statistics NZ'!U$115:U$129,SUM($B$12:$D$13)*(U$8-U$9)*1000) -> 32365.4679 | V20: =SUM('Statistics NZ'!V$20,$C$12/5*(V$8-V$9)*1000)*('Economic Forecasts'!X$10-'Economic Forecasts'!X$9)*1000000/SUM('Statistics NZ'!V$15:V$29,'Statistics NZ'!V$115:V$129,SUM($B$12:$D$13)*(V$8-V$9)*1000) -> 32579.18091 | W20: =SUM('Statistics NZ'!W$20,$C$12/5*(W$8-W$9)*1000)*('Economic Forecasts'!Y$10-'Economic Forecasts'!Y$9)*1000000/SUM('Statistics NZ'!W$15:W$29,'Statistics NZ'!W$115:W$129,SUM($B$12:$D$13)*(W$8-W$9)*1000) -> 33260.03476 | X20: =SUM('Statistics NZ'!X$20,$C$12/5*(X$8-X$9)*1000)*('Economic Forecasts'!Z$10-'Economic Forecasts'!Z$9)*1000000/SUM('Statistics NZ'!X$15:X$29,'Statistics NZ'!X$115:X$129,SUM($B$12:$D$13)*(X$8-X$9)*1000) -> 30848.77964 | Y20: =SUM('Statistics NZ'!Y$20,$C$12/5*(Y$8-Y$9)*1000)*('Economic Forecasts'!AA$10-'Economic Forecasts'!AA$9)*1000000/SUM('Statistics NZ'!Y$15:Y$29,'Statistics NZ'!Y$115:Y$129,SUM($B$12:$D$13)*(Y$8-Y$9)*1000) -> 31373.59519 | Z20: =SUM('Statistics NZ'!Z$20,$C$12/5*(Z$8-Z$9)*1000)*('Economic Forecasts'!AB$10-'Economic Forecasts'!AB$9)*1000000/SUM('Statistics NZ'!Z$15:Z$29,'Statistics NZ'!Z$115:Z$129,SUM($B$12:$D$13)*(Z$8-Z$9)*1000) -> 32316.12507 | AA20: =SUM(Z$20,'Statistics NZ'!AA$20-'Statistics NZ'!Z$20,$C$12/5*(AA$8-AA$9)*1000) -> 32392.61897 | AB20: =SUM(AA$20,'Statistics NZ'!AB$20-'Statistics NZ'!AA$20,$C$12/5*(AB$8-AB$9)*1000) -> 32433.34 | AC20: =SUM(AB$20,'Statistics NZ'!AC$20-'Statistics NZ'!AB$20,$C$12/5*(AC$8-AC$9)*1000) -> 32439.11286 | AD20: =SUM(AC$20,'Statistics NZ'!AD$20-'Statistics NZ'!AC$20,$C$12/5*(AD$8-AD$9)*1000) -> 32439.11286 | AE20: =SUM(AD$20,'Statistics NZ'!AE$20-'Statistics NZ'!AD$20,$C$12/5*(AE$8-AE$9)*1000) -> 32439.11286 | AF20: =SUM(AE$20,'Statistics NZ'!AF$20-'Statistics NZ'!AE$20,$C$12/5*(AF$8-AF$9)*1000) -> 32459.11286 | AG20: =SUM(AF$20,'Statistics NZ'!AG$20-'Statistics NZ'!AF$20,$C$12/5*(AG$8-AG$9)*1000) -> 32489.11286 | AH20: =SUM(AG$20,'Statistics NZ'!AH$20-'Statistics NZ'!AG$20,$C$12/5*(AH$8-AH$9)*1000) -> 32549.11286 | AI20: =SUM(AH$20,'Statistics NZ'!AI$20-'Statistics NZ'!AH$20,$C$12/5*(AI$8-AI$9)*1000) -> 32639.11286 | AJ20: =SUM(AI$20,'Statistics NZ'!AJ$20-'Statistics NZ'!AI$20,$C$12/5*(AJ$8-AJ$9)*1000) -> 32769.11286
A21: 6 | B21: ='Statistics NZ'!B$21*('Economic Forecasts'!D$10-'Economic Forecasts'!D$9)*1000000/SUM('Statistics NZ'!B$15:B$29,'Statistics NZ'!B$115:B$129) -> 30650.8291 | C21: ='Statistics NZ'!C$21*('Economic Forecasts'!E$10-'Economic Forecasts'!E$9)*1000000/SUM('Statistics NZ'!C$15:C$29,'Statistics NZ'!C$115:C$129) -> 30164.51027 | D21: ='Statistics NZ'!D$21*('Economic Forecasts'!F$10-'Economic Forecasts'!F$9)*1000000/SUM('Statistics NZ'!D$15:D$29,'Statistics NZ'!D$115:D$129) -> 29377.89416 | E21: ='Statistics NZ'!E$21*('Economic Forecasts'!G$10-'Economic Forecasts'!G$9)*1000000/SUM('Statistics NZ'!E$15:E$29,'Statistics NZ'!E$115:E$129) -> 29296.61658 | F21: ='Statistics NZ'!F$21*('Economic Forecasts'!H$10-'Economic Forecasts'!H$9)*1000000/SUM('Statistics NZ'!F$15:F$29,'Statistics NZ'!F$115:F$129) -> 30174.08109 | G21: ='Statistics NZ'!G$21*('Economic Forecasts'!I$10-'Economic Forecasts'!I$9)*1000000/SUM('Statistics NZ'!G$15:G$29,'Statistics NZ'!G$115:G$129) -> 29951.59601 | H21: ='Statistics NZ'!H$21*('Economic Forecasts'!J$10-'Economic Forecasts'!J$9)*1000000/SUM('Statistics NZ'!H$15:H$29,'Statistics NZ'!H$115:H$129) -> 30637.22096 | I21: ='Statistics NZ'!I$21*('Economic Forecasts'!K$10-'Economic Forecasts'!K$9)*1000000/SUM('Statistics NZ'!I$15:I$29,'Statistics NZ'!I$115:I$129) -> 31941.7027 | J21: ='Statistics NZ'!J$21*('Economic Forecasts'!L$10-'Economic Forecasts'!L$9)*1000000/SUM('Statistics NZ'!J$15:J$29,'Statistics NZ'!J$115:J$129) -> 33272.66565 | K21: ='Statistics NZ'!K$21*('Economic Forecasts'!M$10-'Economic Forecasts'!M$9)*1000000/SUM('Statistics NZ'!K$15:K$29,'Statistics NZ'!K$115:K$129) -> 33045.0352 | L21: ='Statistics NZ'!L$21*('Economic Forecasts'!N$10-'Economic Forecasts'!N$9)*1000000/SUM('Statistics NZ'!L$15:L$29,'Statistics NZ'!L$115:L$129) -> 34165.52205 | M21: ='Statistics NZ'!M$21*('Economic Forecasts'!O$10-'Economic Forecasts'!O$9)*1000000/SUM('Statistics NZ'!M$15:M$29,'Statistics NZ'!M$115:M$129) -> 33629.92752 | N21: ='Statistics NZ'!N$21*('Economic Forecasts'!P$10-'Economic Forecasts'!P$9)*1000000/SUM('Statistics NZ'!N$15:N$29,'Statistics NZ'!N$115:N$129) -> 33680.67134 | O21: ='Statistics NZ'!O$21*('Economic Forecasts'!Q$10-'Economic Forecasts'!Q$9)*1000000/SUM('Statistics NZ'!O$15:O$29,'Statistics NZ'!O$115:O$129) -> 33478.41635 | P21: ='Statistics NZ'!P$21*('Economic Forecasts'!R$10-'Economic Forecasts'!R$9)*1000000/SUM('Statistics NZ'!P$15:P$29,'Statistics NZ'!P$115:P$129) -> 32801.36472 | Q21: ='Statistics NZ'!Q$21*('Economic Forecasts'!S$10-'Economic Forecasts'!S$9)*1000000/SUM('Statistics NZ'!Q$15:Q$29,'Statistics NZ'!Q$115:Q$129) -> 32601.60484 | R21: ='Statistics NZ'!R$21*('Economic Forecasts'!T$10-'Economic Forecasts'!T$9)*1000000/SUM('Statistics NZ'!R$15:R$29,'Statistics NZ'!R$115:R$129) -> 32131.69747 | S21: ='Statistics NZ'!S$21*('Economic Forecasts'!U$10-'Economic Forecasts'!U$9)*1000000/SUM('Statistics NZ'!S$15:S$29,'Statistics NZ'!S$115:S$129) -> 33273.83734 | T21: ='Statistics NZ'!T$21*('Economic Forecasts'!V$10-'Economic Forecasts'!V$9)*1000000/SUM('Statistics NZ'!T$15:T$29,'Statistics NZ'!T$115:T$129) -> 32989.07669 | U21: =SUM('Statistics NZ'!U$21,$C$12/5*(U$8-U$9)*1000)*('Economic Forecasts'!W$10-'Economic Forecasts'!W$9)*1000000/SUM('Statistics NZ'!U$15:U$29,'Statistics NZ'!U$115:U$129,SUM($B$12:$D$13)*(U$8-U$9)*1000) -> 32991.49674 | V21: =SUM('Statistics NZ'!V$21,$C$12/5*(V$8-V$9)*1000)*('Economic Forecasts'!X$10-'Economic Forecasts'!X$9)*1000000/SUM('Statistics NZ'!V$15:V$29,'Statistics NZ'!V$115:V$129,SUM($B$12:$D$13)*(V$8-V$9)*1000) -> 32706.50486 | W21: =SUM('Statistics NZ'!W$21,$C$12/5*(W$8-W$9)*1000)*('Economic Forecasts'!Y$10-'Economic Forecasts'!Y$9)*1000000/SUM('Statistics NZ'!W$15:W$29,'Statistics NZ'!W$115:W$129,SUM($B$12:$D$13)*(W$8-W$9)*1000) -> 33227.88014 | X21: =SUM('Statistics NZ'!X$21,$C$12/5*(X$8-X$9)*1000)*('Economic Forecasts'!Z$10-'Economic Forecasts'!Z$9)*1000000/SUM('Statistics NZ'!X$15:X$29,'Statistics NZ'!X$115:X$129,SUM($B$12:$D$13)*(X$8-X$9)*1000) -> 33962.17596 | Y21: =SUM('Statistics NZ'!Y$21,$C$12/5*(Y$8-Y$9)*1000)*('Economic Forecasts'!AA$10-'Economic Forecasts'!AA$9)*1000000/SUM('Statistics NZ'!Y$15:Y$29,'Statistics NZ'!Y$115:Y$129,SUM($B$12:$D$13)*(Y$8-Y$9)*1000) -> 31505.27253 | Z21: =SUM('Statistics NZ'!Z$21,$C$12/5*(Z$8-Z$9)*1000)*('Economic Forecasts'!AB$10-'Economic Forecasts'!AB$9)*1000000/SUM('Statistics NZ'!Z$15:Z$29,'Statistics NZ'!Z$115:Z$129,SUM($B$12:$D$13)*(Z$8-Z$9)*1000) -> 32038.62784 | AA21: =SUM(Z$21,'Statistics NZ'!AA$21-'Statistics NZ'!Z$21,$C$12/5*(AA$8-AA$9)*1000) -> 32595.12173 | AB21: =SUM(AA$21,'Statistics NZ'!AB$21-'Statistics NZ'!AA$21,$C$12/5*(AB$8-AB$9)*1000) -> 32665.84276 | AC21: =SUM(AB$21,'Statistics NZ'!AC$21-'Statistics NZ'!AB$21,$C$12/5*(AC$8-AC$9)*1000) -> 32701.61562 | AD21: =SUM(AC$21,'Statistics NZ'!AD$21-'Statistics NZ'!AC$21,$C$12/5*(AD$8-AD$9)*1000) -> 32711.61562 | AE21: =SUM(AD$21,'Statistics NZ'!AE$21-'Statistics NZ'!AD$21,$C$12/5*(AE$8-AE$9)*1000) -> 32711.61562 | AF21: =SUM(AE$21,'Statistics NZ'!AF$21-'Statistics NZ'!AE$21,$C$12/5*(AF$8-AF$9)*1000) -> 32721.61562 | AG21: =SUM(AF$21,'Statistics NZ'!AG$21-'Statistics NZ'!AF$21,$C$12/5*(AG$8-AG$9)*1000) -> 32731.61562 | AH21: =SUM(AG$21,'Statistics NZ'!AH$21-'Statistics NZ'!AG$21,$C$12/5*(AH$8-AH$9)*1000) -> 32761.61562 | AI21: =SUM(AH$21,'Statistics NZ'!AI$21-'Statistics NZ'!AH$21,$C$12/5*(AI$8-AI$9)*1000) -> 32831.61562 | AJ21: =SUM(AI$21,'Statistics NZ'!AJ$21-'Statistics NZ'!AI$21,$C$12/5*(AJ$8-AJ$9)*1000) -> 32921.61562
A22: 7 | B22: ='Statistics NZ'!B$22*('Economic Forecasts'!D$10-'Economic Forecasts'!D$9)*1000000/SUM('Statistics NZ'!B$15:B$29,'Statistics NZ'!B$115:B$129) -> 29664.82872 | C22: ='Statistics NZ'!C$22*('Economic Forecasts'!E$10-'Economic Forecasts'!E$9)*1000000/SUM('Statistics NZ'!C$15:C$29,'Statistics NZ'!C$115:C$129) -> 30733.65197 | D22: ='Statistics NZ'!D$22*('Economic Forecasts'!F$10-'Economic Forecasts'!F$9)*1000000/SUM('Statistics NZ'!D$15:D$29,'Statistics NZ'!D$115:D$129) -> 30326.92879 | E22: ='Statistics NZ'!E$22*('Economic Forecasts'!G$10-'Economic Forecasts'!G$9)*1000000/SUM('Statistics NZ'!E$15:E$29,'Statistics NZ'!E$115:E$129) -> 29528.71077 | F22: ='Statistics NZ'!F$22*('Economic Forecasts'!H$10-'Economic Forecasts'!H$9)*1000000/SUM('Statistics NZ'!F$15:F$29,'Statistics NZ'!F$115:F$129) -> 29434.26124 | G22: ='Statistics NZ'!G$22*('Economic Forecasts'!I$10-'Economic Forecasts'!I$9)*1000000/SUM('Statistics NZ'!G$15:G$29,'Statistics NZ'!G$115:G$129) -> 30279.80367 | H22: ='Statistics NZ'!H$22*('Economic Forecasts'!J$10-'Economic Forecasts'!J$9)*1000000/SUM('Statistics NZ'!H$15:H$29,'Statistics NZ'!H$115:H$129) -> 29895.14294 | I22: ='Statistics NZ'!I$22*('Economic Forecasts'!K$10-'Economic Forecasts'!K$9)*1000000/SUM('Statistics NZ'!I$15:I$29,'Statistics NZ'!I$115:I$129) -> 30602.38339 | J22: ='Statistics NZ'!J$22*('Economic Forecasts'!L$10-'Economic Forecasts'!L$9)*1000000/SUM('Statistics NZ'!J$15:J$29,'Statistics NZ'!J$115:J$129) -> 32173.53654 | K22: ='Statistics NZ'!K$22*('Economic Forecasts'!M$10-'Economic Forecasts'!M$9)*1000000/SUM('Statistics NZ'!K$15:K$29,'Statistics NZ'!K$115:K$129) -> 33516.03668 | L22: ='Statistics NZ'!L$22*('Economic Forecasts'!N$10-'Economic Forecasts'!N$9)*1000000/SUM('Statistics NZ'!L$15:L$29,'Statistics NZ'!L$115:L$129) -> 33193.6363 | M22: ='Statistics NZ'!M$22*('Economic Forecasts'!O$10-'Economic Forecasts'!O$9)*1000000/SUM('Statistics NZ'!M$15:M$29,'Statistics NZ'!M$115:M$129) -> 34180.71689 | N22: ='Statistics NZ'!N$22*('Economic Forecasts'!P$10-'Economic Forecasts'!P$9)*1000000/SUM('Statistics NZ'!N$15:N$29,'Statistics NZ'!N$115:N$129) -> 33913.46266 | O22: ='Statistics NZ'!O$22*('Economic Forecasts'!Q$10-'Economic Forecasts'!Q$9)*1000000/SUM('Statistics NZ'!O$15:O$29,'Statistics NZ'!O$115:O$129) -> 33793.35912 | P22: ='Statistics NZ'!P$22*('Economic Forecasts'!R$10-'Economic Forecasts'!R$9)*1000000/SUM('Statistics NZ'!P$15:P$29,'Statistics NZ'!P$115:P$129) -> 34162.81133 | Q22: ='Statistics NZ'!Q$22*('Economic Forecasts'!S$10-'Economic Forecasts'!S$9)*1000000/SUM('Statistics NZ'!Q$15:Q$29,'Statistics NZ'!Q$115:Q$129) -> 32737.92548 | R22: ='Statistics NZ'!R$22*('Economic Forecasts'!T$10-'Economic Forecasts'!T$9)*1000000/SUM('Statistics NZ'!R$15:R$29,'Statistics NZ'!R$115:R$129) -> 32783.79739 | S22: ='Statistics NZ'!S$22*('Economic Forecasts'!U$10-'Economic Forecasts'!U$9)*1000000/SUM('Statistics NZ'!S$15:S$29,'Statistics NZ'!S$115:S$129) -> 33030.26692 | T22: ='Statistics NZ'!T$22*('Economic Forecasts'!V$10-'Economic Forecasts'!V$9)*1000000/SUM('Statistics NZ'!T$15:T$29,'Statistics NZ'!T$115:T$129) -> 33918.34645 | U22: =SUM('Statistics NZ'!U$22,$C$12/5*(U$8-U$9)*1000)*('Economic Forecasts'!W$10-'Economic Forecasts'!W$9)*1000000/SUM('Statistics NZ'!U$15:U$29,'Statistics NZ'!U$115:U$129,SUM($B$12:$D$13)*(U$8-U$9)*1000) -> 33246.15254 | V22: =SUM('Statistics NZ'!V$22,$C$12/5*(V$8-V$9)*1000)*('Economic Forecasts'!X$10-'Economic Forecasts'!X$9)*1000000/SUM('Statistics NZ'!V$15:V$29,'Statistics NZ'!V$115:V$129,SUM($B$12:$D$13)*(V$8-V$9)*1000) -> 33343.12462 | W22: =SUM('Statistics NZ'!W$22,$C$12/5*(W$8-W$9)*1000)*('Economic Forecasts'!Y$10-'Economic Forecasts'!Y$9)*1000000/SUM('Statistics NZ'!W$15:W$29,'Statistics NZ'!W$115:W$129,SUM($B$12:$D$13)*(W$8-W$9)*1000) -> 33367.21685 | X22: =SUM('Statistics NZ'!X$22,$C$12/5*(X$8-X$9)*1000)*('Economic Forecasts'!Z$10-'Economic Forecasts'!Z$9)*1000000/SUM('Statistics NZ'!X$15:X$29,'Statistics NZ'!X$115:X$129,SUM($B$12:$D$13)*(X$8-X$9)*1000) -> 33940.47982 | Y22: =SUM('Statistics NZ'!Y$22,$C$12/5*(Y$8-Y$9)*1000)*('Economic Forecasts'!AA$10-'Economic Forecasts'!AA$9)*1000000/SUM('Statistics NZ'!Y$15:Y$29,'Statistics NZ'!Y$115:Y$129,SUM($B$12:$D$13)*(Y$8-Y$9)*1000) -> 34665.52872 | Z22: =SUM('Statistics NZ'!Z$22,$C$12/5*(Z$8-Z$9)*1000)*('Economic Forecasts'!AB$10-'Economic Forecasts'!AB$9)*1000000/SUM('Statistics NZ'!Z$15:Z$29,'Statistics NZ'!Z$115:Z$129,SUM($B$12:$D$13)*(Z$8-Z$9)*1000) -> 32194.02629 | AA22: =SUM(Z$22,'Statistics NZ'!AA$22-'Statistics NZ'!Z$22,$C$12/5*(AA$8-AA$9)*1000) -> 32370.52018 | AB22: =SUM(AA$22,'Statistics NZ'!AB$22-'Statistics NZ'!AA$22,$C$12/5*(AB$8-AB$9)*1000) -> 32931.24121 | AC22: =SUM(AB$22,'Statistics NZ'!AC$22-'Statistics NZ'!AB$22,$C$12/5*(AC$8-AC$9)*1000) -> 32997.01408 | AD22: =SUM(AC$22,'Statistics NZ'!AD$22-'Statistics NZ'!AC$22,$C$12/5*(AD$8-AD$9)*1000) -> 33027.01408 | AE22: =SUM(AD$22,'Statistics NZ'!AE$22-'Statistics NZ'!AD$22,$C$12/5*(AE$8-AE$9)*1000) -> 33037.01408 | AF22: =SUM(AE$22,'Statistics NZ'!AF$22-'Statistics NZ'!AE$22,$C$12/5*(AF$8-AF$9)*1000) -> 33037.01408 | AG22: =SUM(AF$22,'Statistics NZ'!AG$22-'Statistics NZ'!AF$22,$C$12/5*(AG$8-AG$9)*1000) -> 33047.01408 | AH22: =SUM(AG$22,'Statistics NZ'!AH$22-'Statistics NZ'!AG$22,$C$12/5*(AH$8-AH$9)*1000) -> 33067.01408 | AI22: =SUM(AH$22,'Statistics NZ'!AI$22-'Statistics NZ'!AH$22,$C$12/5*(AI$8-AI$9)*1000) -> 33097.01408 | AJ22: =SUM(AI$22,'Statistics NZ'!AJ$22-'Statistics NZ'!AI$22,$C$12/5*(AJ$8-AJ$9)*1000) -> 33167.01408
A23: 8 | B23: ='Statistics NZ'!B$23*('Economic Forecasts'!D$10-'Economic Forecasts'!D$9)*1000000/SUM('Statistics NZ'!B$15:B$29,'Statistics NZ'!B$115:B$129) -> 30343.36662 | C23: ='Statistics NZ'!C$23*('Economic Forecasts'!E$10-'Economic Forecasts'!E$9)*1000000/SUM('Statistics NZ'!C$15:C$29,'Statistics NZ'!C$115:C$129) -> 29753.46348 | D23: ='Statistics NZ'!D$23*('Economic Forecasts'!F$10-'Economic Forecasts'!F$9)*1000000/SUM('Statistics NZ'!D$15:D$29,'Statistics NZ'!D$115:D$129) -> 30938.52888 | E23: ='Statistics NZ'!E$23*('Economic Forecasts'!G$10-'Economic Forecasts'!G$9)*1000000/SUM('Statistics NZ'!E$15:E$29,'Statistics NZ'!E$115:E$129) -> 30541.48542 | F23: ='Statistics NZ'!F$23*('Economic Forecasts'!H$10-'Economic Forecasts'!H$9)*1000000/SUM('Statistics NZ'!F$15:F$29,'Statistics NZ'!F$115:F$129) -> 29719.62032 | G23: ='Statistics NZ'!G$23*('Economic Forecasts'!I$10-'Economic Forecasts'!I$9)*1000000/SUM('Statistics NZ'!G$15:G$29,'Statistics NZ'!G$115:G$129) -> 29549.27694 | H23: ='Statistics NZ'!H$23*('Economic Forecasts'!J$10-'Economic Forecasts'!J$9)*1000000/SUM('Statistics NZ'!H$15:H$29,'Statistics NZ'!H$115:H$129) -> 30202.57526 | I23: ='Statistics NZ'!I$23*('Economic Forecasts'!K$10-'Economic Forecasts'!K$9)*1000000/SUM('Statistics NZ'!I$15:I$29,'Statistics NZ'!I$115:I$129) -> 29911.46469 | J23: ='Statistics NZ'!J$23*('Economic Forecasts'!L$10-'Economic Forecasts'!L$9)*1000000/SUM('Statistics NZ'!J$15:J$29,'Statistics NZ'!J$115:J$129) -> 30850.31315 | K23: ='Statistics NZ'!K$23*('Economic Forecasts'!M$10-'Economic Forecasts'!M$9)*1000000/SUM('Statistics NZ'!K$15:K$29,'Statistics NZ'!K$115:K$129) -> 32456.28336 | L23: ='Statistics NZ'!L$23*('Economic Forecasts'!N$10-'Economic Forecasts'!N$9)*1000000/SUM('Statistics NZ'!L$15:L$29,'Statistics NZ'!L$115:L$129) -> 33706.27934 | M23: ='Statistics NZ'!M$23*('Economic Forecasts'!O$10-'Economic Forecasts'!O$9)*1000000/SUM('Statistics NZ'!M$15:M$29,'Statistics NZ'!M$115:M$129) -> 33238.0197 | N23: ='Statistics NZ'!N$23*('Economic Forecasts'!P$10-'Economic Forecasts'!P$9)*1000000/SUM('Statistics NZ'!N$15:N$29,'Statistics NZ'!N$115:N$129) -> 34389.62672 | O23: ='Statistics NZ'!O$23*('Economic Forecasts'!Q$10-'Economic Forecasts'!Q$9)*1000000/SUM('Statistics NZ'!O$15:O$29,'Statistics NZ'!O$115:O$129) -> 34076.80761 | P23: ='Statistics NZ'!P$23*('Economic Forecasts'!R$10-'Economic Forecasts'!R$9)*1000000/SUM('Statistics NZ'!P$15:P$29,'Statistics NZ'!P$115:P$129) -> 34458.31912 | Q23: ='Statistics NZ'!Q$23*('Economic Forecasts'!S$10-'Economic Forecasts'!S$9)*1000000/SUM('Statistics NZ'!Q$15:Q$29,'Statistics NZ'!Q$115:Q$129) -> 34101.13186 | R23: ='Statistics NZ'!R$23*('Economic Forecasts'!T$10-'Economic Forecasts'!T$9)*1000000/SUM('Statistics NZ'!R$15:R$29,'Statistics NZ'!R$115:R$129) -> 32931.04576 | S23: ='Statistics NZ'!S$23*('Economic Forecasts'!U$10-'Economic Forecasts'!U$9)*1000000/SUM('Statistics NZ'!S$15:S$29,'Statistics NZ'!S$115:S$129) -> 33750.38816 | T23: ='Statistics NZ'!T$23*('Economic Forecasts'!V$10-'Economic Forecasts'!V$9)*1000000/SUM('Statistics NZ'!T$15:T$29,'Statistics NZ'!T$115:T$129) -> 33696.5889 | U23: =SUM('Statistics NZ'!U$23,$C$12/5*(U$8-U$9)*1000)*('Economic Forecasts'!W$10-'Economic Forecasts'!W$9)*1000000/SUM('Statistics NZ'!U$15:U$29,'Statistics NZ'!U$115:U$129,SUM($B$12:$D$13)*(U$8-U$9)*1000) -> 34179.89048 | V23: =SUM('Statistics NZ'!V$23,$C$12/5*(V$8-V$9)*1000)*('Economic Forecasts'!X$10-'Economic Forecasts'!X$9)*1000000/SUM('Statistics NZ'!V$15:V$29,'Statistics NZ'!V$115:V$129,SUM($B$12:$D$13)*(V$8-V$9)*1000) -> 33597.77252 | W23: =SUM('Statistics NZ'!W$23,$C$12/5*(W$8-W$9)*1000)*('Economic Forecasts'!Y$10-'Economic Forecasts'!Y$9)*1000000/SUM('Statistics NZ'!W$15:W$29,'Statistics NZ'!W$115:W$129,SUM($B$12:$D$13)*(W$8-W$9)*1000) -> 34010.30934 | X23: =SUM('Statistics NZ'!X$23,$C$12/5*(X$8-X$9)*1000)*('Economic Forecasts'!Z$10-'Economic Forecasts'!Z$9)*1000000/SUM('Statistics NZ'!X$15:X$29,'Statistics NZ'!X$115:X$129,SUM($B$12:$D$13)*(X$8-X$9)*1000) -> 34081.50474 | Y23: =SUM('Statistics NZ'!Y$23,$C$12/5*(Y$8-Y$9)*1000)*('Economic Forecasts'!AA$10-'Economic Forecasts'!AA$9)*1000000/SUM('Statistics NZ'!Y$15:Y$29,'Statistics NZ'!Y$115:Y$129,SUM($B$12:$D$13)*(Y$8-Y$9)*1000) -> 34643.5825 | Z23: =SUM('Statistics NZ'!Z$23,$C$12/5*(Z$8-Z$9)*1000)*('Economic Forecasts'!AB$10-'Economic Forecasts'!AB$9)*1000000/SUM('Statistics NZ'!Z$15:Z$29,'Statistics NZ'!Z$115:Z$129,SUM($B$12:$D$13)*(Z$8-Z$9)*1000) -> 35390.79445 | AA23: =SUM(Z$23,'Statistics NZ'!AA$23-'Statistics NZ'!Z$23,$C$12/5*(AA$8-AA$9)*1000) -> 32827.28835 | AB23: =SUM(AA$23,'Statistics NZ'!AB$23-'Statistics NZ'!AA$23,$C$12/5*(AB$8-AB$9)*1000) -> 33008.00938 | AC23: =SUM(AB$23,'Statistics NZ'!AC$23-'Statistics NZ'!AB$23,$C$12/5*(AC$8-AC$9)*1000) -> 33553.78224 | AD23: =SUM(AC$23,'Statistics NZ'!AD$23-'Statistics NZ'!AC$23,$C$12/5*(AD$8-AD$9)*1000) -> 33613.78224 | AE23: =SUM(AD$23,'Statistics NZ'!AE$23-'Statistics NZ'!AD$23,$C$12/5*(AE$8-AE$9)*1000) -> 33653.78224 | AF23: =SUM(AE$23,'Statistics NZ'!AF$23-'Statistics NZ'!AE$23,$C$12/5*(AF$8-AF$9)*1000) -> 33663.78224 | AG23: =SUM(AF$23,'Statistics NZ'!AG$23-'Statistics NZ'!AF$23,$C$12/5*(AG$8-AG$9)*1000) -> 33673.78224 | AH23: =SUM(AG$23,'Statistics NZ'!AH$23-'Statistics NZ'!AG$23,$C$12/5*(AH$8-AH$9)*1000) -> 33673.78224 | AI23: =SUM(AH$23,'Statistics NZ'!AI$23-'Statistics NZ'!AH$23,$C$12/5*(AI$8-AI$9)*1000) -> 33693.78224 | AJ23: =SUM(AI$23,'Statistics NZ'!AJ$23-'Statistics NZ'!AI$23,$C$12/5*(AJ$8-AJ$9)*1000) -> 33733.78224
A24: 9 | B24: ='Statistics NZ'!B$24*('Economic Forecasts'!D$10-'Economic Forecasts'!D$9)*1000000/SUM('Statistics NZ'!B$15:B$29,'Statistics NZ'!B$115:B$129) -> 30502.39894 | C24: ='Statistics NZ'!C$24*('Economic Forecasts'!E$10-'Economic Forecasts'!E$9)*1000000/SUM('Statistics NZ'!C$15:C$29,'Statistics NZ'!C$115:C$129) -> 30470.16044 | D24: ='Statistics NZ'!D$24*('Economic Forecasts'!F$10-'Economic Forecasts'!F$9)*1000000/SUM('Statistics NZ'!D$15:D$29,'Statistics NZ'!D$115:D$129) -> 29936.77011 | E24: ='Statistics NZ'!E$24*('Economic Forecasts'!G$10-'Economic Forecasts'!G$9)*1000000/SUM('Statistics NZ'!E$15:E$29,'Statistics NZ'!E$115:E$129) -> 31174.46957 | F24: ='Statistics NZ'!F$24*('Economic Forecasts'!H$10-'Economic Forecasts'!H$9)*1000000/SUM('Statistics NZ'!F$15:F$29,'Statistics NZ'!F$115:F$129) -> 30808.21239 | G24: ='Statistics NZ'!G$24*('Economic Forecasts'!I$10-'Economic Forecasts'!I$9)*1000000/SUM('Statistics NZ'!G$15:G$29,'Statistics NZ'!G$115:G$129) -> 29866.89726 | H24: ='Statistics NZ'!H$24*('Economic Forecasts'!J$10-'Economic Forecasts'!J$9)*1000000/SUM('Statistics NZ'!H$15:H$29,'Statistics NZ'!H$115:H$129) -> 29524.10393 | I24: ='Statistics NZ'!I$24*('Economic Forecasts'!K$10-'Economic Forecasts'!K$9)*1000000/SUM('Statistics NZ'!I$15:I$29,'Statistics NZ'!I$115:I$129) -> 30219.72073 | J24: ='Statistics NZ'!J$24*('Economic Forecasts'!L$10-'Economic Forecasts'!L$9)*1000000/SUM('Statistics NZ'!J$15:J$29,'Statistics NZ'!J$115:J$129) -> 30188.70145 | K24: ='Statistics NZ'!K$24*('Economic Forecasts'!M$10-'Economic Forecasts'!M$9)*1000000/SUM('Statistics NZ'!K$15:K$29,'Statistics NZ'!K$115:K$129) -> 31171.73389 | L24: ='Statistics NZ'!L$24*('Economic Forecasts'!N$10-'Economic Forecasts'!N$9)*1000000/SUM('Statistics NZ'!L$15:L$29,'Statistics NZ'!L$115:L$129) -> 32670.31321 | M24: ='Statistics NZ'!M$24*('Economic Forecasts'!O$10-'Economic Forecasts'!O$9)*1000000/SUM('Statistics NZ'!M$15:M$29,'Statistics NZ'!M$115:M$129) -> 33788.80907 | N24: ='Statistics NZ'!N$24*('Economic Forecasts'!P$10-'Economic Forecasts'!P$9)*1000000/SUM('Statistics NZ'!N$15:N$29,'Statistics NZ'!N$115:N$129) -> 33479.62429 | O24: ='Statistics NZ'!O$24*('Economic Forecasts'!Q$10-'Economic Forecasts'!Q$9)*1000000/SUM('Statistics NZ'!O$15:O$29,'Statistics NZ'!O$115:O$129) -> 34454.73893 | P24: ='Statistics NZ'!P$24*('Economic Forecasts'!R$10-'Economic Forecasts'!R$9)*1000000/SUM('Statistics NZ'!P$15:P$29,'Statistics NZ'!P$115:P$129) -> 34743.27306 | Q24: ='Statistics NZ'!Q$24*('Economic Forecasts'!S$10-'Economic Forecasts'!S$9)*1000000/SUM('Statistics NZ'!Q$15:Q$29,'Statistics NZ'!Q$115:Q$129) -> 34363.28693 | R24: ='Statistics NZ'!R$24*('Economic Forecasts'!T$10-'Economic Forecasts'!T$9)*1000000/SUM('Statistics NZ'!R$15:R$29,'Statistics NZ'!R$115:R$129) -> 34256.28107 | S24: ='Statistics NZ'!S$24*('Economic Forecasts'!U$10-'Economic Forecasts'!U$9)*1000000/SUM('Statistics NZ'!S$15:S$29,'Statistics NZ'!S$115:S$129) -> 33930.41847 | T24: ='Statistics NZ'!T$24*('Economic Forecasts'!V$10-'Economic Forecasts'!V$9)*1000000/SUM('Statistics NZ'!T$15:T$29,'Statistics NZ'!T$115:T$129) -> 34446.34064 | U24: =SUM('Statistics NZ'!U$24,$C$12/5*(U$8-U$9)*1000)*('Economic Forecasts'!W$10-'Economic Forecasts'!W$9)*1000000/SUM('Statistics NZ'!U$15:U$29,'Statistics NZ'!U$115:U$129,SUM($B$12:$D$13)*(U$8-U$9)*1000) -> 33957.06665 | V24: =SUM('Statistics NZ'!V$24,$C$12/5*(V$8-V$9)*1000)*('Economic Forecasts'!X$10-'Economic Forecasts'!X$9)*1000000/SUM('Statistics NZ'!V$15:V$29,'Statistics NZ'!V$115:V$129,SUM($B$12:$D$13)*(V$8-V$9)*1000) -> 34542.09182 | W24: =SUM('Statistics NZ'!W$24,$C$12/5*(W$8-W$9)*1000)*('Economic Forecasts'!Y$10-'Economic Forecasts'!Y$9)*1000000/SUM('Statistics NZ'!W$15:W$29,'Statistics NZ'!W$115:W$129,SUM($B$12:$D$13)*(W$8-W$9)*1000) -> 34267.54634 | X24: =SUM('Statistics NZ'!X$24,$C$12/5*(X$8-X$9)*1000)*('Economic Forecasts'!Z$10-'Economic Forecasts'!Z$9)*1000000/SUM('Statistics NZ'!X$15:X$29,'Statistics NZ'!X$115:X$129,SUM($B$12:$D$13)*(X$8-X$9)*1000) -> 34732.38899 | Y24: =SUM('Statistics NZ'!Y$24,$C$12/5*(Y$8-Y$9)*1000)*('Economic Forecasts'!AA$10-'Economic Forecasts'!AA$9)*1000000/SUM('Statistics NZ'!Y$15:Y$29,'Statistics NZ'!Y$115:Y$129,SUM($B$12:$D$13)*(Y$8-Y$9)*1000) -> 34775.25984 | Z24: =SUM('Statistics NZ'!Z$24,$C$12/5*(Z$8-Z$9)*1000)*('Economic Forecasts'!AB$10-'Economic Forecasts'!AB$9)*1000000/SUM('Statistics NZ'!Z$15:Z$29,'Statistics NZ'!Z$115:Z$129,SUM($B$12:$D$13)*(Z$8-Z$9)*1000) -> 35357.49478 | AA24: =SUM(Z$24,'Statistics NZ'!AA$24-'Statistics NZ'!Z$24,$C$12/5*(AA$8-AA$9)*1000) -> 35703.98868 | AB24: =SUM(AA$24,'Statistics NZ'!AB$24-'Statistics NZ'!AA$24,$C$12/5*(AB$8-AB$9)*1000) -> 33134.70971 | AC24: =SUM(AB$24,'Statistics NZ'!AC$24-'Statistics NZ'!AB$24,$C$12/5*(AC$8-AC$9)*1000) -> 33310.48257 | AD24: =SUM(AC$24,'Statistics NZ'!AD$24-'Statistics NZ'!AC$24,$C$12/5*(AD$8-AD$9)*1000) -> 33860.48257 | AE24: =SUM(AD$24,'Statistics NZ'!AE$24-'Statistics NZ'!AD$24,$C$12/5*(AE$8-AE$9)*1000) -> 33920.48257 | AF24: =SUM(AE$24,'Statistics NZ'!AF$24-'Statistics NZ'!AE$24,$C$12/5*(AF$8-AF$9)*1000) -> 33960.48257 | AG24: =SUM(AF$24,'Statistics NZ'!AG$24-'Statistics NZ'!AF$24,$C$12/5*(AG$8-AG$9)*1000) -> 33970.48257 | AH24: =SUM(AG$24,'Statistics NZ'!AH$24-'Statistics NZ'!AG$24,$C$12/5*(AH$8-AH$9)*1000) -> 33980.48257 | AI24: =SUM(AH$24,'Statistics NZ'!AI$24-'Statistics NZ'!AH$24,$C$12/5*(AI$8-AI$9)*1000) -> 33990.48257 | AJ24: =SUM(AI$24,'Statistics NZ'!AJ$24-'Statistics NZ'!AI$24,$C$12/5*(AJ$8-AJ$9)*1000) -> 34010.48257
A25: 10 | B25: ='Statistics NZ'!B$25*('Economic Forecasts'!D$10-'Economic Forecasts'!D$9)*1000000/SUM('Statistics NZ'!B$15:B$29,'Statistics NZ'!B$115:B$129) -> 31011.30236 | C25: ='Statistics NZ'!C$25*('Economic Forecasts'!E$10-'Economic Forecasts'!E$9)*1000000/SUM('Statistics NZ'!C$15:C$29,'Statistics NZ'!C$115:C$129) -> 30554.47773 | D25: ='Statistics NZ'!D$25*('Economic Forecasts'!F$10-'Economic Forecasts'!F$9)*1000000/SUM('Statistics NZ'!D$15:D$29,'Statistics NZ'!D$115:D$129) -> 30674.90815 | E25: ='Statistics NZ'!E$25*('Economic Forecasts'!G$10-'Economic Forecasts'!G$9)*1000000/SUM('Statistics NZ'!E$15:E$29,'Statistics NZ'!E$115:E$129) -> 30119.49598 | F25: ='Statistics NZ'!F$25*('Economic Forecasts'!H$10-'Economic Forecasts'!H$9)*1000000/SUM('Statistics NZ'!F$15:F$29,'Statistics NZ'!F$115:F$129) -> 31463.4814 | G25: ='Statistics NZ'!G$25*('Economic Forecasts'!I$10-'Economic Forecasts'!I$9)*1000000/SUM('Statistics NZ'!G$15:G$29,'Statistics NZ'!G$115:G$129) -> 31031.50509 | H25: ='Statistics NZ'!H$25*('Economic Forecasts'!J$10-'Economic Forecasts'!J$9)*1000000/SUM('Statistics NZ'!H$15:H$29,'Statistics NZ'!H$115:H$129) -> 29905.74406 | I25: ='Statistics NZ'!I$25*('Economic Forecasts'!K$10-'Economic Forecasts'!K$9)*1000000/SUM('Statistics NZ'!I$15:I$29,'Statistics NZ'!I$115:I$129) -> 29656.35625 | J25: ='Statistics NZ'!J$25*('Economic Forecasts'!L$10-'Economic Forecasts'!L$9)*1000000/SUM('Statistics NZ'!J$15:J$29,'Statistics NZ'!J$115:J$129) -> 30455.48036 | K25: ='Statistics NZ'!K$25*('Economic Forecasts'!M$10-'Economic Forecasts'!M$9)*1000000/SUM('Statistics NZ'!K$15:K$29,'Statistics NZ'!K$115:K$129) -> 30540.16373 | L25: ='Statistics NZ'!L$25*('Economic Forecasts'!N$10-'Economic Forecasts'!N$9)*1000000/SUM('Statistics NZ'!L$15:L$29,'Statistics NZ'!L$115:L$129) -> 31431.42588 | M25: ='Statistics NZ'!M$25*('Economic Forecasts'!O$10-'Economic Forecasts'!O$9)*1000000/SUM('Statistics NZ'!M$15:M$29,'Statistics NZ'!M$115:M$129) -> 32782.55927 | N25: ='Statistics NZ'!N$25*('Economic Forecasts'!P$10-'Economic Forecasts'!P$9)*1000000/SUM('Statistics NZ'!N$15:N$29,'Statistics NZ'!N$115:N$129) -> 33998.11404 | O25: ='Statistics NZ'!O$25*('Economic Forecasts'!Q$10-'Economic Forecasts'!Q$9)*1000000/SUM('Statistics NZ'!O$15:O$29,'Statistics NZ'!O$115:O$129) -> 33541.4049 | P25: ='Statistics NZ'!P$25*('Economic Forecasts'!R$10-'Economic Forecasts'!R$9)*1000000/SUM('Statistics NZ'!P$15:P$29,'Statistics NZ'!P$115:P$129) -> 35059.88855 | Q25: ='Statistics NZ'!Q$25*('Economic Forecasts'!S$10-'Economic Forecasts'!S$9)*1000000/SUM('Statistics NZ'!Q$15:Q$29,'Statistics NZ'!Q$115:Q$129) -> 34646.41441 | R25: ='Statistics NZ'!R$25*('Economic Forecasts'!T$10-'Economic Forecasts'!T$9)*1000000/SUM('Statistics NZ'!R$15:R$29,'Statistics NZ'!R$115:R$129) -> 34508.70684 | S25: ='Statistics NZ'!S$25*('Economic Forecasts'!U$10-'Economic Forecasts'!U$9)*1000000/SUM('Statistics NZ'!S$15:S$29,'Statistics NZ'!S$115:S$129) -> 35232.99071 | T25: ='Statistics NZ'!T$25*('Economic Forecasts'!V$10-'Economic Forecasts'!V$9)*1000000/SUM('Statistics NZ'!T$15:T$29,'Statistics NZ'!T$115:T$129) -> 34657.53831 | U25: =SUM('Statistics NZ'!U$25,$D$12/5*(U$8-U$9)*1000)*('Economic Forecasts'!W$10-'Economic Forecasts'!W$9)*1000000/SUM('Statistics NZ'!U$15:U$29,'Statistics NZ'!U$115:U$129,SUM($B$12:$D$13)*(U$8-U$9)*1000) -> 34724.00915 | V25: =SUM('Statistics NZ'!V$25,$D$12/5*(V$8-V$9)*1000)*('Economic Forecasts'!X$10-'Economic Forecasts'!X$9)*1000000/SUM('Statistics NZ'!V$15:V$29,'Statistics NZ'!V$115:V$129,SUM($B$12:$D$13)*(V$8-V$9)*1000) -> 34330.29716 | W25: =SUM('Statistics NZ'!W$25,$D$12/5*(W$8-W$9)*1000)*('Economic Forecasts'!Y$10-'Economic Forecasts'!Y$9)*1000000/SUM('Statistics NZ'!W$15:W$29,'Statistics NZ'!W$115:W$129,SUM($B$12:$D$13)*(W$8-W$9)*1000) -> 35231.30663 | X25: =SUM('Statistics NZ'!X$25,$D$12/5*(X$8-X$9)*1000)*('Economic Forecasts'!Z$10-'Economic Forecasts'!Z$9)*1000000/SUM('Statistics NZ'!X$15:X$29,'Statistics NZ'!X$115:X$129,SUM($B$12:$D$13)*(X$8-X$9)*1000) -> 35002.53788 | Y25: =SUM('Statistics NZ'!Y$25,$D$12/5*(Y$8-Y$9)*1000)*('Economic Forecasts'!AA$10-'Economic Forecasts'!AA$9)*1000000/SUM('Statistics NZ'!Y$15:Y$29,'Statistics NZ'!Y$115:Y$129,SUM($B$12:$D$13)*(Y$8-Y$9)*1000) -> 35454.69342 | Z25: =SUM('Statistics NZ'!Z$25,$D$12/5*(Z$8-Z$9)*1000)*('Economic Forecasts'!AB$10-'Economic Forecasts'!AB$9)*1000000/SUM('Statistics NZ'!Z$15:Z$29,'Statistics NZ'!Z$115:Z$129,SUM($B$12:$D$13)*(Z$8-Z$9)*1000) -> 35512.19896 | AA25: =SUM(Z$25,'Statistics NZ'!AA$25-'Statistics NZ'!Z$25,$D$12/5*(AA$8-AA$9)*1000) -> 35698.26149 | AB25: =SUM(AA$25,'Statistics NZ'!AB$25-'Statistics NZ'!AA$25,$D$12/5*(AB$8-AB$9)*1000) -> 36038.70213 | AC25: =SUM(AB$25,'Statistics NZ'!AC$25-'Statistics NZ'!AB$25,$D$12/5*(AC$8-AC$9)*1000) -> 33474.32402 | AD25: =SUM(AC$25,'Statistics NZ'!AD$25-'Statistics NZ'!AC$25,$D$12/5*(AD$8-AD$9)*1000) -> 33644.32402 | AE25: =SUM(AD$25,'Statistics NZ'!AE$25-'Statistics NZ'!AD$25,$D$12/5*(AE$8-AE$9)*1000) -> 34194.32402 | AF25: =SUM(AE$25,'Statistics NZ'!AF$25-'Statistics NZ'!AE$25,$D$12/5*(AF$8-AF$9)*1000) -> 34254.32402 | AG25: =SUM(AF$25,'Statistics NZ'!AG$25-'Statistics NZ'!AF$25,$D$12/5*(AG$8-AG$9)*1000) -> 34294.32402 | AH25: =SUM(AG$25,'Statistics NZ'!AH$25-'Statistics NZ'!AG$25,$D$12/5*(AH$8-AH$9)*1000) -> 34314.32402 | AI25: =SUM(AH$25,'Statistics NZ'!AI$25-'Statistics NZ'!AH$25,$D$12/5*(AI$8-AI$9)*1000) -> 34324.32402 | AJ25: =SUM(AI$25,'Statistics NZ'!AJ$25-'Statistics NZ'!AI$25,$D$12/5*(AJ$8-AJ$9)*1000) -> 34334.32402
A26: 11 | B26: ='Statistics NZ'!B$26*('Economic Forecasts'!D$10-'Economic Forecasts'!D$9)*1000000/SUM('Statistics NZ'!B$15:B$29,'Statistics NZ'!B$115:B$129) -> 31774.6575 | C26: ='Statistics NZ'!C$26*('Economic Forecasts'!E$10-'Economic Forecasts'!E$9)*1000000/SUM('Statistics NZ'!C$15:C$29,'Statistics NZ'!C$115:C$129) -> 31018.22282 | D26: ='Statistics NZ'!D$26*('Economic Forecasts'!F$10-'Economic Forecasts'!F$9)*1000000/SUM('Statistics NZ'!D$15:D$29,'Statistics NZ'!D$115:D$129) -> 30769.81162 | E26: ='Statistics NZ'!E$26*('Economic Forecasts'!G$10-'Economic Forecasts'!G$9)*1000000/SUM('Statistics NZ'!E$15:E$29,'Statistics NZ'!E$115:E$129) -> 30879.07697 | F26: ='Statistics NZ'!F$26*('Economic Forecasts'!H$10-'Economic Forecasts'!H$9)*1000000/SUM('Statistics NZ'!F$15:F$29,'Statistics NZ'!F$115:F$129) -> 30332.61391 | G26: ='Statistics NZ'!G$26*('Economic Forecasts'!I$10-'Economic Forecasts'!I$9)*1000000/SUM('Statistics NZ'!G$15:G$29,'Statistics NZ'!G$115:G$129) -> 31634.98369 | H26: ='Statistics NZ'!H$26*('Economic Forecasts'!J$10-'Economic Forecasts'!J$9)*1000000/SUM('Statistics NZ'!H$15:H$29,'Statistics NZ'!H$115:H$129) -> 31146.07446 | I26: ='Statistics NZ'!I$26*('Economic Forecasts'!K$10-'Economic Forecasts'!K$9)*1000000/SUM('Statistics NZ'!I$15:I$29,'Statistics NZ'!I$115:I$129) -> 30060.27795 | J26: ='Statistics NZ'!J$26*('Economic Forecasts'!L$10-'Economic Forecasts'!L$9)*1000000/SUM('Statistics NZ'!J$15:J$29,'Statistics NZ'!J$115:J$129) -> 29921.92254 | K26: ='Statistics NZ'!K$26*('Economic Forecasts'!M$10-'Economic Forecasts'!M$9)*1000000/SUM('Statistics NZ'!K$15:K$29,'Statistics NZ'!K$115:K$129) -> 30764.95989 | L26: ='Statistics NZ'!L$26*('Economic Forecasts'!N$10-'Economic Forecasts'!N$9)*1000000/SUM('Statistics NZ'!L$15:L$29,'Statistics NZ'!L$115:L$129) -> 30790.62209 | M26: ='Statistics NZ'!M$26*('Economic Forecasts'!O$10-'Economic Forecasts'!O$9)*1000000/SUM('Statistics NZ'!M$15:M$29,'Statistics NZ'!M$115:M$129) -> 31511.50689 | N26: ='Statistics NZ'!N$26*('Economic Forecasts'!P$10-'Economic Forecasts'!P$9)*1000000/SUM('Statistics NZ'!N$15:N$29,'Statistics NZ'!N$115:N$129) -> 33098.69304 | O26: ='Statistics NZ'!O$26*('Economic Forecasts'!Q$10-'Economic Forecasts'!Q$9)*1000000/SUM('Statistics NZ'!O$15:O$29,'Statistics NZ'!O$115:O$129) -> 34171.29044 | P26: ='Statistics NZ'!P$26*('Economic Forecasts'!R$10-'Economic Forecasts'!R$9)*1000000/SUM('Statistics NZ'!P$15:P$29,'Statistics NZ'!P$115:P$129) -> 34205.02673 | Q26: ='Statistics NZ'!Q$26*('Economic Forecasts'!S$10-'Economic Forecasts'!S$9)*1000000/SUM('Statistics NZ'!Q$15:Q$29,'Statistics NZ'!Q$115:Q$129) -> 34971.4867 | R26: ='Statistics NZ'!R$26*('Economic Forecasts'!T$10-'Economic Forecasts'!T$9)*1000000/SUM('Statistics NZ'!R$15:R$29,'Statistics NZ'!R$115:R$129) -> 34771.65036 | S26: ='Statistics NZ'!S$26*('Economic Forecasts'!U$10-'Economic Forecasts'!U$9)*1000000/SUM('Statistics NZ'!S$15:S$29,'Statistics NZ'!S$115:S$129) -> 35476.56113 | T26: ='Statistics NZ'!T$26*('Economic Forecasts'!V$10-'Economic Forecasts'!V$9)*1000000/SUM('Statistics NZ'!T$15:T$29,'Statistics NZ'!T$115:T$129) -> 35850.80517 | U26: =SUM('Statistics NZ'!U$26,$D$12/5*(U$8-U$9)*1000)*('Economic Forecasts'!W$10-'Economic Forecasts'!W$9)*1000000/SUM('Statistics NZ'!U$15:U$29,'Statistics NZ'!U$115:U$129,SUM($B$12:$D$13)*(U$8-U$9)*1000) -> 34936.22231 | V26: =SUM('Statistics NZ'!V$26,$D$12/5*(V$8-V$9)*1000)*('Economic Forecasts'!X$10-'Economic Forecasts'!X$9)*1000000/SUM('Statistics NZ'!V$15:V$29,'Statistics NZ'!V$115:V$129,SUM($B$12:$D$13)*(V$8-V$9)*1000) -> 35083.63054 | W26: =SUM('Statistics NZ'!W$26,$D$12/5*(W$8-W$9)*1000)*('Economic Forecasts'!Y$10-'Economic Forecasts'!Y$9)*1000000/SUM('Statistics NZ'!W$15:W$29,'Statistics NZ'!W$115:W$129,SUM($B$12:$D$13)*(W$8-W$9)*1000) -> 35016.94246 | X26: =SUM('Statistics NZ'!X$26,$D$12/5*(X$8-X$9)*1000)*('Economic Forecasts'!Z$10-'Economic Forecasts'!Z$9)*1000000/SUM('Statistics NZ'!X$15:X$29,'Statistics NZ'!X$115:X$129,SUM($B$12:$D$13)*(X$8-X$9)*1000) -> 35968.01618 | Y26: =SUM('Statistics NZ'!Y$26,$D$12/5*(Y$8-Y$9)*1000)*('Economic Forecasts'!AA$10-'Economic Forecasts'!AA$9)*1000000/SUM('Statistics NZ'!Y$15:Y$29,'Statistics NZ'!Y$115:Y$129,SUM($B$12:$D$13)*(Y$8-Y$9)*1000) -> 35729.02122 | Z26: =SUM('Statistics NZ'!Z$26,$D$12/5*(Z$8-Z$9)*1000)*('Economic Forecasts'!AB$10-'Economic Forecasts'!AB$9)*1000000/SUM('Statistics NZ'!Z$15:Z$29,'Statistics NZ'!Z$115:Z$129,SUM($B$12:$D$13)*(Z$8-Z$9)*1000) -> 36189.29222 | AA26: =SUM(Z$26,'Statistics NZ'!AA$26-'Statistics NZ'!Z$26,$D$12/5*(AA$8-AA$9)*1000) -> 35905.35474 | AB26: =SUM(AA$26,'Statistics NZ'!AB$26-'Statistics NZ'!AA$26,$D$12/5*(AB$8-AB$9)*1000) -> 36095.79539 | AC26: =SUM(AB$26,'Statistics NZ'!AC$26-'Statistics NZ'!AB$26,$D$12/5*(AC$8-AC$9)*1000) -> 36421.41727 | AD26: =SUM(AC$26,'Statistics NZ'!AD$26-'Statistics NZ'!AC$26,$D$12/5*(AD$8-AD$9)*1000) -> 33851.41727 | AE26: =SUM(AD$26,'Statistics NZ'!AE$26-'Statistics NZ'!AD$26,$D$12/5*(AE$8-AE$9)*1000) -> 34031.41727 | AF26: =SUM(AE$26,'Statistics NZ'!AF$26-'Statistics NZ'!AE$26,$D$12/5*(AF$8-AF$9)*1000) -> 34581.41727 | AG26: =SUM(AF$26,'Statistics NZ'!AG$26-'Statistics NZ'!AF$26,$D$12/5*(AG$8-AG$9)*1000) -> 34641.41727 | AH26: =SUM(AG$26,'Statistics NZ'!AH$26-'Statistics NZ'!AG$26,$D$12/5*(AH$8-AH$9)*1000) -> 34681.41727 | AI26: =SUM(AH$26,'Statistics NZ'!AI$26-'Statistics NZ'!AH$26,$D$12/5*(AI$8-AI$9)*1000) -> 34701.41727 | AJ26: =SUM(AI$26,'Statistics NZ'!AJ$26-'Statistics NZ'!AI$26,$D$12/5*(AJ$8-AJ$9)*1000) -> 34721.41727
A27: 12 | B27: ='Statistics NZ'!B$27*('Economic Forecasts'!D$10-'Economic Forecasts'!D$9)*1000000/SUM('Statistics NZ'!B$15:B$29,'Statistics NZ'!B$115:B$129) -> 31795.86181 | C27: ='Statistics NZ'!C$27*('Economic Forecasts'!E$10-'Economic Forecasts'!E$9)*1000000/SUM('Statistics NZ'!C$15:C$29,'Statistics NZ'!C$115:C$129) -> 31713.84046 | D27: ='Statistics NZ'!D$27*('Economic Forecasts'!F$10-'Economic Forecasts'!F$9)*1000000/SUM('Statistics NZ'!D$15:D$29,'Statistics NZ'!D$115:D$129) -> 31117.79098 | E27: ='Statistics NZ'!E$27*('Economic Forecasts'!G$10-'Economic Forecasts'!G$9)*1000000/SUM('Statistics NZ'!E$15:E$29,'Statistics NZ'!E$115:E$129) -> 30984.57433 | F27: ='Statistics NZ'!F$27*('Economic Forecasts'!H$10-'Economic Forecasts'!H$9)*1000000/SUM('Statistics NZ'!F$15:F$29,'Statistics NZ'!F$115:F$129) -> 31199.26003 | G27: ='Statistics NZ'!G$27*('Economic Forecasts'!I$10-'Economic Forecasts'!I$9)*1000000/SUM('Statistics NZ'!G$15:G$29,'Statistics NZ'!G$115:G$129) -> 30565.66196 | H27: ='Statistics NZ'!H$27*('Economic Forecasts'!J$10-'Economic Forecasts'!J$9)*1000000/SUM('Statistics NZ'!H$15:H$29,'Statistics NZ'!H$115:H$129) -> 31707.93352 | I27: ='Statistics NZ'!I$27*('Economic Forecasts'!K$10-'Economic Forecasts'!K$9)*1000000/SUM('Statistics NZ'!I$15:I$29,'Statistics NZ'!I$115:I$129) -> 31335.82016 | J27: ='Statistics NZ'!J$27*('Economic Forecasts'!L$10-'Economic Forecasts'!L$9)*1000000/SUM('Statistics NZ'!J$15:J$29,'Statistics NZ'!J$115:J$129) -> 30412.79574 | K27: ='Statistics NZ'!K$27*('Economic Forecasts'!M$10-'Economic Forecasts'!M$9)*1000000/SUM('Statistics NZ'!K$15:K$29,'Statistics NZ'!K$115:K$129) -> 30326.07215 | L27: ='Statistics NZ'!L$27*('Economic Forecasts'!N$10-'Economic Forecasts'!N$9)*1000000/SUM('Statistics NZ'!L$15:L$29,'Statistics NZ'!L$115:L$129) -> 31057.62367 | M27: ='Statistics NZ'!M$27*('Economic Forecasts'!O$10-'Economic Forecasts'!O$9)*1000000/SUM('Statistics NZ'!M$15:M$29,'Statistics NZ'!M$115:M$129) -> 30928.94122 | N27: ='Statistics NZ'!N$27*('Economic Forecasts'!P$10-'Economic Forecasts'!P$9)*1000000/SUM('Statistics NZ'!N$15:N$29,'Statistics NZ'!N$115:N$129) -> 31828.92221 | O27: ='Statistics NZ'!O$27*('Economic Forecasts'!Q$10-'Economic Forecasts'!Q$9)*1000000/SUM('Statistics NZ'!O$15:O$29,'Statistics NZ'!O$115:O$129) -> 33289.45069 | P27: ='Statistics NZ'!P$27*('Economic Forecasts'!R$10-'Economic Forecasts'!R$9)*1000000/SUM('Statistics NZ'!P$15:P$29,'Statistics NZ'!P$115:P$129) -> 34869.91925 | Q27: ='Statistics NZ'!Q$27*('Economic Forecasts'!S$10-'Economic Forecasts'!S$9)*1000000/SUM('Statistics NZ'!Q$15:Q$29,'Statistics NZ'!Q$115:Q$129) -> 34101.13186 | R27: ='Statistics NZ'!R$27*('Economic Forecasts'!T$10-'Economic Forecasts'!T$9)*1000000/SUM('Statistics NZ'!R$15:R$29,'Statistics NZ'!R$115:R$129) -> 35108.21806 | S27: ='Statistics NZ'!S$27*('Economic Forecasts'!U$10-'Economic Forecasts'!U$9)*1000000/SUM('Statistics NZ'!S$15:S$29,'Statistics NZ'!S$115:S$129) -> 35751.90161 | T27: ='Statistics NZ'!T$27*('Economic Forecasts'!V$10-'Economic Forecasts'!V$9)*1000000/SUM('Statistics NZ'!T$15:T$29,'Statistics NZ'!T$115:T$129) -> 36135.92203 | U27: =SUM('Statistics NZ'!U$27,$D$12/5*(U$8-U$9)*1000)*('Economic Forecasts'!W$10-'Economic Forecasts'!W$9)*1000000/SUM('Statistics NZ'!U$15:U$29,'Statistics NZ'!U$115:U$129,SUM($B$12:$D$13)*(U$8-U$9)*1000) -> 36145.83736 | V27: =SUM('Statistics NZ'!V$27,$D$12/5*(V$8-V$9)*1000)*('Economic Forecasts'!X$10-'Economic Forecasts'!X$9)*1000000/SUM('Statistics NZ'!V$15:V$29,'Statistics NZ'!V$115:V$129,SUM($B$12:$D$13)*(V$8-V$9)*1000) -> 35306.44745 | W27: =SUM('Statistics NZ'!W$27,$D$12/5*(W$8-W$9)*1000)*('Economic Forecasts'!Y$10-'Economic Forecasts'!Y$9)*1000000/SUM('Statistics NZ'!W$15:W$29,'Statistics NZ'!W$115:W$129,SUM($B$12:$D$13)*(W$8-W$9)*1000) -> 35788.65346 | X27: =SUM('Statistics NZ'!X$27,$D$12/5*(X$8-X$9)*1000)*('Economic Forecasts'!Z$10-'Economic Forecasts'!Z$9)*1000000/SUM('Statistics NZ'!X$15:X$29,'Statistics NZ'!X$115:X$129,SUM($B$12:$D$13)*(X$8-X$9)*1000) -> 35761.90283 | Y27: =SUM('Statistics NZ'!Y$27,$D$12/5*(Y$8-Y$9)*1000)*('Economic Forecasts'!AA$10-'Economic Forecasts'!AA$9)*1000000/SUM('Statistics NZ'!Y$15:Y$29,'Statistics NZ'!Y$115:Y$129,SUM($B$12:$D$13)*(Y$8-Y$9)*1000) -> 36716.60128 | Z27: =SUM('Statistics NZ'!Z$27,$D$12/5*(Z$8-Z$9)*1000)*('Economic Forecasts'!AB$10-'Economic Forecasts'!AB$9)*1000000/SUM('Statistics NZ'!Z$15:Z$29,'Statistics NZ'!Z$115:Z$129,SUM($B$12:$D$13)*(Z$8-Z$9)*1000) -> 36477.88934 | AA27: =SUM(Z$27,'Statistics NZ'!AA$27-'Statistics NZ'!Z$27,$D$12/5*(AA$8-AA$9)*1000) -> 36543.95187 | AB27: =SUM(AA$27,'Statistics NZ'!AB$27-'Statistics NZ'!AA$27,$D$12/5*(AB$8-AB$9)*1000) -> 36254.39251 | AC27: =SUM(AB$27,'Statistics NZ'!AC$27-'Statistics NZ'!AB$27,$D$12/5*(AC$8-AC$9)*1000) -> 36440.0144 | AD27: =SUM(AC$27,'Statistics NZ'!AD$27-'Statistics NZ'!AC$27,$D$12/5*(AD$8-AD$9)*1000) -> 36770.0144 | AE27: =SUM(AD$27,'Statistics NZ'!AE$27-'Statistics NZ'!AD$27,$D$12/5*(AE$8-AE$9)*1000) -> 34200.0144 | AF27: =SUM(AE$27,'Statistics NZ'!AF$27-'Statistics NZ'!AE$27,$D$12/5*(AF$8-AF$9)*1000) -> 34380.0144 | AG27: =SUM(AF$27,'Statistics NZ'!AG$27-'Statistics NZ'!AF$27,$D$12/5*(AG$8-AG$9)*1000) -> 34930.0144 | AH27: =SUM(AG$27,'Statistics NZ'!AH$27-'Statistics NZ'!AG$27,$D$12/5*(AH$8-AH$9)*1000) -> 35000.0144 | AI27: =SUM(AH$27,'Statistics NZ'!AI$27-'Statistics NZ'!AH$27,$D$12/5*(AI$8-AI$9)*1000) -> 35040.0144 | AJ27: =SUM(AI$27,'Statistics NZ'!AJ$27-'Statistics NZ'!AI$27,$D$12/5*(AJ$8-AJ$9)*1000) -> 35060.0144
A28: 13 | B28: ='Statistics NZ'!B$28*('Economic Forecasts'!D$10-'Economic Forecasts'!D$9)*1000000/SUM('Statistics NZ'!B$15:B$29,'Statistics NZ'!B$115:B$129) -> 32601.62556 | C28: ='Statistics NZ'!C$28*('Economic Forecasts'!E$10-'Economic Forecasts'!E$9)*1000000/SUM('Statistics NZ'!C$15:C$29,'Statistics NZ'!C$115:C$129) -> 31713.84046 | D28: ='Statistics NZ'!D$28*('Economic Forecasts'!F$10-'Economic Forecasts'!F$9)*1000000/SUM('Statistics NZ'!D$15:D$29,'Statistics NZ'!D$115:D$129) -> 31761.02556 | E28: ='Statistics NZ'!E$28*('Economic Forecasts'!G$10-'Economic Forecasts'!G$9)*1000000/SUM('Statistics NZ'!E$15:E$29,'Statistics NZ'!E$115:E$129) -> 31258.86746 | F28: ='Statistics NZ'!F$28*('Economic Forecasts'!H$10-'Economic Forecasts'!H$9)*1000000/SUM('Statistics NZ'!F$15:F$29,'Statistics NZ'!F$115:F$129) -> 31273.24201 | G28: ='Statistics NZ'!G$28*('Economic Forecasts'!I$10-'Economic Forecasts'!I$9)*1000000/SUM('Statistics NZ'!G$15:G$29,'Statistics NZ'!G$115:G$129) -> 31370.3001 | H28: ='Statistics NZ'!H$28*('Economic Forecasts'!J$10-'Economic Forecasts'!J$9)*1000000/SUM('Statistics NZ'!H$15:H$29,'Statistics NZ'!H$115:H$129) -> 30647.82207 | I28: ='Statistics NZ'!I$28*('Economic Forecasts'!K$10-'Economic Forecasts'!K$9)*1000000/SUM('Statistics NZ'!I$15:I$29,'Statistics NZ'!I$115:I$129) -> 31814.14848 | J28: ='Statistics NZ'!J$28*('Economic Forecasts'!L$10-'Economic Forecasts'!L$9)*1000000/SUM('Statistics NZ'!J$15:J$29,'Statistics NZ'!J$115:J$129) -> 31618.63641 | K28: ='Statistics NZ'!K$28*('Economic Forecasts'!M$10-'Economic Forecasts'!M$9)*1000000/SUM('Statistics NZ'!K$15:K$29,'Statistics NZ'!K$115:K$129) -> 30829.18736 | L28: ='Statistics NZ'!L$28*('Economic Forecasts'!N$10-'Economic Forecasts'!N$9)*1000000/SUM('Statistics NZ'!L$15:L$29,'Statistics NZ'!L$115:L$129) -> 30587.70089 | M28: ='Statistics NZ'!M$28*('Economic Forecasts'!O$10-'Economic Forecasts'!O$9)*1000000/SUM('Statistics NZ'!M$15:M$29,'Statistics NZ'!M$115:M$129) -> 31140.78328 | N28: ='Statistics NZ'!N$28*('Economic Forecasts'!P$10-'Economic Forecasts'!P$9)*1000000/SUM('Statistics NZ'!N$15:N$29,'Statistics NZ'!N$115:N$129) -> 31310.43245 | O28: ='Statistics NZ'!O$28*('Economic Forecasts'!Q$10-'Economic Forecasts'!Q$9)*1000000/SUM('Statistics NZ'!O$15:O$29,'Statistics NZ'!O$115:O$129) -> 32050.6758 | P28: ='Statistics NZ'!P$28*('Economic Forecasts'!R$10-'Economic Forecasts'!R$9)*1000000/SUM('Statistics NZ'!P$15:P$29,'Statistics NZ'!P$115:P$129) -> 34025.61128 | Q28: ='Statistics NZ'!Q$28*('Economic Forecasts'!S$10-'Economic Forecasts'!S$9)*1000000/SUM('Statistics NZ'!Q$15:Q$29,'Statistics NZ'!Q$115:Q$129) -> 34845.65226 | R28: ='Statistics NZ'!R$28*('Economic Forecasts'!T$10-'Economic Forecasts'!T$9)*1000000/SUM('Statistics NZ'!R$15:R$29,'Statistics NZ'!R$115:R$129) -> 34224.72785 | S28: ='Statistics NZ'!S$28*('Economic Forecasts'!U$10-'Economic Forecasts'!U$9)*1000000/SUM('Statistics NZ'!S$15:S$29,'Statistics NZ'!S$115:S$129) -> 36027.24208 | T28: ='Statistics NZ'!T$28*('Economic Forecasts'!V$10-'Economic Forecasts'!V$9)*1000000/SUM('Statistics NZ'!T$15:T$29,'Statistics NZ'!T$115:T$129) -> 36368.23947 | U28: =SUM('Statistics NZ'!U$28,$D$12/5*(U$8-U$9)*1000)*('Economic Forecasts'!W$10-'Economic Forecasts'!W$9)*1000000/SUM('Statistics NZ'!U$15:U$29,'Statistics NZ'!U$115:U$129,SUM($B$12:$D$13)*(U$8-U$9)*1000) -> 36464.15711 | V28: =SUM('Statistics NZ'!V$28,$D$12/5*(V$8-V$9)*1000)*('Economic Forecasts'!X$10-'Economic Forecasts'!X$9)*1000000/SUM('Statistics NZ'!V$15:V$29,'Statistics NZ'!V$115:V$129,SUM($B$12:$D$13)*(V$8-V$9)*1000) -> 36537.24564 | W28: =SUM('Statistics NZ'!W$28,$D$12/5*(W$8-W$9)*1000)*('Economic Forecasts'!Y$10-'Economic Forecasts'!Y$9)*1000000/SUM('Statistics NZ'!W$15:W$29,'Statistics NZ'!W$115:W$129,SUM($B$12:$D$13)*(W$8-W$9)*1000) -> 36035.17225 | X28: =SUM('Statistics NZ'!X$28,$D$12/5*(X$8-X$9)*1000)*('Economic Forecasts'!Z$10-'Economic Forecasts'!Z$9)*1000000/SUM('Statistics NZ'!X$15:X$29,'Statistics NZ'!X$115:X$129,SUM($B$12:$D$13)*(X$8-X$9)*1000) -> 36564.66007 | Y28: =SUM('Statistics NZ'!Y$28,$D$12/5*(Y$8-Y$9)*1000)*('Economic Forecasts'!AA$10-'Economic Forecasts'!AA$9)*1000000/SUM('Statistics NZ'!Y$15:Y$29,'Statistics NZ'!Y$115:Y$129,SUM($B$12:$D$13)*(Y$8-Y$9)*1000) -> 36519.08526 | Z28: =SUM('Statistics NZ'!Z$28,$D$12/5*(Z$8-Z$9)*1000)*('Economic Forecasts'!AB$10-'Economic Forecasts'!AB$9)*1000000/SUM('Statistics NZ'!Z$15:Z$29,'Statistics NZ'!Z$115:Z$129,SUM($B$12:$D$13)*(Z$8-Z$9)*1000) -> 37499.07917 | AA28: =SUM(Z$28,'Statistics NZ'!AA$28-'Statistics NZ'!Z$28,$D$12/5*(AA$8-AA$9)*1000) -> 36925.1417 | AB28: =SUM(AA$28,'Statistics NZ'!AB$28-'Statistics NZ'!AA$28,$D$12/5*(AB$8-AB$9)*1000) -> 36995.58234 | AC28: =SUM(AB$28,'Statistics NZ'!AC$28-'Statistics NZ'!AB$28,$D$12/5*(AC$8-AC$9)*1000) -> 36711.20423 | AD28: =SUM(AC$28,'Statistics NZ'!AD$28-'Statistics NZ'!AC$28,$D$12/5*(AD$8-AD$9)*1000) -> 36881.20423 | AE28: =SUM(AD$28,'Statistics NZ'!AE$28-'Statistics NZ'!AD$28,$D$12/5*(AE$8-AE$9)*1000) -> 37211.20423 | AF28: =SUM(AE$28,'Statistics NZ'!AF$28-'Statistics NZ'!AE$28,$D$12/5*(AF$8-AF$9)*1000) -> 34651.20423 | AG28: =SUM(AF$28,'Statistics NZ'!AG$28-'Statistics NZ'!AF$28,$D$12/5*(AG$8-AG$9)*1000) -> 34831.20423 | AH28: =SUM(AG$28,'Statistics NZ'!AH$28-'Statistics NZ'!AG$28,$D$12/5*(AH$8-AH$9)*1000) -> 35381.20423 | AI28: =SUM(AH$28,'Statistics NZ'!AI$28-'Statistics NZ'!AH$28,$D$12/5*(AI$8-AI$9)*1000) -> 35451.20423 | AJ28: =SUM(AI$28,'Statistics NZ'!AJ$28-'Statistics NZ'!AI$28,$D$12/5*(AJ$8-AJ$9)*1000) -> 35491.20423
A29: 14 | B29: ='Statistics NZ'!B$29*('Economic Forecasts'!D$10-'Economic Forecasts'!D$9)*1000000/SUM('Statistics NZ'!B$15:B$29,'Statistics NZ'!B$115:B$129) -> 32824.27081 | C29: ='Statistics NZ'!C$29*('Economic Forecasts'!E$10-'Economic Forecasts'!E$9)*1000000/SUM('Statistics NZ'!C$15:C$29,'Statistics NZ'!C$115:C$129) -> 32441.07708 | D29: ='Statistics NZ'!D$29*('Economic Forecasts'!F$10-'Economic Forecasts'!F$9)*1000000/SUM('Statistics NZ'!D$15:D$29,'Statistics NZ'!D$115:D$129) -> 31750.48073 | E29: ='Statistics NZ'!E$29*('Economic Forecasts'!G$10-'Economic Forecasts'!G$9)*1000000/SUM('Statistics NZ'!E$15:E$29,'Statistics NZ'!E$115:E$129) -> 31828.5532 | F29: ='Statistics NZ'!F$29*('Economic Forecasts'!H$10-'Economic Forecasts'!H$9)*1000000/SUM('Statistics NZ'!F$15:F$29,'Statistics NZ'!F$115:F$129) -> 31526.89453 | G29: ='Statistics NZ'!G$29*('Economic Forecasts'!I$10-'Economic Forecasts'!I$9)*1000000/SUM('Statistics NZ'!G$15:G$29,'Statistics NZ'!G$115:G$129) -> 31539.6976 | H29: ='Statistics NZ'!H$29*('Economic Forecasts'!J$10-'Economic Forecasts'!J$9)*1000000/SUM('Statistics NZ'!H$15:H$29,'Statistics NZ'!H$115:H$129) -> 31485.31012 | I29: ='Statistics NZ'!I$29*('Economic Forecasts'!K$10-'Economic Forecasts'!K$9)*1000000/SUM('Statistics NZ'!I$15:I$29,'Statistics NZ'!I$115:I$129) -> 30825.60327 | J29: ='Statistics NZ'!J$29*('Economic Forecasts'!L$10-'Economic Forecasts'!L$9)*1000000/SUM('Statistics NZ'!J$15:J$29,'Statistics NZ'!J$115:J$129) -> 32045.48266 | K29: ='Statistics NZ'!K$29*('Economic Forecasts'!M$10-'Economic Forecasts'!M$9)*1000000/SUM('Statistics NZ'!K$15:K$29,'Statistics NZ'!K$115:K$129) -> 32028.1002 | L29: ='Statistics NZ'!L$29*('Economic Forecasts'!N$10-'Economic Forecasts'!N$9)*1000000/SUM('Statistics NZ'!L$15:L$29,'Statistics NZ'!L$115:L$129) -> 31185.78443 | M29: ='Statistics NZ'!M$29*('Economic Forecasts'!O$10-'Economic Forecasts'!O$9)*1000000/SUM('Statistics NZ'!M$15:M$29,'Statistics NZ'!M$115:M$129) -> 30823.02019 | N29: ='Statistics NZ'!N$29*('Economic Forecasts'!P$10-'Economic Forecasts'!P$9)*1000000/SUM('Statistics NZ'!N$15:N$29,'Statistics NZ'!N$115:N$129) -> 31479.73523 | O29: ='Statistics NZ'!O$29*('Economic Forecasts'!Q$10-'Economic Forecasts'!Q$9)*1000000/SUM('Statistics NZ'!O$15:O$29,'Statistics NZ'!O$115:O$129) -> 31546.76737 | P29: ='Statistics NZ'!P$29*('Economic Forecasts'!R$10-'Economic Forecasts'!R$9)*1000000/SUM('Statistics NZ'!P$15:P$29,'Statistics NZ'!P$115:P$129) -> 32706.38008 | Q29: ='Statistics NZ'!Q$29*('Economic Forecasts'!S$10-'Economic Forecasts'!S$9)*1000000/SUM('Statistics NZ'!Q$15:Q$29,'Statistics NZ'!Q$115:Q$129) -> 34017.24223 | R29: ='Statistics NZ'!R$29*('Economic Forecasts'!T$10-'Economic Forecasts'!T$9)*1000000/SUM('Statistics NZ'!R$15:R$29,'Statistics NZ'!R$115:R$129) -> 35024.07613 | S29: ='Statistics NZ'!S$29*('Economic Forecasts'!U$10-'Economic Forecasts'!U$9)*1000000/SUM('Statistics NZ'!S$15:S$29,'Statistics NZ'!S$115:S$129) -> 35232.99071 | T29: ='Statistics NZ'!T$29*('Economic Forecasts'!V$10-'Economic Forecasts'!V$9)*1000000/SUM('Statistics NZ'!T$15:T$29,'Statistics NZ'!T$115:T$129) -> 36685.03598 | U29: =SUM('Statistics NZ'!U$29,$D$12/5*(U$8-U$9)*1000)*('Economic Forecasts'!W$10-'Economic Forecasts'!W$9)*1000000/SUM('Statistics NZ'!U$15:U$29,'Statistics NZ'!U$115:U$129,SUM($B$12:$D$13)*(U$8-U$9)*1000) -> 36718.81291 | V29: =SUM('Statistics NZ'!V$29,$D$12/5*(V$8-V$9)*1000)*('Economic Forecasts'!X$10-'Economic Forecasts'!X$9)*1000000/SUM('Statistics NZ'!V$15:V$29,'Statistics NZ'!V$115:V$129,SUM($B$12:$D$13)*(V$8-V$9)*1000) -> 36887.38651 | W29: =SUM('Statistics NZ'!W$29,$D$12/5*(W$8-W$9)*1000)*('Economic Forecasts'!Y$10-'Economic Forecasts'!Y$9)*1000000/SUM('Statistics NZ'!W$15:W$29,'Statistics NZ'!W$115:W$129,SUM($B$12:$D$13)*(W$8-W$9)*1000) -> 37299.92082 | X29: =SUM('Statistics NZ'!X$29,$D$12/5*(X$8-X$9)*1000)*('Economic Forecasts'!Z$10-'Economic Forecasts'!Z$9)*1000000/SUM('Statistics NZ'!X$15:X$29,'Statistics NZ'!X$115:X$129,SUM($B$12:$D$13)*(X$8-X$9)*1000) -> 36846.70992 | Y29: =SUM('Statistics NZ'!Y$29,$D$12/5*(Y$8-Y$9)*1000)*('Economic Forecasts'!AA$10-'Economic Forecasts'!AA$9)*1000000/SUM('Statistics NZ'!Y$15:Y$29,'Statistics NZ'!Y$115:Y$129,SUM($B$12:$D$13)*(Y$8-Y$9)*1000) -> 37374.98798 | Z29: =SUM('Statistics NZ'!Z$29,$D$12/5*(Z$8-Z$9)*1000)*('Economic Forecasts'!AB$10-'Economic Forecasts'!AB$9)*1000000/SUM('Statistics NZ'!Z$15:Z$29,'Statistics NZ'!Z$115:Z$129,SUM($B$12:$D$13)*(Z$8-Z$9)*1000) -> 37332.58083 | AA29: =SUM(Z$29,'Statistics NZ'!AA$29-'Statistics NZ'!Z$29,$D$12/5*(AA$8-AA$9)*1000) -> 37858.64336 | AB29: =SUM(AA$29,'Statistics NZ'!AB$29-'Statistics NZ'!AA$29,$D$12/5*(AB$8-AB$9)*1000) -> 37289.084 | AC29: =SUM(AB$29,'Statistics NZ'!AC$29-'Statistics NZ'!AB$29,$D$12/5*(AC$8-AC$9)*1000) -> 37354.70589 | AD29: =SUM(AC$29,'Statistics NZ'!AD$29-'Statistics NZ'!AC$29,$D$12/5*(AD$8-AD$9)*1000) -> 37064.70589 | AE29: =SUM(AD$29,'Statistics NZ'!AE$29-'Statistics NZ'!AD$29,$D$12/5*(AE$8-AE$9)*1000) -> 37244.70589 | AF29: =SUM(AE$29,'Statistics NZ'!AF$29-'Statistics NZ'!AE$29,$D$12/5*(AF$8-AF$9)*1000) -> 37574.70589 | AG29: =SUM(AF$29,'Statistics NZ'!AG$29-'Statistics NZ'!AF$29,$D$12/5*(AG$8-AG$9)*1000) -> 35014.70589 | AH29: =SUM(AG$29,'Statistics NZ'!AH$29-'Statistics NZ'!AG$29,$D$12/5*(AH$8-AH$9)*1000) -> 35184.70589 | AI29: =SUM(AH$29,'Statistics NZ'!AI$29-'Statistics NZ'!AH$29,$D$12/5*(AI$8-AI$9)*1000) -> 35744.70589 | AJ29: =SUM(AI$29,'Statistics NZ'!AJ$29-'Statistics NZ'!AI$29,$D$12/5*(AJ$8-AJ$9)*1000) -> 35814.70589
A30: 15 | B30: ='Statistics NZ'!B$30*'Economic Forecasts'!D$9*1000000/SUM('Statistics NZ'!B$30:B$110,'Statistics NZ'!B$130:B$210) -> 31337.96264 | C30: ='Statistics NZ'!C$30*'Economic Forecasts'!E$9*1000000/SUM('Statistics NZ'!C$30:C$110,'Statistics NZ'!C$130:C$210) -> 30540.44338 | D30: ='Statistics NZ'!D$30*'Economic Forecasts'!F$9*1000000/SUM('Statistics NZ'!D$30:D$110,'Statistics NZ'!D$130:D$210) -> 30322.74808 | E30: ='Statistics NZ'!E$30*'Economic Forecasts'!G$9*1000000/SUM('Statistics NZ'!E$30:E$110,'Statistics NZ'!E$130:E$210) -> 29646.63025 | F30: ='Statistics NZ'!F$30*'Economic Forecasts'!H$9*1000000/SUM('Statistics NZ'!F$30:F$110,'Statistics NZ'!F$130:F$210) -> 29828.65613 | G30: ='Statistics NZ'!G$30*'Economic Forecasts'!I$9*1000000/SUM('Statistics NZ'!G$30:G$110,'Statistics NZ'!G$130:G$210) -> 29408.48194 | H30: ='Statistics NZ'!H$30*'Economic Forecasts'!J$9*1000000/SUM('Statistics NZ'!H$30:H$110,'Statistics NZ'!H$130:H$210) -> 29495.0617 | I30: ='Statistics NZ'!I$30*'Economic Forecasts'!K$9*1000000/SUM('Statistics NZ'!I$30:I$110,'Statistics NZ'!I$130:I$210) -> 29342.04103 | J30: ='Statistics NZ'!J$30*'Economic Forecasts'!L$9*1000000/SUM('Statistics NZ'!J$30:J$110,'Statistics NZ'!J$130:J$210) -> 28582.76686 | K30: ='Statistics NZ'!K$30*'Economic Forecasts'!M$9*1000000/SUM('Statistics NZ'!K$30:K$110,'Statistics NZ'!K$130:K$210) -> 29588.37058 | L30: ='Statistics NZ'!L$30*'Economic Forecasts'!N$9*1000000/SUM('Statistics NZ'!L$30:L$110,'Statistics NZ'!L$130:L$210) -> 29686.93921 | M30: ='Statistics NZ'!M$30*'Economic Forecasts'!O$9*1000000/SUM('Statistics NZ'!M$30:M$110,'Statistics NZ'!M$130:M$210) -> 29162.17792 | N30: ='Statistics NZ'!N$30*'Economic Forecasts'!P$9*1000000/SUM('Statistics NZ'!N$30:N$110,'Statistics NZ'!N$130:N$210) -> 28982.97531 | O30: ='Statistics NZ'!O$30*'Economic Forecasts'!Q$9*1000000/SUM('Statistics NZ'!O$30:O$110,'Statistics NZ'!O$130:O$210) -> 29777.53948 | P30: ='Statistics NZ'!P$30*'Economic Forecasts'!R$9*1000000/SUM('Statistics NZ'!P$30:P$110,'Statistics NZ'!P$130:P$210) -> 30041.54798 | Q30: ='Statistics NZ'!Q$30*'Economic Forecasts'!S$9*1000000/SUM('Statistics NZ'!Q$30:Q$110,'Statistics NZ'!Q$130:Q$210) -> 30824.27538 | R30: ='Statistics NZ'!R$30*'Economic Forecasts'!T$9*1000000/SUM('Statistics NZ'!R$30:R$110,'Statistics NZ'!R$130:R$210) -> 32271.17856 | S30: ='Statistics NZ'!S$30*'Economic Forecasts'!U$9*1000000/SUM('Statistics NZ'!S$30:S$110,'Statistics NZ'!S$130:S$210) -> 33254.42657 | T30: ='Statistics NZ'!T$30*'Economic Forecasts'!V$9*1000000/SUM('Statistics NZ'!T$30:T$110,'Statistics NZ'!T$130:T$210) -> 33498.75848 | U30: =SUM('Statistics NZ'!U$30,$E$12/5*(U$8-U$9)*1000)*'Economic Forecasts'!W$9*1000000/SUM('Statistics NZ'!U$30:U$110,'Statistics NZ'!U$130:U$210,SUM($E$12:$T$13)*(U$8-U$9)*1000) -> 34347.32008 | V30: =SUM('Statistics NZ'!V$30,$E$12/5*(V$8-V$9)*1000)*'Economic Forecasts'!X$9*1000000/SUM('Statistics NZ'!V$30:V$110,'Statistics NZ'!V$130:V$210,SUM($E$12:$T$13)*(V$8-V$9)*1000) -> 34288.43785 | W30: =SUM('Statistics NZ'!W$30,$E$12/5*(W$8-W$9)*1000)*'Economic Forecasts'!Y$9*1000000/SUM('Statistics NZ'!W$30:W$110,'Statistics NZ'!W$130:W$210,SUM($E$12:$T$13)*(W$8-W$9)*1000) -> 34368.14201 | X30: =SUM('Statistics NZ'!X$30,$E$12/5*(X$8-X$9)*1000)*'Economic Forecasts'!Z$9*1000000/SUM('Statistics NZ'!X$30:X$110,'Statistics NZ'!X$130:X$210,SUM($E$12:$T$13)*(X$8-X$9)*1000) -> 34374.6013 | Y30: =SUM('Statistics NZ'!Y$30,$E$12/5*(Y$8-Y$9)*1000)*'Economic Forecasts'!AA$9*1000000/SUM('Statistics NZ'!Y$30:Y$110,'Statistics NZ'!Y$130:Y$210,SUM($E$12:$T$13)*(Y$8-Y$9)*1000) -> 33566.98165 | Z30: =SUM('Statistics NZ'!Z$30,$E$12/5*(Z$8-Z$9)*1000)*'Economic Forecasts'!AB$9*1000000/SUM('Statistics NZ'!Z$30:Z$110,'Statistics NZ'!Z$130:Z$210,SUM($E$12:$T$13)*(Z$8-Z$9)*1000) -> 33666.67844 | AA30: =SUM(Z$30,'Statistics NZ'!AA$30-'Statistics NZ'!Z$30,$E$12/5*(AA$8-AA$9)*1000) -> 33278.84274 | AB30: =SUM(AA$30,'Statistics NZ'!AB$30-'Statistics NZ'!AA$30,$E$12/5*(AB$8-AB$9)*1000) -> 33803.24954 | AC30: =SUM(AB$30,'Statistics NZ'!AC$30-'Statistics NZ'!AB$30,$E$12/5*(AC$8-AC$9)*1000) -> 33231.00704 | AD30: =SUM(AC$30,'Statistics NZ'!AD$30-'Statistics NZ'!AC$30,$E$12/5*(AD$8-AD$9)*1000) -> 33291.00704 | AE30: =SUM(AD$30,'Statistics NZ'!AE$30-'Statistics NZ'!AD$30,$E$12/5*(AE$8-AE$9)*1000) -> 33001.00704 | AF30: =SUM(AE$30,'Statistics NZ'!AF$30-'Statistics NZ'!AE$30,$E$12/5*(AF$8-AF$9)*1000) -> 33181.00704 | AG30: =SUM(AF$30,'Statistics NZ'!AG$30-'Statistics NZ'!AF$30,$E$12/5*(AG$8-AG$9)*1000) -> 33521.00704 | AH30: =SUM(AG$30,'Statistics NZ'!AH$30-'Statistics NZ'!AG$30,$E$12/5*(AH$8-AH$9)*1000) -> 30951.00704 | AI30: =SUM(AH$30,'Statistics NZ'!AI$30-'Statistics NZ'!AH$30,$E$12/5*(AI$8-AI$9)*1000) -> 31141.00704 | AJ30: =SUM(AI$30,'Statistics NZ'!AJ$30-'Statistics NZ'!AI$30,$E$12/5*(AJ$8-AJ$9)*1000) -> 31691.00704
A31: 16 | B31: ='Statistics NZ'!B$31*'Economic Forecasts'!D$9*1000000/SUM('Statistics NZ'!B$30:B$110,'Statistics NZ'!B$130:B$210) -> 31298.82687 | C31: ='Statistics NZ'!C$31*'Economic Forecasts'!E$9*1000000/SUM('Statistics NZ'!C$30:C$110,'Statistics NZ'!C$130:C$210) -> 31591.19176 | D31: ='Statistics NZ'!D$31*'Economic Forecasts'!F$9*1000000/SUM('Statistics NZ'!D$30:D$110,'Statistics NZ'!D$130:D$210) -> 30597.78434 | E31: ='Statistics NZ'!E$31*'Economic Forecasts'!G$9*1000000/SUM('Statistics NZ'!E$30:E$110,'Statistics NZ'!E$130:E$210) -> 30480.2272 | F31: ='Statistics NZ'!F$31*'Economic Forecasts'!H$9*1000000/SUM('Statistics NZ'!F$30:F$110,'Statistics NZ'!F$130:F$210) -> 29965.97976 | G31: ='Statistics NZ'!G$31*'Economic Forecasts'!I$9*1000000/SUM('Statistics NZ'!G$30:G$110,'Statistics NZ'!G$130:G$210) -> 30184.45725 | H31: ='Statistics NZ'!H$31*'Economic Forecasts'!J$9*1000000/SUM('Statistics NZ'!H$30:H$110,'Statistics NZ'!H$130:H$210) -> 29632.61362 | I31: ='Statistics NZ'!I$31*'Economic Forecasts'!K$9*1000000/SUM('Statistics NZ'!I$30:I$110,'Statistics NZ'!I$130:I$210) -> 29753.79036 | J31: ='Statistics NZ'!J$31*'Economic Forecasts'!L$9*1000000/SUM('Statistics NZ'!J$30:J$110,'Statistics NZ'!J$130:J$210) -> 29479.94002 | K31: ='Statistics NZ'!K$31*'Economic Forecasts'!M$9*1000000/SUM('Statistics NZ'!K$30:K$110,'Statistics NZ'!K$130:K$210) -> 29013.93364 | L31: ='Statistics NZ'!L$31*'Economic Forecasts'!N$9*1000000/SUM('Statistics NZ'!L$30:L$110,'Statistics NZ'!L$130:L$210) -> 30125.08688 | M31: ='Statistics NZ'!M$31*'Economic Forecasts'!O$9*1000000/SUM('Statistics NZ'!M$30:M$110,'Statistics NZ'!M$130:M$210) -> 30393.14422 | N31: ='Statistics NZ'!N$31*'Economic Forecasts'!P$9*1000000/SUM('Statistics NZ'!N$30:N$110,'Statistics NZ'!N$130:N$210) -> 29785.33992 | O31: ='Statistics NZ'!O$31*'Economic Forecasts'!Q$9*1000000/SUM('Statistics NZ'!O$30:O$110,'Statistics NZ'!O$130:O$210) -> 29590.93881 | P31: ='Statistics NZ'!P$31*'Economic Forecasts'!R$9*1000000/SUM('Statistics NZ'!P$30:P$110,'Statistics NZ'!P$130:P$210) -> 30315.72117 | Q31: ='Statistics NZ'!Q$31*'Economic Forecasts'!S$9*1000000/SUM('Statistics NZ'!Q$30:Q$110,'Statistics NZ'!Q$130:Q$210) -> 30458.73108 | R31: ='Statistics NZ'!R$31*'Economic Forecasts'!T$9*1000000/SUM('Statistics NZ'!R$30:R$110,'Statistics NZ'!R$130:R$210) -> 30976.37783 | S31: ='Statistics NZ'!S$31*'Economic Forecasts'!U$9*1000000/SUM('Statistics NZ'!S$30:S$110,'Statistics NZ'!S$130:S$210) -> 32689.80223 | T31: ='Statistics NZ'!T$31*'Economic Forecasts'!V$9*1000000/SUM('Statistics NZ'!T$30:T$110,'Statistics NZ'!T$130:T$210) -> 34451.65571 | U31: =SUM('Statistics NZ'!U$31,$E$12/5*(U$8-U$9)*1000)*'Economic Forecasts'!W$9*1000000/SUM('Statistics NZ'!U$30:U$110,'Statistics NZ'!U$130:U$210,SUM($E$12:$T$13)*(U$8-U$9)*1000) -> 33727.57974 | V31: =SUM('Statistics NZ'!V$31,$E$12/5*(V$8-V$9)*1000)*'Economic Forecasts'!X$9*1000000/SUM('Statistics NZ'!V$30:V$110,'Statistics NZ'!V$130:V$210,SUM($E$12:$T$13)*(V$8-V$9)*1000) -> 34630.9303 | W31: =SUM('Statistics NZ'!W$31,$E$12/5*(W$8-W$9)*1000)*'Economic Forecasts'!Y$9*1000000/SUM('Statistics NZ'!W$30:W$110,'Statistics NZ'!W$130:W$210,SUM($E$12:$T$13)*(W$8-W$9)*1000) -> 34641.58624 | X31: =SUM('Statistics NZ'!X$31,$E$12/5*(X$8-X$9)*1000)*'Economic Forecasts'!Z$9*1000000/SUM('Statistics NZ'!X$30:X$110,'Statistics NZ'!X$130:X$210,SUM($E$12:$T$13)*(X$8-X$9)*1000) -> 34735.82395 | Y31: =SUM('Statistics NZ'!Y$31,$E$12/5*(Y$8-Y$9)*1000)*'Economic Forecasts'!AA$9*1000000/SUM('Statistics NZ'!Y$30:Y$110,'Statistics NZ'!Y$130:Y$210,SUM($E$12:$T$13)*(Y$8-Y$9)*1000) -> 34758.40444 | Z31: =SUM('Statistics NZ'!Z$31,$E$12/5*(Z$8-Z$9)*1000)*'Economic Forecasts'!AB$9*1000000/SUM('Statistics NZ'!Z$30:Z$110,'Statistics NZ'!Z$130:Z$210,SUM($E$12:$T$13)*(Z$8-Z$9)*1000) -> 33949.98462 | AA31: =SUM(Z$31,'Statistics NZ'!AA$31-'Statistics NZ'!Z$31,$E$12/5*(AA$8-AA$9)*1000) -> 34082.14892 | AB31: =SUM(AA$31,'Statistics NZ'!AB$31-'Statistics NZ'!AA$31,$E$12/5*(AB$8-AB$9)*1000) -> 33686.55572 | AC31: =SUM(AB$31,'Statistics NZ'!AC$31-'Statistics NZ'!AB$31,$E$12/5*(AC$8-AC$9)*1000) -> 34204.31322 | AD31: =SUM(AC$31,'Statistics NZ'!AD$31-'Statistics NZ'!AC$31,$E$12/5*(AD$8-AD$9)*1000) -> 33624.31322 | AE31: =SUM(AD$31,'Statistics NZ'!AE$31-'Statistics NZ'!AD$31,$E$12/5*(AE$8-AE$9)*1000) -> 33694.31322 | AF31: =SUM(AE$31,'Statistics NZ'!AF$31-'Statistics NZ'!AE$31,$E$12/5*(AF$8-AF$9)*1000) -> 33404.31322 | AG31: =SUM(AF$31,'Statistics NZ'!AG$31-'Statistics NZ'!AF$31,$E$12/5*(AG$8-AG$9)*1000) -> 33584.31322 | AH31: =SUM(AG$31,'Statistics NZ'!AH$31-'Statistics NZ'!AG$31,$E$12/5*(AH$8-AH$9)*1000) -> 33924.31322 | AI31: =SUM(AH$31,'Statistics NZ'!AI$31-'Statistics NZ'!AH$31,$E$12/5*(AI$8-AI$9)*1000) -> 31364.31322 | AJ31: =SUM(AI$31,'Statistics NZ'!AJ$31-'Statistics NZ'!AI$31,$E$12/5*(AJ$8-AJ$9)*1000) -> 31544.31322
A32: 17 | B32: ='Statistics NZ'!B$32*'Economic Forecasts'!D$9*1000000/SUM('Statistics NZ'!B$30:B$110,'Statistics NZ'!B$130:B$210) -> 30212.80944 | C32: ='Statistics NZ'!C$32*'Economic Forecasts'!E$9*1000000/SUM('Statistics NZ'!C$30:C$110,'Statistics NZ'!C$130:C$210) -> 31502.81105 | D32: ='Statistics NZ'!D$32*'Economic Forecasts'!F$9*1000000/SUM('Statistics NZ'!D$30:D$110,'Statistics NZ'!D$130:D$210) -> 31756.86574 | E32: ='Statistics NZ'!E$32*'Economic Forecasts'!G$9*1000000/SUM('Statistics NZ'!E$30:E$110,'Statistics NZ'!E$130:E$210) -> 30823.473 | F32: ='Statistics NZ'!F$32*'Economic Forecasts'!H$9*1000000/SUM('Statistics NZ'!F$30:F$110,'Statistics NZ'!F$130:F$210) -> 30819.34809 | G32: ='Statistics NZ'!G$32*'Economic Forecasts'!I$9*1000000/SUM('Statistics NZ'!G$30:G$110,'Statistics NZ'!G$130:G$210) -> 30282.68198 | H32: ='Statistics NZ'!H$32*'Economic Forecasts'!J$9*1000000/SUM('Statistics NZ'!H$30:H$110,'Statistics NZ'!H$130:H$210) -> 30349.84864 | I32: ='Statistics NZ'!I$32*'Economic Forecasts'!K$9*1000000/SUM('Statistics NZ'!I$30:I$110,'Statistics NZ'!I$130:I$210) -> 29842.02235 | J32: ='Statistics NZ'!J$32*'Economic Forecasts'!L$9*1000000/SUM('Statistics NZ'!J$30:J$110,'Statistics NZ'!J$130:J$210) -> 29918.77472 | K32: ='Statistics NZ'!K$32*'Economic Forecasts'!M$9*1000000/SUM('Statistics NZ'!K$30:K$110,'Statistics NZ'!K$130:K$210) -> 29870.72094 | L32: ='Statistics NZ'!L$32*'Economic Forecasts'!N$9*1000000/SUM('Statistics NZ'!L$30:L$110,'Statistics NZ'!L$130:L$210) -> 29540.88998 | M32: ='Statistics NZ'!M$32*'Economic Forecasts'!O$9*1000000/SUM('Statistics NZ'!M$30:M$110,'Statistics NZ'!M$130:M$210) -> 30735.07931 | N32: ='Statistics NZ'!N$32*'Economic Forecasts'!P$9*1000000/SUM('Statistics NZ'!N$30:N$110,'Statistics NZ'!N$130:N$210) -> 30851.89776 | O32: ='Statistics NZ'!O$32*'Economic Forecasts'!Q$9*1000000/SUM('Statistics NZ'!O$30:O$110,'Statistics NZ'!O$130:O$210) -> 30268.59389 | P32: ='Statistics NZ'!P$32*'Economic Forecasts'!R$9*1000000/SUM('Statistics NZ'!P$30:P$110,'Statistics NZ'!P$130:P$210) -> 29875.08568 | Q32: ='Statistics NZ'!Q$32*'Economic Forecasts'!S$9*1000000/SUM('Statistics NZ'!Q$30:Q$110,'Statistics NZ'!Q$130:Q$210) -> 30646.44302 | R32: ='Statistics NZ'!R$32*'Economic Forecasts'!T$9*1000000/SUM('Statistics NZ'!R$30:R$110,'Statistics NZ'!R$130:R$210) -> 30640.32267 | S32: ='Statistics NZ'!S$32*'Economic Forecasts'!U$9*1000000/SUM('Statistics NZ'!S$30:S$110,'Statistics NZ'!S$130:S$210) -> 31239.30177 | T32: ='Statistics NZ'!T$32*'Economic Forecasts'!V$9*1000000/SUM('Statistics NZ'!T$30:T$110,'Statistics NZ'!T$130:T$210) -> 33695.23213 | U32: =SUM('Statistics NZ'!U$32,$E$12/5*(U$8-U$9)*1000)*'Economic Forecasts'!W$9*1000000/SUM('Statistics NZ'!U$30:U$110,'Statistics NZ'!U$130:U$210,SUM($E$12:$T$13)*(U$8-U$9)*1000) -> 34612.92309 | V32: =SUM('Statistics NZ'!V$32,$E$12/5*(V$8-V$9)*1000)*'Economic Forecasts'!X$9*1000000/SUM('Statistics NZ'!V$30:V$110,'Statistics NZ'!V$130:V$210,SUM($E$12:$T$13)*(V$8-V$9)*1000) -> 33955.7309 | W32: =SUM('Statistics NZ'!W$32,$E$12/5*(W$8-W$9)*1000)*'Economic Forecasts'!Y$9*1000000/SUM('Statistics NZ'!W$30:W$110,'Statistics NZ'!W$130:W$210,SUM($E$12:$T$13)*(W$8-W$9)*1000) -> 34924.79632 | X32: =SUM('Statistics NZ'!X$32,$E$12/5*(X$8-X$9)*1000)*'Economic Forecasts'!Z$9*1000000/SUM('Statistics NZ'!X$30:X$110,'Statistics NZ'!X$130:X$210,SUM($E$12:$T$13)*(X$8-X$9)*1000) -> 34950.60499 | Y32: =SUM('Statistics NZ'!Y$32,$E$12/5*(Y$8-Y$9)*1000)*'Economic Forecasts'!AA$9*1000000/SUM('Statistics NZ'!Y$30:Y$110,'Statistics NZ'!Y$130:Y$210,SUM($E$12:$T$13)*(Y$8-Y$9)*1000) -> 35061.14302 | Z32: =SUM('Statistics NZ'!Z$32,$E$12/5*(Z$8-Z$9)*1000)*'Economic Forecasts'!AB$9*1000000/SUM('Statistics NZ'!Z$30:Z$110,'Statistics NZ'!Z$130:Z$210,SUM($E$12:$T$13)*(Z$8-Z$9)*1000) -> 35092.97852 | AA32: =SUM(Z$32,'Statistics NZ'!AA$32-'Statistics NZ'!Z$32,$E$12/5*(AA$8-AA$9)*1000) -> 34295.14282 | AB32: =SUM(AA$32,'Statistics NZ'!AB$32-'Statistics NZ'!AA$32,$E$12/5*(AB$8-AB$9)*1000) -> 34409.54962 | AC32: =SUM(AB$32,'Statistics NZ'!AC$32-'Statistics NZ'!AB$32,$E$12/5*(AC$8-AC$9)*1000) -> 34017.30712 | AD32: =SUM(AC$32,'Statistics NZ'!AD$32-'Statistics NZ'!AC$32,$E$12/5*(AD$8-AD$9)*1000) -> 34527.30712 | AE32: =SUM(AD$32,'Statistics NZ'!AE$32-'Statistics NZ'!AD$32,$E$12/5*(AE$8-AE$9)*1000) -> 33947.30712 | AF32: =SUM(AE$32,'Statistics NZ'!AF$32-'Statistics NZ'!AE$32,$E$12/5*(AF$8-AF$9)*1000) -> 34017.30712 | AG32: =SUM(AF$32,'Statistics NZ'!AG$32-'Statistics NZ'!AF$32,$E$12/5*(AG$8-AG$9)*1000) -> 33727.30712 | AH32: =SUM(AG$32,'Statistics NZ'!AH$32-'Statistics NZ'!AG$32,$E$12/5*(AH$8-AH$9)*1000) -> 33907.30712 | AI32: =SUM(AH$32,'Statistics NZ'!AI$32-'Statistics NZ'!AH$32,$E$12/5*(AI$8-AI$9)*1000) -> 34247.30712 | AJ32: =SUM(AI$32,'Statistics NZ'!AJ$32-'Statistics NZ'!AI$32,$E$12/5*(AJ$8-AJ$9)*1000) -> 31687.30712
A33: 18 | B33: ='Statistics NZ'!B$33*'Economic Forecasts'!D$9*1000000/SUM('Statistics NZ'!B$30:B$110,'Statistics NZ'!B$130:B$210) -> 29527.93357 | C33: ='Statistics NZ'!C$33*'Economic Forecasts'!E$9*1000000/SUM('Statistics NZ'!C$30:C$110,'Statistics NZ'!C$130:C$210) -> 30019.97924 | D33: ='Statistics NZ'!D$33*'Economic Forecasts'!F$9*1000000/SUM('Statistics NZ'!D$30:D$110,'Statistics NZ'!D$130:D$210) -> 31177.32504 | E33: ='Statistics NZ'!E$33*'Economic Forecasts'!G$9*1000000/SUM('Statistics NZ'!E$30:E$110,'Statistics NZ'!E$130:E$210) -> 31558.99972 | F33: ='Statistics NZ'!F$33*'Economic Forecasts'!H$9*1000000/SUM('Statistics NZ'!F$30:F$110,'Statistics NZ'!F$130:F$210) -> 30789.9216 | G33: ='Statistics NZ'!G$33*'Economic Forecasts'!I$9*1000000/SUM('Statistics NZ'!G$30:G$110,'Statistics NZ'!G$130:G$210) -> 30695.22581 | H33: ='Statistics NZ'!H$33*'Economic Forecasts'!J$9*1000000/SUM('Statistics NZ'!H$30:H$110,'Statistics NZ'!H$130:H$210) -> 30055.09452 | I33: ='Statistics NZ'!I$33*'Economic Forecasts'!K$9*1000000/SUM('Statistics NZ'!I$30:I$110,'Statistics NZ'!I$130:I$210) -> 30165.53968 | J33: ='Statistics NZ'!J$33*'Economic Forecasts'!L$9*1000000/SUM('Statistics NZ'!J$30:J$110,'Statistics NZ'!J$130:J$210) -> 29879.7672 | K33: ='Statistics NZ'!K$33*'Economic Forecasts'!M$9*1000000/SUM('Statistics NZ'!K$30:K$110,'Statistics NZ'!K$130:K$210) -> 30133.59886 | L33: ='Statistics NZ'!L$33*'Economic Forecasts'!N$9*1000000/SUM('Statistics NZ'!L$30:L$110,'Statistics NZ'!L$130:L$210) -> 30144.56011 | M33: ='Statistics NZ'!M$33*'Economic Forecasts'!O$9*1000000/SUM('Statistics NZ'!M$30:M$110,'Statistics NZ'!M$130:M$210) -> 30002.36127 | N33: ='Statistics NZ'!N$33*'Economic Forecasts'!P$9*1000000/SUM('Statistics NZ'!N$30:N$110,'Statistics NZ'!N$130:N$210) -> 30979.1019 | O33: ='Statistics NZ'!O$33*'Economic Forecasts'!Q$9*1000000/SUM('Statistics NZ'!O$30:O$110,'Statistics NZ'!O$130:O$210) -> 31132.84966 | P33: ='Statistics NZ'!P$33*'Economic Forecasts'!R$9*1000000/SUM('Statistics NZ'!P$30:P$110,'Statistics NZ'!P$130:P$210) -> 30423.43206 | Q33: ='Statistics NZ'!Q$33*'Economic Forecasts'!S$9*1000000/SUM('Statistics NZ'!Q$30:Q$110,'Statistics NZ'!Q$130:Q$210) -> 29974.63189 | R33: ='Statistics NZ'!R$33*'Economic Forecasts'!T$9*1000000/SUM('Statistics NZ'!R$30:R$110,'Statistics NZ'!R$130:R$210) -> 30541.48292 | S33: ='Statistics NZ'!S$33*'Economic Forecasts'!U$9*1000000/SUM('Statistics NZ'!S$30:S$110,'Statistics NZ'!S$130:S$210) -> 30548.1237 | T33: ='Statistics NZ'!T$33*'Economic Forecasts'!V$9*1000000/SUM('Statistics NZ'!T$30:T$110,'Statistics NZ'!T$130:T$210) -> 31828.73239 | U33: =SUM('Statistics NZ'!U$33,$E$12/5*(U$8-U$9)*1000)*'Economic Forecasts'!W$9*1000000/SUM('Statistics NZ'!U$30:U$110,'Statistics NZ'!U$130:U$210,SUM($E$12:$T$13)*(U$8-U$9)*1000) -> 33757.09119 | V33: =SUM('Statistics NZ'!V$33,$E$12/5*(V$8-V$9)*1000)*'Economic Forecasts'!X$9*1000000/SUM('Statistics NZ'!V$30:V$110,'Statistics NZ'!V$130:V$210,SUM($E$12:$T$13)*(V$8-V$9)*1000) -> 34748.35629 | W33: =SUM('Statistics NZ'!W$33,$E$12/5*(W$8-W$9)*1000)*'Economic Forecasts'!Y$9*1000000/SUM('Statistics NZ'!W$30:W$110,'Statistics NZ'!W$130:W$210,SUM($E$12:$T$13)*(W$8-W$9)*1000) -> 34153.29298 | X33: =SUM('Statistics NZ'!X$33,$E$12/5*(X$8-X$9)*1000)*'Economic Forecasts'!Z$9*1000000/SUM('Statistics NZ'!X$30:X$110,'Statistics NZ'!X$130:X$210,SUM($E$12:$T$13)*(X$8-X$9)*1000) -> 35136.0977 | Y33: =SUM('Statistics NZ'!Y$33,$E$12/5*(Y$8-Y$9)*1000)*'Economic Forecasts'!AA$9*1000000/SUM('Statistics NZ'!Y$30:Y$110,'Statistics NZ'!Y$130:Y$210,SUM($E$12:$T$13)*(Y$8-Y$9)*1000) -> 35178.33214 | Z33: =SUM('Statistics NZ'!Z$33,$E$12/5*(Z$8-Z$9)*1000)*'Economic Forecasts'!AB$9*1000000/SUM('Statistics NZ'!Z$30:Z$110,'Statistics NZ'!Z$130:Z$210,SUM($E$12:$T$13)*(Z$8-Z$9)*1000) -> 35298.13127 | AA33: =SUM(Z$33,'Statistics NZ'!AA$33-'Statistics NZ'!Z$33,$E$12/5*(AA$8-AA$9)*1000) -> 35350.29557 | AB33: =SUM(AA$33,'Statistics NZ'!AB$33-'Statistics NZ'!AA$33,$E$12/5*(AB$8-AB$9)*1000) -> 34544.70237 | AC33: =SUM(AB$33,'Statistics NZ'!AC$33-'Statistics NZ'!AB$33,$E$12/5*(AC$8-AC$9)*1000) -> 34662.45987 | AD33: =SUM(AC$33,'Statistics NZ'!AD$33-'Statistics NZ'!AC$33,$E$12/5*(AD$8-AD$9)*1000) -> 34252.45987 | AE33: =SUM(AD$33,'Statistics NZ'!AE$33-'Statistics NZ'!AD$33,$E$12/5*(AE$8-AE$9)*1000) -> 34772.45987 | AF33: =SUM(AE$33,'Statistics NZ'!AF$33-'Statistics NZ'!AE$33,$E$12/5*(AF$8-AF$9)*1000) -> 34192.45987 | AG33: =SUM(AF$33,'Statistics NZ'!AG$33-'Statistics NZ'!AF$33,$E$12/5*(AG$8-AG$9)*1000) -> 34262.45987 | AH33: =SUM(AG$33,'Statistics NZ'!AH$33-'Statistics NZ'!AG$33,$E$12/5*(AH$8-AH$9)*1000) -> 33972.45987 | AI33: =SUM(AH$33,'Statistics NZ'!AI$33-'Statistics NZ'!AH$33,$E$12/5*(AI$8-AI$9)*1000) -> 34162.45987 | AJ33: =SUM(AI$33,'Statistics NZ'!AJ$33-'Statistics NZ'!AI$33,$E$12/5*(AJ$8-AJ$9)*1000) -> 34502.45987
A34: 19 | B34: ='Statistics NZ'!B$34*'Economic Forecasts'!D$9*1000000/SUM('Statistics NZ'!B$30:B$110,'Statistics NZ'!B$130:B$210) -> 28441.91614 | C34: ='Statistics NZ'!C$34*'Economic Forecasts'!E$9*1000000/SUM('Statistics NZ'!C$30:C$110,'Statistics NZ'!C$130:C$210) -> 29509.33517 | D34: ='Statistics NZ'!D$34*'Economic Forecasts'!F$9*1000000/SUM('Statistics NZ'!D$30:D$110,'Statistics NZ'!D$130:D$210) -> 29900.37096 | E34: ='Statistics NZ'!E$34*'Economic Forecasts'!G$9*1000000/SUM('Statistics NZ'!E$30:E$110,'Statistics NZ'!E$130:E$210) -> 31186.33285 | F34: ='Statistics NZ'!F$34*'Economic Forecasts'!H$9*1000000/SUM('Statistics NZ'!F$30:F$110,'Statistics NZ'!F$130:F$210) -> 31868.89305 | G34: ='Statistics NZ'!G$34*'Economic Forecasts'!I$9*1000000/SUM('Statistics NZ'!G$30:G$110,'Statistics NZ'!G$130:G$210) -> 30911.3202 | H34: ='Statistics NZ'!H$34*'Economic Forecasts'!J$9*1000000/SUM('Statistics NZ'!H$30:H$110,'Statistics NZ'!H$130:H$210) -> 30791.97981 | I34: ='Statistics NZ'!I$34*'Economic Forecasts'!K$9*1000000/SUM('Statistics NZ'!I$30:I$110,'Statistics NZ'!I$130:I$210) -> 30234.16457 | J34: ='Statistics NZ'!J$34*'Economic Forecasts'!L$9*1000000/SUM('Statistics NZ'!J$30:J$110,'Statistics NZ'!J$130:J$210) -> 30406.36884 | K34: ='Statistics NZ'!K$34*'Economic Forecasts'!M$9*1000000/SUM('Statistics NZ'!K$30:K$110,'Statistics NZ'!K$130:K$210) -> 30367.26813 | L34: ='Statistics NZ'!L$34*'Economic Forecasts'!N$9*1000000/SUM('Statistics NZ'!L$30:L$110,'Statistics NZ'!L$130:L$210) -> 30699.54717 | M34: ='Statistics NZ'!M$34*'Economic Forecasts'!O$9*1000000/SUM('Statistics NZ'!M$30:M$110,'Statistics NZ'!M$130:M$210) -> 30666.69229 | N34: ='Statistics NZ'!N$34*'Economic Forecasts'!P$9*1000000/SUM('Statistics NZ'!N$30:N$110,'Statistics NZ'!N$130:N$210) -> 30333.29624 | O34: ='Statistics NZ'!O$34*'Economic Forecasts'!Q$9*1000000/SUM('Statistics NZ'!O$30:O$110,'Statistics NZ'!O$130:O$210) -> 31427.4823 | P34: ='Statistics NZ'!P$34*'Economic Forecasts'!R$9*1000000/SUM('Statistics NZ'!P$30:P$110,'Statistics NZ'!P$130:P$210) -> 31304.70303 | Q34: ='Statistics NZ'!Q$34*'Economic Forecasts'!S$9*1000000/SUM('Statistics NZ'!Q$30:Q$110,'Statistics NZ'!Q$130:Q$210) -> 30429.09236 | R34: ='Statistics NZ'!R$34*'Economic Forecasts'!T$9*1000000/SUM('Statistics NZ'!R$30:R$110,'Statistics NZ'!R$130:R$210) -> 29770.53287 | S34: ='Statistics NZ'!S$34*'Economic Forecasts'!U$9*1000000/SUM('Statistics NZ'!S$30:S$110,'Statistics NZ'!S$130:S$210) -> 30752.55665 | T34: ='Statistics NZ'!T$34*'Economic Forecasts'!V$9*1000000/SUM('Statistics NZ'!T$30:T$110,'Statistics NZ'!T$130:T$210) -> 31367.0193 | U34: =SUM('Statistics NZ'!U$34,$E$12/5*(U$8-U$9)*1000)*'Economic Forecasts'!W$9*1000000/SUM('Statistics NZ'!U$30:U$110,'Statistics NZ'!U$130:U$210,SUM($E$12:$T$13)*(U$8-U$9)*1000) -> 31858.52157 | V34: =SUM('Statistics NZ'!V$34,$E$12/5*(V$8-V$9)*1000)*'Economic Forecasts'!X$9*1000000/SUM('Statistics NZ'!V$30:V$110,'Statistics NZ'!V$130:V$210,SUM($E$12:$T$13)*(V$8-V$9)*1000) -> 33857.87592 | W34: =SUM('Statistics NZ'!W$34,$E$12/5*(W$8-W$9)*1000)*'Economic Forecasts'!Y$9*1000000/SUM('Statistics NZ'!W$30:W$110,'Statistics NZ'!W$130:W$210,SUM($E$12:$T$13)*(W$8-W$9)*1000) -> 34905.26459 | X34: =SUM('Statistics NZ'!X$34,$E$12/5*(X$8-X$9)*1000)*'Economic Forecasts'!Z$9*1000000/SUM('Statistics NZ'!X$30:X$110,'Statistics NZ'!X$130:X$210,SUM($E$12:$T$13)*(X$8-X$9)*1000) -> 34325.78743 | Y34: =SUM('Statistics NZ'!Y$34,$E$12/5*(Y$8-Y$9)*1000)*'Economic Forecasts'!AA$9*1000000/SUM('Statistics NZ'!Y$30:Y$110,'Statistics NZ'!Y$130:Y$210,SUM($E$12:$T$13)*(Y$8-Y$9)*1000) -> 35324.81855 | Z34: =SUM('Statistics NZ'!Z$34,$E$12/5*(Z$8-Z$9)*1000)*'Economic Forecasts'!AB$9*1000000/SUM('Statistics NZ'!Z$30:Z$110,'Statistics NZ'!Z$130:Z$210,SUM($E$12:$T$13)*(Z$8-Z$9)*1000) -> 35376.2847 | AA34: =SUM(Z$34,'Statistics NZ'!AA$34-'Statistics NZ'!Z$34,$E$12/5*(AA$8-AA$9)*1000) -> 35518.449 | AB34: =SUM(AA$34,'Statistics NZ'!AB$34-'Statistics NZ'!AA$34,$E$12/5*(AB$8-AB$9)*1000) -> 35562.8558 | AC34: =SUM(AB$34,'Statistics NZ'!AC$34-'Statistics NZ'!AB$34,$E$12/5*(AC$8-AC$9)*1000) -> 34750.6133 | AD34: =SUM(AC$34,'Statistics NZ'!AD$34-'Statistics NZ'!AC$34,$E$12/5*(AD$8-AD$9)*1000) -> 34860.6133 | AE34: =SUM(AD$34,'Statistics NZ'!AE$34-'Statistics NZ'!AD$34,$E$12/5*(AE$8-AE$9)*1000) -> 34460.6133 | AF34: =SUM(AE$34,'Statistics NZ'!AF$34-'Statistics NZ'!AE$34,$E$12/5*(AF$8-AF$9)*1000) -> 34980.6133 | AG34: =SUM(AF$34,'Statistics NZ'!AG$34-'Statistics NZ'!AF$34,$E$12/5*(AG$8-AG$9)*1000) -> 34400.6133 | AH34: =SUM(AG$34,'Statistics NZ'!AH$34-'Statistics NZ'!AG$34,$E$12/5*(AH$8-AH$9)*1000) -> 34470.6133 | AI34: =SUM(AH$34,'Statistics NZ'!AI$34-'Statistics NZ'!AH$34,$E$12/5*(AI$8-AI$9)*1000) -> 34180.6133 | AJ34: =SUM(AI$34,'Statistics NZ'!AJ$34-'Statistics NZ'!AI$34,$E$12/5*(AJ$8-AJ$9)*1000) -> 34370.6133
A35: 20 | B35: ='Statistics NZ'!B$35*'Economic Forecasts'!D$9*1000000/SUM('Statistics NZ'!B$30:B$110,'Statistics NZ'!B$130:B$210) -> 29077.87229 | C35: ='Statistics NZ'!C$35*'Economic Forecasts'!E$9*1000000/SUM('Statistics NZ'!C$30:C$110,'Statistics NZ'!C$130:C$210) -> 28507.68718 | D35: ='Statistics NZ'!D$35*'Economic Forecasts'!F$9*1000000/SUM('Statistics NZ'!D$30:D$110,'Statistics NZ'!D$130:D$210) -> 29536.93018 | E35: ='Statistics NZ'!E$35*'Economic Forecasts'!G$9*1000000/SUM('Statistics NZ'!E$30:E$110,'Statistics NZ'!E$130:E$210) -> 29960.45498 | F35: ='Statistics NZ'!F$35*'Economic Forecasts'!H$9*1000000/SUM('Statistics NZ'!F$30:F$110,'Statistics NZ'!F$130:F$210) -> 31584.43694 | G35: ='Statistics NZ'!G$35*'Economic Forecasts'!I$9*1000000/SUM('Statistics NZ'!G$30:G$110,'Statistics NZ'!G$130:G$210) -> 32198.06407 | H35: ='Statistics NZ'!H$35*'Economic Forecasts'!J$9*1000000/SUM('Statistics NZ'!H$30:H$110,'Statistics NZ'!H$130:H$210) -> 31027.7831 | I35: ='Statistics NZ'!I$35*'Economic Forecasts'!K$9*1000000/SUM('Statistics NZ'!I$30:I$110,'Statistics NZ'!I$130:I$210) -> 30969.43121 | J35: ='Statistics NZ'!J$35*'Economic Forecasts'!L$9*1000000/SUM('Statistics NZ'!J$30:J$110,'Statistics NZ'!J$130:J$210) -> 30455.12825 | K35: ='Statistics NZ'!K$35*'Economic Forecasts'!M$9*1000000/SUM('Statistics NZ'!K$30:K$110,'Statistics NZ'!K$130:K$210) -> 30815.13422 | L35: ='Statistics NZ'!L$35*'Economic Forecasts'!N$9*1000000/SUM('Statistics NZ'!L$30:L$110,'Statistics NZ'!L$130:L$210) -> 30962.43578 | M35: ='Statistics NZ'!M$35*'Economic Forecasts'!O$9*1000000/SUM('Statistics NZ'!M$30:M$110,'Statistics NZ'!M$130:M$210) -> 31086.78396 | N35: ='Statistics NZ'!N$35*'Economic Forecasts'!P$9*1000000/SUM('Statistics NZ'!N$30:N$110,'Statistics NZ'!N$130:N$210) -> 31165.01565 | O35: ='Statistics NZ'!O$35*'Economic Forecasts'!Q$9*1000000/SUM('Statistics NZ'!O$30:O$110,'Statistics NZ'!O$130:O$210) -> 30592.68981 | P35: ='Statistics NZ'!P$35*'Economic Forecasts'!R$9*1000000/SUM('Statistics NZ'!P$30:P$110,'Statistics NZ'!P$130:P$210) -> 31706.17091 | Q35: ='Statistics NZ'!Q$35*'Economic Forecasts'!S$9*1000000/SUM('Statistics NZ'!Q$30:Q$110,'Statistics NZ'!Q$130:Q$210) -> 31278.73585 | R35: ='Statistics NZ'!R$35*'Economic Forecasts'!T$9*1000000/SUM('Statistics NZ'!R$30:R$110,'Statistics NZ'!R$130:R$210) -> 30165.89187 | S35: ='Statistics NZ'!S$35*'Economic Forecasts'!U$9*1000000/SUM('Statistics NZ'!S$30:S$110,'Statistics NZ'!S$130:S$210) -> 30119.788 | T35: ='Statistics NZ'!T$35*'Economic Forecasts'!V$9*1000000/SUM('Statistics NZ'!T$30:T$110,'Statistics NZ'!T$130:T$210) -> 31494.72718 | U35: =SUM('Statistics NZ'!U$35,$F$12/5*(U$8-U$9)*1000)*'Economic Forecasts'!W$9*1000000/SUM('Statistics NZ'!U$30:U$110,'Statistics NZ'!U$130:U$210,SUM($E$12:$T$13)*(U$8-U$9)*1000) -> 31516.52105 | V35: =SUM('Statistics NZ'!V$35,$F$12/5*(V$8-V$9)*1000)*'Economic Forecasts'!X$9*1000000/SUM('Statistics NZ'!V$30:V$110,'Statistics NZ'!V$130:V$210,SUM($E$12:$T$13)*(V$8-V$9)*1000) -> 31961.91359 | W35: =SUM('Statistics NZ'!W$35,$F$12/5*(W$8-W$9)*1000)*'Economic Forecasts'!Y$9*1000000/SUM('Statistics NZ'!W$30:W$110,'Statistics NZ'!W$130:W$210,SUM($E$12:$T$13)*(W$8-W$9)*1000) -> 33950.6976 | X35: =SUM('Statistics NZ'!X$35,$F$12/5*(X$8-X$9)*1000)*'Economic Forecasts'!Z$9*1000000/SUM('Statistics NZ'!X$30:X$110,'Statistics NZ'!X$130:X$210,SUM($E$12:$T$13)*(X$8-X$9)*1000) -> 35003.13474 | Y35: =SUM('Statistics NZ'!Y$35,$F$12/5*(Y$8-Y$9)*1000)*'Economic Forecasts'!AA$9*1000000/SUM('Statistics NZ'!Y$30:Y$110,'Statistics NZ'!Y$130:Y$210,SUM($E$12:$T$13)*(Y$8-Y$9)*1000) -> 34458.15362 | Z35: =SUM('Statistics NZ'!Z$35,$F$12/5*(Z$8-Z$9)*1000)*'Economic Forecasts'!AB$9*1000000/SUM('Statistics NZ'!Z$30:Z$110,'Statistics NZ'!Z$130:Z$210,SUM($E$12:$T$13)*(Z$8-Z$9)*1000) -> 35467.90611 | AA35: =SUM(Z$35,'Statistics NZ'!AA$35-'Statistics NZ'!Z$35,$F$12/5*(AA$8-AA$9)*1000) -> 35525.09537 | AB35: =SUM(AA$35,'Statistics NZ'!AB$35-'Statistics NZ'!AA$35,$F$12/5*(AB$8-AB$9)*1000) -> 35643.2684 | AC35: =SUM(AB$35,'Statistics NZ'!AC$35-'Statistics NZ'!AB$35,$F$12/5*(AC$8-AC$9)*1000) -> 35672.28464 | AD35: =SUM(AC$35,'Statistics NZ'!AD$35-'Statistics NZ'!AC$35,$F$12/5*(AD$8-AD$9)*1000) -> 34852.28464 | AE35: =SUM(AD$35,'Statistics NZ'!AE$35-'Statistics NZ'!AD$35,$F$12/5*(AE$8-AE$9)*1000) -> 34962.28464 | AF35: =SUM(AE$35,'Statistics NZ'!AF$35-'Statistics NZ'!AE$35,$F$12/5*(AF$8-AF$9)*1000) -> 34572.28464 | AG35: =SUM(AF$35,'Statistics NZ'!AG$35-'Statistics NZ'!AF$35,$F$12/5*(AG$8-AG$9)*1000) -> 35082.28464 | AH35: =SUM(AG$35,'Statistics NZ'!AH$35-'Statistics NZ'!AG$35,$F$12/5*(AH$8-AH$9)*1000) -> 34512.28464 | AI35: =SUM(AH$35,'Statistics NZ'!AI$35-'Statistics NZ'!AH$35,$F$12/5*(AI$8-AI$9)*1000) -> 34582.28464 | AJ35: =SUM(AI$35,'Statistics NZ'!AJ$35-'Statistics NZ'!AI$35,$F$12/5*(AJ$8-AJ$9)*1000) -> 34302.28464
A36: 21 | B36: ='Statistics NZ'!B$36*'Economic Forecasts'!D$9*1000000/SUM('Statistics NZ'!B$30:B$110,'Statistics NZ'!B$130:B$210) -> 29009.38471 | C36: ='Statistics NZ'!C$36*'Economic Forecasts'!E$9*1000000/SUM('Statistics NZ'!C$30:C$110,'Statistics NZ'!C$130:C$210) -> 28831.74977 | D36: ='Statistics NZ'!D$36*'Economic Forecasts'!F$9*1000000/SUM('Statistics NZ'!D$30:D$110,'Statistics NZ'!D$130:D$210) -> 28250.15338 | E36: ='Statistics NZ'!E$36*'Economic Forecasts'!G$9*1000000/SUM('Statistics NZ'!E$30:E$110,'Statistics NZ'!E$130:E$210) -> 29411.2617 | F36: ='Statistics NZ'!F$36*'Economic Forecasts'!H$9*1000000/SUM('Statistics NZ'!F$30:F$110,'Statistics NZ'!F$130:F$210) -> 30054.25925 | G36: ='Statistics NZ'!G$36*'Economic Forecasts'!I$9*1000000/SUM('Statistics NZ'!G$30:G$110,'Statistics NZ'!G$130:G$210) -> 31539.95843 | H36: ='Statistics NZ'!H$36*'Economic Forecasts'!J$9*1000000/SUM('Statistics NZ'!H$30:H$110,'Statistics NZ'!H$130:H$210) -> 31882.57003 | I36: ='Statistics NZ'!I$36*'Economic Forecasts'!K$9*1000000/SUM('Statistics NZ'!I$30:I$110,'Statistics NZ'!I$130:I$210) -> 30812.57433 | J36: ='Statistics NZ'!J$36*'Economic Forecasts'!L$9*1000000/SUM('Statistics NZ'!J$30:J$110,'Statistics NZ'!J$130:J$210) -> 31049.99306 | K36: ='Statistics NZ'!K$36*'Economic Forecasts'!M$9*1000000/SUM('Statistics NZ'!K$30:K$110,'Statistics NZ'!K$130:K$210) -> 30737.24446 | L36: ='Statistics NZ'!L$36*'Economic Forecasts'!N$9*1000000/SUM('Statistics NZ'!L$30:L$110,'Statistics NZ'!L$130:L$210) -> 31410.32007 | M36: ='Statistics NZ'!M$36*'Economic Forecasts'!O$9*1000000/SUM('Statistics NZ'!M$30:M$110,'Statistics NZ'!M$130:M$210) -> 31448.2582 | N36: ='Statistics NZ'!N$36*'Economic Forecasts'!P$9*1000000/SUM('Statistics NZ'!N$30:N$110,'Statistics NZ'!N$130:N$210) -> 31409.63901 | O36: ='Statistics NZ'!O$36*'Economic Forecasts'!Q$9*1000000/SUM('Statistics NZ'!O$30:O$110,'Statistics NZ'!O$130:O$210) -> 31427.4823 | P36: ='Statistics NZ'!P$36*'Economic Forecasts'!R$9*1000000/SUM('Statistics NZ'!P$30:P$110,'Statistics NZ'!P$130:P$210) -> 30873.85944 | Q36: ='Statistics NZ'!Q$36*'Economic Forecasts'!S$9*1000000/SUM('Statistics NZ'!Q$30:Q$110,'Statistics NZ'!Q$130:Q$210) -> 31762.83504 | R36: ='Statistics NZ'!R$36*'Economic Forecasts'!T$9*1000000/SUM('Statistics NZ'!R$30:R$110,'Statistics NZ'!R$130:R$210) -> 31015.91373 | S36: ='Statistics NZ'!S$36*'Economic Forecasts'!U$9*1000000/SUM('Statistics NZ'!S$30:S$110,'Statistics NZ'!S$130:S$210) -> 30295.01624 | T36: ='Statistics NZ'!T$36*'Economic Forecasts'!V$9*1000000/SUM('Statistics NZ'!T$30:T$110,'Statistics NZ'!T$130:T$210) -> 30679.3615 | U36: =SUM('Statistics NZ'!U$36,$F$12/5*(U$8-U$9)*1000)*'Economic Forecasts'!W$9*1000000/SUM('Statistics NZ'!U$30:U$110,'Statistics NZ'!U$130:U$210,SUM($E$12:$T$13)*(U$8-U$9)*1000) -> 31487.0096 | V36: =SUM('Statistics NZ'!V$36,$F$12/5*(V$8-V$9)*1000)*'Economic Forecasts'!X$9*1000000/SUM('Statistics NZ'!V$30:V$110,'Statistics NZ'!V$130:V$210,SUM($E$12:$T$13)*(V$8-V$9)*1000) -> 31316.07069 | W36: =SUM('Statistics NZ'!W$36,$F$12/5*(W$8-W$9)*1000)*'Economic Forecasts'!Y$9*1000000/SUM('Statistics NZ'!W$30:W$110,'Statistics NZ'!W$130:W$210,SUM($E$12:$T$13)*(W$8-W$9)*1000) -> 31880.3342 | X36: =SUM('Statistics NZ'!X$36,$F$12/5*(X$8-X$9)*1000)*'Economic Forecasts'!Z$9*1000000/SUM('Statistics NZ'!X$30:X$110,'Statistics NZ'!X$130:X$210,SUM($E$12:$T$13)*(X$8-X$9)*1000) -> 33948.75511 | Y36: =SUM('Statistics NZ'!Y$36,$F$12/5*(Y$8-Y$9)*1000)*'Economic Forecasts'!AA$9*1000000/SUM('Statistics NZ'!Y$30:Y$110,'Statistics NZ'!Y$130:Y$210,SUM($E$12:$T$13)*(Y$8-Y$9)*1000) -> 35044.09925 | Z36: =SUM('Statistics NZ'!Z$36,$F$12/5*(Z$8-Z$9)*1000)*'Economic Forecasts'!AB$9*1000000/SUM('Statistics NZ'!Z$30:Z$110,'Statistics NZ'!Z$130:Z$210,SUM($E$12:$T$13)*(Z$8-Z$9)*1000) -> 34500.75742 | AA36: =SUM(Z$36,'Statistics NZ'!AA$36-'Statistics NZ'!Z$36,$F$12/5*(AA$8-AA$9)*1000) -> 35527.94669 | AB36: =SUM(AA$36,'Statistics NZ'!AB$36-'Statistics NZ'!AA$36,$F$12/5*(AB$8-AB$9)*1000) -> 35586.11971 | AC36: =SUM(AB$36,'Statistics NZ'!AC$36-'Statistics NZ'!AB$36,$F$12/5*(AC$8-AC$9)*1000) -> 35705.13596 | AD36: =SUM(AC$36,'Statistics NZ'!AD$36-'Statistics NZ'!AC$36,$F$12/5*(AD$8-AD$9)*1000) -> 35745.13596 | AE36: =SUM(AD$36,'Statistics NZ'!AE$36-'Statistics NZ'!AD$36,$F$12/5*(AE$8-AE$9)*1000) -> 34925.13596 | AF36: =SUM(AE$36,'Statistics NZ'!AF$36-'Statistics NZ'!AE$36,$F$12/5*(AF$8-AF$9)*1000) -> 35045.13596 | AG36: =SUM(AF$36,'Statistics NZ'!AG$36-'Statistics NZ'!AF$36,$F$12/5*(AG$8-AG$9)*1000) -> 34645.13596 | AH36: =SUM(AG$36,'Statistics NZ'!AH$36-'Statistics NZ'!AG$36,$F$12/5*(AH$8-AH$9)*1000) -> 35165.13596 | AI36: =SUM(AH$36,'Statistics NZ'!AI$36-'Statistics NZ'!AH$36,$F$12/5*(AI$8-AI$9)*1000) -> 34595.13596 | AJ36: =SUM(AI$36,'Statistics NZ'!AJ$36-'Statistics NZ'!AI$36,$F$12/5*(AJ$8-AJ$9)*1000) -> 34675.13596
A37: 22 | B37: ='Statistics NZ'!B$37*'Economic Forecasts'!D$9*1000000/SUM('Statistics NZ'!B$30:B$110,'Statistics NZ'!B$130:B$210) -> 28608.24313 | C37: ='Statistics NZ'!C$37*'Economic Forecasts'!E$9*1000000/SUM('Statistics NZ'!C$30:C$110,'Statistics NZ'!C$130:C$210) -> 28537.14742 | D37: ='Statistics NZ'!D$37*'Economic Forecasts'!F$9*1000000/SUM('Statistics NZ'!D$30:D$110,'Statistics NZ'!D$130:D$210) -> 28250.15338 | E37: ='Statistics NZ'!E$37*'Economic Forecasts'!G$9*1000000/SUM('Statistics NZ'!E$30:E$110,'Statistics NZ'!E$130:E$210) -> 27950.01529 | F37: ='Statistics NZ'!F$37*'Economic Forecasts'!H$9*1000000/SUM('Statistics NZ'!F$30:F$110,'Statistics NZ'!F$130:F$210) -> 29259.74391 | G37: ='Statistics NZ'!G$37*'Economic Forecasts'!I$9*1000000/SUM('Statistics NZ'!G$30:G$110,'Statistics NZ'!G$130:G$210) -> 29683.51117 | H37: ='Statistics NZ'!H$37*'Economic Forecasts'!J$9*1000000/SUM('Statistics NZ'!H$30:H$110,'Statistics NZ'!H$130:H$210) -> 30850.93063 | I37: ='Statistics NZ'!I$37*'Economic Forecasts'!K$9*1000000/SUM('Statistics NZ'!I$30:I$110,'Statistics NZ'!I$130:I$210) -> 31440.00187 | J37: ='Statistics NZ'!J$37*'Economic Forecasts'!L$9*1000000/SUM('Statistics NZ'!J$30:J$110,'Statistics NZ'!J$130:J$210) -> 30825.69977 | K37: ='Statistics NZ'!K$37*'Economic Forecasts'!M$9*1000000/SUM('Statistics NZ'!K$30:K$110,'Statistics NZ'!K$130:K$210) -> 31311.68141 | L37: ='Statistics NZ'!L$37*'Economic Forecasts'!N$9*1000000/SUM('Statistics NZ'!L$30:L$110,'Statistics NZ'!L$130:L$210) -> 31303.2173 | M37: ='Statistics NZ'!M$37*'Economic Forecasts'!O$9*1000000/SUM('Statistics NZ'!M$30:M$110,'Statistics NZ'!M$130:M$210) -> 31946.50646 | N37: ='Statistics NZ'!N$37*'Economic Forecasts'!P$9*1000000/SUM('Statistics NZ'!N$30:N$110,'Statistics NZ'!N$130:N$210) -> 31722.75691 | O37: ='Statistics NZ'!O$37*'Economic Forecasts'!Q$9*1000000/SUM('Statistics NZ'!O$30:O$110,'Statistics NZ'!O$130:O$210) -> 31751.57822 | P37: ='Statistics NZ'!P$37*'Economic Forecasts'!R$9*1000000/SUM('Statistics NZ'!P$30:P$110,'Statistics NZ'!P$130:P$210) -> 31892.217 | Q37: ='Statistics NZ'!Q$37*'Economic Forecasts'!S$9*1000000/SUM('Statistics NZ'!Q$30:Q$110,'Statistics NZ'!Q$130:Q$210) -> 30755.11835 | R37: ='Statistics NZ'!R$37*'Economic Forecasts'!T$9*1000000/SUM('Statistics NZ'!R$30:R$110,'Statistics NZ'!R$130:R$210) -> 31421.1567 | S37: ='Statistics NZ'!S$37*'Economic Forecasts'!U$9*1000000/SUM('Statistics NZ'!S$30:S$110,'Statistics NZ'!S$130:S$210) -> 30927.7849 | T37: ='Statistics NZ'!T$37*'Economic Forecasts'!V$9*1000000/SUM('Statistics NZ'!T$30:T$110,'Statistics NZ'!T$130:T$210) -> 30797.2457 | U37: =SUM('Statistics NZ'!U$37,$F$12/5*(U$8-U$9)*1000)*'Economic Forecasts'!W$9*1000000/SUM('Statistics NZ'!U$30:U$110,'Statistics NZ'!U$130:U$210,SUM($E$12:$T$13)*(U$8-U$9)*1000) -> 30650.852 | V37: =SUM('Statistics NZ'!V$37,$F$12/5*(V$8-V$9)*1000)*'Economic Forecasts'!X$9*1000000/SUM('Statistics NZ'!V$30:V$110,'Statistics NZ'!V$130:V$210,SUM($E$12:$T$13)*(V$8-V$9)*1000) -> 31267.1432 | W37: =SUM('Statistics NZ'!W$37,$F$12/5*(W$8-W$9)*1000)*'Economic Forecasts'!Y$9*1000000/SUM('Statistics NZ'!W$30:W$110,'Statistics NZ'!W$130:W$210,SUM($E$12:$T$13)*(W$8-W$9)*1000) -> 31235.7871 | X37: =SUM('Statistics NZ'!X$37,$F$12/5*(X$8-X$9)*1000)*'Economic Forecasts'!Z$9*1000000/SUM('Statistics NZ'!X$30:X$110,'Statistics NZ'!X$130:X$210,SUM($E$12:$T$13)*(X$8-X$9)*1000) -> 31888.80972 | Y37: =SUM('Statistics NZ'!Y$37,$F$12/5*(Y$8-Y$9)*1000)*'Economic Forecasts'!AA$9*1000000/SUM('Statistics NZ'!Y$30:Y$110,'Statistics NZ'!Y$130:Y$210,SUM($E$12:$T$13)*(Y$8-Y$9)*1000) -> 33989.39712 | Z37: =SUM('Statistics NZ'!Z$37,$F$12/5*(Z$8-Z$9)*1000)*'Economic Forecasts'!AB$9*1000000/SUM('Statistics NZ'!Z$30:Z$110,'Statistics NZ'!Z$130:Z$210,SUM($E$12:$T$13)*(Z$8-Z$9)*1000) -> 35096.67732 | AA37: =SUM(Z$37,'Statistics NZ'!AA$37-'Statistics NZ'!Z$37,$F$12/5*(AA$8-AA$9)*1000) -> 34533.86659 | AB37: =SUM(AA$37,'Statistics NZ'!AB$37-'Statistics NZ'!AA$37,$F$12/5*(AB$8-AB$9)*1000) -> 35562.03961 | AC37: =SUM(AB$37,'Statistics NZ'!AC$37-'Statistics NZ'!AB$37,$F$12/5*(AC$8-AC$9)*1000) -> 35621.05585 | AD37: =SUM(AC$37,'Statistics NZ'!AD$37-'Statistics NZ'!AC$37,$F$12/5*(AD$8-AD$9)*1000) -> 35741.05585 | AE37: =SUM(AD$37,'Statistics NZ'!AE$37-'Statistics NZ'!AD$37,$F$12/5*(AE$8-AE$9)*1000) -> 35781.05585 | AF37: =SUM(AE$37,'Statistics NZ'!AF$37-'Statistics NZ'!AE$37,$F$12/5*(AF$8-AF$9)*1000) -> 34971.05585 | AG37: =SUM(AF$37,'Statistics NZ'!AG$37-'Statistics NZ'!AF$37,$F$12/5*(AG$8-AG$9)*1000) -> 35091.05585 | AH37: =SUM(AG$37,'Statistics NZ'!AH$37-'Statistics NZ'!AG$37,$F$12/5*(AH$8-AH$9)*1000) -> 34691.05585 | AI37: =SUM(AH$37,'Statistics NZ'!AI$37-'Statistics NZ'!AH$37,$F$12/5*(AI$8-AI$9)*1000) -> 35221.05585 | AJ37: =SUM(AI$37,'Statistics NZ'!AJ$37-'Statistics NZ'!AI$37,$F$12/5*(AJ$8-AJ$9)*1000) -> 34651.05585
A38: 23 | B38: ='Statistics NZ'!B$38*'Economic Forecasts'!D$9*1000000/SUM('Statistics NZ'!B$30:B$110,'Statistics NZ'!B$130:B$210) -> 28256.02126 | C38: ='Statistics NZ'!C$38*'Economic Forecasts'!E$9*1000000/SUM('Statistics NZ'!C$30:C$110,'Statistics NZ'!C$130:C$210) -> 28134.52421 | D38: ='Statistics NZ'!D$38*'Economic Forecasts'!F$9*1000000/SUM('Statistics NZ'!D$30:D$110,'Statistics NZ'!D$130:D$210) -> 28014.40801 | E38: ='Statistics NZ'!E$38*'Economic Forecasts'!G$9*1000000/SUM('Statistics NZ'!E$30:E$110,'Statistics NZ'!E$130:E$210) -> 27832.33101 | F38: ='Statistics NZ'!F$38*'Economic Forecasts'!H$9*1000000/SUM('Statistics NZ'!F$30:F$110,'Statistics NZ'!F$130:F$210) -> 27857.08103 | G38: ='Statistics NZ'!G$38*'Economic Forecasts'!I$9*1000000/SUM('Statistics NZ'!G$30:G$110,'Statistics NZ'!G$130:G$210) -> 28917.35833 | H38: ='Statistics NZ'!H$38*'Economic Forecasts'!J$9*1000000/SUM('Statistics NZ'!H$30:H$110,'Statistics NZ'!H$130:H$210) -> 29210.13273 | I38: ='Statistics NZ'!I$38*'Economic Forecasts'!K$9*1000000/SUM('Statistics NZ'!I$30:I$110,'Statistics NZ'!I$130:I$210) -> 30420.43212 | J38: ='Statistics NZ'!J$38*'Economic Forecasts'!L$9*1000000/SUM('Statistics NZ'!J$30:J$110,'Statistics NZ'!J$130:J$210) -> 31576.59471 | K38: ='Statistics NZ'!K$38*'Economic Forecasts'!M$9*1000000/SUM('Statistics NZ'!K$30:K$110,'Statistics NZ'!K$130:K$210) -> 31691.39396 | L38: ='Statistics NZ'!L$38*'Economic Forecasts'!N$9*1000000/SUM('Statistics NZ'!L$30:L$110,'Statistics NZ'!L$130:L$210) -> 32276.8788 | M38: ='Statistics NZ'!M$38*'Economic Forecasts'!O$9*1000000/SUM('Statistics NZ'!M$30:M$110,'Statistics NZ'!M$130:M$210) -> 32229.8241 | N38: ='Statistics NZ'!N$38*'Economic Forecasts'!P$9*1000000/SUM('Statistics NZ'!N$30:N$110,'Statistics NZ'!N$130:N$210) -> 32534.90645 | O38: ='Statistics NZ'!O$38*'Economic Forecasts'!Q$9*1000000/SUM('Statistics NZ'!O$30:O$110,'Statistics NZ'!O$130:O$210) -> 32272.09589 | P38: ='Statistics NZ'!P$38*'Economic Forecasts'!R$9*1000000/SUM('Statistics NZ'!P$30:P$110,'Statistics NZ'!P$130:P$210) -> 32460.14718 | Q38: ='Statistics NZ'!Q$38*'Economic Forecasts'!S$9*1000000/SUM('Statistics NZ'!Q$30:Q$110,'Statistics NZ'!Q$130:Q$210) -> 31772.71462 | R38: ='Statistics NZ'!R$38*'Economic Forecasts'!T$9*1000000/SUM('Statistics NZ'!R$30:R$110,'Statistics NZ'!R$130:R$210) -> 30254.84765 | S38: ='Statistics NZ'!S$38*'Economic Forecasts'!U$9*1000000/SUM('Statistics NZ'!S$30:S$110,'Statistics NZ'!S$130:S$210) -> 31589.75826 | T38: ='Statistics NZ'!T$38*'Economic Forecasts'!V$9*1000000/SUM('Statistics NZ'!T$30:T$110,'Statistics NZ'!T$130:T$210) -> 31612.61137 | U38: =SUM('Statistics NZ'!U$38,$F$12/5*(U$8-U$9)*1000)*'Economic Forecasts'!W$9*1000000/SUM('Statistics NZ'!U$30:U$110,'Statistics NZ'!U$130:U$210,SUM($E$12:$T$13)*(U$8-U$9)*1000) -> 30818.08352 | V38: =SUM('Statistics NZ'!V$38,$F$12/5*(V$8-V$9)*1000)*'Economic Forecasts'!X$9*1000000/SUM('Statistics NZ'!V$30:V$110,'Statistics NZ'!V$130:V$210,SUM($E$12:$T$13)*(V$8-V$9)*1000) -> 30494.08881 | W38: =SUM('Statistics NZ'!W$38,$F$12/5*(W$8-W$9)*1000)*'Economic Forecasts'!Y$9*1000000/SUM('Statistics NZ'!W$30:W$110,'Statistics NZ'!W$130:W$210,SUM($E$12:$T$13)*(W$8-W$9)*1000) -> 31245.55297 | X38: =SUM('Statistics NZ'!X$38,$F$12/5*(X$8-X$9)*1000)*'Economic Forecasts'!Z$9*1000000/SUM('Statistics NZ'!X$30:X$110,'Statistics NZ'!X$130:X$210,SUM($E$12:$T$13)*(X$8-X$9)*1000) -> 31293.28048 | Y38: =SUM('Statistics NZ'!Y$38,$F$12/5*(Y$8-Y$9)*1000)*'Economic Forecasts'!AA$9*1000000/SUM('Statistics NZ'!Y$30:Y$110,'Statistics NZ'!Y$130:Y$210,SUM($E$12:$T$13)*(Y$8-Y$9)*1000) -> 31987.41621 | Z38: =SUM('Statistics NZ'!Z$38,$F$12/5*(Z$8-Z$9)*1000)*'Economic Forecasts'!AB$9*1000000/SUM('Statistics NZ'!Z$30:Z$110,'Statistics NZ'!Z$130:Z$210,SUM($E$12:$T$13)*(Z$8-Z$9)*1000) -> 34100.2211 | AA38: =SUM(Z$38,'Statistics NZ'!AA$38-'Statistics NZ'!Z$38,$F$12/5*(AA$8-AA$9)*1000) -> 35227.41037 | AB38: =SUM(AA$38,'Statistics NZ'!AB$38-'Statistics NZ'!AA$38,$F$12/5*(AB$8-AB$9)*1000) -> 34665.58339 | AC38: =SUM(AB$38,'Statistics NZ'!AC$38-'Statistics NZ'!AB$38,$F$12/5*(AC$8-AC$9)*1000) -> 35704.59963 | AD38: =SUM(AC$38,'Statistics NZ'!AD$38-'Statistics NZ'!AC$38,$F$12/5*(AD$8-AD$9)*1000) -> 35764.59963 | AE38: =SUM(AD$38,'Statistics NZ'!AE$38-'Statistics NZ'!AD$38,$F$12/5*(AE$8-AE$9)*1000) -> 35894.59963 | AF38: =SUM(AE$38,'Statistics NZ'!AF$38-'Statistics NZ'!AE$38,$F$12/5*(AF$8-AF$9)*1000) -> 35934.59963 | AG38: =SUM(AF$38,'Statistics NZ'!AG$38-'Statistics NZ'!AF$38,$F$12/5*(AG$8-AG$9)*1000) -> 35124.59963 | AH38: =SUM(AG$38,'Statistics NZ'!AH$38-'Statistics NZ'!AG$38,$F$12/5*(AH$8-AH$9)*1000) -> 35244.59963 | AI38: =SUM(AH$38,'Statistics NZ'!AI$38-'Statistics NZ'!AH$38,$F$12/5*(AI$8-AI$9)*1000) -> 34854.59963 | AJ38: =SUM(AI$38,'Statistics NZ'!AJ$38-'Statistics NZ'!AI$38,$F$12/5*(AJ$8-AJ$9)*1000) -> 35384.59963
A39: 24 | B39: ='Statistics NZ'!B$39*'Economic Forecasts'!D$9*1000000/SUM('Statistics NZ'!B$30:B$110,'Statistics NZ'!B$130:B$210) -> 27258.05929 | C39: ='Statistics NZ'!C$39*'Economic Forecasts'!E$9*1000000/SUM('Statistics NZ'!C$30:C$110,'Statistics NZ'!C$130:C$210) -> 27928.30257 | D39: ='Statistics NZ'!D$39*'Economic Forecasts'!F$9*1000000/SUM('Statistics NZ'!D$30:D$110,'Statistics NZ'!D$130:D$210) -> 27749.19447 | E39: ='Statistics NZ'!E$39*'Economic Forecasts'!G$9*1000000/SUM('Statistics NZ'!E$30:E$110,'Statistics NZ'!E$130:E$210) -> 27763.68185 | F39: ='Statistics NZ'!F$39*'Economic Forecasts'!H$9*1000000/SUM('Statistics NZ'!F$30:F$110,'Statistics NZ'!F$130:F$210) -> 27709.94855 | G39: ='Statistics NZ'!G$39*'Economic Forecasts'!I$9*1000000/SUM('Statistics NZ'!G$30:G$110,'Statistics NZ'!G$130:G$210) -> 27679.72683 | H39: ='Statistics NZ'!H$39*'Economic Forecasts'!J$9*1000000/SUM('Statistics NZ'!H$30:H$110,'Statistics NZ'!H$130:H$210) -> 28630.44964 | I39: ='Statistics NZ'!I$39*'Economic Forecasts'!K$9*1000000/SUM('Statistics NZ'!I$30:I$110,'Statistics NZ'!I$130:I$210) -> 29038.13082 | J39: ='Statistics NZ'!J$39*'Economic Forecasts'!L$9*1000000/SUM('Statistics NZ'!J$30:J$110,'Statistics NZ'!J$130:J$210) -> 30864.7073 | K39: ='Statistics NZ'!K$39*'Economic Forecasts'!M$9*1000000/SUM('Statistics NZ'!K$30:K$110,'Statistics NZ'!K$130:K$210) -> 32470.29151 | L39: ='Statistics NZ'!L$39*'Economic Forecasts'!N$9*1000000/SUM('Statistics NZ'!L$30:L$110,'Statistics NZ'!L$130:L$210) -> 32968.17847 | M39: ='Statistics NZ'!M$39*'Economic Forecasts'!O$9*1000000/SUM('Statistics NZ'!M$30:M$110,'Statistics NZ'!M$130:M$210) -> 33343.55552 | N39: ='Statistics NZ'!N$39*'Economic Forecasts'!P$9*1000000/SUM('Statistics NZ'!N$30:N$110,'Statistics NZ'!N$130:N$210) -> 32936.08876 | O39: ='Statistics NZ'!O$39*'Economic Forecasts'!Q$9*1000000/SUM('Statistics NZ'!O$30:O$110,'Statistics NZ'!O$130:O$210) -> 33047.96186 | P39: ='Statistics NZ'!P$39*'Economic Forecasts'!R$9*1000000/SUM('Statistics NZ'!P$30:P$110,'Statistics NZ'!P$130:P$210) -> 33214.12345 | Q39: ='Statistics NZ'!Q$39*'Economic Forecasts'!S$9*1000000/SUM('Statistics NZ'!Q$30:Q$110,'Statistics NZ'!Q$130:Q$210) -> 32316.09127 | R39: ='Statistics NZ'!R$39*'Economic Forecasts'!T$9*1000000/SUM('Statistics NZ'!R$30:R$110,'Statistics NZ'!R$130:R$210) -> 31263.0131 | S39: ='Statistics NZ'!S$39*'Economic Forecasts'!U$9*1000000/SUM('Statistics NZ'!S$30:S$110,'Statistics NZ'!S$130:S$210) -> 30450.77468 | T39: ='Statistics NZ'!T$39*'Economic Forecasts'!V$9*1000000/SUM('Statistics NZ'!T$30:T$110,'Statistics NZ'!T$130:T$210) -> 32231.50339 | U39: =SUM('Statistics NZ'!U$39,$F$12/5*(U$8-U$9)*1000)*'Economic Forecasts'!W$9*1000000/SUM('Statistics NZ'!U$30:U$110,'Statistics NZ'!U$130:U$210,SUM($E$12:$T$13)*(U$8-U$9)*1000) -> 31782.12405 | V39: =SUM('Statistics NZ'!V$39,$F$12/5*(V$8-V$9)*1000)*'Economic Forecasts'!X$9*1000000/SUM('Statistics NZ'!V$30:V$110,'Statistics NZ'!V$130:V$210,SUM($E$12:$T$13)*(V$8-V$9)*1000) -> 30817.01027 | W39: =SUM('Statistics NZ'!W$39,$F$12/5*(W$8-W$9)*1000)*'Economic Forecasts'!Y$9*1000000/SUM('Statistics NZ'!W$30:W$110,'Statistics NZ'!W$130:W$210,SUM($E$12:$T$13)*(W$8-W$9)*1000) -> 30630.30347 | X39: =SUM('Statistics NZ'!X$39,$F$12/5*(X$8-X$9)*1000)*'Economic Forecasts'!Z$9*1000000/SUM('Statistics NZ'!X$30:X$110,'Statistics NZ'!X$130:X$210,SUM($E$12:$T$13)*(X$8-X$9)*1000) -> 31469.01042 | Y39: =SUM('Statistics NZ'!Y$39,$F$12/5*(Y$8-Y$9)*1000)*'Economic Forecasts'!AA$9*1000000/SUM('Statistics NZ'!Y$30:Y$110,'Statistics NZ'!Y$130:Y$210,SUM($E$12:$T$13)*(Y$8-Y$9)*1000) -> 31567.4885 | Z39: =SUM('Statistics NZ'!Z$39,$F$12/5*(Z$8-Z$9)*1000)*'Economic Forecasts'!AB$9*1000000/SUM('Statistics NZ'!Z$30:Z$110,'Statistics NZ'!Z$130:Z$210,SUM($E$12:$T$13)*(Z$8-Z$9)*1000) -> 32273.3847 | AA39: =SUM(Z$39,'Statistics NZ'!AA$39-'Statistics NZ'!Z$39,$F$12/5*(AA$8-AA$9)*1000) -> 34430.57396 | AB39: =SUM(AA$39,'Statistics NZ'!AB$39-'Statistics NZ'!AA$39,$F$12/5*(AB$8-AB$9)*1000) -> 35548.74699 | AC39: =SUM(AB$39,'Statistics NZ'!AC$39-'Statistics NZ'!AB$39,$F$12/5*(AC$8-AC$9)*1000) -> 34997.76323 | AD39: =SUM(AC$39,'Statistics NZ'!AD$39-'Statistics NZ'!AC$39,$F$12/5*(AD$8-AD$9)*1000) -> 36037.76323 | AE39: =SUM(AD$39,'Statistics NZ'!AE$39-'Statistics NZ'!AD$39,$F$12/5*(AE$8-AE$9)*1000) -> 36097.76323 | AF39: =SUM(AE$39,'Statistics NZ'!AF$39-'Statistics NZ'!AE$39,$F$12/5*(AF$8-AF$9)*1000) -> 36237.76323 | AG39: =SUM(AF$39,'Statistics NZ'!AG$39-'Statistics NZ'!AF$39,$F$12/5*(AG$8-AG$9)*1000) -> 36277.76323 | AH39: =SUM(AG$39,'Statistics NZ'!AH$39-'Statistics NZ'!AG$39,$F$12/5*(AH$8-AH$9)*1000) -> 35477.76323 | AI39: =SUM(AH$39,'Statistics NZ'!AI$39-'Statistics NZ'!AH$39,$F$12/5*(AI$8-AI$9)*1000) -> 35597.76323 | AJ39: =SUM(AI$39,'Statistics NZ'!AJ$39-'Statistics NZ'!AI$39,$F$12/5*(AJ$8-AJ$9)*1000) -> 35217.76323
A40: 25 | B40: ='Statistics NZ'!B$40*'Economic Forecasts'!D$9*1000000/SUM('Statistics NZ'!B$30:B$110,'Statistics NZ'!B$130:B$210) -> 26553.61555 | C40: ='Statistics NZ'!C$40*'Economic Forecasts'!E$9*1000000/SUM('Statistics NZ'!C$30:C$110,'Statistics NZ'!C$130:C$210) -> 27162.33646 | D40: ='Statistics NZ'!D$40*'Economic Forecasts'!F$9*1000000/SUM('Statistics NZ'!D$30:D$110,'Statistics NZ'!D$130:D$210) -> 27552.73999 | E40: ='Statistics NZ'!E$40*'Economic Forecasts'!G$9*1000000/SUM('Statistics NZ'!E$30:E$110,'Statistics NZ'!E$130:E$210) -> 27626.38353 | F40: ='Statistics NZ'!F$40*'Economic Forecasts'!H$9*1000000/SUM('Statistics NZ'!F$30:F$110,'Statistics NZ'!F$130:F$210) -> 27719.75739 | G40: ='Statistics NZ'!G$40*'Economic Forecasts'!I$9*1000000/SUM('Statistics NZ'!G$30:G$110,'Statistics NZ'!G$130:G$210) -> 27620.79199 | H40: ='Statistics NZ'!H$40*'Economic Forecasts'!J$9*1000000/SUM('Statistics NZ'!H$30:H$110,'Statistics NZ'!H$130:H$210) -> 27539.85941 | I40: ='Statistics NZ'!I$40*'Economic Forecasts'!K$9*1000000/SUM('Statistics NZ'!I$30:I$110,'Statistics NZ'!I$130:I$210) -> 28665.59572 | J40: ='Statistics NZ'!J$40*'Economic Forecasts'!L$9*1000000/SUM('Statistics NZ'!J$30:J$110,'Statistics NZ'!J$130:J$210) -> 29655.4739 | K40: ='Statistics NZ'!K$40*'Economic Forecasts'!M$9*1000000/SUM('Statistics NZ'!K$30:K$110,'Statistics NZ'!K$130:K$210) -> 31856.90969 | L40: ='Statistics NZ'!L$40*'Economic Forecasts'!N$9*1000000/SUM('Statistics NZ'!L$30:L$110,'Statistics NZ'!L$130:L$210) -> 33854.21044 | M40: ='Statistics NZ'!M$40*'Economic Forecasts'!O$9*1000000/SUM('Statistics NZ'!M$30:M$110,'Statistics NZ'!M$130:M$210) -> 34203.27802 | N40: ='Statistics NZ'!N$40*'Economic Forecasts'!P$9*1000000/SUM('Statistics NZ'!N$30:N$110,'Statistics NZ'!N$130:N$210) -> 34227.70008 | O40: ='Statistics NZ'!O$40*'Economic Forecasts'!Q$9*1000000/SUM('Statistics NZ'!O$30:O$110,'Statistics NZ'!O$130:O$210) -> 33647.04824 | P40: ='Statistics NZ'!P$40*'Economic Forecasts'!R$9*1000000/SUM('Statistics NZ'!P$30:P$110,'Statistics NZ'!P$130:P$210) -> 34281.4405 | Q40: ='Statistics NZ'!Q$40*'Economic Forecasts'!S$9*1000000/SUM('Statistics NZ'!Q$30:Q$110,'Statistics NZ'!Q$130:Q$210) -> 33027.4207 | R40: ='Statistics NZ'!R$40*'Economic Forecasts'!T$9*1000000/SUM('Statistics NZ'!R$30:R$110,'Statistics NZ'!R$130:R$210) -> 31727.55993 | S40: ='Statistics NZ'!S$40*'Economic Forecasts'!U$9*1000000/SUM('Statistics NZ'!S$30:S$110,'Statistics NZ'!S$130:S$210) -> 31842.86572 | T40: ='Statistics NZ'!T$40*'Economic Forecasts'!V$9*1000000/SUM('Statistics NZ'!T$30:T$110,'Statistics NZ'!T$130:T$210) -> 31170.54564 | U40: =SUM('Statistics NZ'!U$40,$G$12/5*(U$8-U$9)*1000)*'Economic Forecasts'!W$9*1000000/SUM('Statistics NZ'!U$30:U$110,'Statistics NZ'!U$130:U$210,SUM($E$12:$T$13)*(U$8-U$9)*1000) -> 32305.77332 | V40: =SUM('Statistics NZ'!V$40,$G$12/5*(V$8-V$9)*1000)*'Economic Forecasts'!X$9*1000000/SUM('Statistics NZ'!V$30:V$110,'Statistics NZ'!V$130:V$210,SUM($E$12:$T$13)*(V$8-V$9)*1000) -> 31904.71906 | W40: =SUM('Statistics NZ'!W$40,$G$12/5*(W$8-W$9)*1000)*'Economic Forecasts'!Y$9*1000000/SUM('Statistics NZ'!W$30:W$110,'Statistics NZ'!W$130:W$210,SUM($E$12:$T$13)*(W$8-W$9)*1000) -> 31207.63068 | X40: =SUM('Statistics NZ'!X$40,$G$12/5*(X$8-X$9)*1000)*'Economic Forecasts'!Z$9*1000000/SUM('Statistics NZ'!X$30:X$110,'Statistics NZ'!X$130:X$210,SUM($E$12:$T$13)*(X$8-X$9)*1000) -> 31123.52598 | Y40: =SUM('Statistics NZ'!Y$40,$G$12/5*(Y$8-Y$9)*1000)*'Economic Forecasts'!AA$9*1000000/SUM('Statistics NZ'!Y$30:Y$110,'Statistics NZ'!Y$130:Y$210,SUM($E$12:$T$13)*(Y$8-Y$9)*1000) -> 31988.55737 | Z40: =SUM('Statistics NZ'!Z$40,$G$12/5*(Z$8-Z$9)*1000)*'Economic Forecasts'!AB$9*1000000/SUM('Statistics NZ'!Z$30:Z$110,'Statistics NZ'!Z$130:Z$210,SUM($E$12:$T$13)*(Z$8-Z$9)*1000) -> 32079.90065 | AA40: =SUM(Z$40,'Statistics NZ'!AA$40-'Statistics NZ'!Z$40,$G$12/5*(AA$8-AA$9)*1000) -> 32839.8102 | AB40: =SUM(AA$40,'Statistics NZ'!AB$40-'Statistics NZ'!AA$40,$G$12/5*(AB$8-AB$9)*1000) -> 35025.75141 | AC40: =SUM(AB$40,'Statistics NZ'!AC$40-'Statistics NZ'!AB$40,$G$12/5*(AC$8-AC$9)*1000) -> 36169.71975 | AD40: =SUM(AC$40,'Statistics NZ'!AD$40-'Statistics NZ'!AC$40,$G$12/5*(AD$8-AD$9)*1000) -> 35619.71975 | AE40: =SUM(AD$40,'Statistics NZ'!AE$40-'Statistics NZ'!AD$40,$G$12/5*(AE$8-AE$9)*1000) -> 36669.71975 | AF40: =SUM(AE$40,'Statistics NZ'!AF$40-'Statistics NZ'!AE$40,$G$12/5*(AF$8-AF$9)*1000) -> 36729.71975 | AG40: =SUM(AF$40,'Statistics NZ'!AG$40-'Statistics NZ'!AF$40,$G$12/5*(AG$8-AG$9)*1000) -> 36869.71975 | AH40: =SUM(AG$40,'Statistics NZ'!AH$40-'Statistics NZ'!AG$40,$G$12/5*(AH$8-AH$9)*1000) -> 36919.71975 | AI40: =SUM(AH$40,'Statistics NZ'!AI$40-'Statistics NZ'!AH$40,$G$12/5*(AI$8-AI$9)*1000) -> 36119.71975 | AJ40: =SUM(AI$40,'Statistics NZ'!AJ$40-'Statistics NZ'!AI$40,$G$12/5*(AJ$8-AJ$9)*1000) -> 36249.71975
A41: 26 | B41: ='Statistics NZ'!B$41*'Economic Forecasts'!D$9*1000000/SUM('Statistics NZ'!B$30:B$110,'Statistics NZ'!B$130:B$210) -> 26230.7455 | C41: ='Statistics NZ'!C$41*'Economic Forecasts'!E$9*1000000/SUM('Statistics NZ'!C$30:C$110,'Statistics NZ'!C$130:C$210) -> 26710.61286 | D41: ='Statistics NZ'!D$41*'Economic Forecasts'!F$9*1000000/SUM('Statistics NZ'!D$30:D$110,'Statistics NZ'!D$130:D$210) -> 27022.31291 | E41: ='Statistics NZ'!E$41*'Economic Forecasts'!G$9*1000000/SUM('Statistics NZ'!E$30:E$110,'Statistics NZ'!E$130:E$210) -> 27489.08521 | F41: ='Statistics NZ'!F$41*'Economic Forecasts'!H$9*1000000/SUM('Statistics NZ'!F$30:F$110,'Statistics NZ'!F$130:F$210) -> 27749.18388 | G41: ='Statistics NZ'!G$41*'Economic Forecasts'!I$9*1000000/SUM('Statistics NZ'!G$30:G$110,'Statistics NZ'!G$130:G$210) -> 27561.85716 | H41: ='Statistics NZ'!H$41*'Economic Forecasts'!J$9*1000000/SUM('Statistics NZ'!H$30:H$110,'Statistics NZ'!H$130:H$210) -> 27490.73373 | I41: ='Statistics NZ'!I$41*'Economic Forecasts'!K$9*1000000/SUM('Statistics NZ'!I$30:I$110,'Statistics NZ'!I$130:I$210) -> 27685.24019 | J41: ='Statistics NZ'!J$41*'Economic Forecasts'!L$9*1000000/SUM('Statistics NZ'!J$30:J$110,'Statistics NZ'!J$130:J$210) -> 29538.45132 | K41: ='Statistics NZ'!K$41*'Economic Forecasts'!M$9*1000000/SUM('Statistics NZ'!K$30:K$110,'Statistics NZ'!K$130:K$210) -> 30776.18934 | L41: ='Statistics NZ'!L$41*'Economic Forecasts'!N$9*1000000/SUM('Statistics NZ'!L$30:L$110,'Statistics NZ'!L$130:L$210) -> 33425.79938 | M41: ='Statistics NZ'!M$41*'Economic Forecasts'!O$9*1000000/SUM('Statistics NZ'!M$30:M$110,'Statistics NZ'!M$130:M$210) -> 35346.31816 | N41: ='Statistics NZ'!N$41*'Economic Forecasts'!P$9*1000000/SUM('Statistics NZ'!N$30:N$110,'Statistics NZ'!N$130:N$210) -> 35480.17167 | O41: ='Statistics NZ'!O$41*'Economic Forecasts'!Q$9*1000000/SUM('Statistics NZ'!O$30:O$110,'Statistics NZ'!O$130:O$210) -> 35169.31692 | P41: ='Statistics NZ'!P$41*'Economic Forecasts'!R$9*1000000/SUM('Statistics NZ'!P$30:P$110,'Statistics NZ'!P$130:P$210) -> 35015.83297 | Q41: ='Statistics NZ'!Q$41*'Economic Forecasts'!S$9*1000000/SUM('Statistics NZ'!Q$30:Q$110,'Statistics NZ'!Q$130:Q$210) -> 34203.09018 | R41: ='Statistics NZ'!R$41*'Economic Forecasts'!T$9*1000000/SUM('Statistics NZ'!R$30:R$110,'Statistics NZ'!R$130:R$210) -> 32379.90228 | S41: ='Statistics NZ'!S$41*'Economic Forecasts'!U$9*1000000/SUM('Statistics NZ'!S$30:S$110,'Statistics NZ'!S$130:S$210) -> 32514.57399 | T41: ='Statistics NZ'!T$41*'Economic Forecasts'!V$9*1000000/SUM('Statistics NZ'!T$30:T$110,'Statistics NZ'!T$130:T$210) -> 32811.10068 | U41: =SUM('Statistics NZ'!U$41,$G$12/5*(U$8-U$9)*1000)*'Economic Forecasts'!W$9*1000000/SUM('Statistics NZ'!U$30:U$110,'Statistics NZ'!U$130:U$210,SUM($E$12:$T$13)*(U$8-U$9)*1000) -> 31361.40708 | V41: =SUM('Statistics NZ'!V$41,$G$12/5*(V$8-V$9)*1000)*'Economic Forecasts'!X$9*1000000/SUM('Statistics NZ'!V$30:V$110,'Statistics NZ'!V$130:V$210,SUM($E$12:$T$13)*(V$8-V$9)*1000) -> 32824.55593 | W41: =SUM('Statistics NZ'!W$41,$G$12/5*(W$8-W$9)*1000)*'Economic Forecasts'!Y$9*1000000/SUM('Statistics NZ'!W$30:W$110,'Statistics NZ'!W$130:W$210,SUM($E$12:$T$13)*(W$8-W$9)*1000) -> 32457.66142 | X41: =SUM('Statistics NZ'!X$41,$G$12/5*(X$8-X$9)*1000)*'Economic Forecasts'!Z$9*1000000/SUM('Statistics NZ'!X$30:X$110,'Statistics NZ'!X$130:X$210,SUM($E$12:$T$13)*(X$8-X$9)*1000) -> 31738.58077 | Y41: =SUM('Statistics NZ'!Y$41,$G$12/5*(Y$8-Y$9)*1000)*'Economic Forecasts'!AA$9*1000000/SUM('Statistics NZ'!Y$30:Y$110,'Statistics NZ'!Y$130:Y$210,SUM($E$12:$T$13)*(Y$8-Y$9)*1000) -> 31676.05304 | Z41: =SUM('Statistics NZ'!Z$41,$G$12/5*(Z$8-Z$9)*1000)*'Economic Forecasts'!AB$9*1000000/SUM('Statistics NZ'!Z$30:Z$110,'Statistics NZ'!Z$130:Z$210,SUM($E$12:$T$13)*(Z$8-Z$9)*1000) -> 32558.5904 | AA41: =SUM(Z$41,'Statistics NZ'!AA$41-'Statistics NZ'!Z$41,$G$12/5*(AA$8-AA$9)*1000) -> 32698.49995 | AB41: =SUM(AA$41,'Statistics NZ'!AB$41-'Statistics NZ'!AA$41,$G$12/5*(AB$8-AB$9)*1000) -> 33444.44116 | AC41: =SUM(AB$41,'Statistics NZ'!AC$41-'Statistics NZ'!AB$41,$G$12/5*(AC$8-AC$9)*1000) -> 35628.4095 | AD41: =SUM(AC$41,'Statistics NZ'!AD$41-'Statistics NZ'!AC$41,$G$12/5*(AD$8-AD$9)*1000) -> 36758.4095 | AE41: =SUM(AD$41,'Statistics NZ'!AE$41-'Statistics NZ'!AD$41,$G$12/5*(AE$8-AE$9)*1000) -> 36218.4095 | AF41: =SUM(AE$41,'Statistics NZ'!AF$41-'Statistics NZ'!AE$41,$G$12/5*(AF$8-AF$9)*1000) -> 37268.4095 | AG41: =SUM(AF$41,'Statistics NZ'!AG$41-'Statistics NZ'!AF$41,$G$12/5*(AG$8-AG$9)*1000) -> 37338.4095 | AH41: =SUM(AG$41,'Statistics NZ'!AH$41-'Statistics NZ'!AG$41,$G$12/5*(AH$8-AH$9)*1000) -> 37478.4095 | AI41: =SUM(AH$41,'Statistics NZ'!AI$41-'Statistics NZ'!AH$41,$G$12/5*(AI$8-AI$9)*1000) -> 37528.4095 | AJ41: =SUM(AI$41,'Statistics NZ'!AJ$41-'Statistics NZ'!AI$41,$G$12/5*(AJ$8-AJ$9)*1000) -> 36728.4095
A42: 27 | B42: ='Statistics NZ'!B$42*'Economic Forecasts'!D$9*1000000/SUM('Statistics NZ'!B$30:B$110,'Statistics NZ'!B$130:B$210) -> 26211.17762 | C42: ='Statistics NZ'!C$42*'Economic Forecasts'!E$9*1000000/SUM('Statistics NZ'!C$30:C$110,'Statistics NZ'!C$130:C$210) -> 26484.75106 | D42: ='Statistics NZ'!D$42*'Economic Forecasts'!F$9*1000000/SUM('Statistics NZ'!D$30:D$110,'Statistics NZ'!D$130:D$210) -> 26766.9221 | E42: ='Statistics NZ'!E$42*'Economic Forecasts'!G$9*1000000/SUM('Statistics NZ'!E$30:E$110,'Statistics NZ'!E$130:E$210) -> 27175.26048 | F42: ='Statistics NZ'!F$42*'Economic Forecasts'!H$9*1000000/SUM('Statistics NZ'!F$30:F$110,'Statistics NZ'!F$130:F$210) -> 27729.56622 | G42: ='Statistics NZ'!G$42*'Economic Forecasts'!I$9*1000000/SUM('Statistics NZ'!G$30:G$110,'Statistics NZ'!G$130:G$210) -> 27630.61447 | H42: ='Statistics NZ'!H$42*'Economic Forecasts'!J$9*1000000/SUM('Statistics NZ'!H$30:H$110,'Statistics NZ'!H$130:H$210) -> 27559.50969 | I42: ='Statistics NZ'!I$42*'Economic Forecasts'!K$9*1000000/SUM('Statistics NZ'!I$30:I$110,'Statistics NZ'!I$130:I$210) -> 27528.3833 | J42: ='Statistics NZ'!J$42*'Economic Forecasts'!L$9*1000000/SUM('Statistics NZ'!J$30:J$110,'Statistics NZ'!J$130:J$210) -> 28475.49615 | K42: ='Statistics NZ'!K$42*'Economic Forecasts'!M$9*1000000/SUM('Statistics NZ'!K$30:K$110,'Statistics NZ'!K$130:K$210) -> 30873.55153 | L42: ='Statistics NZ'!L$42*'Economic Forecasts'!N$9*1000000/SUM('Statistics NZ'!L$30:L$110,'Statistics NZ'!L$130:L$210) -> 32374.24496 | M42: ='Statistics NZ'!M$42*'Economic Forecasts'!O$9*1000000/SUM('Statistics NZ'!M$30:M$110,'Statistics NZ'!M$130:M$210) -> 34926.22648 | N42: ='Statistics NZ'!N$42*'Economic Forecasts'!P$9*1000000/SUM('Statistics NZ'!N$30:N$110,'Statistics NZ'!N$130:N$210) -> 36634.79391 | O42: ='Statistics NZ'!O$42*'Economic Forecasts'!Q$9*1000000/SUM('Statistics NZ'!O$30:O$110,'Statistics NZ'!O$130:O$210) -> 36396.95294 | P42: ='Statistics NZ'!P$42*'Economic Forecasts'!R$9*1000000/SUM('Statistics NZ'!P$30:P$110,'Statistics NZ'!P$130:P$210) -> 36739.2073 | Q42: ='Statistics NZ'!Q$42*'Economic Forecasts'!S$9*1000000/SUM('Statistics NZ'!Q$30:Q$110,'Statistics NZ'!Q$130:Q$210) -> 35003.33579 | R42: ='Statistics NZ'!R$42*'Economic Forecasts'!T$9*1000000/SUM('Statistics NZ'!R$30:R$110,'Statistics NZ'!R$130:R$210) -> 33654.93507 | S42: ='Statistics NZ'!S$42*'Economic Forecasts'!U$9*1000000/SUM('Statistics NZ'!S$30:S$110,'Statistics NZ'!S$130:S$210) -> 33478.32932 | T42: ='Statistics NZ'!T$42*'Economic Forecasts'!V$9*1000000/SUM('Statistics NZ'!T$30:T$110,'Statistics NZ'!T$130:T$210) -> 33803.29264 | U42: =SUM('Statistics NZ'!U$42,$G$12/5*(U$8-U$9)*1000)*'Economic Forecasts'!W$9*1000000/SUM('Statistics NZ'!U$30:U$110,'Statistics NZ'!U$130:U$210,SUM($E$12:$T$13)*(U$8-U$9)*1000) -> 33112.41948 | V42: =SUM('Statistics NZ'!V$42,$G$12/5*(V$8-V$9)*1000)*'Economic Forecasts'!X$9*1000000/SUM('Statistics NZ'!V$30:V$110,'Statistics NZ'!V$130:V$210,SUM($E$12:$T$13)*(V$8-V$9)*1000) -> 31992.78855 | W42: =SUM('Statistics NZ'!W$42,$G$12/5*(W$8-W$9)*1000)*'Economic Forecasts'!Y$9*1000000/SUM('Statistics NZ'!W$30:W$110,'Statistics NZ'!W$130:W$210,SUM($E$12:$T$13)*(W$8-W$9)*1000) -> 33483.07725 | X42: =SUM('Statistics NZ'!X$42,$G$12/5*(X$8-X$9)*1000)*'Economic Forecasts'!Z$9*1000000/SUM('Statistics NZ'!X$30:X$110,'Statistics NZ'!X$130:X$210,SUM($E$12:$T$13)*(X$8-X$9)*1000) -> 33105.36918 | Y42: =SUM('Statistics NZ'!Y$42,$G$12/5*(Y$8-Y$9)*1000)*'Economic Forecasts'!AA$9*1000000/SUM('Statistics NZ'!Y$30:Y$110,'Statistics NZ'!Y$130:Y$210,SUM($E$12:$T$13)*(Y$8-Y$9)*1000) -> 32398.71932 | Z42: =SUM('Statistics NZ'!Z$42,$G$12/5*(Z$8-Z$9)*1000)*'Economic Forecasts'!AB$9*1000000/SUM('Statistics NZ'!Z$30:Z$110,'Statistics NZ'!Z$130:Z$210,SUM($E$12:$T$13)*(Z$8-Z$9)*1000) -> 32343.66847 | AA42: =SUM(Z$42,'Statistics NZ'!AA$42-'Statistics NZ'!Z$42,$G$12/5*(AA$8-AA$9)*1000) -> 33293.57802 | AB42: =SUM(AA$42,'Statistics NZ'!AB$42-'Statistics NZ'!AA$42,$G$12/5*(AB$8-AB$9)*1000) -> 33429.51923 | AC42: =SUM(AB$42,'Statistics NZ'!AC$42-'Statistics NZ'!AB$42,$G$12/5*(AC$8-AC$9)*1000) -> 34173.48757 | AD42: =SUM(AC$42,'Statistics NZ'!AD$42-'Statistics NZ'!AC$42,$G$12/5*(AD$8-AD$9)*1000) -> 36333.48757 | AE42: =SUM(AD$42,'Statistics NZ'!AE$42-'Statistics NZ'!AD$42,$G$12/5*(AE$8-AE$9)*1000) -> 37473.48757 | AF42: =SUM(AE$42,'Statistics NZ'!AF$42-'Statistics NZ'!AE$42,$G$12/5*(AF$8-AF$9)*1000) -> 36933.48757 | AG42: =SUM(AF$42,'Statistics NZ'!AG$42-'Statistics NZ'!AF$42,$G$12/5*(AG$8-AG$9)*1000) -> 37983.48757 | AH42: =SUM(AG$42,'Statistics NZ'!AH$42-'Statistics NZ'!AG$42,$G$12/5*(AH$8-AH$9)*1000) -> 38063.48757 | AI42: =SUM(AH$42,'Statistics NZ'!AI$42-'Statistics NZ'!AH$42,$G$12/5*(AI$8-AI$9)*1000) -> 38203.48757 | AJ42: =SUM(AI$42,'Statistics NZ'!AJ$42-'Statistics NZ'!AI$42,$G$12/5*(AJ$8-AJ$9)*1000) -> 38263.48757
A43: 28 | B43: ='Statistics NZ'!B$43*'Economic Forecasts'!D$9*1000000/SUM('Statistics NZ'!B$30:B$110,'Statistics NZ'!B$130:B$210) -> 25487.16599 | C43: ='Statistics NZ'!C$43*'Economic Forecasts'!E$9*1000000/SUM('Statistics NZ'!C$30:C$110,'Statistics NZ'!C$130:C$210) -> 26612.41208 | D43: ='Statistics NZ'!D$43*'Economic Forecasts'!F$9*1000000/SUM('Statistics NZ'!D$30:D$110,'Statistics NZ'!D$130:D$210) -> 26698.16303 | E43: ='Statistics NZ'!E$43*'Economic Forecasts'!G$9*1000000/SUM('Statistics NZ'!E$30:E$110,'Statistics NZ'!E$130:E$210) -> 27008.54109 | F43: ='Statistics NZ'!F$43*'Economic Forecasts'!H$9*1000000/SUM('Statistics NZ'!F$30:F$110,'Statistics NZ'!F$130:F$210) -> 27386.25712 | G43: ='Statistics NZ'!G$43*'Economic Forecasts'!I$9*1000000/SUM('Statistics NZ'!G$30:G$110,'Statistics NZ'!G$130:G$210) -> 27846.70886 | H43: ='Statistics NZ'!H$43*'Economic Forecasts'!J$9*1000000/SUM('Statistics NZ'!H$30:H$110,'Statistics NZ'!H$130:H$210) -> 27638.11078 | I43: ='Statistics NZ'!I$43*'Economic Forecasts'!K$9*1000000/SUM('Statistics NZ'!I$30:I$110,'Statistics NZ'!I$130:I$210) -> 27734.25796 | J43: ='Statistics NZ'!J$43*'Economic Forecasts'!L$9*1000000/SUM('Statistics NZ'!J$30:J$110,'Statistics NZ'!J$130:J$210) -> 28270.70663 | K43: ='Statistics NZ'!K$43*'Economic Forecasts'!M$9*1000000/SUM('Statistics NZ'!K$30:K$110,'Statistics NZ'!K$130:K$210) -> 29695.46899 | L43: ='Statistics NZ'!L$43*'Economic Forecasts'!N$9*1000000/SUM('Statistics NZ'!L$30:L$110,'Statistics NZ'!L$130:L$210) -> 32549.50403 | M43: ='Statistics NZ'!M$43*'Economic Forecasts'!O$9*1000000/SUM('Statistics NZ'!M$30:M$110,'Statistics NZ'!M$130:M$210) -> 34086.04313 | N43: ='Statistics NZ'!N$43*'Economic Forecasts'!P$9*1000000/SUM('Statistics NZ'!N$30:N$110,'Statistics NZ'!N$130:N$210) -> 36292.32121 | O43: ='Statistics NZ'!O$43*'Economic Forecasts'!Q$9*1000000/SUM('Statistics NZ'!O$30:O$110,'Statistics NZ'!O$130:O$210) -> 37359.41959 | P43: ='Statistics NZ'!P$43*'Economic Forecasts'!R$9*1000000/SUM('Statistics NZ'!P$30:P$110,'Statistics NZ'!P$130:P$210) -> 37855.48386 | Q43: ='Statistics NZ'!Q$43*'Economic Forecasts'!S$9*1000000/SUM('Statistics NZ'!Q$30:Q$110,'Statistics NZ'!Q$130:Q$210) -> 36623.58616 | R43: ='Statistics NZ'!R$43*'Economic Forecasts'!T$9*1000000/SUM('Statistics NZ'!R$30:R$110,'Statistics NZ'!R$130:R$210) -> 34386.34922 | S43: ='Statistics NZ'!S$43*'Economic Forecasts'!U$9*1000000/SUM('Statistics NZ'!S$30:S$110,'Statistics NZ'!S$130:S$210) -> 35074.85331 | T43: ='Statistics NZ'!T$43*'Economic Forecasts'!V$9*1000000/SUM('Statistics NZ'!T$30:T$110,'Statistics NZ'!T$130:T$210) -> 34667.77673 | U43: =SUM('Statistics NZ'!U$43,$G$12/5*(U$8-U$9)*1000)*'Economic Forecasts'!W$9*1000000/SUM('Statistics NZ'!U$30:U$110,'Statistics NZ'!U$130:U$210,SUM($E$12:$T$13)*(U$8-U$9)*1000) -> 34145.32005 | V43: =SUM('Statistics NZ'!V$43,$G$12/5*(V$8-V$9)*1000)*'Economic Forecasts'!X$9*1000000/SUM('Statistics NZ'!V$30:V$110,'Statistics NZ'!V$130:V$210,SUM($E$12:$T$13)*(V$8-V$9)*1000) -> 33773.74928 | W43: =SUM('Statistics NZ'!W$43,$G$12/5*(W$8-W$9)*1000)*'Economic Forecasts'!Y$9*1000000/SUM('Statistics NZ'!W$30:W$110,'Statistics NZ'!W$130:W$210,SUM($E$12:$T$13)*(W$8-W$9)*1000) -> 32682.27631 | X43: =SUM('Statistics NZ'!X$43,$G$12/5*(X$8-X$9)*1000)*'Economic Forecasts'!Z$9*1000000/SUM('Statistics NZ'!X$30:X$110,'Statistics NZ'!X$130:X$210,SUM($E$12:$T$13)*(X$8-X$9)*1000) -> 34149.98603 | Y43: =SUM('Statistics NZ'!Y$43,$G$12/5*(Y$8-Y$9)*1000)*'Economic Forecasts'!AA$9*1000000/SUM('Statistics NZ'!Y$30:Y$110,'Statistics NZ'!Y$130:Y$210,SUM($E$12:$T$13)*(Y$8-Y$9)*1000) -> 33785.45731 | Z43: =SUM('Statistics NZ'!Z$43,$G$12/5*(Z$8-Z$9)*1000)*'Economic Forecasts'!AB$9*1000000/SUM('Statistics NZ'!Z$30:Z$110,'Statistics NZ'!Z$130:Z$210,SUM($E$12:$T$13)*(Z$8-Z$9)*1000) -> 33095.89523 | AA43: =SUM(Z$43,'Statistics NZ'!AA$43-'Statistics NZ'!Z$43,$G$12/5*(AA$8-AA$9)*1000) -> 33095.80478 | AB43: =SUM(AA$43,'Statistics NZ'!AB$43-'Statistics NZ'!AA$43,$G$12/5*(AB$8-AB$9)*1000) -> 34031.74599 | AC43: =SUM(AB$43,'Statistics NZ'!AC$43-'Statistics NZ'!AB$43,$G$12/5*(AC$8-AC$9)*1000) -> 34155.71433 | AD43: =SUM(AC$43,'Statistics NZ'!AD$43-'Statistics NZ'!AC$43,$G$12/5*(AD$8-AD$9)*1000) -> 34885.71433 | AE43: =SUM(AD$43,'Statistics NZ'!AE$43-'Statistics NZ'!AD$43,$G$12/5*(AE$8-AE$9)*1000) -> 37055.71433 | AF43: =SUM(AE$43,'Statistics NZ'!AF$43-'Statistics NZ'!AE$43,$G$12/5*(AF$8-AF$9)*1000) -> 38195.71433 | AG43: =SUM(AF$43,'Statistics NZ'!AG$43-'Statistics NZ'!AF$43,$G$12/5*(AG$8-AG$9)*1000) -> 37665.71433 | AH43: =SUM(AG$43,'Statistics NZ'!AH$43-'Statistics NZ'!AG$43,$G$12/5*(AH$8-AH$9)*1000) -> 38715.71433 | AI43: =SUM(AH$43,'Statistics NZ'!AI$43-'Statistics NZ'!AH$43,$G$12/5*(AI$8-AI$9)*1000) -> 38795.71433 | AJ43: =SUM(AI$43,'Statistics NZ'!AJ$43-'Statistics NZ'!AI$43,$G$12/5*(AJ$8-AJ$9)*1000) -> 38935.71433
A44: 29 | B44: ='Statistics NZ'!B$44*'Economic Forecasts'!D$9*1000000/SUM('Statistics NZ'!B$30:B$110,'Statistics NZ'!B$130:B$210) -> 26230.7455 | C44: ='Statistics NZ'!C$44*'Economic Forecasts'!E$9*1000000/SUM('Statistics NZ'!C$30:C$110,'Statistics NZ'!C$130:C$210) -> 26072.30778 | D44: ='Statistics NZ'!D$44*'Economic Forecasts'!F$9*1000000/SUM('Statistics NZ'!D$30:D$110,'Statistics NZ'!D$130:D$210) -> 26953.55385 | E44: ='Statistics NZ'!E$44*'Economic Forecasts'!G$9*1000000/SUM('Statistics NZ'!E$30:E$110,'Statistics NZ'!E$130:E$210) -> 27018.34811 | F44: ='Statistics NZ'!F$44*'Economic Forecasts'!H$9*1000000/SUM('Statistics NZ'!F$30:F$110,'Statistics NZ'!F$130:F$210) -> 27278.35998 | G44: ='Statistics NZ'!G$44*'Economic Forecasts'!I$9*1000000/SUM('Statistics NZ'!G$30:G$110,'Statistics NZ'!G$130:G$210) -> 27640.43694 | H44: ='Statistics NZ'!H$44*'Economic Forecasts'!J$9*1000000/SUM('Statistics NZ'!H$30:H$110,'Statistics NZ'!H$130:H$210) -> 27873.91408 | I44: ='Statistics NZ'!I$44*'Economic Forecasts'!K$9*1000000/SUM('Statistics NZ'!I$30:I$110,'Statistics NZ'!I$130:I$210) -> 27744.06152 | J44: ='Statistics NZ'!J$44*'Economic Forecasts'!L$9*1000000/SUM('Statistics NZ'!J$30:J$110,'Statistics NZ'!J$130:J$210) -> 28524.25556 | K44: ='Statistics NZ'!K$44*'Economic Forecasts'!M$9*1000000/SUM('Statistics NZ'!K$30:K$110,'Statistics NZ'!K$130:K$210) -> 29442.32729 | L44: ='Statistics NZ'!L$44*'Economic Forecasts'!N$9*1000000/SUM('Statistics NZ'!L$30:L$110,'Statistics NZ'!L$130:L$210) -> 31157.16808 | M44: ='Statistics NZ'!M$44*'Economic Forecasts'!O$9*1000000/SUM('Statistics NZ'!M$30:M$110,'Statistics NZ'!M$130:M$210) -> 34144.66058 | N44: ='Statistics NZ'!N$44*'Economic Forecasts'!P$9*1000000/SUM('Statistics NZ'!N$30:N$110,'Statistics NZ'!N$130:N$210) -> 35313.82779 | O44: ='Statistics NZ'!O$44*'Economic Forecasts'!Q$9*1000000/SUM('Statistics NZ'!O$30:O$110,'Statistics NZ'!O$130:O$210) -> 37408.52503 | P44: ='Statistics NZ'!P$44*'Economic Forecasts'!R$9*1000000/SUM('Statistics NZ'!P$30:P$110,'Statistics NZ'!P$130:P$210) -> 38815.09002 | Q44: ='Statistics NZ'!Q$44*'Economic Forecasts'!S$9*1000000/SUM('Statistics NZ'!Q$30:Q$110,'Statistics NZ'!Q$130:Q$210) -> 37838.77394 | R44: ='Statistics NZ'!R$44*'Economic Forecasts'!T$9*1000000/SUM('Statistics NZ'!R$30:R$110,'Statistics NZ'!R$130:R$210) -> 36135.81281 | S44: ='Statistics NZ'!S$44*'Economic Forecasts'!U$9*1000000/SUM('Statistics NZ'!S$30:S$110,'Statistics NZ'!S$130:S$210) -> 35873.11531 | T44: ='Statistics NZ'!T$44*'Economic Forecasts'!V$9*1000000/SUM('Statistics NZ'!T$30:T$110,'Statistics NZ'!T$130:T$210) -> 36406.5686 | U44: =SUM('Statistics NZ'!U$44,$G$12/5*(U$8-U$9)*1000)*'Economic Forecasts'!W$9*1000000/SUM('Statistics NZ'!U$30:U$110,'Statistics NZ'!U$130:U$210,SUM($E$12:$T$13)*(U$8-U$9)*1000) -> 35020.82625 | V44: =SUM('Statistics NZ'!V$44,$G$12/5*(V$8-V$9)*1000)*'Economic Forecasts'!X$9*1000000/SUM('Statistics NZ'!V$30:V$110,'Statistics NZ'!V$130:V$210,SUM($E$12:$T$13)*(V$8-V$9)*1000) -> 34801.22663 | W44: =SUM('Statistics NZ'!W$44,$G$12/5*(W$8-W$9)*1000)*'Economic Forecasts'!Y$9*1000000/SUM('Statistics NZ'!W$30:W$110,'Statistics NZ'!W$130:W$210,SUM($E$12:$T$13)*(W$8-W$9)*1000) -> 34449.8979 | X44: =SUM('Statistics NZ'!X$44,$G$12/5*(X$8-X$9)*1000)*'Economic Forecasts'!Z$9*1000000/SUM('Statistics NZ'!X$30:X$110,'Statistics NZ'!X$130:X$210,SUM($E$12:$T$13)*(X$8-X$9)*1000) -> 33349.43853 | Y44: =SUM('Statistics NZ'!Y$44,$G$12/5*(Y$8-Y$9)*1000)*'Economic Forecasts'!AA$9*1000000/SUM('Statistics NZ'!Y$30:Y$110,'Statistics NZ'!Y$130:Y$210,SUM($E$12:$T$13)*(Y$8-Y$9)*1000) -> 34830.39369 | Z44: =SUM('Statistics NZ'!Z$44,$G$12/5*(Z$8-Z$9)*1000)*'Economic Forecasts'!AB$9*1000000/SUM('Statistics NZ'!Z$30:Z$110,'Statistics NZ'!Z$130:Z$210,SUM($E$12:$T$13)*(Z$8-Z$9)*1000) -> 34473.34942 | AA44: =SUM(Z$44,'Statistics NZ'!AA$44-'Statistics NZ'!Z$44,$G$12/5*(AA$8-AA$9)*1000) -> 33813.25897 | AB44: =SUM(AA$44,'Statistics NZ'!AB$44-'Statistics NZ'!AA$44,$G$12/5*(AB$8-AB$9)*1000) -> 33809.20017 | AC44: =SUM(AB$44,'Statistics NZ'!AC$44-'Statistics NZ'!AB$44,$G$12/5*(AC$8-AC$9)*1000) -> 34733.16851 | AD44: =SUM(AC$44,'Statistics NZ'!AD$44-'Statistics NZ'!AC$44,$G$12/5*(AD$8-AD$9)*1000) -> 34853.16851 | AE44: =SUM(AD$44,'Statistics NZ'!AE$44-'Statistics NZ'!AD$44,$G$12/5*(AE$8-AE$9)*1000) -> 35583.16851 | AF44: =SUM(AE$44,'Statistics NZ'!AF$44-'Statistics NZ'!AE$44,$G$12/5*(AF$8-AF$9)*1000) -> 37753.16851 | AG44: =SUM(AF$44,'Statistics NZ'!AG$44-'Statistics NZ'!AF$44,$G$12/5*(AG$8-AG$9)*1000) -> 38903.16851 | AH44: =SUM(AG$44,'Statistics NZ'!AH$44-'Statistics NZ'!AG$44,$G$12/5*(AH$8-AH$9)*1000) -> 38363.16851 | AI44: =SUM(AH$44,'Statistics NZ'!AI$44-'Statistics NZ'!AH$44,$G$12/5*(AI$8-AI$9)*1000) -> 39423.16851 | AJ44: =SUM(AI$44,'Statistics NZ'!AJ$44-'Statistics NZ'!AI$44,$G$12/5*(AJ$8-AJ$9)*1000) -> 39503.16851
A45: 30 | B45: ='Statistics NZ'!B$45*'Economic Forecasts'!D$9*1000000/SUM('Statistics NZ'!B$30:B$110,'Statistics NZ'!B$130:B$210) -> 26494.9119 | C45: ='Statistics NZ'!C$45*'Economic Forecasts'!E$9*1000000/SUM('Statistics NZ'!C$30:C$110,'Statistics NZ'!C$130:C$210) -> 26769.53333 | D45: ='Statistics NZ'!D$45*'Economic Forecasts'!F$9*1000000/SUM('Statistics NZ'!D$30:D$110,'Statistics NZ'!D$130:D$210) -> 26462.41766 | E45: ='Statistics NZ'!E$45*'Economic Forecasts'!G$9*1000000/SUM('Statistics NZ'!E$30:E$110,'Statistics NZ'!E$130:E$210) -> 27371.40094 | F45: ='Statistics NZ'!F$45*'Economic Forecasts'!H$9*1000000/SUM('Statistics NZ'!F$30:F$110,'Statistics NZ'!F$130:F$210) -> 27474.5366 | G45: ='Statistics NZ'!G$45*'Economic Forecasts'!I$9*1000000/SUM('Statistics NZ'!G$30:G$110,'Statistics NZ'!G$130:G$210) -> 27424.34255 | H45: ='Statistics NZ'!H$45*'Economic Forecasts'!J$9*1000000/SUM('Statistics NZ'!H$30:H$110,'Statistics NZ'!H$130:H$210) -> 27765.83757 | I45: ='Statistics NZ'!I$45*'Economic Forecasts'!K$9*1000000/SUM('Statistics NZ'!I$30:I$110,'Statistics NZ'!I$130:I$210) -> 28067.57884 | J45: ='Statistics NZ'!J$45*'Economic Forecasts'!L$9*1000000/SUM('Statistics NZ'!J$30:J$110,'Statistics NZ'!J$130:J$210) -> 28436.48862 | K45: ='Statistics NZ'!K$45*'Economic Forecasts'!M$9*1000000/SUM('Statistics NZ'!K$30:K$110,'Statistics NZ'!K$130:K$210) -> 29559.16192 | L45: ='Statistics NZ'!L$45*'Economic Forecasts'!N$9*1000000/SUM('Statistics NZ'!L$30:L$110,'Statistics NZ'!L$130:L$210) -> 30806.64994 | M45: ='Statistics NZ'!M$45*'Economic Forecasts'!O$9*1000000/SUM('Statistics NZ'!M$30:M$110,'Statistics NZ'!M$130:M$210) -> 32532.68089 | N45: ='Statistics NZ'!N$45*'Economic Forecasts'!P$9*1000000/SUM('Statistics NZ'!N$30:N$110,'Statistics NZ'!N$130:N$210) -> 35392.10726 | O45: ='Statistics NZ'!O$45*'Economic Forecasts'!Q$9*1000000/SUM('Statistics NZ'!O$30:O$110,'Statistics NZ'!O$130:O$210) -> 36318.38424 | P45: ='Statistics NZ'!P$45*'Economic Forecasts'!R$9*1000000/SUM('Statistics NZ'!P$30:P$110,'Statistics NZ'!P$130:P$210) -> 38570.29253 | Q45: ='Statistics NZ'!Q$45*'Economic Forecasts'!S$9*1000000/SUM('Statistics NZ'!Q$30:Q$110,'Statistics NZ'!Q$130:Q$210) -> 38965.04554 | R45: ='Statistics NZ'!R$45*'Economic Forecasts'!T$9*1000000/SUM('Statistics NZ'!R$30:R$110,'Statistics NZ'!R$130:R$210) -> 37400.96161 | S45: ='Statistics NZ'!S$45*'Economic Forecasts'!U$9*1000000/SUM('Statistics NZ'!S$30:S$110,'Statistics NZ'!S$130:S$210) -> 37693.54206 | T45: ='Statistics NZ'!T$45*'Economic Forecasts'!V$9*1000000/SUM('Statistics NZ'!T$30:T$110,'Statistics NZ'!T$130:T$210) -> 37359.46583 | U45: =SUM('Statistics NZ'!U$45,$H$12/5*(U$8-U$9)*1000)*'Economic Forecasts'!W$9*1000000/SUM('Statistics NZ'!U$30:U$110,'Statistics NZ'!U$130:U$210,SUM($E$12:$T$13)*(U$8-U$9)*1000) -> 36725.54266 | V45: =SUM('Statistics NZ'!V$45,$H$12/5*(V$8-V$9)*1000)*'Economic Forecasts'!X$9*1000000/SUM('Statistics NZ'!V$30:V$110,'Statistics NZ'!V$130:V$210,SUM($E$12:$T$13)*(V$8-V$9)*1000) -> 35641.82261 | W45: =SUM('Statistics NZ'!W$45,$H$12/5*(W$8-W$9)*1000)*'Economic Forecasts'!Y$9*1000000/SUM('Statistics NZ'!W$30:W$110,'Statistics NZ'!W$130:W$210,SUM($E$12:$T$13)*(W$8-W$9)*1000) -> 35457.79806 | X45: =SUM('Statistics NZ'!X$45,$H$12/5*(X$8-X$9)*1000)*'Economic Forecasts'!Z$9*1000000/SUM('Statistics NZ'!X$30:X$110,'Statistics NZ'!X$130:X$210,SUM($E$12:$T$13)*(X$8-X$9)*1000) -> 35089.59905 | Y45: =SUM('Statistics NZ'!Y$45,$H$12/5*(Y$8-Y$9)*1000)*'Economic Forecasts'!AA$9*1000000/SUM('Statistics NZ'!Y$30:Y$110,'Statistics NZ'!Y$130:Y$210,SUM($E$12:$T$13)*(Y$8-Y$9)*1000) -> 34002.32008 | Z45: =SUM('Statistics NZ'!Z$45,$H$12/5*(Z$8-Z$9)*1000)*'Economic Forecasts'!AB$9*1000000/SUM('Statistics NZ'!Z$30:Z$110,'Statistics NZ'!Z$130:Z$210,SUM($E$12:$T$13)*(Z$8-Z$9)*1000) -> 35490.88309 | AA45: =SUM(Z$45,'Statistics NZ'!AA$45-'Statistics NZ'!Z$45,$H$12/5*(AA$8-AA$9)*1000) -> 35181.87916 | AB45: =SUM(AA$45,'Statistics NZ'!AB$45-'Statistics NZ'!AA$45,$H$12/5*(AB$8-AB$9)*1000) -> 34508.52661 | AC45: =SUM(AB$45,'Statistics NZ'!AC$45-'Statistics NZ'!AB$45,$H$12/5*(AC$8-AC$9)*1000) -> 34492.87523 | AD45: =SUM(AC$45,'Statistics NZ'!AD$45-'Statistics NZ'!AC$45,$H$12/5*(AD$8-AD$9)*1000) -> 35412.87523 | AE45: =SUM(AD$45,'Statistics NZ'!AE$45-'Statistics NZ'!AD$45,$H$12/5*(AE$8-AE$9)*1000) -> 35532.87523 | AF45: =SUM(AE$45,'Statistics NZ'!AF$45-'Statistics NZ'!AE$45,$H$12/5*(AF$8-AF$9)*1000) -> 36262.87523 | AG45: =SUM(AF$45,'Statistics NZ'!AG$45-'Statistics NZ'!AF$45,$H$12/5*(AG$8-AG$9)*1000) -> 38432.87523 | AH45: =SUM(AG$45,'Statistics NZ'!AH$45-'Statistics NZ'!AG$45,$H$12/5*(AH$8-AH$9)*1000) -> 39582.87523 | AI45: =SUM(AH$45,'Statistics NZ'!AI$45-'Statistics NZ'!AH$45,$H$12/5*(AI$8-AI$9)*1000) -> 39052.87523 | AJ45: =SUM(AI$45,'Statistics NZ'!AJ$45-'Statistics NZ'!AI$45,$H$12/5*(AJ$8-AJ$9)*1000) -> 40112.87523
A46: 31 | B46: ='Statistics NZ'!B$46*'Economic Forecasts'!D$9*1000000/SUM('Statistics NZ'!B$30:B$110,'Statistics NZ'!B$130:B$210) -> 28050.5585 | C46: ='Statistics NZ'!C$46*'Economic Forecasts'!E$9*1000000/SUM('Statistics NZ'!C$30:C$110,'Statistics NZ'!C$130:C$210) -> 27113.23607 | D46: ='Statistics NZ'!D$46*'Economic Forecasts'!F$9*1000000/SUM('Statistics NZ'!D$30:D$110,'Statistics NZ'!D$130:D$210) -> 27100.8947 | E46: ='Statistics NZ'!E$46*'Economic Forecasts'!G$9*1000000/SUM('Statistics NZ'!E$30:E$110,'Statistics NZ'!E$130:E$210) -> 26851.62872 | F46: ='Statistics NZ'!F$46*'Economic Forecasts'!H$9*1000000/SUM('Statistics NZ'!F$30:F$110,'Statistics NZ'!F$130:F$210) -> 27690.33089 | G46: ='Statistics NZ'!G$46*'Economic Forecasts'!I$9*1000000/SUM('Statistics NZ'!G$30:G$110,'Statistics NZ'!G$130:G$210) -> 27699.37177 | H46: ='Statistics NZ'!H$46*'Economic Forecasts'!J$9*1000000/SUM('Statistics NZ'!H$30:H$110,'Statistics NZ'!H$130:H$210) -> 27539.85941 | I46: ='Statistics NZ'!I$46*'Economic Forecasts'!K$9*1000000/SUM('Statistics NZ'!I$30:I$110,'Statistics NZ'!I$130:I$210) -> 27949.93618 | J46: ='Statistics NZ'!J$46*'Economic Forecasts'!L$9*1000000/SUM('Statistics NZ'!J$30:J$110,'Statistics NZ'!J$130:J$210) -> 28582.76686 | K46: ='Statistics NZ'!K$46*'Economic Forecasts'!M$9*1000000/SUM('Statistics NZ'!K$30:K$110,'Statistics NZ'!K$130:K$210) -> 29413.11863 | L46: ='Statistics NZ'!L$46*'Economic Forecasts'!N$9*1000000/SUM('Statistics NZ'!L$30:L$110,'Statistics NZ'!L$130:L$210) -> 30923.48932 | M46: ='Statistics NZ'!M$46*'Economic Forecasts'!O$9*1000000/SUM('Statistics NZ'!M$30:M$110,'Statistics NZ'!M$130:M$210) -> 32073.51092 | N46: ='Statistics NZ'!N$46*'Economic Forecasts'!P$9*1000000/SUM('Statistics NZ'!N$30:N$110,'Statistics NZ'!N$130:N$210) -> 33640.60403 | O46: ='Statistics NZ'!O$46*'Economic Forecasts'!Q$9*1000000/SUM('Statistics NZ'!O$30:O$110,'Statistics NZ'!O$130:O$210) -> 36338.02641 | P46: ='Statistics NZ'!P$46*'Economic Forecasts'!R$9*1000000/SUM('Statistics NZ'!P$30:P$110,'Statistics NZ'!P$130:P$210) -> 37356.09698 | Q46: ='Statistics NZ'!Q$46*'Economic Forecasts'!S$9*1000000/SUM('Statistics NZ'!Q$30:Q$110,'Statistics NZ'!Q$130:Q$210) -> 38797.09276 | R46: ='Statistics NZ'!R$46*'Economic Forecasts'!T$9*1000000/SUM('Statistics NZ'!R$30:R$110,'Statistics NZ'!R$130:R$210) -> 38685.87837 | S46: ='Statistics NZ'!S$46*'Economic Forecasts'!U$9*1000000/SUM('Statistics NZ'!S$30:S$110,'Statistics NZ'!S$130:S$210) -> 38754.64642 | T46: ='Statistics NZ'!T$46*'Economic Forecasts'!V$9*1000000/SUM('Statistics NZ'!T$30:T$110,'Statistics NZ'!T$130:T$210) -> 39265.2603 | U46: =SUM('Statistics NZ'!U$46,$H$12/5*(U$8-U$9)*1000)*'Economic Forecasts'!W$9*1000000/SUM('Statistics NZ'!U$30:U$110,'Statistics NZ'!U$130:U$210,SUM($E$12:$T$13)*(U$8-U$9)*1000) -> 37660.07175 | V46: =SUM('Statistics NZ'!V$46,$H$12/5*(V$8-V$9)*1000)*'Economic Forecasts'!X$9*1000000/SUM('Statistics NZ'!V$30:V$110,'Statistics NZ'!V$130:V$210,SUM($E$12:$T$13)*(V$8-V$9)*1000) -> 37334.71385 | W46: =SUM('Statistics NZ'!W$46,$H$12/5*(W$8-W$9)*1000)*'Economic Forecasts'!Y$9*1000000/SUM('Statistics NZ'!W$30:W$110,'Statistics NZ'!W$130:W$210,SUM($E$12:$T$13)*(W$8-W$9)*1000) -> 36278.13073 | X46: =SUM('Statistics NZ'!X$46,$H$12/5*(X$8-X$9)*1000)*'Economic Forecasts'!Z$9*1000000/SUM('Statistics NZ'!X$30:X$110,'Statistics NZ'!X$130:X$210,SUM($E$12:$T$13)*(X$8-X$9)*1000) -> 36075.63926 | Y46: =SUM('Statistics NZ'!Y$46,$H$12/5*(Y$8-Y$9)*1000)*'Economic Forecasts'!AA$9*1000000/SUM('Statistics NZ'!Y$30:Y$110,'Statistics NZ'!Y$130:Y$210,SUM($E$12:$T$13)*(Y$8-Y$9)*1000) -> 35721.09393 | Z46: =SUM('Statistics NZ'!Z$46,$H$12/5*(Z$8-Z$9)*1000)*'Economic Forecasts'!AB$9*1000000/SUM('Statistics NZ'!Z$30:Z$110,'Statistics NZ'!Z$130:Z$210,SUM($E$12:$T$13)*(Z$8-Z$9)*1000) -> 34640.96455 | AA46: =SUM(Z$46,'Statistics NZ'!AA$46-'Statistics NZ'!Z$46,$H$12/5*(AA$8-AA$9)*1000) -> 36211.96062 | AB46: =SUM(AA$46,'Statistics NZ'!AB$46-'Statistics NZ'!AA$46,$H$12/5*(AB$8-AB$9)*1000) -> 35888.60806 | AC46: =SUM(AB$46,'Statistics NZ'!AC$46-'Statistics NZ'!AB$46,$H$12/5*(AC$8-AC$9)*1000) -> 35212.95669 | AD46: =SUM(AC$46,'Statistics NZ'!AD$46-'Statistics NZ'!AC$46,$H$12/5*(AD$8-AD$9)*1000) -> 35182.95669 | AE46: =SUM(AD$46,'Statistics NZ'!AE$46-'Statistics NZ'!AD$46,$H$12/5*(AE$8-AE$9)*1000) -> 36102.95669 | AF46: =SUM(AE$46,'Statistics NZ'!AF$46-'Statistics NZ'!AE$46,$H$12/5*(AF$8-AF$9)*1000) -> 36222.95669 | AG46: =SUM(AF$46,'Statistics NZ'!AG$46-'Statistics NZ'!AF$46,$H$12/5*(AG$8-AG$9)*1000) -> 36962.95669 | AH46: =SUM(AG$46,'Statistics NZ'!AH$46-'Statistics NZ'!AG$46,$H$12/5*(AH$8-AH$9)*1000) -> 39142.95669 | AI46: =SUM(AH$46,'Statistics NZ'!AI$46-'Statistics NZ'!AH$46,$H$12/5*(AI$8-AI$9)*1000) -> 40292.95669 | AJ46: =SUM(AI$46,'Statistics NZ'!AJ$46-'Statistics NZ'!AI$46,$H$12/5*(AJ$8-AJ$9)*1000) -> 39762.95669
A47: 32 | B47: ='Statistics NZ'!B$47*'Economic Forecasts'!D$9*1000000/SUM('Statistics NZ'!B$30:B$110,'Statistics NZ'!B$130:B$210) -> 29312.68688 | C47: ='Statistics NZ'!C$47*'Economic Forecasts'!E$9*1000000/SUM('Statistics NZ'!C$30:C$110,'Statistics NZ'!C$130:C$210) -> 28468.40687 | D47: ='Statistics NZ'!D$47*'Economic Forecasts'!F$9*1000000/SUM('Statistics NZ'!D$30:D$110,'Statistics NZ'!D$130:D$210) -> 27316.99463 | E47: ='Statistics NZ'!E$47*'Economic Forecasts'!G$9*1000000/SUM('Statistics NZ'!E$30:E$110,'Statistics NZ'!E$130:E$210) -> 27243.90964 | F47: ='Statistics NZ'!F$47*'Economic Forecasts'!H$9*1000000/SUM('Statistics NZ'!F$30:F$110,'Statistics NZ'!F$130:F$210) -> 26993.90387 | G47: ='Statistics NZ'!G$47*'Economic Forecasts'!I$9*1000000/SUM('Statistics NZ'!G$30:G$110,'Statistics NZ'!G$130:G$210) -> 27797.59649 | H47: ='Statistics NZ'!H$47*'Economic Forecasts'!J$9*1000000/SUM('Statistics NZ'!H$30:H$110,'Statistics NZ'!H$130:H$210) -> 27647.93592 | I47: ='Statistics NZ'!I$47*'Economic Forecasts'!K$9*1000000/SUM('Statistics NZ'!I$30:I$110,'Statistics NZ'!I$130:I$210) -> 27459.75841 | J47: ='Statistics NZ'!J$47*'Economic Forecasts'!L$9*1000000/SUM('Statistics NZ'!J$30:J$110,'Statistics NZ'!J$130:J$210) -> 28280.45851 | K47: ='Statistics NZ'!K$47*'Economic Forecasts'!M$9*1000000/SUM('Statistics NZ'!K$30:K$110,'Statistics NZ'!K$130:K$210) -> 29208.65803 | L47: ='Statistics NZ'!L$47*'Economic Forecasts'!N$9*1000000/SUM('Statistics NZ'!L$30:L$110,'Statistics NZ'!L$130:L$210) -> 30446.39518 | M47: ='Statistics NZ'!M$47*'Economic Forecasts'!O$9*1000000/SUM('Statistics NZ'!M$30:M$110,'Statistics NZ'!M$130:M$210) -> 32034.43263 | N47: ='Statistics NZ'!N$47*'Economic Forecasts'!P$9*1000000/SUM('Statistics NZ'!N$30:N$110,'Statistics NZ'!N$130:N$210) -> 33161.14225 | O47: ='Statistics NZ'!O$47*'Economic Forecasts'!Q$9*1000000/SUM('Statistics NZ'!O$30:O$110,'Statistics NZ'!O$130:O$210) -> 34472.01965 | P47: ='Statistics NZ'!P$47*'Economic Forecasts'!R$9*1000000/SUM('Statistics NZ'!P$30:P$110,'Statistics NZ'!P$130:P$210) -> 37219.01038 | Q47: ='Statistics NZ'!Q$47*'Economic Forecasts'!S$9*1000000/SUM('Statistics NZ'!Q$30:Q$110,'Statistics NZ'!Q$130:Q$210) -> 37670.82116 | R47: ='Statistics NZ'!R$47*'Economic Forecasts'!T$9*1000000/SUM('Statistics NZ'!R$30:R$110,'Statistics NZ'!R$130:R$210) -> 38596.92259 | S47: ='Statistics NZ'!S$47*'Economic Forecasts'!U$9*1000000/SUM('Statistics NZ'!S$30:S$110,'Statistics NZ'!S$130:S$210) -> 39776.81117 | T47: ='Statistics NZ'!T$47*'Economic Forecasts'!V$9*1000000/SUM('Statistics NZ'!T$30:T$110,'Statistics NZ'!T$130:T$210) -> 40316.39437 | U47: =SUM('Statistics NZ'!U$47,$H$12/5*(U$8-U$9)*1000)*'Economic Forecasts'!W$9*1000000/SUM('Statistics NZ'!U$30:U$110,'Statistics NZ'!U$130:U$210,SUM($E$12:$T$13)*(U$8-U$9)*1000) -> 39568.47852 | V47: =SUM('Statistics NZ'!V$47,$H$12/5*(V$8-V$9)*1000)*'Economic Forecasts'!X$9*1000000/SUM('Statistics NZ'!V$30:V$110,'Statistics NZ'!V$130:V$210,SUM($E$12:$T$13)*(V$8-V$9)*1000) -> 38244.76522 | W47: =SUM('Statistics NZ'!W$47,$H$12/5*(W$8-W$9)*1000)*'Economic Forecasts'!Y$9*1000000/SUM('Statistics NZ'!W$30:W$110,'Statistics NZ'!W$130:W$210,SUM($E$12:$T$13)*(W$8-W$9)*1000) -> 37948.09366 | X47: =SUM('Statistics NZ'!X$47,$H$12/5*(X$8-X$9)*1000)*'Economic Forecasts'!Z$9*1000000/SUM('Statistics NZ'!X$30:X$110,'Statistics NZ'!X$130:X$210,SUM($E$12:$T$13)*(X$8-X$9)*1000) -> 36885.94954 | Y47: =SUM('Statistics NZ'!Y$47,$H$12/5*(Y$8-Y$9)*1000)*'Economic Forecasts'!AA$9*1000000/SUM('Statistics NZ'!Y$30:Y$110,'Statistics NZ'!Y$130:Y$210,SUM($E$12:$T$13)*(Y$8-Y$9)*1000) -> 36687.90423 | Z47: =SUM('Statistics NZ'!Z$47,$H$12/5*(Z$8-Z$9)*1000)*'Economic Forecasts'!AB$9*1000000/SUM('Statistics NZ'!Z$30:Z$110,'Statistics NZ'!Z$130:Z$210,SUM($E$12:$T$13)*(Z$8-Z$9)*1000) -> 36350.57081 | AA47: =SUM(Z$47,'Statistics NZ'!AA$47-'Statistics NZ'!Z$47,$H$12/5*(AA$8-AA$9)*1000) -> 35291.56688 | AB47: =SUM(AA$47,'Statistics NZ'!AB$47-'Statistics NZ'!AA$47,$H$12/5*(AB$8-AB$9)*1000) -> 36858.21432 | AC47: =SUM(AB$47,'Statistics NZ'!AC$47-'Statistics NZ'!AB$47,$H$12/5*(AC$8-AC$9)*1000) -> 36522.56295 | AD47: =SUM(AC$47,'Statistics NZ'!AD$47-'Statistics NZ'!AC$47,$H$12/5*(AD$8-AD$9)*1000) -> 35832.56295 | AE47: =SUM(AD$47,'Statistics NZ'!AE$47-'Statistics NZ'!AD$47,$H$12/5*(AE$8-AE$9)*1000) -> 35802.56295 | AF47: =SUM(AE$47,'Statistics NZ'!AF$47-'Statistics NZ'!AE$47,$H$12/5*(AF$8-AF$9)*1000) -> 36732.56295 | AG47: =SUM(AF$47,'Statistics NZ'!AG$47-'Statistics NZ'!AF$47,$H$12/5*(AG$8-AG$9)*1000) -> 36852.56295 | AH47: =SUM(AG$47,'Statistics NZ'!AH$47-'Statistics NZ'!AG$47,$H$12/5*(AH$8-AH$9)*1000) -> 37592.56295 | AI47: =SUM(AH$47,'Statistics NZ'!AI$47-'Statistics NZ'!AH$47,$H$12/5*(AI$8-AI$9)*1000) -> 39772.56295 | AJ47: =SUM(AI$47,'Statistics NZ'!AJ$47-'Statistics NZ'!AI$47,$H$12/5*(AJ$8-AJ$9)*1000) -> 40922.56295
A48: 33 | B48: ='Statistics NZ'!B$48*'Economic Forecasts'!D$9*1000000/SUM('Statistics NZ'!B$30:B$110,'Statistics NZ'!B$130:B$210) -> 30565.03131 | C48: ='Statistics NZ'!C$48*'Economic Forecasts'!E$9*1000000/SUM('Statistics NZ'!C$30:C$110,'Statistics NZ'!C$130:C$210) -> 29735.19697 | D48: ='Statistics NZ'!D$48*'Economic Forecasts'!F$9*1000000/SUM('Statistics NZ'!D$30:D$110,'Statistics NZ'!D$130:D$210) -> 28682.35322 | E48: ='Statistics NZ'!E$48*'Economic Forecasts'!G$9*1000000/SUM('Statistics NZ'!E$30:E$110,'Statistics NZ'!E$130:E$210) -> 27420.43605 | F48: ='Statistics NZ'!F$48*'Economic Forecasts'!H$9*1000000/SUM('Statistics NZ'!F$30:F$110,'Statistics NZ'!F$130:F$210) -> 27445.11011 | G48: ='Statistics NZ'!G$48*'Economic Forecasts'!I$9*1000000/SUM('Statistics NZ'!G$30:G$110,'Statistics NZ'!G$130:G$210) -> 27060.91107 | H48: ='Statistics NZ'!H$48*'Economic Forecasts'!J$9*1000000/SUM('Statistics NZ'!H$30:H$110,'Statistics NZ'!H$130:H$210) -> 27795.31298 | I48: ='Statistics NZ'!I$48*'Economic Forecasts'!K$9*1000000/SUM('Statistics NZ'!I$30:I$110,'Statistics NZ'!I$130:I$210) -> 27587.20463 | J48: ='Statistics NZ'!J$48*'Economic Forecasts'!L$9*1000000/SUM('Statistics NZ'!J$30:J$110,'Statistics NZ'!J$130:J$210) -> 27870.87945 | K48: ='Statistics NZ'!K$48*'Economic Forecasts'!M$9*1000000/SUM('Statistics NZ'!K$30:K$110,'Statistics NZ'!K$130:K$210) -> 28955.51632 | L48: ='Statistics NZ'!L$48*'Economic Forecasts'!N$9*1000000/SUM('Statistics NZ'!L$30:L$110,'Statistics NZ'!L$130:L$210) -> 30086.14042 | M48: ='Statistics NZ'!M$48*'Economic Forecasts'!O$9*1000000/SUM('Statistics NZ'!M$30:M$110,'Statistics NZ'!M$130:M$210) -> 31487.33649 | N48: ='Statistics NZ'!N$48*'Economic Forecasts'!P$9*1000000/SUM('Statistics NZ'!N$30:N$110,'Statistics NZ'!N$130:N$210) -> 32799.09968 | O48: ='Statistics NZ'!O$48*'Economic Forecasts'!Q$9*1000000/SUM('Statistics NZ'!O$30:O$110,'Statistics NZ'!O$130:O$210) -> 33823.82783 | P48: ='Statistics NZ'!P$48*'Economic Forecasts'!R$9*1000000/SUM('Statistics NZ'!P$30:P$110,'Statistics NZ'!P$130:P$210) -> 35182.29527 | Q48: ='Statistics NZ'!Q$48*'Economic Forecasts'!S$9*1000000/SUM('Statistics NZ'!Q$30:Q$110,'Statistics NZ'!Q$130:Q$210) -> 37532.5071 | R48: ='Statistics NZ'!R$48*'Economic Forecasts'!T$9*1000000/SUM('Statistics NZ'!R$30:R$110,'Statistics NZ'!R$130:R$210) -> 37499.80136 | S48: ='Statistics NZ'!S$48*'Economic Forecasts'!U$9*1000000/SUM('Statistics NZ'!S$30:S$110,'Statistics NZ'!S$130:S$210) -> 39591.84802 | T48: ='Statistics NZ'!T$48*'Economic Forecasts'!V$9*1000000/SUM('Statistics NZ'!T$30:T$110,'Statistics NZ'!T$130:T$210) -> 41357.70475 | U48: =SUM('Statistics NZ'!U$48,$H$12/5*(U$8-U$9)*1000)*'Economic Forecasts'!W$9*1000000/SUM('Statistics NZ'!U$30:U$110,'Statistics NZ'!U$130:U$210,SUM($E$12:$T$13)*(U$8-U$9)*1000) -> 40611.21624 | V48: =SUM('Statistics NZ'!V$48,$H$12/5*(V$8-V$9)*1000)*'Economic Forecasts'!X$9*1000000/SUM('Statistics NZ'!V$30:V$110,'Statistics NZ'!V$130:V$210,SUM($E$12:$T$13)*(V$8-V$9)*1000) -> 40133.36643 | W48: =SUM('Statistics NZ'!W$48,$H$12/5*(W$8-W$9)*1000)*'Economic Forecasts'!Y$9*1000000/SUM('Statistics NZ'!W$30:W$110,'Statistics NZ'!W$130:W$210,SUM($E$12:$T$13)*(W$8-W$9)*1000) -> 38856.31912 | X48: =SUM('Statistics NZ'!X$48,$H$12/5*(X$8-X$9)*1000)*'Economic Forecasts'!Z$9*1000000/SUM('Statistics NZ'!X$30:X$110,'Statistics NZ'!X$130:X$210,SUM($E$12:$T$13)*(X$8-X$9)*1000) -> 38545.62118 | Y48: =SUM('Statistics NZ'!Y$48,$H$12/5*(Y$8-Y$9)*1000)*'Economic Forecasts'!AA$9*1000000/SUM('Statistics NZ'!Y$30:Y$110,'Statistics NZ'!Y$130:Y$210,SUM($E$12:$T$13)*(Y$8-Y$9)*1000) -> 37498.46235 | Z48: =SUM('Statistics NZ'!Z$48,$H$12/5*(Z$8-Z$9)*1000)*'Economic Forecasts'!AB$9*1000000/SUM('Statistics NZ'!Z$30:Z$110,'Statistics NZ'!Z$130:Z$210,SUM($E$12:$T$13)*(Z$8-Z$9)*1000) -> 37307.95031 | AA48: =SUM(Z$48,'Statistics NZ'!AA$48-'Statistics NZ'!Z$48,$H$12/5*(AA$8-AA$9)*1000) -> 37008.94638 | AB48: =SUM(AA$48,'Statistics NZ'!AB$48-'Statistics NZ'!AA$48,$H$12/5*(AB$8-AB$9)*1000) -> 35945.59383 | AC48: =SUM(AB$48,'Statistics NZ'!AC$48-'Statistics NZ'!AB$48,$H$12/5*(AC$8-AC$9)*1000) -> 37489.94246 | AD48: =SUM(AC$48,'Statistics NZ'!AD$48-'Statistics NZ'!AC$48,$H$12/5*(AD$8-AD$9)*1000) -> 37149.94246 | AE48: =SUM(AD$48,'Statistics NZ'!AE$48-'Statistics NZ'!AD$48,$H$12/5*(AE$8-AE$9)*1000) -> 36469.94246 | AF48: =SUM(AE$48,'Statistics NZ'!AF$48-'Statistics NZ'!AE$48,$H$12/5*(AF$8-AF$9)*1000) -> 36439.94246 | AG48: =SUM(AF$48,'Statistics NZ'!AG$48-'Statistics NZ'!AF$48,$H$12/5*(AG$8-AG$9)*1000) -> 37369.94246 | AH48: =SUM(AG$48,'Statistics NZ'!AH$48-'Statistics NZ'!AG$48,$H$12/5*(AH$8-AH$9)*1000) -> 37499.94246 | AI48: =SUM(AH$48,'Statistics NZ'!AI$48-'Statistics NZ'!AH$48,$H$12/5*(AI$8-AI$9)*1000) -> 38239.94246 | AJ48: =SUM(AI$48,'Statistics NZ'!AJ$48-'Statistics NZ'!AI$48,$H$12/5*(AJ$8-AJ$9)*1000) -> 40419.94246
